Workbook

Sheet MENU
C1: =VLOOKUP(2,LOCATION,Lang!A2+1,FALSE) -> MAIN MENU | E1: v2016.12b | G1: =NOW() -> 2016-12-14T08:46:22.460 | R1: today's date => | S1: =IF(G1="",NOW(),G1) -> 2016-12-14T08:46:22.460 | U1: 4 | V1: 2006-01-17T09:01:25
C2: =CONCATENATE("BK# ",+BKnum) -> BK# 54321 | F2: =VLOOKUP(266,LOCATION,WORLD+1,FALSE) -> View Printable Documents | R2: MAX= | S2: 10000
B3: 1- | D3: Approved POS data upload routine (same day, previous week) | F3: =VLOOKUP(196,LOCATION,WORLD+1,FALSE) -> PLS: INSTRUCTIONS | R3: POSDate=> | S3: =+S1-7 -> 2016-12-07T08:46:22.460 | T3: =CONCATENATE("c:\POSDataForBKC\MenuItemSales_",+BKnum,"_",TEXT(posdate,"yyyy"),".",TEXT(posdate,"mm"),".",TEXT(posdate,"dd"),".csv") -> c:\POSDataForBKC\MenuItemSales_54321_2016.12.07.csv
F4: =VLOOKUP(3,LOCATION,WORLD+1,FALSE) -> Enter Product Mix Information | R4: POSLoadYes=> | S4: 1 | T4: =CONCATENATE("c:\POSDataForBKC\PeriodSales_",+BKnum,"_",TEXT(posdate,"yyyy"),".",TEXT(posdate,"mm"),".",TEXT(posdate,"dd"),".csv") -> c:\POSDataForBKC\PeriodSales_54321_2016.12.07.csv
B5: 2- | D5: =VLOOKUP(5,LOCATION,WORLD+1,FALSE) -> Print Menu | F5: =VLOOKUP(4,LOCATION,WORLD+1,FALSE) -> Enter Sales Information
F6: Label Minder On Demand Guide
F7: =VLOOKUP(135,LOCATION,WORLD+1,FALSE) -> Changes Since Last Version
F8: =VLOOKUP(99,LOCATION,WORLD+1,FALSE) -> Setup Function
E9: =+KMactive -> 1 | F9: =VLOOKUP(148,LOCATION,WORLD+1,FALSE) -> Kitchen Minder Output File
F10: =CONCATENATE(VLOOKUP(POS_VENDOR, SETUP!B197:C200, 2, FALSE), " POS") -> SICOM POS
B14: Build: rev f_NDC
B101: =TODAY() -> 2016-12-14
B313: =WEEKDAY(Pmixdate) -> 5 | C313: =IF(B313=1,"Sun",IF(B313=2,"Mon",IF(B313=3,"Tue",IF(B313=4,"Wed",IF(B313=5,"Thu",IF(B313=6,"Fri","Sat")))))) -> Thu
A314: =CELL("filename") -> C:\Users\Nat\Google Drive\gPLS\[Global PLS_2016-12a (Excel 2007-10).xlsm]Changes
A315: =TEXT(Pmixdate, "yymmdd") -> 130110 | B315: Thu | C315: =CONCATENATE("KitchenMinder",CONCATENATE(A315,B315)) -> KitchenMinder130110Thu
A316: =TEXT(Pmixdate, "ddd mm/dd/yy") -> Thu 01/10/13 | B316: =TEXT(change, "hh:mm AM/PM") -> 10:30 AM

Sheet CHARTS-HChutes
B1: =VLOOKUP(Lang!A15,LOCATION,WORLD+1,FALSE) -> Heat Chutes Charts | P1: =IF(BandBversionYes="Y",btext," ") ->  | U1: =VLOOKUP(Lang!A65,LOCATION,WORLD+1,FALSE) -> Day of the Week | V1: =+CODE -> THU
D2: =+datecoder -> 2013-01-10Thu | I2: =VLOOKUP(Lang!A44,LOCATION,WORLD+1,FALSE) -> Version | J2: =+version -> v2016.12b | S2: =+BKnum -> 54321 | U2: =+VLOOKUP(Lang!A121,LOCATION,WORLD+1,FALSE) -> Date Charts Completed | V2: =+Completion -> 2016-12-14T08:46:22.460
A3: HIDE | B3: =VLOOKUP(Lang!A50,LOCATION,WORLD+1,FALSE) -> Lunch/Dinner | C3: HIDE | D3: L1 | E3: L2 | F3: L3 | G3: L4 | H3: L5 | I3: L6 | J3: LP | M3: HIDE | N3: =VLOOKUP(Lang!A69,LOCATION,WORLD+1,FALSE) -> Breakfast | O3: HIDE | P3: L1 | Q3: L2 | R3: L3 | S3: L4 | T3: L5 | U3: L6 | V3: LP
A4: 1 | B4: =IF(A4>Gmaxlunch,"",VLOOKUP(A4,Glunchlist,3,FALSE)) -> Pie Apple | C4: =IF(B4="","",VLOOKUP(A4,Glunchlist,4,FALSE)) -> 1.202337077 | E4: =IF($B4="","",IF((INT($C4*2+0.5))<1,"",$C4*2)) -> 2.404674154 | F4: =IF($B4="","",IF((INT($C4*3+0.5))<1,"",$C4*3)) -> 3.607011231 | G4: =IF($B4="","",IF((INT($C4*4+0.5))<1,"",$C4*4)) -> 4.809348308 | H4: =IF($B4="","",IF((INT($C4*5+0.5))<1,"",$C4*5)) -> 6.011685385 | I4: =IF($B4="","",IF((INT($C4*6+0.5))<1,"",$C4*6)) -> 7.214022462 | J4: =IF($B4="","",IF((INT($C4*rdpeak+0.5))<1,"",$C4*rdpeak)) -> 9.618696615 | M4: 1 | N4: =IF(M4>Gmaxbkfst,"",VLOOKUP(M4,Gbkfstlist,6,FALSE)) -> Croissan'wich Saus Egg Chs | O4: =IF(N4="","",VLOOKUP(M4,Gbkfstlist,7,FALSE)) -> 3.455897833 | Q4: =IF($N4="","",IF((INT($O4*2+0.5))<1,"",$O4*2)) -> 6.911795666 | R4: =IF($N4="","",IF((INT($O4*3+0.5))<1,"",$O4*3)) -> 10.3676935 | S4: =IF($N4="","",IF((INT($O4*4+0.5))<1,"",$O4*4)) -> 13.82359133 | T4: =IF($N4="","",IF((INT($O4*5+0.5))<1,"",$O4*5)) -> 17.27948917 | U4: =IF($N4="","",IF((INT($O4*6+0.5))<1,"",$O4*6)) -> 20.735387 | V4: =IF($N4="","",IF((INT($O4*bkfstpeak+0.5))<1,"",$O4*bkfstpeak)) -> 27.64718266
A5: 2 | B5: =IF(A5>Gmaxlunch,"",VLOOKUP(A5,Glunchlist,3,FALSE)) -> Xtra Long BBQ Chs Burger | C5: =IF(B5="","",VLOOKUP(A5,Glunchlist,4,FALSE)) -> 0.4012110256 | E5: =IF($B5="","",IF((INT($C5*2+0.5))<1,"",$C5*2)) -> 0.8024220513 | F5: =IF($B5="","",IF((INT($C5*3+0.5))<1,"",$C5*3)) -> 1.203633077 | G5: =IF($B5="","",IF((INT($C5*4+0.5))<1,"",$C5*4)) -> 1.604844103 | H5: =IF($B5="","",IF((INT($C5*5+0.5))<1,"",$C5*5)) -> 2.006055128 | I5: =IF($B5="","",IF((INT($C5*6+0.5))<1,"",$C5*6)) -> 2.407266154 | J5: 3.209688205 | M5: 2 | N5: Croissan'wich Ham Egg Chs | O5: 3.455891833 | Q5: 6.911783666 | R5: 10.3676755 | S5: 13.82356733 | T5: 17.27945917 | U5: 20.735351 | V5: 27.64713466
A6: 3 | B6: =IF(A6>Gmaxlunch,"",VLOOKUP(A6,Glunchlist,3,FALSE)) -> Tacos 2 Pc | C6: =IF(B6="","",VLOOKUP(A6,Glunchlist,4,FALSE)) -> 0.4011450256 | E6: =IF($B6="","",IF((INT($C6*2+0.5))<1,"",$C6*2)) -> 0.8022900513 | F6: =IF($B6="","",IF((INT($C6*3+0.5))<1,"",$C6*3)) -> 1.203435077 | G6: 1.604580103 | H6: 2.005725128 | I6: 2.406870154 | J6: 3.209160205 | M6: 3 | N6: Croissan'wich Chs | O6: 3.455879833 | Q6: 6.911759666 | R6: 10.3676395 | S6: 13.82351933 | T6: 17.27939917 | U6: 20.735279 | V6: 27.64703866
A7: 4 | B7: Hot Dog Chili Chs | C7: 0.4009770256 | E7: =IF($B7="","",IF((INT($C7*2+0.5))<1,"",$C7*2)) -> 0.8019540513 | F7: =IF($B7="","",IF((INT($C7*3+0.5))<1,"",$C7*3)) -> 1.202931077 | G7: 1.603908103 | H7: 2.004885128 | I7: 2.405862154 | J7: 3.207816205 | M7: 4 | N7: Croissan'wich Chicken Chs | O7: 3.455873833 | Q7: 6.911747666 | R7: 10.3676215 | S7: 13.82349533 | T7: 17.27936917 | U7: 20.735243 | V7: 27.64699066
A8: 5 | B8: Hamburger | C8: 0.4009590256 | E8: =IF($B8="","",IF((INT($C8*2+0.5))<1,"",$C8*2)) -> 0.8019180513 | F8: =IF($B8="","",IF((INT($C8*3+0.5))<1,"",$C8*3)) -> 1.202877077 | G8: 1.603836103 | H8: 2.004795128 | I8: 2.405754154 | J8: 3.207672205 | M8: 5 | N8: Croissan'wich Bac Egg Chs | O8: 3.455867833 | Q8: 6.911735666 | R8: 10.3676035 | S8: 13.82347133 | T8: 17.27933917 | U8: 20.735207 | V8: 27.64694266
A9: 6 | B9: Crispy Chicken Spicy | C9: 0.4008390256 | E9: 0.8016780513 | F9: 1.202517077 | G9: 1.603356103 | H9: 2.004195128 | I9: 2.405034154 | J9: 3.206712205 | M9: 6 | N9: Burrito Ham Val | O9: 3.455765833 | Q9: 6.911531666 | R9: 10.3672975 | S9: 13.82306333 | T9: 17.27882917 | U9: 20.734595 | V9: 27.64612666
A10: 7 | B10: Cheeseburger Bac | C10: 0.4007490256 | E10: 0.8014980513 | F10: 1.202247077 | G10: 1.602996103 | H10: 2.003745128 | I10: 2.404494154 | J10: 3.205992205 | M10: 7 | N10: Burrito Bac Egg Chs Val | O10: 3.455747833 | Q10: 6.911495666 | R10: 10.3672435 | S10: 13.82299133 | T10: 17.27873917 | U10: 20.734487 | V10: 27.64598266
A11: 8 | M11: 8 | N11: Biscuits and Gravy 2 Pc | O11: 3.455729833 | Q11: 6.911459666 | R11: 10.3671895 | S11: 13.82291933 | T11: 17.27864917 | U11: 20.734379 | V11: 27.64583866
A12: 9 | M12: 9 | N12: Biscuit Saus | O12: 3.455723833 | Q12: 6.911447666 | R12: 10.3671715 | S12: 13.82289533 | T12: 17.27861917 | U12: 20.734343 | V12: 27.64579066
A13: 10 | M13: 10 | N13: Biscuit Ham Chs | O13: 3.455717833 | Q13: 6.911435666 | R13: 10.3671535 | S13: 13.82287133 | T13: 17.27858917 | U13: 20.734307 | V13: 27.64574266
A14: 11 | M14: 11 | N14: Biscuit Chicken Egg | O14: 3.455705833 | Q14: 6.911411666 | R14: 10.3671175 | S14: 13.82282333 | T14: 17.27852917 | U14: 20.734235 | V14: 27.64564666
A15: 12 | M15: 12 | N15: Biscuit Bac Ham Egg Chs Dbl | O15: 3.455699833 | Q15: 6.911399666 | R15: 10.3670995 | S15: 13.82279933 | T15: 17.27849917 | U15: 20.734199 | V15: 27.64559866
A16: 13 | M16: 13 | N16: Biscuit | O16: 3.455693833 | Q16: 6.911387666 | R16: 10.3670815 | S16: 13.82277533 | T16: 17.27846917 | U16: 20.734163 | V16: 27.64555066
A17: 14 | B17: =IF(A17>Gmaxlunch,"",VLOOKUP(A17,Glunchlist,3,FALSE)) ->  | C17: =IF(B17="","",VLOOKUP(A17,Glunchlist,4,FALSE)) ->  | E17: =IF($B17="","",IF((INT($C17*2+0.5))<1,"",$C17*2)) ->  | F17: =IF($B17="","",IF((INT($C17*3+0.5))<1,"",$C17*3)) ->  | M17: 14 | N17: =IF(M17>Gmaxbkfst,"",VLOOKUP(M17,Gbkfstlist,6,FALSE)) -> French Toast Sticks 3 Pc | O17: =IF(N17="","",VLOOKUP(M17,Gbkfstlist,7,FALSE)) -> 1.728125917 | Q17: 3.456251833 | R17: 5.18437775 | S17: 6.912503666 | T17: 8.640629583 | U17: 10.3687555 | V17: 13.82500733
A18: 15 | M18: 15 | N18: Croissan'wich Saus Chs | O18: 0.3457983833 | Q18: 0.6915967666 | R18: 1.03739515 | S18: 1.383193533 | T18: 1.728991917 | U18: 2.0747903 | V18: 2.766387066
A19: 16 | M19: 16 | N19: Croissan'wich Ham Chs | O19: 0.3457923833 | Q19: 0.6915847666 | R19: 1.03737715 | S19: 1.383169533 | T19: 1.728961917 | U19: 2.0747543 | V19: 2.766339066
A20: 17 | M20: 17 | N20: Croissan'wich Country Ham Egg Chs | O20: 0.3457863833 | Q20: 0.6915727666 | R20: 1.03735915 | S20: 1.383145533 | T20: 1.728931917 | U20: 2.0747183 | V20: 2.766291066
A21: 18 | M21: 18 | N21: Croissan'wich Chicken | O21: 0.3457743833 | Q21: 0.6915487666 | R21: 1.03732315 | S21: 1.383097533 | T21: 1.728871917 | U21: 2.0746463 | V21: 2.766195066
A22: 19 | M22: 19 | N22: Burrito Saus Val | O22: 0.3456723833 | Q22: 0.6913447666 | R22: 1.03701715 | S22: 1.382689533 | T22: 1.728361917 | U22: 2.0740343 | V22: 2.765379066
A23: 20 | M23: 20 | N23: Burrito Ham Egg Chs Val | O23: 0.3456663833 | Q23: 0.6913327666 | R23: 1.03699915 | S23: 1.382665533 | T23: 1.728331917 | U23: 2.0739983 | V23: 2.765331066
A24: 21 | M24: 21 | N24: Burrito Egg Chs Val | O24: 0.3456543833 | Q24: 0.6913087666 | R24: 1.03696315 | S24: 1.382617533 | T24: 1.728271917 | U24: 2.0739263 | V24: 2.765235066
A25: 22 | M25: 22 | N25: Biscuit Saus Egg Chs Dbl | O25: 0.3456303833 | Q25: 0.6912607666 | R25: 1.03689115 | S25: 1.382521533 | T25: 1.728151917 | U25: 2.0737823 | V25: 2.765043066
A26: 23 | M26: 23 | N26: Biscuit Ham Egg Chs Dbl | O26: 0.3456243833 | Q26: 0.6912487666 | R26: 1.03687315 | S26: 1.382497533 | T26: 1.728121917 | U26: 2.0737463 | V26: 2.764995066
A27: 24 | M27: 24 | N27: Biscuit Egg Chs | O27: 0.3456183833 | Q27: 0.6912367666 | R27: 1.03685515 | S27: 1.382473533 | T27: 1.728091917 | U27: 2.0737103 | V27: 2.764947066
A28: 25 | M28: 25 | N28: Biscuit Chs | O28: 0.3456123833 | Q28: 0.6912247666 | R28: 1.03683715 | S28: 1.382449533 | T28: 1.728061917 | U28: 2.0736743 | V28: 2.764899066
A29: 26 | M29: 26 | N29: Biscuit Bac Egg Chs | O29: 0.3456003833 | Q29: 0.6912007666 | R29: 1.03680115 | S29: 1.382401533 | T29: 1.728001917 | U29: 2.0736023 | V29: 2.764803066
A30: 27 | M30: 27 | N30: Grits | O30: =IF(N30="","",VLOOKUP(M30,Gbkfstlist,7,FALSE)) -> 0.1730991917 | R30: 0.519297575 | S30: 0.6923967666 | T30: 0.8654959583 | U30: 1.03859515 | V30: 1.384793533
A31: 28 | M31: 28 | O31: =IF(N31="","",VLOOKUP(M31,Gbkfstlist,7,FALSE)) -> 
A32: 29 | B32: =IF(A32>Gmaxlunch,"",VLOOKUP(A32,Glunchlist,3,FALSE)) ->  | C32: =IF(B32="","",VLOOKUP(A32,Glunchlist,4,FALSE)) ->  | M32: 29 | N32: =IF(M32>Gmaxbkfst,"",VLOOKUP(M32,Gbkfstlist,6,FALSE)) ->  | O32: =IF(N32="","",VLOOKUP(M32,Gbkfstlist,7,FALSE)) ->  | BX32: \
A33: 30 | M33: 30 | O33: =IF(N33="","",VLOOKUP(M33,Gbkfstlist,7,FALSE)) ->  | BX33: \

Sheet CondimentGuide
B1: =VLOOKUP(15,LOCATION,WORLD+1,FALSE) -> Condiment Guide | N1: =+Completion -> 2016-12-14T08:46:22.460 | P1: =+CODE -> THU | R1: =+BKnum -> 54321
M2: =+version -> v2016.12b | N2: =VLOOKUP(118,LOCATION,WORLD+1,FALSE) -> Date Charts Completed | P2: =VLOOKUP(62,LOCATION,WORLD+1,FALSE) -> Day of the Week | R2: =VLOOKUP(63,LOCATION,WORLD+1,FALSE) -> BK Number
C4: =CONCATENATE(VLOOKUP(177,LOCATION,WORLD+1,FALSE),"=>") -> Prep Completed by=> | E4: =IF(clock=1,"9:00a","900") -> 9:00a | G4: =IF(clock=1,"11:00a","1100") -> 11:00a | I4: =IF(clock=1,"3:00p","1500") -> 3:00p | K4: =IF(clock=1,"5:00p","1700") -> 5:00p | M4: =IF(clock=1,"8:00p","2000") -> 8:00p | O4: =IF(clock=1,"12:00a","0") -> 12:00a | Q4: =IF(clock=1,"2:00a","200") -> 2:00a
B5: =(VLOOKUP(121,LOCATION,WORLD+1,FALSE)) -> CONDIMENTS | C5: =(VLOOKUP(150,LOCATION,WORLD+1,FALSE)) -> Condiment Container
A6: 1 | B6: =+CondimentChart!B6 -> MAYONNAISE-CLASSIC, BULK | C6: =IF(B6=" ","",+GPMIX!CX$13) -> 1/3 Deep | E6: =IF($B6=" ","",ROUNDUP(+CondimentChart!$W6*CondimentGuide!E$127,1)) -> 4 | I6: =IF($B6=" ","",IF(K6="",ROUNDUP(+CondimentChart!$W6*CondimentGuide!I$127,1),ROUNDUP(+CondimentChart!$W6*CondimentGuide!I$127,1)-ROUNDUP(+CondimentChart!$W6*CondimentGuide!K$127,1))) -> 3 | M6: =IF($B6=" ","",ROUNDUP(+CondimentChart!$W6*CondimentGuide!M$127,1)) -> 0.6 | O6: =IF($B6=" ","",ROUNDUP(+CondimentChart!$W6*CondimentGuide!O$127,1)) -> 0 | S6: =IF(B6=" ", " ", SUM(E6:R6)) -> 7.6
A7: 2 | B7: =+CondimentChart!B7 -> LETTUCE-ICEBERG, WHOLE HEAD | C7: =IF(B7=" ","",+GPMIX!CY$13) -> Pan | E7: =IF($B7=" ","",ROUNDUP(+CondimentChart!$W7*CondimentGuide!E$127,1)) -> 15.8 | G7: =IF($B7=" ","",ROUNDUP(+CondimentChart!$W7*CondimentGuide!G$127,1)) -> 15.3 | I7: =IF($B7=" ","",IF(K7="",ROUNDUP(+CondimentChart!$W7*CondimentGuide!I$127,1),ROUNDUP(+CondimentChart!$W7*CondimentGuide!I$127,1)-ROUNDUP(+CondimentChart!$W7*CondimentGuide!K$127,1))) -> 3 | K7: =IF($B7=" ","",ROUNDUP(+CondimentChart!$W7*CondimentGuide!K$127,1)) -> 8.7 | M7: =IF($B7=" ","",ROUNDUP(+CondimentChart!$W7*CondimentGuide!M$127,1)) -> 2.1 | O7: =IF($B7=" ","",ROUNDUP(+CondimentChart!$W7*CondimentGuide!O$127,1)) -> 0 | Q7: =IF($B7=" ","",ROUNDUP(+CondimentChart!$W7*CondimentGuide!Q$127,1)) -> 0 | S7: 44.9
A8: 3 | B8: =+CondimentChart!B8 -> TOMATOES-WHOLE, FRESH, RED LEVEL 5 (6x7) BK | C8: =IF(B8=" ","",+GPMIX!CZ$13) -> 1/2 Deep | G8: =IF($B8=" ","",ROUNDUP(+CondimentChart!$W8*CondimentGuide!G$127,1)) -> 0 | I8: =IF($B8=" ","",IF(K8="",ROUNDUP(+CondimentChart!$W8*CondimentGuide!I$127,1),ROUNDUP(+CondimentChart!$W8*CondimentGuide!I$127,1)-ROUNDUP(+CondimentChart!$W8*CondimentGuide!K$127,1))) -> 0 | K8: =IF($B8=" ","",ROUNDUP(+CondimentChart!$W8*CondimentGuide!K$127,1)) -> 0 | M8: =IF($B8=" ","",ROUNDUP(+CondimentChart!$W8*CondimentGuide!M$127,1)) -> 0 | O8: =IF($B8=" ","",ROUNDUP(+CondimentChart!$W8*CondimentGuide!O$127,1)) -> 0 | Q8: =IF($B8=" ","",ROUNDUP(+CondimentChart!$W8*CondimentGuide!Q$127,1)) -> 0 | S8: 0
A9: 4 | B9: =+CondimentChart!B9 -> PICKLES-DILL, SLICED, PAIL | C9: =IF(B9=" ","",+GPMIX!DA$13) -> 1/3 Deep | E9: =IF($B9=" ","",ROUNDUP(+CondimentChart!$W9*CondimentGuide!E$127,1)) -> 3.9 | I9: =IF($B9=" ","",IF(K9="",ROUNDUP(+CondimentChart!$W9*CondimentGuide!I$127,1),ROUNDUP(+CondimentChart!$W9*CondimentGuide!I$127,1)-ROUNDUP(+CondimentChart!$W9*CondimentGuide!K$127,1))) -> 2.9 | M9: =IF($B9=" ","",ROUNDUP(+CondimentChart!$W9*CondimentGuide!M$127,1)) -> 0.6 | O9: =IF($B9=" ","",ROUNDUP(+CondimentChart!$W9*CondimentGuide!O$127,1)) -> 0 | S9: 7.4
A10: 5 | B10: =+CondimentChart!B10 -> KETCHUP-BAG IN BOX, BK/HEINZ | C10: =IF(B10=" ","",+GPMIX!DB$13) -> Bottle | E10: =IF($B10=" ","",ROUNDUP(+CondimentChart!$W10*CondimentGuide!E$127,1)) -> 13.7 | I10: =IF($B10=" ","",IF(K10="",ROUNDUP(+CondimentChart!$W10*CondimentGuide!I$127,1),ROUNDUP(+CondimentChart!$W10*CondimentGuide!I$127,1)-ROUNDUP(+CondimentChart!$W10*CondimentGuide!K$127,1))) -> 10.2 | M10: =IF($B10=" ","",ROUNDUP(+CondimentChart!$W10*CondimentGuide!M$127,1)) -> 1.8 | O10: =IF($B10=" ","",ROUNDUP(+CondimentChart!$W10*CondimentGuide!O$127,1)) -> 0 | S10: 25.7
A11: 6 | B11: =+CondimentChart!B11 -> ONIONS-SPANISH, FRESH, WHOLE | C11: =IF(B11=" ","",+GPMIX!DC$13) -> Pan | E11: =IF($B11=" ","",ROUNDUP(+CondimentChart!$W11*CondimentGuide!E$127,1)) -> 5 | I11: =IF($B11=" ","",IF(K11="",ROUNDUP(+CondimentChart!$W11*CondimentGuide!I$127,1),ROUNDUP(+CondimentChart!$W11*CondimentGuide!I$127,1)-ROUNDUP(+CondimentChart!$W11*CondimentGuide!K$127,1))) -> 3.7 | M11: =IF($B11=" ","",ROUNDUP(+CondimentChart!$W11*CondimentGuide!M$127,1)) -> 0.7 | O11: =IF($B11=" ","",ROUNDUP(+CondimentChart!$W11*CondimentGuide!O$127,1)) -> 0 | S11: 9.4
A12: 7 | B12: =+CondimentChart!B12 -> MUSTARD-BULK, BK | C12: =IF(B12=" ","",+GPMIX!DD$13) -> Bottle | E12: =IF($B12=" ","",ROUNDUP(+CondimentChart!$W12*CondimentGuide!E$127,1)) -> 0 | I12: =IF($B12=" ","",IF(K12="",ROUNDUP(+CondimentChart!$W12*CondimentGuide!I$127,1),ROUNDUP(+CondimentChart!$W12*CondimentGuide!I$127,1)-ROUNDUP(+CondimentChart!$W12*CondimentGuide!K$127,1))) -> 0 | M12: =IF($B12=" ","",ROUNDUP(+CondimentChart!$W12*CondimentGuide!M$127,1)) -> 0 | O12: =IF($B12=" ","",ROUNDUP(+CondimentChart!$W12*CondimentGuide!O$127,1)) -> 0 | S12: 0
A13: 8 | B13: =+CondimentChart!B13 -> BACON-THICK SLICED, RAW, REFRIGERATED | C13: =IF(B13=" ","",+GPMIX!DE$13) -> Pan | E13: =IF($B13=" ","",ROUNDUP(+CondimentChart!$W13*CondimentGuide!E$127,1)) -> 0 | I13: =IF($B13=" ","",IF(K13="",ROUNDUP(+CondimentChart!$W13*CondimentGuide!I$127,1),ROUNDUP(+CondimentChart!$W13*CondimentGuide!I$127,1)-ROUNDUP(+CondimentChart!$W13*CondimentGuide!K$127,1))) -> 0 | M13: =IF($B13=" ","",ROUNDUP(+CondimentChart!$W13*CondimentGuide!M$127,1)) -> 0 | O13: =IF($B13=" ","",ROUNDUP(+CondimentChart!$W13*CondimentGuide!O$127,1)) -> 0 | S13: 0
A14: 9 | B14: =+CondimentChart!B14 -> SAUCE-BBQ, HOT & SPICY, SWEET BABY RAY'S | C14: =IF(B14=" ","",+GPMIX!DF$13) -> Bottle | E14: =IF($B14=" ","",ROUNDUP(+CondimentChart!$W14*CondimentGuide!E$127,1)) -> 1.8 | I14: =IF($B14=" ","",IF(K14="",ROUNDUP(+CondimentChart!$W14*CondimentGuide!I$127,1),ROUNDUP(+CondimentChart!$W14*CondimentGuide!I$127,1)-ROUNDUP(+CondimentChart!$W14*CondimentGuide!K$127,1))) -> 1.4 | M14: =IF($B14=" ","",ROUNDUP(+CondimentChart!$W14*CondimentGuide!M$127,1)) -> 0.3 | O14: =IF($B14=" ","",ROUNDUP(+CondimentChart!$W14*CondimentGuide!O$127,1)) -> 0 | S14: 3.5
A15: 10 | B15: =+CondimentChart!B15 -> SAUCE-BIG KING, BK | C15: =IF(B15=" ","",+GPMIX!DG$13) -> Pan | E15: =IF($B15=" ","",ROUNDUP(+CondimentChart!$W15*CondimentGuide!E$127,1)) -> 0 | I15: =IF($B15=" ","",IF(K15="",ROUNDUP(+CondimentChart!$W15*CondimentGuide!I$127,1),ROUNDUP(+CondimentChart!$W15*CondimentGuide!I$127,1)-ROUNDUP(+CondimentChart!$W15*CondimentGuide!K$127,1))) -> 0 | M15: =IF($B15=" ","",ROUNDUP(+CondimentChart!$W15*CondimentGuide!M$127,1)) -> 0 | O15: =IF($B15=" ","",ROUNDUP(+CondimentChart!$W15*CondimentGuide!O$127,1)) -> 0 | S15: 0
A16: 11 | B16: =+CondimentChart!B16 -> CHEESE-BLUE, CRUMBLED (8 OZ) BUTTERMILK BLUE | C16: =IF(B16=" ","",+GPMIX!DH$13) -> Pan | E16: =IF($B16=" ","",ROUNDUP(+CondimentChart!$W16*CondimentGuide!E$127,1)) -> 0 | I16: =IF($B16=" ","",IF(K16="",ROUNDUP(+CondimentChart!$W16*CondimentGuide!I$127,1),ROUNDUP(+CondimentChart!$W16*CondimentGuide!I$127,1)-ROUNDUP(+CondimentChart!$W16*CondimentGuide!K$127,1))) -> 0 | M16: =IF($B16=" ","",ROUNDUP(+CondimentChart!$W16*CondimentGuide!M$127,1)) -> 0 | O16: =IF($B16=" ","",ROUNDUP(+CondimentChart!$W16*CondimentGuide!O$127,1)) -> 0 | S16: 0
A17: 12 | B17: =+CondimentChart!B17 -> SAUCE-STEAK, THICK & HEARTY, A.1. | C17: =IF(B17=" ","",+GPMIX!DI$13) -> Bottle | E17: =IF($B17=" ","",ROUNDUP(+CondimentChart!$W17*CondimentGuide!E$127,1)) -> 0 | I17: =IF($B17=" ","",IF(K17="",ROUNDUP(+CondimentChart!$W17*CondimentGuide!I$127,1),ROUNDUP(+CondimentChart!$W17*CondimentGuide!I$127,1)-ROUNDUP(+CondimentChart!$W17*CondimentGuide!K$127,1))) -> 0 | M17: =IF($B17=" ","",ROUNDUP(+CondimentChart!$W17*CondimentGuide!M$127,1)) -> 0 | O17: =IF($B17=" ","",ROUNDUP(+CondimentChart!$W17*CondimentGuide!O$127,1)) -> 0 | S17: 0
A18: 13 | B18: =+CondimentChart!B18 -> SAUCE-MUSHROOM, MONTEREY INTERNATIONAL | C18: =IF(B18=" ","",+GPMIX!DJ$13) -> Pan | E18: =IF($B18=" ","",ROUNDUP(+CondimentChart!$W18*CondimentGuide!E$127,1)) -> 0 | I18: =IF($B18=" ","",IF(K18="",ROUNDUP(+CondimentChart!$W18*CondimentGuide!I$127,1),ROUNDUP(+CondimentChart!$W18*CondimentGuide!I$127,1)-ROUNDUP(+CondimentChart!$W18*CondimentGuide!K$127,1))) -> 0 | M18: =IF($B18=" ","",ROUNDUP(+CondimentChart!$W18*CondimentGuide!M$127,1)) -> 0 | O18: =IF($B18=" ","",ROUNDUP(+CondimentChart!$W18*CondimentGuide!O$127,1)) -> 0 | S18: 0
A19: 14 | B19: =+CondimentChart!B19 -> PEPPERS-JALAPENO, SLICED, HAUSBECK | C19: =IF(B19=" ","",+GPMIX!DK$13) -> Pan | E19: =IF($B19=" ","",ROUNDUP(+CondimentChart!$W19*CondimentGuide!E$127,1)) -> 0 | I19: =IF($B19=" ","",IF(K19="",ROUNDUP(+CondimentChart!$W19*CondimentGuide!I$127,1),ROUNDUP(+CondimentChart!$W19*CondimentGuide!I$127,1)-ROUNDUP(+CondimentChart!$W19*CondimentGuide!K$127,1))) -> 0 | M19: =IF($B19=" ","",ROUNDUP(+CondimentChart!$W19*CondimentGuide!M$127,1)) -> 0 | O19: =IF($B19=" ","",ROUNDUP(+CondimentChart!$W19*CondimentGuide!O$127,1)) -> 0 | S19: 0
A20: 15 | B20: =+CondimentChart!B20 -> LETTUCE-ROMAINE, CUT, 1.5" | C20: =IF(B20=" ","",+GPMIX!DL$13) -> Pan | E20: =IF($B20=" ","",ROUNDUP(+CondimentChart!$W20*CondimentGuide!E$127,1)) -> 0.6 | I20: =IF($B20=" ","",IF(K20="",ROUNDUP(+CondimentChart!$W20*CondimentGuide!I$127,1),ROUNDUP(+CondimentChart!$W20*CondimentGuide!I$127,1)-ROUNDUP(+CondimentChart!$W20*CondimentGuide!K$127,1))) -> 0.4 | M20: =IF($B20=" ","",ROUNDUP(+CondimentChart!$W20*CondimentGuide!M$127,1)) -> 0.1 | O20: =IF($B20=" ","",ROUNDUP(+CondimentChart!$W20*CondimentGuide!O$127,1)) -> 0 | S20: 1.1
A21: 16 | B21: =+CondimentChart!B21 -> GRAVY-SAUSAGE, ZERO TRANS FAT | C21: =IF(B21=" ","",+GPMIX!DM$13) -> Tube | E21: =IF($B21=" ","",ROUNDUP(+CondimentChart!$W21*CondimentGuide!E$127,1)) -> 294.6 | I21: =IF($B21=" ","",IF(K21="",ROUNDUP(+CondimentChart!$W21*CondimentGuide!I$127,1),ROUNDUP(+CondimentChart!$W21*CondimentGuide!I$127,1)-ROUNDUP(+CondimentChart!$W21*CondimentGuide!K$127,1))) -> 217.9 | M21: =IF($B21=" ","",ROUNDUP(+CondimentChart!$W21*CondimentGuide!M$127,1)) -> 38.8 | O21: =IF($B21=" ","",ROUNDUP(+CondimentChart!$W21*CondimentGuide!O$127,1)) -> 0 | S21: 551.3
A22: 17 | B22: =+CondimentChart!B22 -> LETTUCE-SPRING MIX | C22: =IF(B22=" ","",+GPMIX!DN$13) -> Pan | E22: =IF($B22=" ","",ROUNDUP(+CondimentChart!$W22*CondimentGuide!E$127,1)) -> 0 | I22: =IF($B22=" ","",IF(K22="",ROUNDUP(+CondimentChart!$W22*CondimentGuide!I$127,1),ROUNDUP(+CondimentChart!$W22*CondimentGuide!I$127,1)-ROUNDUP(+CondimentChart!$W22*CondimentGuide!K$127,1))) -> 0 | M22: =IF($B22=" ","",ROUNDUP(+CondimentChart!$W22*CondimentGuide!M$127,1)) -> 0 | O22: =IF($B22=" ","",ROUNDUP(+CondimentChart!$W22*CondimentGuide!O$127,1)) -> 0 | S22: 0
A23: 18 | B23: =+CondimentChart!B23 -> SMOOTHIE MIX-STRAWBERRY BANANA ARTIFICIALLY FLAVORED, CONCENTRATED, FROZEN, BK, | C23: =IF(B23=" ","",+GPMIX!DO$13) -> Pitcher | E23: =IF($B23=" ","",ROUNDUP(+CondimentChart!$W23*CondimentGuide!E$127,1)) -> 0.1 | I23: =IF($B23=" ","",IF(K23="",ROUNDUP(+CondimentChart!$W23*CondimentGuide!I$127,1),ROUNDUP(+CondimentChart!$W23*CondimentGuide!I$127,1)-ROUNDUP(+CondimentChart!$W23*CondimentGuide!K$127,1))) -> 0.1 | M23: =IF($B23=" ","",ROUNDUP(+CondimentChart!$W23*CondimentGuide!M$127,1)) -> 0.1 | O23: =IF($B23=" ","",ROUNDUP(+CondimentChart!$W23*CondimentGuide!O$127,1)) -> 0 | S23: 0.3
A24: 19 | B24: =+CondimentChart!B24 -> TOPPING-STRAWBERRY, FROZEN (32 OZ) | C24: =IF(B24=" ","",+GPMIX!DP$13) -> Pan | E24: =IF($B24=" ","",ROUNDUP(+CondimentChart!$W24*CondimentGuide!E$127,1)) -> 0.1 | I24: =IF($B24=" ","",IF(K24="",ROUNDUP(+CondimentChart!$W24*CondimentGuide!I$127,1),ROUNDUP(+CondimentChart!$W24*CondimentGuide!I$127,1)-ROUNDUP(+CondimentChart!$W24*CondimentGuide!K$127,1))) -> 0.1 | M24: =IF($B24=" ","",ROUNDUP(+CondimentChart!$W24*CondimentGuide!M$127,1)) -> 0.1 | O24: =IF($B24=" ","",ROUNDUP(+CondimentChart!$W24*CondimentGuide!O$127,1)) -> 0 | S24: 0.3
A25: 20 | B25: =+CondimentChart!B25 -> SMOOTHIE MIX-TROPICAL MANGO ARTIFICIALLY FLAVORED, CONCENTRATED, FROZEN, BK, 64 | C25: =IF(B25=" ","",+GPMIX!DQ$13) -> Pitcher | E25: =IF($B25=" ","",ROUNDUP(+CondimentChart!$W25*CondimentGuide!E$127,1)) -> 0 | I25: =IF($B25=" ","",IF(K25="",ROUNDUP(+CondimentChart!$W25*CondimentGuide!I$127,1),ROUNDUP(+CondimentChart!$W25*CondimentGuide!I$127,1)-ROUNDUP(+CondimentChart!$W25*CondimentGuide!K$127,1))) -> 0 | M25: =IF($B25=" ","",ROUNDUP(+CondimentChart!$W25*CondimentGuide!M$127,1)) -> 0 | O25: =IF($B25=" ","",ROUNDUP(+CondimentChart!$W25*CondimentGuide!O$127,1)) -> 0 | S25: 0
A26: 21 | B26: =+CondimentChart!B26 -> MANGO-PIECES, FROZEN, BK | C26: =IF(B26=" ","",+GPMIX!DR$13) -> Pan | E26: =IF($B26=" ","",ROUNDUP(+CondimentChart!$W26*CondimentGuide!E$127,1)) -> 0 | I26: =IF($B26=" ","",IF(K26="",ROUNDUP(+CondimentChart!$W26*CondimentGuide!I$127,1),ROUNDUP(+CondimentChart!$W26*CondimentGuide!I$127,1)-ROUNDUP(+CondimentChart!$W26*CondimentGuide!K$127,1))) -> 0 | M26: =IF($B26=" ","",ROUNDUP(+CondimentChart!$W26*CondimentGuide!M$127,1)) -> 0 | O26: =IF($B26=" ","",ROUNDUP(+CondimentChart!$W26*CondimentGuide!O$127,1)) -> 0 | S26: 0
A27: 22 | B27: =+CondimentChart!B27 -> SAUCE-MARINARA (BULK) | C27: =IF(B27=" ","",+GPMIX!DS$13) -> Bottle | E27: =IF($B27=" ","",ROUNDUP(+CondimentChart!$W27*CondimentGuide!E$127,1)) -> 0.2 | I27: =IF($B27=" ","",IF(K27="",ROUNDUP(+CondimentChart!$W27*CondimentGuide!I$127,1),ROUNDUP(+CondimentChart!$W27*CondimentGuide!I$127,1)-ROUNDUP(+CondimentChart!$W27*CondimentGuide!K$127,1))) -> 0.1 | M27: =IF($B27=" ","",ROUNDUP(+CondimentChart!$W27*CondimentGuide!M$127,1)) -> 0.1 | O27: =IF($B27=" ","",ROUNDUP(+CondimentChart!$W27*CondimentGuide!O$127,1)) -> 0 | S27: 0.4
A28: 23 | B28: =+CondimentChart!B28 -> FRAPPE-MIX, MOCHA, FROZEN BLENDED BASE, BK | C28: =IF(B28=" ","",+GPMIX!DT$13) -> Pitcher | E28: =IF($B28=" ","",ROUNDUP(+CondimentChart!$W28*CondimentGuide!E$127,1)) -> 0 | I28: =IF($B28=" ","",IF(K28="",ROUNDUP(+CondimentChart!$W28*CondimentGuide!I$127,1),ROUNDUP(+CondimentChart!$W28*CondimentGuide!I$127,1)-ROUNDUP(+CondimentChart!$W28*CondimentGuide!K$127,1))) -> 0 | M28: =IF($B28=" ","",ROUNDUP(+CondimentChart!$W28*CondimentGuide!M$127,1)) -> 0 | O28: =IF($B28=" ","",ROUNDUP(+CondimentChart!$W28*CondimentGuide!O$127,1)) -> 0 | S28: 0
A29: 24 | B29: =+CondimentChart!B29 -> FRAPPE-MIX, CARAMEL, FROZEN BLENDED BASE, BK | C29: =IF(B29=" ","",+GPMIX!DU$13) -> Pitcher | E29: =IF($B29=" ","",ROUNDUP(+CondimentChart!$W29*CondimentGuide!E$127,1)) -> 5.4 | I29: =IF($B29=" ","",IF(K29="",ROUNDUP(+CondimentChart!$W29*CondimentGuide!I$127,1),ROUNDUP(+CondimentChart!$W29*CondimentGuide!I$127,1)-ROUNDUP(+CondimentChart!$W29*CondimentGuide!K$127,1))) -> 4 | M29: =IF($B29=" ","",ROUNDUP(+CondimentChart!$W29*CondimentGuide!M$127,1)) -> 0.8 | O29: =IF($B29=" ","",ROUNDUP(+CondimentChart!$W29*CondimentGuide!O$127,1)) -> 0 | S29: 10.2
A30: 25 | B30: =+CondimentChart!B30 -> SAUCE-COLESLAW | C30: =IF(B30=" ","",+GPMIX!DV$13) -> Bottle | E30: =IF($B30=" ","",ROUNDUP(+CondimentChart!$W30*CondimentGuide!E$127,1)) -> 3.4 | I30: =IF($B30=" ","",IF(K30="",ROUNDUP(+CondimentChart!$W30*CondimentGuide!I$127,1),ROUNDUP(+CondimentChart!$W30*CondimentGuide!I$127,1)-ROUNDUP(+CondimentChart!$W30*CondimentGuide!K$127,1))) -> 2.5 | M30: =IF($B30=" ","",ROUNDUP(+CondimentChart!$W30*CondimentGuide!M$127,1)) -> 0.5 | O30: =IF($B30=" ","",ROUNDUP(+CondimentChart!$W30*CondimentGuide!O$127,1)) -> 0 | S30: 6.4
A31: 26 | B31: =+CondimentChart!B31 -> BACON-SLICED, PEPPERED, PRECOOKED, THICK SLICE, PATRICK CUDAHY | C31: =IF(B31=" ","",+GPMIX!DW$13) -> Pan | E31: =IF($B31=" ","",ROUNDUP(+CondimentChart!$W31*CondimentGuide!E$127,1)) -> 0 | I31: =IF($B31=" ","",IF(K31="",ROUNDUP(+CondimentChart!$W31*CondimentGuide!I$127,1),ROUNDUP(+CondimentChart!$W31*CondimentGuide!I$127,1)-ROUNDUP(+CondimentChart!$W31*CondimentGuide!K$127,1))) -> 0 | M31: =IF($B31=" ","",ROUNDUP(+CondimentChart!$W31*CondimentGuide!M$127,1)) -> 0 | O31: =IF($B31=" ","",ROUNDUP(+CondimentChart!$W31*CondimentGuide!O$127,1)) -> 0 | S31: 0
A32: 27 | B32: =+CondimentChart!B32 -> ONIONS-CHIPOTLE, CRISPY | C32: =IF(B32=" ","",+GPMIX!DX$13) -> Pan | E32: =IF($B32=" ","",ROUNDUP(+CondimentChart!$W32*CondimentGuide!E$127,1)) -> 3.4 | I32: =IF($B32=" ","",IF(K32="",ROUNDUP(+CondimentChart!$W32*CondimentGuide!I$127,1),ROUNDUP(+CondimentChart!$W32*CondimentGuide!I$127,1)-ROUNDUP(+CondimentChart!$W32*CondimentGuide!K$127,1))) -> 2.5 | M32: =IF($B32=" ","",ROUNDUP(+CondimentChart!$W32*CondimentGuide!M$127,1)) -> 0.5 | O32: =IF($B32=" ","",ROUNDUP(+CondimentChart!$W32*CondimentGuide!O$127,1)) -> 0 | S32: 6.4
A33: 28 | B33: =+CondimentChart!B33 -> SAUCE-ANGRY, BK | C33: =IF(B33=" ","",+GPMIX!DY$13) -> Bottle | E33: =IF($B33=" ","",ROUNDUP(+CondimentChart!$W33*CondimentGuide!E$127,1)) -> 5.1 | I33: =IF($B33=" ","",IF(K33="",ROUNDUP(+CondimentChart!$W33*CondimentGuide!I$127,1),ROUNDUP(+CondimentChart!$W33*CondimentGuide!I$127,1)-ROUNDUP(+CondimentChart!$W33*CondimentGuide!K$127,1))) -> 3.8 | M33: =IF($B33=" ","",ROUNDUP(+CondimentChart!$W33*CondimentGuide!M$127,1)) -> 0.7 | O33: =IF($B33=" ","",ROUNDUP(+CondimentChart!$W33*CondimentGuide!O$127,1)) -> 0 | S33: 9.6
A34: 29 | B34: =+CondimentChart!B34 -> SAUCE-CREAMY BASIL, BULK | C34: =IF(B34=" ","",+GPMIX!DZ$13) -> Bottle | E34: =IF($B34=" ","",ROUNDUP(+CondimentChart!$W34*CondimentGuide!E$127,1)) -> 0 | I34: =IF($B34=" ","",IF(K34="",ROUNDUP(+CondimentChart!$W34*CondimentGuide!I$127,1),ROUNDUP(+CondimentChart!$W34*CondimentGuide!I$127,1)-ROUNDUP(+CondimentChart!$W34*CondimentGuide!K$127,1))) -> 0 | M34: =IF($B34=" ","",ROUNDUP(+CondimentChart!$W34*CondimentGuide!M$127,1)) -> 0 | O34: =IF($B34=" ","",ROUNDUP(+CondimentChart!$W34*CondimentGuide!O$127,1)) -> 0 | S34: 0
A35: 30 | B35: =+CondimentChart!B35 -> CREAM CHEESE-FROSTING, CINNABON ZT | C35: =IF(B35=" ","",+GPMIX!EA$13) -> Bottle | E35: =IF($B35=" ","",ROUNDUP(+CondimentChart!$W35*CondimentGuide!E$127,1)) -> 0.1 | I35: =IF($B35=" ","",IF(K35="",ROUNDUP(+CondimentChart!$W35*CondimentGuide!I$127,1),ROUNDUP(+CondimentChart!$W35*CondimentGuide!I$127,1)-ROUNDUP(+CondimentChart!$W35*CondimentGuide!K$127,1))) -> 0.1 | M35: =IF($B35=" ","",ROUNDUP(+CondimentChart!$W35*CondimentGuide!M$127,1)) -> 0.1 | O35: =IF($B35=" ","",ROUNDUP(+CondimentChart!$W35*CondimentGuide!O$127,1)) -> 0 | S35: 0.3
A36: 31 | B36: =+CondimentChart!B36 -> CITRUS-CAESAR DRESSING, KEN'S | C36: =IF(B36=" ","",+GPMIX!EB$13) -> Bottle | E36: =IF($B36=" ","",ROUNDUP(+CondimentChart!$W36*CondimentGuide!E$127,1)) -> 0 | I36: =IF($B36=" ","",IF(K36="",ROUNDUP(+CondimentChart!$W36*CondimentGuide!I$127,1),ROUNDUP(+CondimentChart!$W36*CondimentGuide!I$127,1)-ROUNDUP(+CondimentChart!$W36*CondimentGuide!K$127,1))) -> 0 | M36: =IF($B36=" ","",ROUNDUP(+CondimentChart!$W36*CondimentGuide!M$127,1)) -> 0 | O36: =IF($B36=" ","",ROUNDUP(+CondimentChart!$W36*CondimentGuide!O$127,1)) -> 0 | S36: 0
A37: 32 | B37: =+CondimentChart!B37 -> SMOOTHIE MIX-LEMONADE, MINUTE MAID | C37: =IF(B37=" ","",+GPMIX!EC$13) -> Pitcher | E37: =IF($B37=" ","",ROUNDUP(+CondimentChart!$W37*CondimentGuide!E$127,1)) -> 3.9 | I37: =IF($B37=" ","",IF(K37="",ROUNDUP(+CondimentChart!$W37*CondimentGuide!I$127,1),ROUNDUP(+CondimentChart!$W37*CondimentGuide!I$127,1)-ROUNDUP(+CondimentChart!$W37*CondimentGuide!K$127,1))) -> 2.9 | M37: =IF($B37=" ","",ROUNDUP(+CondimentChart!$W37*CondimentGuide!M$127,1)) -> 0.6 | O37: =IF($B37=" ","",ROUNDUP(+CondimentChart!$W37*CondimentGuide!O$127,1)) -> 0 | S37: 7.4
A38: 33 | B38: =+CondimentChart!B38 -> ANGRY ONIONS: BATTER-ONION PETALS (LAMB WESTON 30408) | C38: =IF(B38=" ","",+GPMIX!ED$13) -> 1/6 Deep | E38: =IF($B38=" ","",ROUNDUP(+CondimentChart!$W38*CondimentGuide!E$127,1)) -> 9.7 | I38: =IF($B38=" ","",IF(K38="",ROUNDUP(+CondimentChart!$W38*CondimentGuide!I$127,1),ROUNDUP(+CondimentChart!$W38*CondimentGuide!I$127,1)-ROUNDUP(+CondimentChart!$W38*CondimentGuide!K$127,1))) -> 7.2 | M38: =IF($B38=" ","",ROUNDUP(+CondimentChart!$W38*CondimentGuide!M$127,1)) -> 1.3 | O38: =IF($B38=" ","",ROUNDUP(+CondimentChart!$W38*CondimentGuide!O$127,1)) -> 0 | S38: 18.2
A39: 34 | B39: =+CondimentChart!B39 -> TOMATOES-GRAPE, FRESH | C39: =IF(B39=" ","",+GPMIX!EE$13) -> Pan | E39: =IF($B39=" ","",ROUNDUP(+CondimentChart!$W39*CondimentGuide!E$127,1)) -> 0 | I39: =IF($B39=" ","",IF(K39="",ROUNDUP(+CondimentChart!$W39*CondimentGuide!I$127,1),ROUNDUP(+CondimentChart!$W39*CondimentGuide!I$127,1)-ROUNDUP(+CondimentChart!$W39*CondimentGuide!K$127,1))) -> 0 | M39: =IF($B39=" ","",ROUNDUP(+CondimentChart!$W39*CondimentGuide!M$127,1)) -> 0 | O39: =IF($B39=" ","",ROUNDUP(+CondimentChart!$W39*CondimentGuide!O$127,1)) -> 0 | S39: 0
A40: 35 | B40: =+CondimentChart!B40 -> Sauce BBQ Sweet and Tangy | C40: =IF(B40=" ","",+GPMIX!EF$13) -> Bottle | E40: =IF($B40=" ","",ROUNDUP(+CondimentChart!$W40*CondimentGuide!E$127,1)) -> 0 | I40: =IF($B40=" ","",IF(K40="",ROUNDUP(+CondimentChart!$W40*CondimentGuide!I$127,1),ROUNDUP(+CondimentChart!$W40*CondimentGuide!I$127,1)-ROUNDUP(+CondimentChart!$W40*CondimentGuide!K$127,1))) -> 0 | M40: =IF($B40=" ","",ROUNDUP(+CondimentChart!$W40*CondimentGuide!M$127,1)) -> 0 | O40: =IF($B40=" ","",ROUNDUP(+CondimentChart!$W40*CondimentGuide!O$127,1)) -> 0 | S40: 0
A41: 36 | B41: =+CondimentChart!B41 -> SAUCE-TARTAR, BULK, BK | C41: =IF(B41=" ","",+GPMIX!EG$13) -> Tub | E41: =IF($B41=" ","",ROUNDUP(+CondimentChart!$W41*CondimentGuide!E$127,1)) -> 0 | I41: =IF($B41=" ","",IF(K41="",ROUNDUP(+CondimentChart!$W41*CondimentGuide!I$127,1),ROUNDUP(+CondimentChart!$W41*CondimentGuide!I$127,1)-ROUNDUP(+CondimentChart!$W41*CondimentGuide!K$127,1))) -> 0 | M41: =IF($B41=" ","",ROUNDUP(+CondimentChart!$W41*CondimentGuide!M$127,1)) -> 0 | O41: =IF($B41=" ","",ROUNDUP(+CondimentChart!$W41*CondimentGuide!O$127,1)) -> 0 | S41: 0
A42: 37 | B42: =+CondimentChart!B42 -> CRANBERRIES-DRIED | C42: =IF(B42=" ","",+GPMIX!EH$13) -> 1/9 pan | E42: =IF($B42=" ","",ROUNDUP(+CondimentChart!$W42*CondimentGuide!E$127,1)) -> 0 | I42: =IF($B42=" ","",IF(K42="",ROUNDUP(+CondimentChart!$W42*CondimentGuide!I$127,1),ROUNDUP(+CondimentChart!$W42*CondimentGuide!I$127,1)-ROUNDUP(+CondimentChart!$W42*CondimentGuide!K$127,1))) -> 0 | M42: =IF($B42=" ","",ROUNDUP(+CondimentChart!$W42*CondimentGuide!M$127,1)) -> 0 | O42: =IF($B42=" ","",ROUNDUP(+CondimentChart!$W42*CondimentGuide!O$127,1)) -> 0 | S42: 0
A43: 38 | B43: =+CondimentChart!B43 -> CHEESE-PARMESAN, SHAVED | C43: =IF(B43=" ","",+GPMIX!EI$13) -> 1/9 pan | E43: =IF($B43=" ","",ROUNDUP(+CondimentChart!$W43*CondimentGuide!E$127,1)) -> 0 | I43: =IF($B43=" ","",IF(K43="",ROUNDUP(+CondimentChart!$W43*CondimentGuide!I$127,1),ROUNDUP(+CondimentChart!$W43*CondimentGuide!I$127,1)-ROUNDUP(+CondimentChart!$W43*CondimentGuide!K$127,1))) -> 0 | M43: =IF($B43=" ","",ROUNDUP(+CondimentChart!$W43*CondimentGuide!M$127,1)) -> 0 | O43: =IF($B43=" ","",ROUNDUP(+CondimentChart!$W43*CondimentGuide!O$127,1)) -> 0 | S43: 0
A44: 39 | B44: =+CondimentChart!B44 -> CHEESE-THREE CHEESE BLEND, SHREDDED | C44: =IF(B44=" ","",+GPMIX!EJ$13) -> 1/9 pan | E44: =IF($B44=" ","",ROUNDUP(+CondimentChart!$W44*CondimentGuide!E$127,1)) -> 0 | I44: =IF($B44=" ","",IF(K44="",ROUNDUP(+CondimentChart!$W44*CondimentGuide!I$127,1),ROUNDUP(+CondimentChart!$W44*CondimentGuide!I$127,1)-ROUNDUP(+CondimentChart!$W44*CondimentGuide!K$127,1))) -> 0 | M44: =IF($B44=" ","",ROUNDUP(+CondimentChart!$W44*CondimentGuide!M$127,1)) -> 0 | O44: =IF($B44=" ","",ROUNDUP(+CondimentChart!$W44*CondimentGuide!O$127,1)) -> 0 | S44: 0
A45: 40 | B45: =+CondimentChart!B45 -> CHEESE-AMERICAN, PROCESS, PASTEURIZED, BK | C45: =IF(B45=" ","",+GPMIX!EK$13) -> Each | E45: =IF($B45=" ","",ROUNDUP(+CondimentChart!$W45*CondimentGuide!E$127,1)) -> 45.9 | I45: =IF($B45=" ","",IF(K45="",ROUNDUP(+CondimentChart!$W45*CondimentGuide!I$127,1),ROUNDUP(+CondimentChart!$W45*CondimentGuide!I$127,1)-ROUNDUP(+CondimentChart!$W45*CondimentGuide!K$127,1))) -> 34 | M45: =IF($B45=" ","",ROUNDUP(+CondimentChart!$W45*CondimentGuide!M$127,1)) -> 6.1 | O45: =IF($B45=" ","",ROUNDUP(+CondimentChart!$W45*CondimentGuide!O$127,1)) -> 0 | S45: 86
A46: 41 | B46: =+CondimentChart!B46 -> CHEESE-MONTEREY JACK WITH JALAPENO PEPPERS, PROCESSED, PASTEURIZED | C46: =IF(B46=" ","",+GPMIX!EL$13) -> Each | E46: =IF($B46=" ","",ROUNDUP(+CondimentChart!$W46*CondimentGuide!E$127,1)) -> 2.9 | I46: =IF($B46=" ","",IF(K46="",ROUNDUP(+CondimentChart!$W46*CondimentGuide!I$127,1),ROUNDUP(+CondimentChart!$W46*CondimentGuide!I$127,1)-ROUNDUP(+CondimentChart!$W46*CondimentGuide!K$127,1))) -> 2.2 | M46: =IF($B46=" ","",ROUNDUP(+CondimentChart!$W46*CondimentGuide!M$127,1)) -> 0.4 | O46: =IF($B46=" ","",ROUNDUP(+CondimentChart!$W46*CondimentGuide!O$127,1)) -> 0 | S46: 5.5
A47: 42 | B47: =+CondimentChart!B47 -> PIE-HERSHEY'S SUNDAE, SLICE, BK | C47: =IF(B47=" ","",+GPMIX!EM$13) -> Each | E47: =IF($B47=" ","",ROUNDUP(+CondimentChart!$W47*CondimentGuide!E$127,1)) -> 0 | I47: =IF($B47=" ","",IF(K47="",ROUNDUP(+CondimentChart!$W47*CondimentGuide!I$127,1),ROUNDUP(+CondimentChart!$W47*CondimentGuide!I$127,1)-ROUNDUP(+CondimentChart!$W47*CondimentGuide!K$127,1))) -> 0 | M47: =IF($B47=" ","",ROUNDUP(+CondimentChart!$W47*CondimentGuide!M$127,1)) -> 0 | O47: =IF($B47=" ","",ROUNDUP(+CondimentChart!$W47*CondimentGuide!O$127,1)) -> 0 | S47: 0
A48: 43 | B48: =+CondimentChart!B48 -> TOPPING-OREO® CRUMBLES, SMALL (1 LB) | C48: =IF(B48=" ","",+GPMIX!EN$13) -> Pan | E48: =IF($B48=" ","",ROUNDUP(+CondimentChart!$W48*CondimentGuide!E$127,1)) -> 2 | I48: =IF($B48=" ","",IF(K48="",ROUNDUP(+CondimentChart!$W48*CondimentGuide!I$127,1),ROUNDUP(+CondimentChart!$W48*CondimentGuide!I$127,1)-ROUNDUP(+CondimentChart!$W48*CondimentGuide!K$127,1))) -> 1.5 | M48: =IF($B48=" ","",ROUNDUP(+CondimentChart!$W48*CondimentGuide!M$127,1)) -> 0.3 | O48: =IF($B48=" ","",ROUNDUP(+CondimentChart!$W48*CondimentGuide!O$127,1)) -> 0 | S48: 3.8
A49: 44 | B49: =+CondimentChart!B49 -> TOPPING-CARAMEL, BK | C49: =IF(B49=" ","",+GPMIX!EO$13) -> Bottle | E49: =IF($B49=" ","",ROUNDUP(+CondimentChart!$W49*CondimentGuide!E$127,1)) -> 0 | I49: =IF($B49=" ","",IF(K49="",ROUNDUP(+CondimentChart!$W49*CondimentGuide!I$127,1),ROUNDUP(+CondimentChart!$W49*CondimentGuide!I$127,1)-ROUNDUP(+CondimentChart!$W49*CondimentGuide!K$127,1))) -> 0 | M49: =IF($B49=" ","",ROUNDUP(+CondimentChart!$W49*CondimentGuide!M$127,1)) -> 0 | O49: =IF($B49=" ","",ROUNDUP(+CondimentChart!$W49*CondimentGuide!O$127,1)) -> 0 | S49: 0
A50: 45 | B50: =+CondimentChart!B50 -> VEGETABLE MIX-ONIONS, RED PEPPER AND GREEN PEPPER | C50: =IF(B50=" ","",+GPMIX!EP$13) -> Pan | E50: =IF($B50=" ","",ROUNDUP(+CondimentChart!$W50*CondimentGuide!E$127,1)) -> 16.8 | I50: =IF($B50=" ","",IF(K50="",ROUNDUP(+CondimentChart!$W50*CondimentGuide!I$127,1),ROUNDUP(+CondimentChart!$W50*CondimentGuide!I$127,1)-ROUNDUP(+CondimentChart!$W50*CondimentGuide!K$127,1))) -> 12.4 | M50: =IF($B50=" ","",ROUNDUP(+CondimentChart!$W50*CondimentGuide!M$127,1)) -> 2.2 | O50: =IF($B50=" ","",ROUNDUP(+CondimentChart!$W50*CondimentGuide!O$127,1)) -> 0 | S50: 31.4
A51: 46 | B51: =+CondimentChart!B51 -> BEVERAGE CONCENTRATE-ORANGE FREEZE MIX (2+1), FROZEN, MINUTE MAID | C51: =IF(B51=" ","",+GPMIX!EQ$13) -> Carton | E51: =IF($B51=" ","",ROUNDUP(+CondimentChart!$W51*CondimentGuide!E$127,1)) -> 0 | I51: =IF($B51=" ","",IF(K51="",ROUNDUP(+CondimentChart!$W51*CondimentGuide!I$127,1),ROUNDUP(+CondimentChart!$W51*CondimentGuide!I$127,1)-ROUNDUP(+CondimentChart!$W51*CondimentGuide!K$127,1))) -> 0 | M51: =IF($B51=" ","",ROUNDUP(+CondimentChart!$W51*CondimentGuide!M$127,1)) -> 0 | O51: =IF($B51=" ","",ROUNDUP(+CondimentChart!$W51*CondimentGuide!O$127,1)) -> 0 | S51: 0
A52: 47 | B52: =+CondimentChart!B52 -> PEPPERS-JALAPENO, SLICED, KRUGER FOODS | C52: =IF(B52=" ","",+GPMIX!ER$13) -> 1/6 pan | E52: =IF($B52=" ","",ROUNDUP(+CondimentChart!$W52*CondimentGuide!E$127,1)) -> 0 | I52: =IF($B52=" ","",IF(K52="",ROUNDUP(+CondimentChart!$W52*CondimentGuide!I$127,1),ROUNDUP(+CondimentChart!$W52*CondimentGuide!I$127,1)-ROUNDUP(+CondimentChart!$W52*CondimentGuide!K$127,1))) -> 0 | M52: =IF($B52=" ","",ROUNDUP(+CondimentChart!$W52*CondimentGuide!M$127,1)) -> 0 | O52: =IF($B52=" ","",ROUNDUP(+CondimentChart!$W52*CondimentGuide!O$127,1)) -> 0 | S52: 0
A53: 48 | B53: =+CondimentChart!B53 -> SAUCE- CREAMY SPICY | C53: =IF(B53=" ","",+GPMIX!ES$13) -> Bottle | E53: =IF($B53=" ","",ROUNDUP(+CondimentChart!$W53*CondimentGuide!E$127,1)) -> 2.6 | I53: =IF($B53=" ","",IF(K53="",ROUNDUP(+CondimentChart!$W53*CondimentGuide!I$127,1),ROUNDUP(+CondimentChart!$W53*CondimentGuide!I$127,1)-ROUNDUP(+CondimentChart!$W53*CondimentGuide!K$127,1))) -> 1.9 | M53: =IF($B53=" ","",ROUNDUP(+CondimentChart!$W53*CondimentGuide!M$127,1)) -> 0.4 | O53: =IF($B53=" ","",ROUNDUP(+CondimentChart!$W53*CondimentGuide!O$127,1)) -> 0 | S53: 4.9
A54: 49 | B54: =+CondimentChart!B54 -> SAUCE-CHEESY, CHEDDAR FLAVORED | C54: =IF(B54=" ","",+GPMIX!ET$13) -> Bottle | E54: =IF($B54=" ","",ROUNDUP(+CondimentChart!$W54*CondimentGuide!E$127,1)) -> 0 | I54: =IF($B54=" ","",IF(K54="",ROUNDUP(+CondimentChart!$W54*CondimentGuide!I$127,1),ROUNDUP(+CondimentChart!$W54*CondimentGuide!I$127,1)-ROUNDUP(+CondimentChart!$W54*CondimentGuide!K$127,1))) -> 0 | M54: =IF($B54=" ","",ROUNDUP(+CondimentChart!$W54*CondimentGuide!M$127,1)) -> 0 | O54: =IF($B54=" ","",ROUNDUP(+CondimentChart!$W54*CondimentGuide!O$127,1)) -> 0 | S54: 0
A55: 50 | B55: =+CondimentChart!B55 -> SMOOTHIE MIX-STRAWBERRY BANANA ARTIFICIALLY FLAVORED, CONCENTRATED, FROZEN, ALL | C55: =IF(B55=" ","",+GPMIX!EU$13) -> Jug | E55: =IF($B55=" ","",ROUNDUP(+CondimentChart!$W55*CondimentGuide!E$127,1)) -> 0.8 | I55: =IF($B55=" ","",IF(K55="",ROUNDUP(+CondimentChart!$W55*CondimentGuide!I$127,1),ROUNDUP(+CondimentChart!$W55*CondimentGuide!I$127,1)-ROUNDUP(+CondimentChart!$W55*CondimentGuide!K$127,1))) -> 0.6 | M55: =IF($B55=" ","",ROUNDUP(+CondimentChart!$W55*CondimentGuide!M$127,1)) -> 0.1 | O55: =IF($B55=" ","",ROUNDUP(+CondimentChart!$W55*CondimentGuide!O$127,1)) -> 0 | S55: 1.5
A56: 51 | B56: =+CondimentChart!B56 -> SMOOTHIE MIX-TROPICAL MANGO ARTIFICIAL FLAVORED, FROZEN CONCENTRATED, ALL IN ONE | C56: =IF(B56=" ","",+GPMIX!EV$13) -> Jug | E56: =IF($B56=" ","",ROUNDUP(+CondimentChart!$W56*CondimentGuide!E$127,1)) -> 0 | I56: =IF($B56=" ","",IF(K56="",ROUNDUP(+CondimentChart!$W56*CondimentGuide!I$127,1),ROUNDUP(+CondimentChart!$W56*CondimentGuide!I$127,1)-ROUNDUP(+CondimentChart!$W56*CondimentGuide!K$127,1))) -> 0 | M56: =IF($B56=" ","",ROUNDUP(+CondimentChart!$W56*CondimentGuide!M$127,1)) -> 0 | O56: =IF($B56=" ","",ROUNDUP(+CondimentChart!$W56*CondimentGuide!O$127,1)) -> 0 | S56: 0
A57: 52 | B57: =+CondimentChart!B57 -> PEPPERS-JALAPENO, WHOLE | C57: =IF(B57=" ","",+GPMIX!EW$13) -> Pan | E57: =IF($B57=" ","",ROUNDUP(+CondimentChart!$W57*CondimentGuide!E$127,1)) -> 0 | I57: =IF($B57=" ","",IF(K57="",ROUNDUP(+CondimentChart!$W57*CondimentGuide!I$127,1),ROUNDUP(+CondimentChart!$W57*CondimentGuide!I$127,1)-ROUNDUP(+CondimentChart!$W57*CondimentGuide!K$127,1))) -> 0 | M57: =IF($B57=" ","",ROUNDUP(+CondimentChart!$W57*CondimentGuide!M$127,1)) -> 0 | O57: =IF($B57=" ","",ROUNDUP(+CondimentChart!$W57*CondimentGuide!O$127,1)) -> 0 | S57: 0
A58: 53 | B58: =+CondimentChart!B58 -> CHEESE- AMERICAN CHEDDAR AND LOW-MOISTURE PART-SKIM MOZARELLA, SHREDDED, PROCESS | C58: =IF(B58=" ","",+GPMIX!EX$13) -> Pan | E58: =IF($B58=" ","",ROUNDUP(+CondimentChart!$W58*CondimentGuide!E$127,1)) -> 0 | I58: =IF($B58=" ","",IF(K58="",ROUNDUP(+CondimentChart!$W58*CondimentGuide!I$127,1),ROUNDUP(+CondimentChart!$W58*CondimentGuide!I$127,1)-ROUNDUP(+CondimentChart!$W58*CondimentGuide!K$127,1))) -> 0 | M58: =IF($B58=" ","",ROUNDUP(+CondimentChart!$W58*CondimentGuide!M$127,1)) -> 0 | O58: =IF($B58=" ","",ROUNDUP(+CondimentChart!$W58*CondimentGuide!O$127,1)) -> 0 | S58: 0
A59: 54 | B59: =+CondimentChart!B59 -> CHEESE-MOZZARELLA, LOW-MOISTURE, PART-SKIM | C59: =IF(B59=" ","",+GPMIX!EY$13) -> Pan | E59: =IF($B59=" ","",ROUNDUP(+CondimentChart!$W59*CondimentGuide!E$127,1)) -> 0.1 | I59: =IF($B59=" ","",IF(K59="",ROUNDUP(+CondimentChart!$W59*CondimentGuide!I$127,1),ROUNDUP(+CondimentChart!$W59*CondimentGuide!I$127,1)-ROUNDUP(+CondimentChart!$W59*CondimentGuide!K$127,1))) -> 0.1 | M59: =IF($B59=" ","",ROUNDUP(+CondimentChart!$W59*CondimentGuide!M$127,1)) -> 0.1 | O59: =IF($B59=" ","",ROUNDUP(+CondimentChart!$W59*CondimentGuide!O$127,1)) -> 0 | S59: 0.3
A60: 55 | B60: =+CondimentChart!B60 -> CHEESE-PARMESAN, PROCESS, PASTEURIZED | C60: =IF(B60=" ","",+GPMIX!EZ$13) -> Pan | E60: =IF($B60=" ","",ROUNDUP(+CondimentChart!$W60*CondimentGuide!E$127,1)) -> 0 | I60: =IF($B60=" ","",IF(K60="",ROUNDUP(+CondimentChart!$W60*CondimentGuide!I$127,1),ROUNDUP(+CondimentChart!$W60*CondimentGuide!I$127,1)-ROUNDUP(+CondimentChart!$W60*CondimentGuide!K$127,1))) -> 0 | M60: =IF($B60=" ","",ROUNDUP(+CondimentChart!$W60*CondimentGuide!M$127,1)) -> 0 | O60: =IF($B60=" ","",ROUNDUP(+CondimentChart!$W60*CondimentGuide!O$127,1)) -> 0 | S60: 0
A61: 56 | B61: =+CondimentChart!B61 -> CHEESE-STICKS, MOZZARELLA, BREADED | C61: =IF(B61=" ","",+GPMIX!FA$13) -> H.Chute | E61: =IF($B61=" ","",ROUNDUP(+CondimentChart!$W61*CondimentGuide!E$127,1)) -> 0 | I61: =IF($B61=" ","",IF(K61="",ROUNDUP(+CondimentChart!$W61*CondimentGuide!I$127,1),ROUNDUP(+CondimentChart!$W61*CondimentGuide!I$127,1)-ROUNDUP(+CondimentChart!$W61*CondimentGuide!K$127,1))) -> 0 | M61: =IF($B61=" ","",ROUNDUP(+CondimentChart!$W61*CondimentGuide!M$127,1)) -> 0 | O61: =IF($B61=" ","",ROUNDUP(+CondimentChart!$W61*CondimentGuide!O$127,1)) -> 0 | S61: 0
A62: 57 | B62: =+CondimentChart!B62 -> SAUCE-MARINARA, ITALIAN HERB, BULK | C62: =IF(B62=" ","",+GPMIX!FB$13) -> Bottle | E62: =IF($B62=" ","",ROUNDUP(+CondimentChart!$W62*CondimentGuide!E$127,1)) -> 2.3 | I62: =IF($B62=" ","",IF(K62="",ROUNDUP(+CondimentChart!$W62*CondimentGuide!I$127,1),ROUNDUP(+CondimentChart!$W62*CondimentGuide!I$127,1)-ROUNDUP(+CondimentChart!$W62*CondimentGuide!K$127,1))) -> 1.7 | M62: =IF($B62=" ","",ROUNDUP(+CondimentChart!$W62*CondimentGuide!M$127,1)) -> 0.3 | O62: =IF($B62=" ","",ROUNDUP(+CondimentChart!$W62*CondimentGuide!O$127,1)) -> 0 | S62: 4.3
A63: 58 | B63: =+CondimentChart!B63 -> PIE-DUTCH APPLE, SLICE, ECLIPSE, BK | C63: =IF(B63=" ","",+GPMIX!FC$13) -> Each | E63: =IF($B63=" ","",ROUNDUP(+CondimentChart!$W63*CondimentGuide!E$127,1)) -> 47.9 | I63: =IF($B63=" ","",IF(K63="",ROUNDUP(+CondimentChart!$W63*CondimentGuide!I$127,1),ROUNDUP(+CondimentChart!$W63*CondimentGuide!I$127,1)-ROUNDUP(+CondimentChart!$W63*CondimentGuide!K$127,1))) -> 35.5 | M63: =IF($B63=" ","",ROUNDUP(+CondimentChart!$W63*CondimentGuide!M$127,1)) -> 6.4 | O63: =IF($B63=" ","",ROUNDUP(+CondimentChart!$W63*CondimentGuide!O$127,1)) -> 0 | S63: 89.8
A64: 59 | B64: =+CondimentChart!B64 -> COOKIE DOUGH-BROWNIE, DOUBLE CHOCOLATE, FROZEN, OTIS SPUNKMEYER | C64: =IF(B64=" ","",+GPMIX!FD$13) -> Pan | E64: =IF($B64=" ","",ROUNDUP(+CondimentChart!$W64*CondimentGuide!E$127,1)) -> 0.4 | I64: =IF($B64=" ","",IF(K64="",ROUNDUP(+CondimentChart!$W64*CondimentGuide!I$127,1),ROUNDUP(+CondimentChart!$W64*CondimentGuide!I$127,1)-ROUNDUP(+CondimentChart!$W64*CondimentGuide!K$127,1))) -> 0.3 | M64: =IF($B64=" ","",ROUNDUP(+CondimentChart!$W64*CondimentGuide!M$127,1)) -> 0.1 | O64: =IF($B64=" ","",ROUNDUP(+CondimentChart!$W64*CondimentGuide!O$127,1)) -> 0 | S64: 0.8
A65: 60 | B65: =+CondimentChart!B65 -> COOKIE DOUGH-BUTTER SUGAR COOKIE, FROZEN, OTIS SPUNKMEYER | C65: =IF(B65=" ","",+GPMIX!FE$13) -> Pan | E65: =IF($B65=" ","",ROUNDUP(+CondimentChart!$W65*CondimentGuide!E$127,1)) -> 0.1 | I65: =IF($B65=" ","",IF(K65="",ROUNDUP(+CondimentChart!$W65*CondimentGuide!I$127,1),ROUNDUP(+CondimentChart!$W65*CondimentGuide!I$127,1)-ROUNDUP(+CondimentChart!$W65*CondimentGuide!K$127,1))) -> 0.1 | M65: =IF($B65=" ","",ROUNDUP(+CondimentChart!$W65*CondimentGuide!M$127,1)) -> 0.1 | O65: =IF($B65=" ","",ROUNDUP(+CondimentChart!$W65*CondimentGuide!O$127,1)) -> 0 | S65: 0.3
A66: 61 | B66: =+CondimentChart!B66 -> COOKIE DOUGH-CARNIVAL COOKIE, FROZEN, OTIS SPUNKMEYER | C66: =IF(B66=" ","",+GPMIX!FF$13) -> Pan | E66: =IF($B66=" ","",ROUNDUP(+CondimentChart!$W66*CondimentGuide!E$127,1)) -> 0 | I66: =IF($B66=" ","",IF(K66="",ROUNDUP(+CondimentChart!$W66*CondimentGuide!I$127,1),ROUNDUP(+CondimentChart!$W66*CondimentGuide!I$127,1)-ROUNDUP(+CondimentChart!$W66*CondimentGuide!K$127,1))) -> 0 | M66: =IF($B66=" ","",ROUNDUP(+CondimentChart!$W66*CondimentGuide!M$127,1)) -> 0 | O66: =IF($B66=" ","",ROUNDUP(+CondimentChart!$W66*CondimentGuide!O$127,1)) -> 0 | S66: 0
A67: 62 | B67: =+CondimentChart!B67 -> COOKIE DOUGH-CHOCOLATE CHIP, FROZEN, OTIS SPUNKMEYER | C67: =IF(B67=" ","",+GPMIX!FG$13) -> Pan | E67: =IF($B67=" ","",ROUNDUP(+CondimentChart!$W67*CondimentGuide!E$127,1)) -> 4.2 | I67: =IF($B67=" ","",IF(K67="",ROUNDUP(+CondimentChart!$W67*CondimentGuide!I$127,1),ROUNDUP(+CondimentChart!$W67*CondimentGuide!I$127,1)-ROUNDUP(+CondimentChart!$W67*CondimentGuide!K$127,1))) -> 3.1 | M67: =IF($B67=" ","",ROUNDUP(+CondimentChart!$W67*CondimentGuide!M$127,1)) -> 0.6 | O67: =IF($B67=" ","",ROUNDUP(+CondimentChart!$W67*CondimentGuide!O$127,1)) -> 0 | S67: 7.9
A68: 63 | B68: =+CondimentChart!B68 -> COOKIE DOUGH-GINGER SPICE, FROZEN, OTIS SPUNKMEYER | C68: =IF(B68=" ","",+GPMIX!FH$13) -> Pan | E68: =IF($B68=" ","",ROUNDUP(+CondimentChart!$W68*CondimentGuide!E$127,1)) -> 0 | I68: =IF($B68=" ","",IF(K68="",ROUNDUP(+CondimentChart!$W68*CondimentGuide!I$127,1),ROUNDUP(+CondimentChart!$W68*CondimentGuide!I$127,1)-ROUNDUP(+CondimentChart!$W68*CondimentGuide!K$127,1))) -> 0 | M68: =IF($B68=" ","",ROUNDUP(+CondimentChart!$W68*CondimentGuide!M$127,1)) -> 0 | O68: =IF($B68=" ","",ROUNDUP(+CondimentChart!$W68*CondimentGuide!O$127,1)) -> 0 | S68: 0
A69: 64 | B69: =+CondimentChart!B69 -> COOKIE DOUGH-OATMEAL RAISIN, OTIS SPUNKMEYER | C69: =IF(B69=" ","",+GPMIX!FI$13) -> Pan | E69: =IF($B69=" ","",ROUNDUP(+CondimentChart!$W69*CondimentGuide!E$127,1)) -> 0 | I69: =IF($B69=" ","",IF(K69="",ROUNDUP(+CondimentChart!$W69*CondimentGuide!I$127,1),ROUNDUP(+CondimentChart!$W69*CondimentGuide!I$127,1)-ROUNDUP(+CondimentChart!$W69*CondimentGuide!K$127,1))) -> 0 | M69: =IF($B69=" ","",ROUNDUP(+CondimentChart!$W69*CondimentGuide!M$127,1)) -> 0 | O69: =IF($B69=" ","",ROUNDUP(+CondimentChart!$W69*CondimentGuide!O$127,1)) -> 0 | S69: 0
A70: 65 | B70: =+CondimentChart!B70 -> COOKIE DOUGH-RED, WHITE & BLUE, FROZEN, OTIS SPUNKMEYER | C70: =IF(B70=" ","",+GPMIX!FJ$13) -> Pan | E70: =IF($B70=" ","",ROUNDUP(+CondimentChart!$W70*CondimentGuide!E$127,1)) -> 0.4 | I70: =IF($B70=" ","",IF(K70="",ROUNDUP(+CondimentChart!$W70*CondimentGuide!I$127,1),ROUNDUP(+CondimentChart!$W70*CondimentGuide!I$127,1)-ROUNDUP(+CondimentChart!$W70*CondimentGuide!K$127,1))) -> 0.3 | M70: =IF($B70=" ","",ROUNDUP(+CondimentChart!$W70*CondimentGuide!M$127,1)) -> 0.1 | O70: =IF($B70=" ","",ROUNDUP(+CondimentChart!$W70*CondimentGuide!O$127,1)) -> 0 | S70: =IF(B70=" ", " ", SUM(E70:R70)) -> 0.8
A71: 66 | B71: =+CondimentChart!B71 -> GRITS-QUICK, ENRICHED | C71: =IF(B71=" ","",+GPMIX!FK$13) -> Wells Warmer | E71: =IF($B71=" ","",ROUNDUP(+CondimentChart!$W71*CondimentGuide!E$127,1)) -> 3.1 | I71: =IF($B71=" ","",IF(K71="",ROUNDUP(+CondimentChart!$W71*CondimentGuide!I$127,1),ROUNDUP(+CondimentChart!$W71*CondimentGuide!I$127,1)-ROUNDUP(+CondimentChart!$W71*CondimentGuide!K$127,1))) -> 2.3 | M71: =IF($B71=" ","",ROUNDUP(+CondimentChart!$W71*CondimentGuide!M$127,1)) -> 0.5 | O71: =IF($B71=" ","",ROUNDUP(+CondimentChart!$W71*CondimentGuide!O$127,1)) -> 0 | S71: 5.9
A72: 67 | B72: =+CondimentChart!B72 -> LETTUCE-ICEBERG, 1.0" | C72: =IF(B72=" ","",+GPMIX!FL$13) -> 1/2 size Reddy Pan | E72: =IF($B72=" ","",ROUNDUP(+CondimentChart!$W72*CondimentGuide!E$127,1)) -> 11.2 | I72: =IF($B72=" ","",IF(K72="",ROUNDUP(+CondimentChart!$W72*CondimentGuide!I$127,1),ROUNDUP(+CondimentChart!$W72*CondimentGuide!I$127,1)-ROUNDUP(+CondimentChart!$W72*CondimentGuide!K$127,1))) -> 8.3 | M72: =IF($B72=" ","",ROUNDUP(+CondimentChart!$W72*CondimentGuide!M$127,1)) -> 1.5 | O72: =IF($B72=" ","",ROUNDUP(+CondimentChart!$W72*CondimentGuide!O$127,1)) -> 0 | S72: =IF(B72=" ", " ", SUM(E72:R72)) -> 21
A73: 68 | B73: =+CondimentChart!B73 -> BACON-THICK SLICED, FULLY COOKED, REFRIGERATED | C73: =IF(B73=" ","",+GPMIX!FM$13) -> 1/2 size Reddy Pan | E73: =IF($B73=" ","",ROUNDUP(+CondimentChart!$W73*CondimentGuide!E$127,1)) -> 0 | I73: =IF($B73=" ","",IF(K73="",ROUNDUP(+CondimentChart!$W73*CondimentGuide!I$127,1),ROUNDUP(+CondimentChart!$W73*CondimentGuide!I$127,1)-ROUNDUP(+CondimentChart!$W73*CondimentGuide!K$127,1))) -> 0 | M73: =IF($B73=" ","",ROUNDUP(+CondimentChart!$W73*CondimentGuide!M$127,1)) -> 0 | O73: =IF($B73=" ","",ROUNDUP(+CondimentChart!$W73*CondimentGuide!O$127,1)) -> 0 | S73: =IF(B73=" ", " ", SUM(E73:R73)) -> 0
A74: 69 | B74: =+CondimentChart!B74 -> BEVERAGE SYRUP-MANGO FLAVORED, MONIN | C74: =IF(B74=" ","",+GPMIX!FN$13) -> Carton | E74: =IF($B74=" ","",ROUNDUP(+CondimentChart!$W74*CondimentGuide!E$127,1)) -> 0.3 | I74: =IF($B74=" ","",IF(K74="",ROUNDUP(+CondimentChart!$W74*CondimentGuide!I$127,1),ROUNDUP(+CondimentChart!$W74*CondimentGuide!I$127,1)-ROUNDUP(+CondimentChart!$W74*CondimentGuide!K$127,1))) -> 0.2 | M74: =IF($B74=" ","",ROUNDUP(+CondimentChart!$W74*CondimentGuide!M$127,1)) -> 0.1 | O74: =IF($B74=" ","",ROUNDUP(+CondimentChart!$W74*CondimentGuide!O$127,1)) -> 0 | S74: 0.6
A75: 70 | B75: =+CondimentChart!B75 -> CHEESE-SLICES, MOZZARELLA, PROCESSED | C75: =IF(B75=" ","",+GPMIX!FO$13) -> 1/3 Ready Pan | E75: =IF($B75=" ","",ROUNDUP(+CondimentChart!$W75*CondimentGuide!E$127,1)) -> 0 | I75: =IF($B75=" ","",IF(K75="",ROUNDUP(+CondimentChart!$W75*CondimentGuide!I$127,1),ROUNDUP(+CondimentChart!$W75*CondimentGuide!I$127,1)-ROUNDUP(+CondimentChart!$W75*CondimentGuide!K$127,1))) -> 0 | M75: =IF($B75=" ","",ROUNDUP(+CondimentChart!$W75*CondimentGuide!M$127,1)) -> 0 | O75: =IF($B75=" ","",ROUNDUP(+CondimentChart!$W75*CondimentGuide!O$127,1)) -> 0 | S75: 0
A76: 71 | B76: =+CondimentChart!B76 -> CINNAMON-ROLL (2.8 OZ), FROZEN, OTIS SPUNKMEYER | C76: =IF(B76=" ","",+GPMIX!FP$13) -> Box | E76: =IF($B76=" ","",ROUNDUP(+CondimentChart!$W76*CondimentGuide!E$127,1)) -> 0 | I76: =IF($B76=" ","",IF(K76="",ROUNDUP(+CondimentChart!$W76*CondimentGuide!I$127,1),ROUNDUP(+CondimentChart!$W76*CondimentGuide!I$127,1)-ROUNDUP(+CondimentChart!$W76*CondimentGuide!K$127,1))) -> 0 | M76: =IF($B76=" ","",ROUNDUP(+CondimentChart!$W76*CondimentGuide!M$127,1)) -> 0 | O76: =IF($B76=" ","",ROUNDUP(+CondimentChart!$W76*CondimentGuide!O$127,1)) -> 0 | S76: 0
A77: 72 | B77: =+CondimentChart!B77 -> PEPPERS-JALAPENO, SLICED, MR. CHIPS | C77: =IF(B77=" ","",+GPMIX!FQ$13) -> 1/6 Size Ready Pan | E77: =IF($B77=" ","",ROUNDUP(+CondimentChart!$W77*CondimentGuide!E$127,1)) -> 0 | I77: =IF($B77=" ","",IF(K77="",ROUNDUP(+CondimentChart!$W77*CondimentGuide!I$127,1),ROUNDUP(+CondimentChart!$W77*CondimentGuide!I$127,1)-ROUNDUP(+CondimentChart!$W77*CondimentGuide!K$127,1))) -> 0 | M77: =IF($B77=" ","",ROUNDUP(+CondimentChart!$W77*CondimentGuide!M$127,1)) -> 0 | O77: =IF($B77=" ","",ROUNDUP(+CondimentChart!$W77*CondimentGuide!O$127,1)) -> 0 | S77: 0
A78: 73 | B78: =+CondimentChart!B78 -> PIE-REESES, SLICE | C78: =IF(B78=" ","",+GPMIX!FR$13) -> Carton | E78: =IF($B78=" ","",ROUNDUP(+CondimentChart!$W78*CondimentGuide!E$127,1)) -> 4.8 | I78: =IF($B78=" ","",IF(K78="",ROUNDUP(+CondimentChart!$W78*CondimentGuide!I$127,1),ROUNDUP(+CondimentChart!$W78*CondimentGuide!I$127,1)-ROUNDUP(+CondimentChart!$W78*CondimentGuide!K$127,1))) -> 3.6 | M78: =IF($B78=" ","",ROUNDUP(+CondimentChart!$W78*CondimentGuide!M$127,1)) -> 0.7 | O78: =IF($B78=" ","",ROUNDUP(+CondimentChart!$W78*CondimentGuide!O$127,1)) -> 0 | S78: 9.1
A79: 74 | B79: =+CondimentChart!B79 -> SHAKE SYRUP-RED VELVET, BK | C79: =IF(B79=" ","",+GPMIX!FS$13) -> Bottle | E79: =IF($B79=" ","",ROUNDUP(+CondimentChart!$W79*CondimentGuide!E$127,1)) -> 0 | I79: =IF($B79=" ","",IF(K79="",ROUNDUP(+CondimentChart!$W79*CondimentGuide!I$127,1),ROUNDUP(+CondimentChart!$W79*CondimentGuide!I$127,1)-ROUNDUP(+CondimentChart!$W79*CondimentGuide!K$127,1))) -> 0 | M79: =IF($B79=" ","",ROUNDUP(+CondimentChart!$W79*CondimentGuide!M$127,1)) -> 0 | O79: =IF($B79=" ","",ROUNDUP(+CondimentChart!$W79*CondimentGuide!O$127,1)) -> 0 | S79: 0
A80: 75 | B80: =+CondimentChart!B80 -> SYRUP-MILK CHOCOLATE FLAVORED (PACK 4/64 OZ), LYONS | C80: =IF(B80=" ","",+GPMIX!FT$13) -> Bottle | E80: =IF($B80=" ","",ROUNDUP(+CondimentChart!$W80*CondimentGuide!E$127,1)) -> 0.1 | I80: =IF($B80=" ","",IF(K80="",ROUNDUP(+CondimentChart!$W80*CondimentGuide!I$127,1),ROUNDUP(+CondimentChart!$W80*CondimentGuide!I$127,1)-ROUNDUP(+CondimentChart!$W80*CondimentGuide!K$127,1))) -> 0.1 | M80: =IF($B80=" ","",ROUNDUP(+CondimentChart!$W80*CondimentGuide!M$127,1)) -> 0.1 | O80: =IF($B80=" ","",ROUNDUP(+CondimentChart!$W80*CondimentGuide!O$127,1)) -> 0 | S80: 0.3
A81: 76 | B81: =+CondimentChart!B81 -> TOMATOES-WHOLE, FRESH, RED LEVEL 5 (6X6) BK | C81: =IF(B81=" ","",+GPMIX!FU$13) -> 1/2 Size Ready Pan | E81: =IF($B81=" ","",ROUNDUP(+CondimentChart!$W81*CondimentGuide!E$127,1)) -> 0 | I81: =IF($B81=" ","",IF(K81="",ROUNDUP(+CondimentChart!$W81*CondimentGuide!I$127,1),ROUNDUP(+CondimentChart!$W81*CondimentGuide!I$127,1)-ROUNDUP(+CondimentChart!$W81*CondimentGuide!K$127,1))) -> 0 | M81: =IF($B81=" ","",ROUNDUP(+CondimentChart!$W81*CondimentGuide!M$127,1)) -> 0 | O81: =IF($B81=" ","",ROUNDUP(+CondimentChart!$W81*CondimentGuide!O$127,1)) -> 0 | S81: 0
A82: 77 | B82: =+CondimentChart!B82 -> APPLE SAUCE-UNSWEETENED, MOTTS NATURAL | C82: =IF(B82=" ","",+GPMIX!FV$13) -> Each | E82: =IF($B82=" ","",ROUNDUP(+CondimentChart!$W82*CondimentGuide!E$127,1)) -> 4.8 | I82: =IF($B82=" ","",IF(K82="",ROUNDUP(+CondimentChart!$W82*CondimentGuide!I$127,1),ROUNDUP(+CondimentChart!$W82*CondimentGuide!I$127,1)-ROUNDUP(+CondimentChart!$W82*CondimentGuide!K$127,1))) -> 3.6 | M82: =IF($B82=" ","",ROUNDUP(+CondimentChart!$W82*CondimentGuide!M$127,1)) -> 0.7 | O82: =IF($B82=" ","",ROUNDUP(+CondimentChart!$W82*CondimentGuide!O$127,1)) -> 0 | S82: 9.1
A83: 78 | B83: =+CondimentChart!B83 -> JUICE-ORANGE, FROM CONCENTRATE, REFRIGERATED (10 OZ) MINUTE MAID | C83: =IF(B83=" ","",+GPMIX!FW$13) -> Each | E83: =IF($B83=" ","",ROUNDUP(+CondimentChart!$W83*CondimentGuide!E$127,1)) -> 0 | I83: =IF($B83=" ","",IF(K83="",ROUNDUP(+CondimentChart!$W83*CondimentGuide!I$127,1),ROUNDUP(+CondimentChart!$W83*CondimentGuide!I$127,1)-ROUNDUP(+CondimentChart!$W83*CondimentGuide!K$127,1))) -> 0 | M83: =IF($B83=" ","",ROUNDUP(+CondimentChart!$W83*CondimentGuide!M$127,1)) -> 0 | O83: =IF($B83=" ","",ROUNDUP(+CondimentChart!$W83*CondimentGuide!O$127,1)) -> 0 | S83: 0
A84: 79 | B84: =+CondimentChart!B84 -> SAUCE-SRIRACHA, BK | C84: =IF(B84=" ","",+GPMIX!FX$13) -> Squeeze Bottle | E84: =IF($B84=" ","",ROUNDUP(+CondimentChart!$W84*CondimentGuide!E$127,1)) -> 0.4 | I84: =IF($B84=" ","",IF(K84="",ROUNDUP(+CondimentChart!$W84*CondimentGuide!I$127,1),ROUNDUP(+CondimentChart!$W84*CondimentGuide!I$127,1)-ROUNDUP(+CondimentChart!$W84*CondimentGuide!K$127,1))) -> 0.3 | M84: =IF($B84=" ","",ROUNDUP(+CondimentChart!$W84*CondimentGuide!M$127,1)) -> 0.1 | O84: =IF($B84=" ","",ROUNDUP(+CondimentChart!$W84*CondimentGuide!O$127,1)) -> 0 | S84: 0.8
A85: 80 | B85: =+CondimentChart!B85 -> SHAKE SYRUP-PUMPKIN SPICE, BK | C85: =IF(B85=" ","",+GPMIX!FY$13) -> Jug | E85: =IF($B85=" ","",ROUNDUP(+CondimentChart!$W85*CondimentGuide!E$127,1)) -> 0 | I85: =IF($B85=" ","",IF(K85="",ROUNDUP(+CondimentChart!$W85*CondimentGuide!I$127,1),ROUNDUP(+CondimentChart!$W85*CondimentGuide!I$127,1)-ROUNDUP(+CondimentChart!$W85*CondimentGuide!K$127,1))) -> 0 | M85: =IF($B85=" ","",ROUNDUP(+CondimentChart!$W85*CondimentGuide!M$127,1)) -> 0 | O85: =IF($B85=" ","",ROUNDUP(+CondimentChart!$W85*CondimentGuide!O$127,1)) -> 0 | S85: 0
A86: 81 | B86: =+CondimentChart!B86 -> APPLE SAUCE-UNSWEETENED, MOTTS FRUITSATIONS | C86: =IF(B86=" ","",+GPMIX!FZ$13) -> Each | E86: =IF($B86=" ","",ROUNDUP(+CondimentChart!$W86*CondimentGuide!E$127,1)) -> 4.8 | I86: =IF($B86=" ","",IF(K86="",ROUNDUP(+CondimentChart!$W86*CondimentGuide!I$127,1),ROUNDUP(+CondimentChart!$W86*CondimentGuide!I$127,1)-ROUNDUP(+CondimentChart!$W86*CondimentGuide!K$127,1))) -> 3.6 | M86: =IF($B86=" ","",ROUNDUP(+CondimentChart!$W86*CondimentGuide!M$127,1)) -> 0.7 | O86: =IF($B86=" ","",ROUNDUP(+CondimentChart!$W86*CondimentGuide!O$127,1)) -> 0 | S86: 9.1
A87: 82 | B87: =+CondimentChart!B87 -> BACON-THICK SLICED, RAW, REFRIGERATED , BK | C87: =IF(B87=" ","",+GPMIX!GA$13) -> Pan | E87: =IF($B87=" ","",ROUNDUP(+CondimentChart!$W87*CondimentGuide!E$127,1)) -> 41.7 | I87: =IF($B87=" ","",IF(K87="",ROUNDUP(+CondimentChart!$W87*CondimentGuide!I$127,1),ROUNDUP(+CondimentChart!$W87*CondimentGuide!I$127,1)-ROUNDUP(+CondimentChart!$W87*CondimentGuide!K$127,1))) -> 30.8 | M87: =IF($B87=" ","",ROUNDUP(+CondimentChart!$W87*CondimentGuide!M$127,1)) -> 5.5 | O87: =IF($B87=" ","",ROUNDUP(+CondimentChart!$W87*CondimentGuide!O$127,1)) -> 0 | S87: 78
A88: 83 | B88: =+CondimentChart!B88 -> CHEESE- CHEDDAR, SHREDDED, NATURAL, PASTEURIZED | C88: =IF(B88=" ","",+GPMIX!GB$13) -> 1/9 pan | E88: =IF($B88=" ","",ROUNDUP(+CondimentChart!$W88*CondimentGuide!E$127,1)) -> 4.7 | I88: =IF($B88=" ","",IF(K88="",ROUNDUP(+CondimentChart!$W88*CondimentGuide!I$127,1),ROUNDUP(+CondimentChart!$W88*CondimentGuide!I$127,1)-ROUNDUP(+CondimentChart!$W88*CondimentGuide!K$127,1))) -> 3.5 | M88: =IF($B88=" ","",ROUNDUP(+CondimentChart!$W88*CondimentGuide!M$127,1)) -> 0.7 | O88: =IF($B88=" ","",ROUNDUP(+CondimentChart!$W88*CondimentGuide!O$127,1)) -> 0 | S88: 8.9
A89: 84 | B89: =+CondimentChart!B89 -> CREAMER-HALF & HALF, UHT, SHELF STABLE, PORTION | C89: =IF(B89=" ","",+GPMIX!GC$13) -> case | E89: =IF($B89=" ","",ROUNDUP(+CondimentChart!$W89*CondimentGuide!E$127,1)) -> 0 | I89: =IF($B89=" ","",IF(K89="",ROUNDUP(+CondimentChart!$W89*CondimentGuide!I$127,1),ROUNDUP(+CondimentChart!$W89*CondimentGuide!I$127,1)-ROUNDUP(+CondimentChart!$W89*CondimentGuide!K$127,1))) -> 0 | M89: =IF($B89=" ","",ROUNDUP(+CondimentChart!$W89*CondimentGuide!M$127,1)) -> 0 | O89: =IF($B89=" ","",ROUNDUP(+CondimentChart!$W89*CondimentGuide!O$127,1)) -> 0 | S89: 0
A90: 85 | B90: =+CondimentChart!B90 -> DRESSING-GOLDEN ITALIAN, PACKET (1.5 OZ), KEN'S | C90: =IF(B90=" ","",+GPMIX!GD$13) -> packet | E90: =IF($B90=" ","",ROUNDUP(+CondimentChart!$W90*CondimentGuide!E$127,1)) -> 0 | I90: =IF($B90=" ","",IF(K90="",ROUNDUP(+CondimentChart!$W90*CondimentGuide!I$127,1),ROUNDUP(+CondimentChart!$W90*CondimentGuide!I$127,1)-ROUNDUP(+CondimentChart!$W90*CondimentGuide!K$127,1))) -> 0 | M90: =IF($B90=" ","",ROUNDUP(+CondimentChart!$W90*CondimentGuide!M$127,1)) -> 0 | O90: =IF($B90=" ","",ROUNDUP(+CondimentChart!$W90*CondimentGuide!O$127,1)) -> 0 | S90: 0
A91: 86 | B91: =+CondimentChart!B91 -> HAM-SLICED, REFRIGERATED, BLACK FOREST, BK | C91: =IF(B91=" ","",+GPMIX!GE$13) -> package | E91: =IF($B91=" ","",ROUNDUP(+CondimentChart!$W91*CondimentGuide!E$127,1)) -> 258.8 | I91: =IF($B91=" ","",IF(K91="",ROUNDUP(+CondimentChart!$W91*CondimentGuide!I$127,1),ROUNDUP(+CondimentChart!$W91*CondimentGuide!I$127,1)-ROUNDUP(+CondimentChart!$W91*CondimentGuide!K$127,1))) -> 191.4 | M91: =IF($B91=" ","",ROUNDUP(+CondimentChart!$W91*CondimentGuide!M$127,1)) -> 34.1 | O91: =IF($B91=" ","",ROUNDUP(+CondimentChart!$W91*CondimentGuide!O$127,1)) -> 0 | S91: 484.3
A92: 87 | B92: =+CondimentChart!B92 -> MAYONNAISE-CLASSIC, BULK (2015), BK | C92: =IF(B92=" ","",+GPMIX!GF$13) -> 1/3 Deep | E92: =IF($B92=" ","",ROUNDUP(+CondimentChart!$W92*CondimentGuide!E$127,1)) -> 0 | I92: =IF($B92=" ","",IF(K92="",ROUNDUP(+CondimentChart!$W92*CondimentGuide!I$127,1),ROUNDUP(+CondimentChart!$W92*CondimentGuide!I$127,1)-ROUNDUP(+CondimentChart!$W92*CondimentGuide!K$127,1))) -> 0 | M92: =IF($B92=" ","",ROUNDUP(+CondimentChart!$W92*CondimentGuide!M$127,1)) -> 0 | O92: =IF($B92=" ","",ROUNDUP(+CondimentChart!$W92*CondimentGuide!O$127,1)) -> 0 | S92: 0
A93: 88 | B93: =+CondimentChart!B93 -> OATMEAL-MAPLE BROWN SUGAR, PREPACKAGED (43 G), QUAKER | C93: =IF(B93=" ","",+GPMIX!GG$13) -> packet | E93: =IF($B93=" ","",ROUNDUP(+CondimentChart!$W93*CondimentGuide!E$127,1)) -> 3.1 | I93: =IF($B93=" ","",IF(K93="",ROUNDUP(+CondimentChart!$W93*CondimentGuide!I$127,1),ROUNDUP(+CondimentChart!$W93*CondimentGuide!I$127,1)-ROUNDUP(+CondimentChart!$W93*CondimentGuide!K$127,1))) -> 2.3 | M93: =IF($B93=" ","",ROUNDUP(+CondimentChart!$W93*CondimentGuide!M$127,1)) -> 0.4 | O93: =IF($B93=" ","",ROUNDUP(+CondimentChart!$W93*CondimentGuide!O$127,1)) -> 0 | S93: 5.8
A94: 89 | B94: =+CondimentChart!B94 -> ONIONS-SPANISH, WHOLE | C94: =IF(B94=" ","",+GPMIX!GH$13) -> Pan | E94: =IF($B94=" ","",ROUNDUP(+CondimentChart!$W94*CondimentGuide!E$127,1)) -> 0.9 | I94: =IF($B94=" ","",IF(K94="",ROUNDUP(+CondimentChart!$W94*CondimentGuide!I$127,1),ROUNDUP(+CondimentChart!$W94*CondimentGuide!I$127,1)-ROUNDUP(+CondimentChart!$W94*CondimentGuide!K$127,1))) -> 0.6 | M94: =IF($B94=" ","",ROUNDUP(+CondimentChart!$W94*CondimentGuide!M$127,1)) -> 0.2 | O94: =IF($B94=" ","",ROUNDUP(+CondimentChart!$W94*CondimentGuide!O$127,1)) -> 0 | S94: 1.7
A95: 90 | B95: =+CondimentChart!B95 -> PANCAKES-FROZEN (1.6 OZ) | C95: =IF(B95=" ","",+GPMIX!GI$13) -> package | E95: =IF($B95=" ","",ROUNDUP(+CondimentChart!$W95*CondimentGuide!E$127,1)) -> 0 | I95: =IF($B95=" ","",IF(K95="",ROUNDUP(+CondimentChart!$W95*CondimentGuide!I$127,1),ROUNDUP(+CondimentChart!$W95*CondimentGuide!I$127,1)-ROUNDUP(+CondimentChart!$W95*CondimentGuide!K$127,1))) -> 0 | M95: =IF($B95=" ","",ROUNDUP(+CondimentChart!$W95*CondimentGuide!M$127,1)) -> 0 | O95: =IF($B95=" ","",ROUNDUP(+CondimentChart!$W95*CondimentGuide!O$127,1)) -> 0 | S95: 0
A96: 91 | B96: =+CondimentChart!B96 -> PEPPERS-JALAPENO, SLICED | C96: =IF(B96=" ","",+GPMIX!GJ$13) -> Pan | E96: =IF($B96=" ","",ROUNDUP(+CondimentChart!$W96*CondimentGuide!E$127,1)) -> 22.5 | I96: =IF($B96=" ","",IF(K96="",ROUNDUP(+CondimentChart!$W96*CondimentGuide!I$127,1),ROUNDUP(+CondimentChart!$W96*CondimentGuide!I$127,1)-ROUNDUP(+CondimentChart!$W96*CondimentGuide!K$127,1))) -> 16.7 | M96: =IF($B96=" ","",ROUNDUP(+CondimentChart!$W96*CondimentGuide!M$127,1)) -> 3 | O96: =IF($B96=" ","",ROUNDUP(+CondimentChart!$W96*CondimentGuide!O$127,1)) -> 0 | S96: 42.2
A97: 92 | B97: =+CondimentChart!B97 -> PIE-SNICKERS®, SLICE | C97: =IF(B97=" ","",+GPMIX!GK$13) -> Carton | E97: =IF($B97=" ","",ROUNDUP(+CondimentChart!$W97*CondimentGuide!E$127,1)) -> 0 | I97: =IF($B97=" ","",IF(K97="",ROUNDUP(+CondimentChart!$W97*CondimentGuide!I$127,1),ROUNDUP(+CondimentChart!$W97*CondimentGuide!I$127,1)-ROUNDUP(+CondimentChart!$W97*CondimentGuide!K$127,1))) -> 0 | M97: =IF($B97=" ","",ROUNDUP(+CondimentChart!$W97*CondimentGuide!M$127,1)) -> 0 | O97: =IF($B97=" ","",ROUNDUP(+CondimentChart!$W97*CondimentGuide!O$127,1)) -> 0 | S97: 0
A98: 93 | B98: =+CondimentChart!B98 -> RELISH-PREMIUM SWEET | C98: =IF(B98=" ","",+GPMIX!GL$13) -> 1/9 size pan | E98: =IF($B98=" ","",ROUNDUP(+CondimentChart!$W98*CondimentGuide!E$127,1)) -> 0 | I98: =IF($B98=" ","",IF(K98="",ROUNDUP(+CondimentChart!$W98*CondimentGuide!I$127,1),ROUNDUP(+CondimentChart!$W98*CondimentGuide!I$127,1)-ROUNDUP(+CondimentChart!$W98*CondimentGuide!K$127,1))) -> 0 | M98: =IF($B98=" ","",ROUNDUP(+CondimentChart!$W98*CondimentGuide!M$127,1)) -> 0 | O98: =IF($B98=" ","",ROUNDUP(+CondimentChart!$W98*CondimentGuide!O$127,1)) -> 0 | S98: 0
A99: 94 | B99: =+CondimentChart!B99 -> SAUCE-BUTTERY, AMBIENT, BK | C99: =IF(B99=" ","",+GPMIX!GM$13) -> bottle | E99: =IF($B99=" ","",ROUNDUP(+CondimentChart!$W99*CondimentGuide!E$127,1)) -> 0.1 | I99: =IF($B99=" ","",IF(K99="",ROUNDUP(+CondimentChart!$W99*CondimentGuide!I$127,1),ROUNDUP(+CondimentChart!$W99*CondimentGuide!I$127,1)-ROUNDUP(+CondimentChart!$W99*CondimentGuide!K$127,1))) -> 0.1 | M99: =IF($B99=" ","",ROUNDUP(+CondimentChart!$W99*CondimentGuide!M$127,1)) -> 0.1 | O99: =IF($B99=" ","",ROUNDUP(+CondimentChart!$W99*CondimentGuide!O$127,1)) -> 0 | S99: 0.3
A100: 95 | B100: =+CondimentChart!B100 -> SAUCE-CHILI, WITH BEEF | C100: =IF(B100=" ","",+GPMIX!GN$13) -> 1/3 size pan | E100: =IF($B100=" ","",ROUNDUP(+CondimentChart!$W100*CondimentGuide!E$127,1)) -> 0 | I100: =IF($B100=" ","",IF(K100="",ROUNDUP(+CondimentChart!$W100*CondimentGuide!I$127,1),ROUNDUP(+CondimentChart!$W100*CondimentGuide!I$127,1)-ROUNDUP(+CondimentChart!$W100*CondimentGuide!K$127,1))) -> 0 | M100: =IF($B100=" ","",ROUNDUP(+CondimentChart!$W100*CondimentGuide!M$127,1)) -> 0 | O100: =IF($B100=" ","",ROUNDUP(+CondimentChart!$W100*CondimentGuide!O$127,1)) -> 0 | S100: 0
A101: 96 | B101: =+CondimentChart!B101 -> SHAKE SYRUP-DR. PEPPER | C101: =IF(B101=" ","",+GPMIX!GO$13) -> container | E101: =IF($B101=" ","",ROUNDUP(+CondimentChart!$W101*CondimentGuide!E$127,1)) -> 0 | I101: =IF($B101=" ","",IF(K101="",ROUNDUP(+CondimentChart!$W101*CondimentGuide!I$127,1),ROUNDUP(+CondimentChart!$W101*CondimentGuide!I$127,1)-ROUNDUP(+CondimentChart!$W101*CondimentGuide!K$127,1))) -> 0 | M101: =IF($B101=" ","",ROUNDUP(+CondimentChart!$W101*CondimentGuide!M$127,1)) -> 0 | O101: =IF($B101=" ","",ROUNDUP(+CondimentChart!$W101*CondimentGuide!O$127,1)) -> 0 | S101: 0
A102: 97 | B102: =+CondimentChart!B102 -> RELISH- CLASSIC SWEET, BK | C102: =IF(B102=" ","",+GPMIX!GP$13) -> 1/9 size pan | E102: =IF($B102=" ","",ROUNDUP(+CondimentChart!$W102*CondimentGuide!E$127,1)) -> 1.1 | I102: =IF($B102=" ","",IF(K102="",ROUNDUP(+CondimentChart!$W102*CondimentGuide!I$127,1),ROUNDUP(+CondimentChart!$W102*CondimentGuide!I$127,1)-ROUNDUP(+CondimentChart!$W102*CondimentGuide!K$127,1))) -> 0.8 | M102: =IF($B102=" ","",ROUNDUP(+CondimentChart!$W102*CondimentGuide!M$127,1)) -> 0.2 | O102: =IF($B102=" ","",ROUNDUP(+CondimentChart!$W102*CondimentGuide!O$127,1)) -> 0 | S102: 2.1
A103: 98 | B103: =+CondimentChart!B103 -> SAUCE-CHEESE, ORIGINAL, VELVEETA | C103: =IF(B103=" ","",+GPMIX!GQ$13) -> 1/9 size pan | E103: =IF($B103=" ","",ROUNDUP(+CondimentChart!$W103*CondimentGuide!E$127,1)) -> 0 | I103: =IF($B103=" ","",IF(K103="",ROUNDUP(+CondimentChart!$W103*CondimentGuide!I$127,1),ROUNDUP(+CondimentChart!$W103*CondimentGuide!I$127,1)-ROUNDUP(+CondimentChart!$W103*CondimentGuide!K$127,1))) -> 0 | M103: =IF($B103=" ","",ROUNDUP(+CondimentChart!$W103*CondimentGuide!M$127,1)) -> 0 | O103: =IF($B103=" ","",ROUNDUP(+CondimentChart!$W103*CondimentGuide!O$127,1)) -> 0 | S103: 0
A104: 99 | B104: =+CondimentChart!B104 -> TOMATOES-WHOLE, FRESH, RED LEVEL 5 (6X6), BK | C104: =IF(B104=" ","",+GPMIX!GR$13) -> 1/2 Size Ready Pan | E104: =IF($B104=" ","",ROUNDUP(+CondimentChart!$W104*CondimentGuide!E$127,1)) -> 9.3 | I104: =IF($B104=" ","",IF(K104="",ROUNDUP(+CondimentChart!$W104*CondimentGuide!I$127,1),ROUNDUP(+CondimentChart!$W104*CondimentGuide!I$127,1)-ROUNDUP(+CondimentChart!$W104*CondimentGuide!K$127,1))) -> 6.9 | M104: =IF($B104=" ","",ROUNDUP(+CondimentChart!$W104*CondimentGuide!M$127,1)) -> 1.3 | O104: =IF($B104=" ","",ROUNDUP(+CondimentChart!$W104*CondimentGuide!O$127,1)) -> 0 | S104: 17.5
A105: 100 | B105: =+CondimentChart!B105 -> PANCAKES-FROZEN (1.6 OZ), BK | C105: =IF(B105=" ","",+GPMIX!GS$13) -> package | E105: =IF($B105=" ","",ROUNDUP(+CondimentChart!$W105*CondimentGuide!E$127,1)) -> 562.4 | I105: =IF($B105=" ","",IF(K105="",ROUNDUP(+CondimentChart!$W105*CondimentGuide!I$127,1),ROUNDUP(+CondimentChart!$W105*CondimentGuide!I$127,1)-ROUNDUP(+CondimentChart!$W105*CondimentGuide!K$127,1))) -> 416 | M105: =IF($B105=" ","",ROUNDUP(+CondimentChart!$W105*CondimentGuide!M$127,1)) -> 74 | O105: =IF($B105=" ","",ROUNDUP(+CondimentChart!$W105*CondimentGuide!O$127,1)) -> 0 | S105: 1052.4
A106: 101 | B106: =+CondimentChart!B106 -> CINNAMON-ROLL (2.8 OZ), FROZEN, OTIS SPUNKMEYER BRANDED, BK | C106: =IF(B106=" ","",+GPMIX!GT$13) -> Box | E106: =IF($B106=" ","",ROUNDUP(+CondimentChart!$W106*CondimentGuide!E$127,1)) -> 0.1 | I106: =IF($B106=" ","",IF(K106="",ROUNDUP(+CondimentChart!$W106*CondimentGuide!I$127,1),ROUNDUP(+CondimentChart!$W106*CondimentGuide!I$127,1)-ROUNDUP(+CondimentChart!$W106*CondimentGuide!K$127,1))) -> 0.1 | M106: =IF($B106=" ","",ROUNDUP(+CondimentChart!$W106*CondimentGuide!M$127,1)) -> 0.1 | O106: =IF($B106=" ","",ROUNDUP(+CondimentChart!$W106*CondimentGuide!O$127,1)) -> 0 | S106: 0.3
A107: 102 | B107: =+CondimentChart!B107 -> BACON-THICK SLICED, FULLY COOKED, REFRIGERATED, BK | C107: =IF(B107=" ","",+GPMIX!GU$13) -> 1/2 size Reddy Pan | E107: =IF($B107=" ","",ROUNDUP(+CondimentChart!$W107*CondimentGuide!E$127,1)) -> 0.1 | I107: =IF($B107=" ","",IF(K107="",ROUNDUP(+CondimentChart!$W107*CondimentGuide!I$127,1),ROUNDUP(+CondimentChart!$W107*CondimentGuide!I$127,1)-ROUNDUP(+CondimentChart!$W107*CondimentGuide!K$127,1))) -> 0.1 | M107: =IF($B107=" ","",ROUNDUP(+CondimentChart!$W107*CondimentGuide!M$127,1)) -> 0.1 | O107: =IF($B107=" ","",ROUNDUP(+CondimentChart!$W107*CondimentGuide!O$127,1)) -> 0 | S107: 0.3
A108: 103 | B108: =+CondimentChart!B108 -> PIE-SNICKERS¨, SLICE, BK BRANDED, SCHWANS | C108: =IF(B108=" ","",+GPMIX!GV$13) -> Carton | E108: =IF($B108=" ","",ROUNDUP(+CondimentChart!$W108*CondimentGuide!E$127,1)) -> 0 | I108: =IF($B108=" ","",IF(K108="",ROUNDUP(+CondimentChart!$W108*CondimentGuide!I$127,1),ROUNDUP(+CondimentChart!$W108*CondimentGuide!I$127,1)-ROUNDUP(+CondimentChart!$W108*CondimentGuide!K$127,1))) -> 0 | M108: =IF($B108=" ","",ROUNDUP(+CondimentChart!$W108*CondimentGuide!M$127,1)) -> 0 | O108: =IF($B108=" ","",ROUNDUP(+CondimentChart!$W108*CondimentGuide!O$127,1)) -> 0 | S108: 0
A109: 104 | B109: =+CondimentChart!B109 -> PIE-HERSHEY'S SUNDAE, SLICE, BK BRANDED, SCHWANS | C109: =IF(B109=" ","",+GPMIX!GW$13) -> Each | E109: =IF($B109=" ","",ROUNDUP(+CondimentChart!$W109*CondimentGuide!E$127,1)) -> 47.9 | I109: =IF($B109=" ","",IF(K109="",ROUNDUP(+CondimentChart!$W109*CondimentGuide!I$127,1),ROUNDUP(+CondimentChart!$W109*CondimentGuide!I$127,1)-ROUNDUP(+CondimentChart!$W109*CondimentGuide!K$127,1))) -> 35.5 | M109: =IF($B109=" ","",ROUNDUP(+CondimentChart!$W109*CondimentGuide!M$127,1)) -> 6.4 | O109: =IF($B109=" ","",ROUNDUP(+CondimentChart!$W109*CondimentGuide!O$127,1)) -> 0 | S109: 89.8
A110: 105 | B110: =+CondimentChart!B110 -> TOPPING-OREO¨ CRUMBLES, SMALL (1 LB) | C110: =IF(B110=" ","",+GPMIX!GX$13) -> Pan | E110: =IF($B110=" ","",ROUNDUP(+CondimentChart!$W110*CondimentGuide!E$127,1)) -> 0 | I110: =IF($B110=" ","",IF(K110="",ROUNDUP(+CondimentChart!$W110*CondimentGuide!I$127,1),ROUNDUP(+CondimentChart!$W110*CondimentGuide!I$127,1)-ROUNDUP(+CondimentChart!$W110*CondimentGuide!K$127,1))) -> 0 | M110: =IF($B110=" ","",ROUNDUP(+CondimentChart!$W110*CondimentGuide!M$127,1)) -> 0 | O110: =IF($B110=" ","",ROUNDUP(+CondimentChart!$W110*CondimentGuide!O$127,1)) -> 0 | S110: 0
A111: 106 | B111: =+CondimentChart!B111 -> MUSTARD-YELLOW, BAG IN BOX (3 GALLON VOL-PAK) , BK/HEINZ | C111: =IF(B111=" ","",+GPMIX!GY$13) -> 12 Ounce Bottle | E111: =IF($B111=" ","",ROUNDUP(+CondimentChart!$W111*CondimentGuide!E$127,1)) -> 6.4 | I111: =IF($B111=" ","",IF(K111="",ROUNDUP(+CondimentChart!$W111*CondimentGuide!I$127,1),ROUNDUP(+CondimentChart!$W111*CondimentGuide!I$127,1)-ROUNDUP(+CondimentChart!$W111*CondimentGuide!K$127,1))) -> 4.8 | M111: =IF($B111=" ","",ROUNDUP(+CondimentChart!$W111*CondimentGuide!M$127,1)) -> 0.9 | O111: =IF($B111=" ","",ROUNDUP(+CondimentChart!$W111*CondimentGuide!O$127,1)) -> 0 | S111: 12.1
A112: 107 | B112: =+CondimentChart!B112 -> RICE-CALROSE, MEDIUM GRAIN | C112: =IF(B112=" ","",+GPMIX!GZ$13) -> Rice Cooker | E112: =IF($B112=" ","",ROUNDUP(+CondimentChart!$W112*CondimentGuide!E$127,1)) -> 46.1 | I112: =IF($B112=" ","",IF(K112="",ROUNDUP(+CondimentChart!$W112*CondimentGuide!I$127,1),ROUNDUP(+CondimentChart!$W112*CondimentGuide!I$127,1)-ROUNDUP(+CondimentChart!$W112*CondimentGuide!K$127,1))) -> 34.1 | M112: =IF($B112=" ","",ROUNDUP(+CondimentChart!$W112*CondimentGuide!M$127,1)) -> 6.1 | O112: =IF($B112=" ","",ROUNDUP(+CondimentChart!$W112*CondimentGuide!O$127,1)) -> 0 | S112: 86.3
A113: 108 | B113: =+CondimentChart!B113 -> SAUCE-SPICY SPREAD, BK | C113: =IF(B113=" ","",+GPMIX!HA$13) -> 12 Ounce Bottle | E113: =IF($B113=" ","",ROUNDUP(+CondimentChart!$W113*CondimentGuide!E$127,1)) -> 5.6 | I113: =IF($B113=" ","",IF(K113="",ROUNDUP(+CondimentChart!$W113*CondimentGuide!I$127,1),ROUNDUP(+CondimentChart!$W113*CondimentGuide!I$127,1)-ROUNDUP(+CondimentChart!$W113*CondimentGuide!K$127,1))) -> 4.1 | M113: =IF($B113=" ","",ROUNDUP(+CondimentChart!$W113*CondimentGuide!M$127,1)) -> 0.8 | O113: =IF($B113=" ","",ROUNDUP(+CondimentChart!$W113*CondimentGuide!O$127,1)) -> 0 | S113: 10.5
A114: 109 | B114: =+CondimentChart!B114 -> SAUCE-STACKER, BK | C114: =IF(B114=" ","",+GPMIX!HB$13) -> 1/6 Size Pan | E114: =IF($B114=" ","",ROUNDUP(+CondimentChart!$W114*CondimentGuide!E$127,1)) -> 2.4 | I114: =IF($B114=" ","",IF(K114="",ROUNDUP(+CondimentChart!$W114*CondimentGuide!I$127,1),ROUNDUP(+CondimentChart!$W114*CondimentGuide!I$127,1)-ROUNDUP(+CondimentChart!$W114*CondimentGuide!K$127,1))) -> 1.8 | M114: =IF($B114=" ","",ROUNDUP(+CondimentChart!$W114*CondimentGuide!M$127,1)) -> 0.4 | O114: =IF($B114=" ","",ROUNDUP(+CondimentChart!$W114*CondimentGuide!O$127,1)) -> 0 | S114: 4.6
A115: 110 | B115: =+CondimentChart!B115 -> PIE-NEW YORK STYLE CHEESECAKE, BK BRANDED, RICH PRODUCTS | C115: =IF(B115=" ","",+GPMIX!HC$13) -> Carton | E115: =IF($B115=" ","",ROUNDUP(+CondimentChart!$W115*CondimentGuide!E$127,1)) -> 0 | I115: =IF($B115=" ","",IF(K115="",ROUNDUP(+CondimentChart!$W115*CondimentGuide!I$127,1),ROUNDUP(+CondimentChart!$W115*CondimentGuide!I$127,1)-ROUNDUP(+CondimentChart!$W115*CondimentGuide!K$127,1))) -> 0 | M115: =IF($B115=" ","",ROUNDUP(+CondimentChart!$W115*CondimentGuide!M$127,1)) -> 0 | O115: =IF($B115=" ","",ROUNDUP(+CondimentChart!$W115*CondimentGuide!O$127,1)) -> 0 | S115: 0
A116: 111 | B116: =+CondimentChart!B116 -> PIE-OREO® CHEESECAKE, BK BRANDED, RICH PRODUCTS | C116: =IF(B116=" ","",+GPMIX!HD$13) -> Carton | E116: =IF($B116=" ","",ROUNDUP(+CondimentChart!$W116*CondimentGuide!E$127,1)) -> 0.5 | I116: =IF($B116=" ","",IF(K116="",ROUNDUP(+CondimentChart!$W116*CondimentGuide!I$127,1),ROUNDUP(+CondimentChart!$W116*CondimentGuide!I$127,1)-ROUNDUP(+CondimentChart!$W116*CondimentGuide!K$127,1))) -> 0.4 | M116: =IF($B116=" ","",ROUNDUP(+CondimentChart!$W116*CondimentGuide!M$127,1)) -> 0.1 | O116: =IF($B116=" ","",ROUNDUP(+CondimentChart!$W116*CondimentGuide!O$127,1)) -> 0 | S116: 1
A117: 112 | B117: =+CondimentChart!B117 -> PIE-SNICKERS®, SLICE, BK BRANDED, SCHWANS | C117: =IF(B117=" ","",+GPMIX!HE$13) -> Carton | E117: =IF($B117=" ","",ROUNDUP(+CondimentChart!$W117*CondimentGuide!E$127,1)) -> 0 | I117: =IF($B117=" ","",IF(K117="",ROUNDUP(+CondimentChart!$W117*CondimentGuide!I$127,1),ROUNDUP(+CondimentChart!$W117*CondimentGuide!I$127,1)-ROUNDUP(+CondimentChart!$W117*CondimentGuide!K$127,1))) -> 0 | M117: =IF($B117=" ","",ROUNDUP(+CondimentChart!$W117*CondimentGuide!M$127,1)) -> 0 | O117: =IF($B117=" ","",ROUNDUP(+CondimentChart!$W117*CondimentGuide!O$127,1)) -> 0 | S117: 0
A118: 113 | B118: =+CondimentChart!B118 -> SAUCE-CHEESE, FIESTA PEPPER BLEND, GEHL FOODS | C118: =IF(B118=" ","",+GPMIX!HF$13) -> 1/6th Pan | E118: =IF($B118=" ","",ROUNDUP(+CondimentChart!$W118*CondimentGuide!E$127,1)) -> 31.9 | I118: =IF($B118=" ","",IF(K118="",ROUNDUP(+CondimentChart!$W118*CondimentGuide!I$127,1),ROUNDUP(+CondimentChart!$W118*CondimentGuide!I$127,1)-ROUNDUP(+CondimentChart!$W118*CondimentGuide!K$127,1))) -> 23.6 | M118: =IF($B118=" ","",ROUNDUP(+CondimentChart!$W118*CondimentGuide!M$127,1)) -> 4.2 | O118: =IF($B118=" ","",ROUNDUP(+CondimentChart!$W118*CondimentGuide!O$127,1)) -> 0 | S118: 59.7
A119: 114 | B119: =+CondimentChart!B119 -> SAUCE-SPICY SPREAD, BK | C119: =IF(B119=" ","",+GPMIX!HG$13) -> Squeeze Bottle | E119: =IF($B119=" ","",ROUNDUP(+CondimentChart!$W119*CondimentGuide!E$127,1)) -> 5.6 | I119: =IF($B119=" ","",IF(K119="",ROUNDUP(+CondimentChart!$W119*CondimentGuide!I$127,1),ROUNDUP(+CondimentChart!$W119*CondimentGuide!I$127,1)-ROUNDUP(+CondimentChart!$W119*CondimentGuide!K$127,1))) -> 4.1 | M119: =IF($B119=" ","",ROUNDUP(+CondimentChart!$W119*CondimentGuide!M$127,1)) -> 0.8 | O119: =IF($B119=" ","",ROUNDUP(+CondimentChart!$W119*CondimentGuide!O$127,1)) -> 0 | S119: 10.5
A120: 115 | B120: =+CondimentChart!B120 -> SAUCE-STACKER, BK | C120: =IF(B120=" ","",+GPMIX!HH$13) -> 1/6th Pan | E120: =IF($B120=" ","",ROUNDUP(+CondimentChart!$W120*CondimentGuide!E$127,1)) -> 0.1 | I120: =IF($B120=" ","",IF(K120="",ROUNDUP(+CondimentChart!$W120*CondimentGuide!I$127,1),ROUNDUP(+CondimentChart!$W120*CondimentGuide!I$127,1)-ROUNDUP(+CondimentChart!$W120*CondimentGuide!K$127,1))) -> 0.1 | M120: =IF($B120=" ","",ROUNDUP(+CondimentChart!$W120*CondimentGuide!M$127,1)) -> 0.1 | O120: =IF($B120=" ","",ROUNDUP(+CondimentChart!$W120*CondimentGuide!O$127,1)) -> 0 | S120: 0.3
A121: 116 | B121: =+CondimentChart!B121 -> TOMATOES-WHOLE, FRESH, RED LEVEL 5 (6X7), BK | C121: =IF(B121=" ","",+GPMIX!HI$13) -> 1/2 Pan | E121: =IF($B121=" ","",ROUNDUP(+CondimentChart!$W121*CondimentGuide!E$127,1)) -> 104.3 | I121: =IF($B121=" ","",IF(K121="",ROUNDUP(+CondimentChart!$W121*CondimentGuide!I$127,1),ROUNDUP(+CondimentChart!$W121*CondimentGuide!I$127,1)-ROUNDUP(+CondimentChart!$W121*CondimentGuide!K$127,1))) -> 77.2 | M121: =IF($B121=" ","",ROUNDUP(+CondimentChart!$W121*CondimentGuide!M$127,1)) -> 13.8 | O121: =IF($B121=" ","",ROUNDUP(+CondimentChart!$W121*CondimentGuide!O$127,1)) -> 0 | S121: 195.3
A122: 117 | B122: =+CondimentChart!B122 ->  | C122: =IF(B122=" ","",+GPMIX!HJ$13) ->  | E122: =IF($B122=" ","",ROUNDUP(+CondimentChart!$W122*CondimentGuide!E$127,1)) ->  | I122: =IF($B122=" ","",IF(K122="",ROUNDUP(+CondimentChart!$W122*CondimentGuide!I$127,1),ROUNDUP(+CondimentChart!$W122*CondimentGuide!I$127,1)-ROUNDUP(+CondimentChart!$W122*CondimentGuide!K$127,1))) ->  | M122: =IF($B122=" ","",ROUNDUP(+CondimentChart!$W122*CondimentGuide!M$127,1)) ->  | O122: =IF($B122=" ","",ROUNDUP(+CondimentChart!$W122*CondimentGuide!O$127,1)) -> 
A123: 118 | B123: =+CondimentChart!B123 ->  | C123: =IF(B123=" ","",+GPMIX!HK$13) ->  | E123: =IF($B123=" ","",ROUNDUP(+CondimentChart!$W123*CondimentGuide!E$127,1)) ->  | I123: =IF($B123=" ","",IF(K123="",ROUNDUP(+CondimentChart!$W123*CondimentGuide!I$127,1),ROUNDUP(+CondimentChart!$W123*CondimentGuide!I$127,1)-ROUNDUP(+CondimentChart!$W123*CondimentGuide!K$127,1))) ->  | M123: =IF($B123=" ","",ROUNDUP(+CondimentChart!$W123*CondimentGuide!M$127,1)) ->  | O123: =IF($B123=" ","",ROUNDUP(+CondimentChart!$W123*CondimentGuide!O$127,1)) -> 
A124: 119 | B124: =+CondimentChart!B124 ->  | C124: =IF(B124=" ","",+GPMIX!HL$13) ->  | E124: =IF($B124=" ","",ROUNDUP(+CondimentChart!$W124*CondimentGuide!E$127,1)) ->  | I124: =IF($B124=" ","",IF(K124="",ROUNDUP(+CondimentChart!$W124*CondimentGuide!I$127,1),ROUNDUP(+CondimentChart!$W124*CondimentGuide!I$127,1)-ROUNDUP(+CondimentChart!$W124*CondimentGuide!K$127,1))) ->  | M124: =IF($B124=" ","",ROUNDUP(+CondimentChart!$W124*CondimentGuide!M$127,1)) ->  | O124: =IF($B124=" ","",ROUNDUP(+CondimentChart!$W124*CondimentGuide!O$127,1)) -> 
A125: 120 | B125: =+CondimentChart!B125 ->  | C125: =IF(B125=" ","",+GPMIX!HM$13) ->  | E125: =IF($B125=" ","",ROUNDUP(+CondimentChart!$W125*CondimentGuide!E$127,1)) ->  | I125: =IF($B125=" ","",IF(K125="",ROUNDUP(+CondimentChart!$W125*CondimentGuide!I$127,1),ROUNDUP(+CondimentChart!$W125*CondimentGuide!I$127,1)-ROUNDUP(+CondimentChart!$W125*CondimentGuide!K$127,1))) ->  | M125: =IF($B125=" ","",ROUNDUP(+CondimentChart!$W125*CondimentGuide!M$127,1)) ->  | O125: =IF($B125=" ","",ROUNDUP(+CondimentChart!$W125*CondimentGuide!O$127,1)) -> 
B126: =+CondimentChart!B126 -> 2013-01-10Thu | D126: =CONCATENATE(VLOOKUP(178,LOCATION,WORLD+1,FALSE),"=>") -> Sales Period=> | E126: (1030a-4p) | G126: (11a-4pm) | I126: (4p-8p) | K126: (5p-8p) | M126: (8p-12a) | O126: (12a-6a) | Q126: (2a-6a) | S126: .
D127: =CONCATENATE(VLOOKUP(179,LOCATION,WORLD+1,FALSE),"=>") -> Projected Sales for Period=> | E127: =SUM(SALES!$D$33:$D$54) -> 1710 | G127: =SUM(SALES!$D$35:$D$54) -> 1657 | I127: =SUM(SALES!$D$55:$D$70) -> 1265 | K127: =SUM(SALES!$D$59:$D$70) -> 941 | M127: =+SUM(SALES!$D$71:$D$86) -> 225 | O127: =SUM(SALES!$D$87:$D$106)+SUM(SALES!$D$11:$D$14) -> 0 | Q127: =+SUM(SALES!$D$95:$D$106)+SUM(SALES!$D$11:$D$14) -> 0 | S127: .

Sheet CondimentChart
B1: =VLOOKUP(16,LOCATION,WORLD+1,FALSE) -> Condiment Reference Chart | S1: =+Completion -> 2016-12-14T08:46:22.460 | U1: =+CODE -> THU | W1: =+BKnum -> 54321
B2: =IF(BandBversionYes="Y",btext," ") ->  | E2: =VLOOKUP(125,LOCATION,WORLD+1,FALSE) -> Net Sales | P2: =+version -> v2016.12b | S2: =VLOOKUP(118,LOCATION,WORLD+1,FALSE) -> Date Charts Completed | U2: =VLOOKUP(62,LOCATION,WORLD+1,FALSE) -> Day of the Week | W2: =VLOOKUP(63,LOCATION,WORLD+1,FALSE) -> BK Number
B3: =CONCATENATE(E$136," (",G$136,"), ",E$137," (",G$137,"), ",E$138," (",G$138,"), ",E$139," (",G$139,"), ",E$140," (",G$140,"), ",E$141," (",G$141,")") -> 9a-11a (162), 11a-3p (1033), 3p-5p (948), 5p-8p (941), 8p-12a (225), 12a-6a (0)
B4: hide row | D4: 2 | E4: 3 | F4: 4 | G4: 5 | H4: 6 | I4: 7 | J4: 8 | K4: 9 | L4: 10 | M4: 11 | N4: 12 | O4: 13 | P4: 14 | Q4: 15 | R4: 16 | S4: 17 | T4: 18 | U4: 19 | V4: 20
C5: =+base -> 100 | D5: =+base*D4 -> 200 | E5: 300 | F5: 400 | G5: 500 | H5: 600 | I5: 700 | J5: 800 | K5: 900 | L5: 1000 | M5: 1100 | N5: 1200 | O5: 1300 | P5: 1400 | Q5: 1500 | R5: 1600 | S5: 1700 | T5: 1800 | U5: 1900 | V5: 2000 | W5: =VLOOKUP(166,LOCATION,WORLD+1,FALSE) -> S.F.
A6: 1 | B6: =IF(+MIXSORT!BQ4=""," ",+MIXSORT!BQ4) -> MAYONNAISE-CLASSIC, BULK | C6: =IF($B6=" "," ",+$W6*C$5) -> 0.2298266602 | D6: =IF($B6=" "," ",+$W6*D$5) -> 0.4596533203 | E6: 0.6894799805 | F6: 0.9193066406 | G6: 1.149133301 | H6: 1.378959961 | I6: 1.608786621 | J6: 1.838613281 | K6: 2.068439941 | L6: 2.298266602 | M6: 2.528093262 | N6: 2.757919922 | O6: 2.987746582 | P6: 3.217573242 | Q6: 3.447399902 | R6: 3.677226562 | S6: 3.907053223 | T6: 4.136879883 | U6: 4.366706543 | V6: 4.596533203 | W6: =IF(B6=" "," ",MIXSORT!BU4) -> 0.002298266602
A7: 2 | B7: =IF(+MIXSORT!BQ5=""," ",+MIXSORT!BQ5) -> LETTUCE-ICEBERG, WHOLE HEAD | C7: 0.9193261719 | D7: 1.838652344 | E7: 2.757978516 | F7: 3.677304687 | G7: 4.596630859 | H7: 5.515957031 | I7: 6.435283203 | J7: 7.354609375 | K7: 8.273935547 | L7: 9.193261719 | M7: 10.11258789 | N7: 11.03191406 | O7: 11.95124023 | P7: 12.87056641 | Q7: 13.78989258 | R7: 14.70921875 | S7: 15.62854492 | T7: 16.54787109 | U7: 17.46719727 | V7: 18.38652344 | W7: =IF(B7=" "," ",MIXSORT!BU5) -> 0.009193261719
A8: 3 | B8: =IF(+MIXSORT!BQ6=""," ",+MIXSORT!BQ6) -> TOMATOES-WHOLE, FRESH, RED LEVEL 5 (6x7) BK | C8: 0 | D8: 0 | E8: 0 | F8: 0 | G8: 0 | H8: 0 | I8: 0 | J8: 0 | K8: 0 | L8: 0 | M8: 0 | N8: 0 | O8: 0 | P8: 0 | Q8: 0 | R8: 0 | S8: 0 | T8: 0 | U8: 0 | V8: 0 | W8: =IF(B8=" "," ",MIXSORT!BU6) -> 0
A9: 4 | B9: =IF(+MIXSORT!BQ7=""," ",+MIXSORT!BQ7) -> PICKLES-DILL, SLICED, PAIL | C9: 0.2222826087 | D9: 0.4445652174 | E9: 0.6668478261 | F9: 0.8891304348 | G9: 1.111413043 | H9: 1.333695652 | I9: 1.555978261 | J9: 1.77826087 | K9: 2.000543478 | L9: 2.222826087 | M9: 2.445108696 | N9: 2.667391304 | O9: 2.889673913 | P9: 3.111956522 | Q9: 3.33423913 | R9: 3.556521739 | S9: 3.778804348 | T9: 4.001086957 | U9: 4.223369565 | V9: 4.445652174 | W9: =IF(B9=" "," ",MIXSORT!BU7) -> 0.002222826087
A10: 5 | B10: =IF(+MIXSORT!BQ8=""," ",+MIXSORT!BQ8) -> KETCHUP-BAG IN BOX, BK/HEINZ | C10: 0.798671875 | D10: 1.59734375 | E10: 2.396015625 | F10: 3.1946875 | G10: 3.993359375 | H10: 4.79203125 | I10: 5.590703125 | J10: 6.389375 | K10: 7.188046875 | L10: 7.98671875 | M10: 8.785390625 | N10: 9.5840625 | O10: 10.38273438 | P10: 11.18140625 | Q10: 11.98007813 | R10: 12.77875 | S10: 13.57742188 | T10: 14.37609375 | U10: 15.17476562 | V10: 15.9734375 | W10: =IF(B10=" "," ",MIXSORT!BU8) -> 0.00798671875
A11: 6 | B11: =IF(+MIXSORT!BQ9=""," ",+MIXSORT!BQ9) -> ONIONS-SPANISH, FRESH, WHOLE | C11: 0.2887239583 | D11: 0.5774479167 | E11: 0.866171875 | F11: 1.154895833 | G11: 1.443619792 | H11: 1.73234375 | I11: 2.021067708 | J11: 2.309791667 | K11: 2.598515625 | L11: 2.887239583 | M11: 3.175963542 | N11: 3.4646875 | O11: 3.753411458 | P11: 4.042135417 | Q11: 4.330859375 | R11: 4.619583333 | S11: 4.908307292 | T11: 5.19703125 | U11: 5.485755208 | V11: 5.774479167 | W11: =IF(B11=" "," ",MIXSORT!BU9) -> 0.002887239583
A12: 7 | B12: =IF(+MIXSORT!BQ10=""," ",+MIXSORT!BQ10) -> MUSTARD-BULK, BK | C12: 0 | D12: 0 | E12: 0 | F12: 0 | G12: 0 | H12: 0 | I12: 0 | J12: 0 | K12: 0 | L12: 0 | M12: 0 | N12: 0 | O12: 0 | P12: 0 | Q12: 0 | R12: 0 | S12: 0 | T12: 0 | U12: 0 | V12: 0 | W12: =IF(B12=" "," ",MIXSORT!BU10) -> 0
A13: 8 | B13: =IF(+MIXSORT!BQ11=""," ",+MIXSORT!BQ11) -> BACON-THICK SLICED, RAW, REFRIGERATED | C13: 0 | D13: 0 | E13: 0 | F13: 0 | G13: 0 | H13: 0 | I13: 0 | J13: 0 | K13: 0 | L13: 0 | M13: 0 | N13: 0 | O13: 0 | P13: 0 | Q13: 0 | R13: 0 | S13: 0 | T13: 0 | U13: 0 | V13: 0 | W13: =IF(B13=" "," ",MIXSORT!BU11) -> 0
A14: 9 | B14: =IF(+MIXSORT!BQ12=""," ",+MIXSORT!BQ12) -> SAUCE-BBQ, HOT & SPICY, SWEET BABY RAY'S | C14: 0.105078125 | D14: 0.21015625 | E14: 0.315234375 | F14: 0.4203125 | G14: 0.525390625 | H14: 0.63046875 | I14: 0.735546875 | J14: 0.840625 | K14: 0.945703125 | L14: 1.05078125 | M14: 1.155859375 | N14: 1.2609375 | O14: 1.366015625 | P14: 1.47109375 | Q14: 1.576171875 | R14: 1.68125 | S14: 1.786328125 | T14: 1.89140625 | U14: 1.996484375 | V14: 2.1015625 | W14: =IF(B14=" "," ",MIXSORT!BU12) -> 0.00105078125
A15: 10 | B15: =IF(+MIXSORT!BQ13=""," ",+MIXSORT!BQ13) -> SAUCE-BIG KING, BK | C15: 0 | D15: 0 | E15: 0 | F15: 0 | G15: 0 | H15: 0 | I15: 0 | J15: 0 | K15: 0 | L15: 0 | M15: 0 | N15: 0 | O15: 0 | P15: 0 | Q15: 0 | R15: 0 | S15: 0 | T15: 0 | U15: 0 | V15: 0 | W15: =IF(B15=" "," ",MIXSORT!BU13) -> 0
A16: 11 | B16: =IF(+MIXSORT!BQ14=""," ",+MIXSORT!BQ14) -> CHEESE-BLUE, CRUMBLED (8 OZ) BUTTERMILK BLUE | C16: 0 | D16: 0 | E16: 0 | F16: 0 | G16: 0 | H16: 0 | I16: 0 | J16: 0 | K16: 0 | L16: 0 | M16: 0 | N16: 0 | O16: 0 | P16: 0 | Q16: 0 | R16: 0 | S16: 0 | T16: 0 | U16: 0 | V16: 0 | W16: =IF(B16=" "," ",MIXSORT!BU14) -> 0
A17: 12 | B17: =IF(+MIXSORT!BQ15=""," ",+MIXSORT!BQ15) -> SAUCE-STEAK, THICK & HEARTY, A.1. | C17: 0 | D17: 0 | E17: 0 | F17: 0 | G17: 0 | H17: 0 | I17: 0 | J17: 0 | K17: 0 | L17: 0 | M17: 0 | N17: 0 | O17: 0 | P17: 0 | Q17: 0 | R17: 0 | S17: 0 | T17: 0 | U17: 0 | V17: 0 | W17: =IF(B17=" "," ",MIXSORT!BU15) -> 0
A18: 13 | B18: =IF(+MIXSORT!BQ16=""," ",+MIXSORT!BQ16) -> SAUCE-MUSHROOM, MONTEREY INTERNATIONAL | C18: 0 | D18: 0 | E18: 0 | F18: 0 | G18: 0 | H18: 0 | I18: 0 | J18: 0 | K18: 0 | L18: 0 | M18: 0 | N18: 0 | O18: 0 | P18: 0 | Q18: 0 | R18: 0 | S18: 0 | T18: 0 | U18: 0 | V18: 0 | W18: =IF(B18=" "," ",MIXSORT!BU16) -> 0
A19: 14 | B19: =IF(+MIXSORT!BQ17=""," ",+MIXSORT!BQ17) -> PEPPERS-JALAPENO, SLICED, HAUSBECK | C19: 0 | D19: 0 | E19: 0 | F19: 0 | G19: 0 | H19: 0 | I19: 0 | J19: 0 | K19: 0 | L19: =IF($B19=" "," ",+$W19*L$5) -> 0 | M19: 0 | N19: 0 | O19: 0 | P19: 0 | Q19: 0 | R19: 0 | S19: 0 | T19: 0 | U19: 0 | V19: 0 | W19: =IF(B19=" "," ",MIXSORT!BU17) -> 0
A20: 15 | B20: =IF(+MIXSORT!BQ18=""," ",+MIXSORT!BQ18) -> LETTUCE-ROMAINE, CUT, 1.5" | C20: 0.029296875 | D20: =IF($B20=" "," ",+$W20*D$5) -> 0.05859375 | E20: 0.087890625 | F20: 0.1171875 | G20: 0.146484375 | H20: 0.17578125 | I20: 0.205078125 | J20: 0.234375 | K20: 0.263671875 | L20: 0.29296875 | M20: 0.322265625 | N20: 0.3515625 | O20: 0.380859375 | P20: 0.41015625 | Q20: 0.439453125 | R20: 0.46875 | S20: =IF($B20=" "," ",+$W20*S$5) -> 0.498046875 | T20: 0.52734375 | U20: 0.556640625 | V20: 0.5859375 | W20: =IF(B20=" "," ",MIXSORT!BU18) -> 0.00029296875
A21: 16 | B21: =IF(+MIXSORT!BQ19=""," ",+MIXSORT!BQ19) -> GRAVY-SAUSAGE, ZERO TRANS FAT | C21: 17.22371968 | D21: 34.44743935 | E21: 51.67115903 | F21: 68.89487871 | G21: 86.11859838 | H21: 103.3423181 | I21: 120.5660377 | J21: 137.7897574 | K21: 155.0134771 | L21: 172.2371968 | M21: 189.4609164 | N21: 206.6846361 | O21: 223.9083558 | P21: 241.1320755 | Q21: 258.3557951 | R21: 275.5795148 | S21: 292.8032345 | T21: 310.0269542 | U21: 327.2506739 | V21: 344.4743935 | W21: =IF(B21=" "," ",MIXSORT!BU19) -> 0.1722371968
A22: 17 | B22: =IF(+MIXSORT!BQ20=""," ",+MIXSORT!BQ20) -> LETTUCE-SPRING MIX | C22: 0 | D22: 0 | E22: 0 | F22: 0 | G22: 0 | H22: 0 | I22: 0 | J22: 0 | K22: 0 | L22: 0 | M22: 0 | N22: 0 | O22: 0 | P22: 0 | Q22: 0 | R22: 0 | S22: 0 | T22: 0 | U22: 0 | V22: 0 | W22: =IF(B22=" "," ",MIXSORT!BU20) -> 0
A23: 18 | B23: =IF(+MIXSORT!BQ21=""," ",+MIXSORT!BQ21) -> SMOOTHIE MIX-STRAWBERRY BANANA ARTIFICIALLY FLAVORED, CONCENTRATED, FROZEN, BK, | C23: 0.00263671875 | D23: 0.0052734375 | E23: 0.00791015625 | F23: 0.010546875 | G23: 0.01318359375 | H23: 0.0158203125 | I23: 0.01845703125 | J23: 0.02109375 | K23: 0.02373046875 | L23: 0.0263671875 | M23: 0.02900390625 | N23: 0.031640625 | O23: 0.03427734375 | P23: 0.0369140625 | Q23: 0.03955078125 | R23: 0.0421875 | S23: 0.04482421875 | T23: 0.0474609375 | U23: 0.05009765625 | V23: 0.052734375 | W23: =IF(B23=" "," ",MIXSORT!BU21) -> 2.63671875e-05
A24: 19 | B24: =IF(+MIXSORT!BQ22=""," ",+MIXSORT!BQ22) -> TOPPING-STRAWBERRY, FROZEN (32 OZ) | C24: 0.001279296875 | D24: 0.00255859375 | E24: 0.003837890625 | F24: 0.0051171875 | G24: 0.006396484375 | H24: 0.00767578125 | I24: 0.008955078125 | J24: 0.010234375 | K24: 0.01151367188 | L24: 0.01279296875 | M24: 0.01407226563 | N24: 0.0153515625 | O24: 0.01663085938 | P24: 0.01791015625 | Q24: 0.01918945313 | R24: 0.02046875 | S24: 0.02174804687 | T24: 0.02302734375 | U24: 0.02430664063 | V24: 0.0255859375 | W24: =IF(B24=" "," ",MIXSORT!BU22) -> 1.279296875e-05
A25: 20 | B25: =IF(+MIXSORT!BQ23=""," ",+MIXSORT!BQ23) -> SMOOTHIE MIX-TROPICAL MANGO ARTIFICIALLY FLAVORED, CONCENTRATED, FROZEN, BK, 64 | C25: 0 | D25: 0 | E25: 0 | F25: 0 | G25: 0 | H25: 0 | I25: 0 | J25: 0 | K25: 0 | L25: 0 | M25: 0 | N25: 0 | O25: 0 | P25: 0 | Q25: 0 | R25: 0 | S25: 0 | T25: 0 | U25: 0 | V25: 0 | W25: =IF(B25=" "," ",MIXSORT!BU23) -> 0
A26: 21 | B26: =IF(+MIXSORT!BQ24=""," ",+MIXSORT!BQ24) -> MANGO-PIECES, FROZEN, BK | C26: 0 | D26: 0 | E26: 0 | F26: 0 | G26: 0 | H26: 0 | I26: 0 | J26: 0 | K26: 0 | L26: 0 | M26: 0 | N26: 0 | O26: 0 | P26: 0 | Q26: 0 | R26: 0 | S26: 0 | T26: 0 | U26: 0 | V26: 0 | W26: =IF(B26=" "," ",MIXSORT!BU24) -> 0
A27: 22 | B27: =IF(+MIXSORT!BQ25=""," ",+MIXSORT!BQ25) -> SAUCE-MARINARA (BULK) | C27: 0.005859375 | D27: 0.01171875 | E27: 0.017578125 | F27: 0.0234375 | G27: 0.029296875 | H27: 0.03515625 | I27: 0.041015625 | J27: 0.046875 | K27: 0.052734375 | L27: 0.05859375 | M27: 0.064453125 | N27: 0.0703125 | O27: 0.076171875 | P27: 0.08203125 | Q27: 0.087890625 | R27: 0.09375 | S27: 0.099609375 | T27: 0.10546875 | U27: 0.111328125 | V27: 0.1171875 | W27: =IF(B27=" "," ",MIXSORT!BU25) -> 5.859375e-05
A28: 23 | B28: =IF(+MIXSORT!BQ26=""," ",+MIXSORT!BQ26) -> FRAPPE-MIX, MOCHA, FROZEN BLENDED BASE, BK | C28: 0 | D28: 0 | E28: 0 | F28: 0 | G28: 0 | H28: 0 | I28: 0 | J28: 0 | K28: 0 | L28: 0 | M28: 0 | N28: 0 | O28: 0 | P28: 0 | Q28: 0 | R28: 0 | S28: 0 | T28: 0 | U28: 0 | V28: 0 | W28: =IF(B28=" "," ",MIXSORT!BU26) -> 0
A29: 24 | B29: =IF(+MIXSORT!BQ27=""," ",+MIXSORT!BQ27) -> FRAPPE-MIX, CARAMEL, FROZEN BLENDED BASE, BK | C29: 0.312850042 | D29: 0.625700084 | E29: 0.938550126 | F29: 1.251400168 | G29: 1.56425021 | H29: 1.877100252 | I29: 2.189950294 | J29: 2.502800336 | K29: 2.815650378 | L29: 3.12850042 | M29: 3.441350462 | N29: 3.754200504 | O29: 4.067050546 | P29: 4.379900588 | Q29: 4.69275063 | R29: 5.005600672 | S29: 5.318450714 | T29: 5.631300756 | U29: 5.944150798 | V29: 6.25700084 | W29: =IF(B29=" "," ",MIXSORT!BU27) -> 0.00312850042
A30: 25 | B30: =IF(+MIXSORT!BQ28=""," ",+MIXSORT!BQ28) -> SAUCE-COLESLAW | C30: 0.1953125 | D30: 0.390625 | E30: 0.5859375 | F30: 0.78125 | G30: 0.9765625 | H30: 1.171875 | I30: 1.3671875 | J30: 1.5625 | K30: 1.7578125 | L30: 1.953125 | M30: 2.1484375 | N30: 2.34375 | O30: 2.5390625 | P30: 2.734375 | Q30: 2.9296875 | R30: 3.125 | S30: 3.3203125 | T30: 3.515625 | U30: 3.7109375 | V30: 3.90625 | W30: =IF(B30=" "," ",MIXSORT!BU28) -> 0.001953125
A31: 26 | B31: =IF(+MIXSORT!BQ29=""," ",+MIXSORT!BQ29) -> BACON-SLICED, PEPPERED, PRECOOKED, THICK SLICE, PATRICK CUDAHY | C31: =IF($B31=" "," ",+$W31*C$5) -> 0 | D31: 0 | E31: 0 | F31: 0 | G31: 0 | H31: 0 | I31: 0 | J31: 0 | K31: 0 | L31: 0 | M31: 0 | N31: 0 | O31: 0 | P31: 0 | Q31: 0 | R31: 0 | S31: 0 | T31: 0 | U31: 0 | V31: 0 | W31: =IF(B31=" "," ",MIXSORT!BU29) -> 0
A32: 27 | B32: =IF(+MIXSORT!BQ30=""," ",+MIXSORT!BQ30) -> ONIONS-CHIPOTLE, CRISPY | C32: 0.1953125 | D32: 0.390625 | E32: 0.5859375 | F32: 0.78125 | G32: 0.9765625 | H32: 1.171875 | I32: 1.3671875 | J32: 1.5625 | K32: 1.7578125 | L32: 1.953125 | M32: 2.1484375 | N32: 2.34375 | O32: 2.5390625 | P32: 2.734375 | Q32: 2.9296875 | R32: 3.125 | S32: 3.3203125 | T32: 3.515625 | U32: 3.7109375 | V32: 3.90625 | W32: =IF(B32=" "," ",MIXSORT!BU30) -> 0.001953125
A33: 28 | B33: =IF(+MIXSORT!BQ31=""," ",+MIXSORT!BQ31) -> SAUCE-ANGRY, BK | C33: 0.29296875 | D33: 0.5859375 | E33: 0.87890625 | F33: 1.171875 | G33: 1.46484375 | H33: 1.7578125 | I33: 2.05078125 | J33: 2.34375 | K33: 2.63671875 | L33: 2.9296875 | M33: 3.22265625 | N33: 3.515625 | O33: 3.80859375 | P33: 4.1015625 | Q33: 4.39453125 | R33: 4.6875 | S33: 4.98046875 | T33: 5.2734375 | U33: 5.56640625 | V33: 5.859375 | W33: =IF(B33=" "," ",MIXSORT!BU31) -> 0.0029296875
A34: 29 | B34: =IF(+MIXSORT!BQ32=""," ",+MIXSORT!BQ32) -> SAUCE-CREAMY BASIL, BULK | C34: 0 | D34: 0 | E34: 0 | F34: 0 | G34: 0 | H34: 0 | I34: 0 | J34: 0 | K34: 0 | L34: 0 | M34: 0 | N34: 0 | O34: 0 | P34: 0 | Q34: 0 | R34: 0 | S34: 0 | T34: 0 | U34: 0 | V34: 0 | W34: =IF(B34=" "," ",MIXSORT!BU32) -> 0
A35: 30 | B35: =IF(+MIXSORT!BQ33=""," ",+MIXSORT!BQ33) -> CREAM CHEESE-FROSTING, CINNABON ZT | C35: 0.004667226734 | D35: 0.009334453468 | E35: 0.0140016802 | F35: 0.01866890694 | G35: 0.02333613367 | H35: 0.0280033604 | I35: 0.03267058714 | J35: 0.03733781387 | K35: 0.0420050406 | L35: 0.04667226734 | M35: 0.05133949407 | N35: 0.05600672081 | O35: 0.06067394754 | P35: 0.06534117427 | Q35: 0.07000840101 | R35: 0.07467562774 | S35: 0.07934285448 | T35: 0.08401008121 | U35: 0.08867730794 | V35: 0.09334453468 | W35: =IF(B35=" "," ",MIXSORT!BU33) -> 4.667226734e-05
A36: 31 | B36: =IF(+MIXSORT!BQ34=""," ",+MIXSORT!BQ34) -> CITRUS-CAESAR DRESSING, KEN'S | C36: 0 | D36: 0 | E36: 0 | F36: 0 | G36: 0 | H36: 0 | I36: 0 | J36: 0 | K36: 0 | L36: 0 | M36: 0 | N36: 0 | O36: 0 | P36: 0 | Q36: 0 | R36: 0 | S36: 0 | T36: 0 | U36: 0 | V36: 0 | W36: =IF(B36=" "," ",MIXSORT!BU34) -> 0
A37: 32 | B37: =IF(+MIXSORT!BQ35=""," ",+MIXSORT!BQ35) -> SMOOTHIE MIX-LEMONADE, MINUTE MAID | C37: 0.2265625 | D37: 0.453125 | E37: 0.6796875 | F37: 0.90625 | G37: 1.1328125 | H37: 1.359375 | I37: 1.5859375 | J37: 1.8125 | K37: 2.0390625 | L37: 2.265625 | M37: 2.4921875 | N37: 2.71875 | O37: 2.9453125 | P37: 3.171875 | Q37: 3.3984375 | R37: 3.625 | S37: 3.8515625 | T37: 4.078125 | U37: 4.3046875 | V37: 4.53125 | W37: =IF(B37=" "," ",MIXSORT!BU35) -> 0.002265625
A38: 33 | B38: =IF(+MIXSORT!BQ36=""," ",+MIXSORT!BQ36) -> ANGRY ONIONS: BATTER-ONION PETALS (LAMB WESTON 30408) | C38: 0.5625 | D38: 1.125 | E38: 1.6875 | F38: 2.25 | G38: 2.8125 | H38: 3.375 | I38: 3.9375 | J38: 4.5 | K38: 5.0625 | L38: 5.625 | M38: 6.1875 | N38: 6.75 | O38: 7.3125 | P38: 7.875 | Q38: 8.4375 | R38: 9 | S38: 9.5625 | T38: 10.125 | U38: 10.6875 | V38: 11.25 | W38: =IF(B38=" "," ",MIXSORT!BU36) -> 0.005625
A39: 34 | B39: =IF(+MIXSORT!BQ37=""," ",+MIXSORT!BQ37) -> TOMATOES-GRAPE, FRESH | C39: 0 | D39: 0 | E39: 0 | F39: 0 | G39: 0 | H39: 0 | I39: 0 | J39: 0 | K39: 0 | L39: 0 | M39: 0 | N39: 0 | O39: 0 | P39: 0 | Q39: 0 | R39: 0 | S39: 0 | T39: 0 | U39: 0 | V39: 0 | W39: =IF(B39=" "," ",MIXSORT!BU37) -> 0
A40: 35 | B40: =IF(+MIXSORT!BQ38=""," ",+MIXSORT!BQ38) -> Sauce BBQ Sweet and Tangy | C40: 0 | D40: 0 | E40: 0 | F40: 0 | G40: 0 | H40: 0 | I40: 0 | J40: 0 | K40: 0 | L40: 0 | M40: 0 | N40: 0 | O40: 0 | P40: 0 | Q40: 0 | R40: 0 | S40: 0 | T40: 0 | U40: 0 | V40: 0 | W40: =IF(B40=" "," ",MIXSORT!BU38) -> 0
A41: 36 | B41: =IF(+MIXSORT!BQ39=""," ",+MIXSORT!BQ39) -> SAUCE-TARTAR, BULK, BK | C41: 0 | D41: 0 | E41: 0 | F41: 0 | G41: 0 | H41: 0 | I41: 0 | J41: 0 | K41: 0 | L41: 0 | M41: 0 | N41: 0 | O41: 0 | P41: 0 | Q41: 0 | R41: 0 | S41: 0 | T41: 0 | U41: 0 | V41: 0 | W41: =IF(B41=" "," ",MIXSORT!BU39) -> 0
A42: 37 | B42: =IF(+MIXSORT!BQ40=""," ",+MIXSORT!BQ40) -> CRANBERRIES-DRIED | C42: 0 | D42: 0 | E42: 0 | F42: 0 | G42: 0 | H42: 0 | I42: 0 | J42: 0 | K42: 0 | L42: 0 | M42: 0 | N42: 0 | O42: 0 | P42: 0 | Q42: 0 | R42: 0 | S42: 0 | T42: 0 | U42: 0 | V42: 0 | W42: =IF(B42=" "," ",MIXSORT!BU40) -> 0
A43: 38 | B43: =IF(+MIXSORT!BQ41=""," ",+MIXSORT!BQ41) -> CHEESE-PARMESAN, SHAVED | C43: 0 | D43: 0 | E43: 0 | F43: 0 | G43: 0 | H43: 0 | I43: 0 | J43: 0 | K43: 0 | L43: 0 | M43: 0 | N43: 0 | O43: 0 | P43: 0 | Q43: 0 | R43: 0 | S43: 0 | T43: 0 | U43: 0 | V43: 0 | W43: =IF(B43=" "," ",MIXSORT!BU41) -> 0
A44: 39 | B44: =IF(+MIXSORT!BQ42=""," ",+MIXSORT!BQ42) -> CHEESE-THREE CHEESE BLEND, SHREDDED | C44: 0 | D44: 0 | E44: 0 | F44: 0 | G44: 0 | H44: 0 | I44: 0 | J44: 0 | K44: 0 | L44: 0 | M44: 0 | N44: 0 | O44: 0 | P44: 0 | Q44: 0 | R44: 0 | S44: 0 | T44: 0 | U44: 0 | V44: 0 | W44: =IF(B44=" "," ",MIXSORT!BU42) -> 0
A45: 40 | B45: =IF(+MIXSORT!BQ43=""," ",+MIXSORT!BQ43) -> CHEESE-AMERICAN, PROCESS, PASTEURIZED, BK | C45: =IF($B45=" "," ",+$W45*C$5) -> 2.679921591 | D45: 5.359843181 | E45: 8.039764772 | F45: 10.71968636 | G45: 13.39960795 | H45: 16.07952954 | I45: 18.75945113 | J45: 21.43937272 | K45: 24.11929432 | L45: 26.79921591 | M45: 29.4791375 | N45: 32.15905909 | O45: 34.83898068 | P45: 37.51890227 | Q45: 40.19882386 | R45: 42.87874545 | S45: 45.55866704 | T45: 48.23858863 | U45: 50.91851022 | V45: 53.59843181 | W45: =IF(B45=" "," ",MIXSORT!BU43) -> 0.02679921591
A46: 41 | B46: =IF(+MIXSORT!BQ44=""," ",+MIXSORT!BQ44) -> CHEESE-MONTEREY JACK WITH JALAPENO PEPPERS, PROCESSED, PASTEURIZED | C46: 0.1680201624 | D46: 0.3360403248 | E46: 0.5040604873 | F46: 0.6720806497 | G46: 0.8401008121 | H46: 1.008120975 | I46: 1.176141137 | J46: 1.344161299 | K46: 1.512181462 | L46: 1.680201624 | M46: 1.848221787 | N46: 2.016241949 | O46: 2.184262111 | P46: 2.352282274 | Q46: 2.520302436 | R46: 2.688322599 | S46: =IF($B46=" "," ",+$W46*S$5) -> 2.856342761 | T46: 3.024362924 | U46: 3.192383086 | V46: 3.360403248 | W46: =IF(B46=" "," ",MIXSORT!BU44) -> 0.001680201624
A47: 42 | B47: =IF(+MIXSORT!BQ45=""," ",+MIXSORT!BQ45) -> PIE-HERSHEY'S SUNDAE, SLICE, BK | C47: 0 | D47: 0 | E47: 0 | F47: 0 | G47: 0 | H47: 0 | I47: 0 | J47: 0 | K47: 0 | L47: 0 | M47: 0 | N47: 0 | O47: 0 | P47: 0 | Q47: 0 | R47: 0 | S47: 0 | T47: 0 | U47: 0 | V47: 0 | W47: =IF(B47=" "," ",MIXSORT!BU45) -> 0
A48: 43 | B48: =IF(+MIXSORT!BQ46=""," ",+MIXSORT!BQ46) -> TOPPING-OREO® CRUMBLES, SMALL (1 LB) | C48: 0.1151953125 | D48: 0.230390625 | E48: 0.3455859375 | F48: 0.46078125 | G48: 0.5759765625 | H48: 0.691171875 | I48: 0.8063671875 | J48: 0.9215625 | K48: 1.036757812 | L48: 1.151953125 | M48: 1.267148437 | N48: 1.38234375 | O48: 1.497539063 | P48: 1.612734375 | Q48: 1.727929687 | R48: 1.843125 | S48: 1.958320312 | T48: 2.073515625 | U48: 2.188710937 | V48: 2.30390625 | W48: =IF(B48=" "," ",MIXSORT!BU46) -> 0.001151953125
A49: 44 | B49: =IF(+MIXSORT!BQ47=""," ",+MIXSORT!BQ47) -> TOPPING-CARAMEL, BK | C49: 0 | D49: 0 | E49: 0 | F49: 0 | G49: 0 | H49: 0 | I49: 0 | J49: 0 | K49: 0 | L49: 0 | M49: 0 | N49: 0 | O49: 0 | P49: 0 | Q49: 0 | R49: 0 | S49: 0 | T49: 0 | U49: 0 | V49: 0 | W49: =IF(B49=" "," ",MIXSORT!BU47) -> 0
A50: 45 | B50: =IF(+MIXSORT!BQ48=""," ",+MIXSORT!BQ48) -> VEGETABLE MIX-ONIONS, RED PEPPER AND GREEN PEPPER | C50: 0.9770889488 | D50: 1.954177898 | E50: 2.931266846 | F50: 3.908355795 | G50: 4.885444744 | H50: 5.862533693 | I50: 6.839622642 | J50: 7.81671159 | K50: 8.793800539 | L50: 9.770889488 | M50: 10.74797844 | N50: 11.72506739 | O50: 12.70215633 | P50: 13.67924528 | Q50: 14.65633423 | R50: 15.63342318 | S50: 16.61051213 | T50: 17.58760108 | U50: 18.56469003 | V50: 19.54177898 | W50: =IF(B50=" "," ",MIXSORT!BU48) -> 0.009770889488
A51: 46 | B51: =IF(+MIXSORT!BQ49=""," ",+MIXSORT!BQ49) -> BEVERAGE CONCENTRATE-ORANGE FREEZE MIX (2+1), FROZEN, MINUTE MAID | C51: 0 | D51: 0 | E51: 0 | F51: 0 | G51: 0 | H51: 0 | I51: 0 | J51: 0 | K51: 0 | L51: 0 | M51: 0 | N51: 0 | O51: 0 | P51: 0 | Q51: 0 | R51: 0 | S51: 0 | T51: 0 | U51: 0 | V51: 0 | W51: =IF(B51=" "," ",MIXSORT!BU49) -> 0
A52: 47 | B52: =IF(+MIXSORT!BQ50=""," ",+MIXSORT!BQ50) -> PEPPERS-JALAPENO, SLICED, KRUGER FOODS | C52: 0 | D52: 0 | E52: 0 | F52: 0 | G52: 0 | H52: 0 | I52: 0 | J52: 0 | K52: 0 | L52: 0 | M52: 0 | N52: 0 | O52: 0 | P52: 0 | Q52: 0 | R52: 0 | S52: 0 | T52: 0 | U52: 0 | V52: 0 | W52: =IF(B52=" "," ",MIXSORT!BU50) -> 0
A53: 48 | B53: =IF(+MIXSORT!BQ51=""," ",+MIXSORT!BQ51) -> SAUCE- CREAMY SPICY | C53: 0.146875 | D53: 0.29375 | E53: 0.440625 | F53: 0.5875 | G53: 0.734375 | H53: 0.88125 | I53: 1.028125 | J53: 1.175 | K53: 1.321875 | L53: 1.46875 | M53: 1.615625 | N53: 1.7625 | O53: 1.909375 | P53: 2.05625 | Q53: 2.203125 | R53: 2.35 | S53: 2.496875 | T53: 2.64375 | U53: 2.790625 | V53: 2.9375 | W53: =IF(B53=" "," ",MIXSORT!BU51) -> 0.00146875
A54: 49 | B54: =IF(+MIXSORT!BQ52=""," ",+MIXSORT!BQ52) -> SAUCE-CHEESY, CHEDDAR FLAVORED | C54: 0 | D54: 0 | E54: 0 | F54: 0 | G54: 0 | H54: 0 | I54: 0 | J54: 0 | K54: 0 | L54: 0 | M54: 0 | N54: 0 | O54: 0 | P54: 0 | Q54: 0 | R54: 0 | S54: 0 | T54: 0 | U54: 0 | V54: 0 | W54: =IF(B54=" "," ",MIXSORT!BU52) -> 0
A55: 50 | B55: =IF(+MIXSORT!BQ53=""," ",+MIXSORT!BQ53) -> SMOOTHIE MIX-STRAWBERRY BANANA ARTIFICIALLY FLAVORED, CONCENTRATED, FROZEN, ALL | C55: 0.04419280314 | D55: 0.08838560627 | E55: 0.1325784094 | F55: 0.1767712125 | G55: 0.2209640157 | H55: 0.2651568188 | I55: 0.309349622 | J55: 0.3535424251 | K55: 0.3977352282 | L55: 0.4419280314 | M55: 0.4861208345 | N55: 0.5303136376 | O55: 0.5745064408 | P55: 0.6186992439 | Q55: 0.662892047 | R55: 0.7070848502 | S55: 0.7512776533 | T55: 0.7954704565 | U55: 0.8396632596 | V55: 0.8838560627 | W55: =IF(B55=" "," ",MIXSORT!BU53) -> 0.0004419280314
A56: 51 | B56: =IF(+MIXSORT!BQ54=""," ",+MIXSORT!BQ54) -> SMOOTHIE MIX-TROPICAL MANGO ARTIFICIAL FLAVORED, FROZEN CONCENTRATED, ALL IN ONE | C56: 0 | D56: 0 | E56: 0 | F56: 0 | G56: 0 | H56: 0 | I56: 0 | J56: 0 | K56: 0 | L56: 0 | M56: 0 | N56: 0 | O56: 0 | P56: 0 | Q56: 0 | R56: 0 | S56: 0 | T56: 0 | U56: 0 | V56: 0 | W56: =IF(B56=" "," ",MIXSORT!BU54) -> 0
A57: 52 | B57: =IF(+MIXSORT!BQ55=""," ",+MIXSORT!BQ55) -> PEPPERS-JALAPENO, WHOLE | C57: 0 | D57: 0 | E57: 0 | F57: 0 | G57: 0 | H57: 0 | I57: 0 | J57: 0 | K57: 0 | L57: 0 | M57: 0 | N57: 0 | O57: 0 | P57: 0 | Q57: 0 | R57: 0 | S57: 0 | T57: 0 | U57: 0 | V57: 0 | W57: =IF(B57=" "," ",MIXSORT!BU55) -> 0
A58: 53 | B58: =IF(+MIXSORT!BQ56=""," ",+MIXSORT!BQ56) -> CHEESE- AMERICAN CHEDDAR AND LOW-MOISTURE PART-SKIM MOZARELLA, SHREDDED, PROCESS | C58: 0 | D58: 0 | E58: 0 | F58: 0 | G58: 0 | H58: 0 | I58: 0 | J58: 0 | K58: 0 | L58: 0 | M58: 0 | N58: 0 | O58: 0 | P58: 0 | Q58: 0 | R58: 0 | S58: 0 | T58: 0 | U58: 0 | V58: 0 | W58: =IF(B58=" "," ",MIXSORT!BU56) -> 0
A59: 54 | B59: =IF(+MIXSORT!BQ57=""," ",+MIXSORT!BQ57) -> CHEESE-MOZZARELLA, LOW-MOISTURE, PART-SKIM | C59: 0.00146484375 | D59: 0.0029296875 | E59: 0.00439453125 | F59: 0.005859375 | G59: 0.00732421875 | H59: 0.0087890625 | I59: 0.01025390625 | J59: 0.01171875 | K59: 0.01318359375 | L59: 0.0146484375 | M59: 0.01611328125 | N59: 0.017578125 | O59: 0.01904296875 | P59: 0.0205078125 | Q59: 0.02197265625 | R59: 0.0234375 | S59: 0.02490234375 | T59: 0.0263671875 | U59: 0.02783203125 | V59: 0.029296875 | W59: =IF(B59=" "," ",MIXSORT!BU57) -> 1.46484375e-05
A60: 55 | B60: =IF(+MIXSORT!BQ58=""," ",+MIXSORT!BQ58) -> CHEESE-PARMESAN, PROCESS, PASTEURIZED | C60: 0 | D60: 0 | E60: 0 | F60: 0 | G60: 0 | H60: 0 | I60: 0 | J60: 0 | K60: 0 | L60: 0 | M60: 0 | N60: 0 | O60: 0 | P60: 0 | Q60: 0 | R60: =IF($B60=" "," ",+$W60*R$5) -> 0 | S60: 0 | T60: 0 | U60: 0 | V60: 0 | W60: =IF(B60=" "," ",MIXSORT!BU58) -> 0
A61: 56 | B61: =IF(+MIXSORT!BQ59=""," ",+MIXSORT!BQ59) -> CHEESE-STICKS, MOZZARELLA, BREADED | C61: =IF($B61=" "," ",+$W61*C$5) -> 0 | D61: 0 | E61: 0 | F61: 0 | G61: 0 | H61: 0 | I61: 0 | J61: 0 | K61: 0 | L61: 0 | M61: 0 | N61: 0 | O61: 0 | P61: 0 | Q61: 0 | R61: 0 | S61: 0 | T61: 0 | U61: 0 | V61: 0 | W61: =IF(B61=" "," ",MIXSORT!BU59) -> 0
A62: 57 | B62: =IF(+MIXSORT!BQ60=""," ",+MIXSORT!BQ60) -> SAUCE-MARINARA, ITALIAN HERB, BULK | C62: 0.1302083333 | D62: 0.2604166667 | E62: 0.390625 | F62: 0.5208333333 | G62: 0.6510416667 | H62: 0.78125 | I62: 0.9114583333 | J62: 1.041666667 | K62: 1.171875 | L62: 1.302083333 | M62: 1.432291667 | N62: 1.5625 | O62: 1.692708333 | P62: 1.822916667 | Q62: 1.953125 | R62: 2.083333333 | S62: =IF($B62=" "," ",+$W62*S$5) -> 2.213541667 | T62: 2.34375 | U62: 2.473958333 | V62: 2.604166667 | W62: =IF(B62=" "," ",MIXSORT!BU60) -> 0.001302083333
A63: 58 | B63: =IF(+MIXSORT!BQ61=""," ",+MIXSORT!BQ61) -> PIE-DUTCH APPLE, SLICE, ECLIPSE, BK | C63: 2.80033604 | D63: 5.600672081 | E63: 8.401008121 | F63: 11.20134416 | G63: 14.0016802 | H63: 16.80201624 | I63: 19.60235228 | J63: 22.40268832 | K63: 25.20302436 | L63: 28.0033604 | M63: 30.80369644 | N63: 33.60403248 | O63: 36.40436852 | P63: 39.20470456 | Q63: 42.0050406 | R63: 44.80537665 | S63: 47.60571269 | T63: 50.40604873 | U63: 53.20638477 | V63: 56.00672081 | W63: =IF(B63=" "," ",MIXSORT!BU61) -> 0.0280033604
A64: 59 | B64: =IF(+MIXSORT!BQ62=""," ",+MIXSORT!BQ62) -> COOKIE DOUGH-BROWNIE, DOUBLE CHOCOLATE, FROZEN, OTIS SPUNKMEYER | C64: 0.02333613367 | D64: 0.04667226734 | E64: 0.07000840101 | F64: 0.09334453468 | G64: 0.1166806683 | H64: 0.140016802 | I64: 0.1633529357 | J64: 0.1866890694 | K64: 0.210025203 | L64: 0.2333613367 | M64: 0.2566974704 | N64: 0.280033604 | O64: 0.3033697377 | P64: 0.3267058714 | Q64: 0.350042005 | R64: 0.3733781387 | S64: 0.3967142724 | T64: 0.420050406 | U64: 0.4433865397 | V64: 0.4667226734 | W64: =IF(B64=" "," ",MIXSORT!BU62) -> 0.0002333613367
A65: 60 | B65: =IF(+MIXSORT!BQ63=""," ",+MIXSORT!BQ63) -> COOKIE DOUGH-BUTTER SUGAR COOKIE, FROZEN, OTIS SPUNKMEYER | C65: 0.002333613367 | D65: 0.004667226734 | E65: 0.007000840101 | F65: 0.009334453468 | G65: 0.01166806683 | H65: 0.0140016802 | I65: 0.01633529357 | J65: 0.01866890694 | K65: 0.0210025203 | L65: 0.02333613367 | M65: 0.02566974704 | N65: 0.0280033604 | O65: 0.03033697377 | P65: 0.03267058714 | Q65: 0.0350042005 | R65: 0.03733781387 | S65: 0.03967142724 | T65: 0.0420050406 | U65: 0.04433865397 | V65: 0.04667226734 | W65: =IF(B65=" "," ",MIXSORT!BU63) -> 2.333613367e-05
A66: 61 | B66: =IF(+MIXSORT!BQ64=""," ",+MIXSORT!BQ64) -> COOKIE DOUGH-CARNIVAL COOKIE, FROZEN, OTIS SPUNKMEYER | C66: 0 | D66: 0 | E66: 0 | F66: 0 | G66: 0 | H66: 0 | I66: 0 | J66: 0 | K66: 0 | L66: 0 | M66: 0 | N66: 0 | O66: 0 | P66: 0 | Q66: 0 | R66: 0 | S66: 0 | T66: 0 | U66: 0 | V66: 0 | W66: =IF(B66=" "," ",MIXSORT!BU64) -> 0
A67: 62 | B67: =IF(+MIXSORT!BQ65=""," ",+MIXSORT!BQ65) -> COOKIE DOUGH-CHOCOLATE CHIP, FROZEN, OTIS SPUNKMEYER | C67: 0.2426957902 | D67: 0.4853915803 | E67: 0.7280873705 | F67: 0.9707831606 | G67: 1.213478951 | H67: 1.456174741 | I67: 1.698870531 | J67: 1.941566321 | K67: 2.184262111 | L67: 2.426957902 | M67: 2.669653692 | N67: 2.912349482 | O67: 3.155045272 | P67: 3.397741062 | Q67: 3.640436852 | R67: 3.883132643 | S67: 4.125828433 | T67: 4.368524223 | U67: 4.611220013 | V67: 4.853915803 | W67: =IF(B67=" "," ",MIXSORT!BU65) -> 0.002426957902
A68: 63 | B68: =IF(+MIXSORT!BQ66=""," ",+MIXSORT!BQ66) -> COOKIE DOUGH-GINGER SPICE, FROZEN, OTIS SPUNKMEYER | C68: 0 | D68: 0 | E68: 0 | F68: 0 | G68: 0 | H68: 0 | I68: 0 | J68: 0 | K68: 0 | L68: 0 | M68: 0 | N68: 0 | O68: 0 | P68: 0 | Q68: 0 | R68: 0 | S68: 0 | T68: 0 | U68: 0 | V68: 0 | W68: =IF(B68=" "," ",MIXSORT!BU66) -> 0
A69: 64 | B69: =IF(+MIXSORT!BQ67=""," ",+MIXSORT!BQ67) -> COOKIE DOUGH-OATMEAL RAISIN, OTIS SPUNKMEYER | C69: 0 | D69: 0 | E69: 0 | F69: 0 | G69: 0 | H69: 0 | I69: 0 | J69: 0 | K69: 0 | L69: 0 | M69: 0 | N69: 0 | O69: 0 | P69: 0 | Q69: 0 | R69: 0 | S69: 0 | T69: 0 | U69: 0 | V69: 0 | W69: =IF(B69=" "," ",MIXSORT!BU67) -> 0
A70: 65 | B70: =IF(+MIXSORT!BQ68=""," ",+MIXSORT!BQ68) -> COOKIE DOUGH-RED, WHITE & BLUE, FROZEN, OTIS SPUNKMEYER | C70: 0.02333613367 | D70: 0.04667226734 | E70: 0.07000840101 | F70: 0.09334453468 | G70: 0.1166806683 | H70: 0.140016802 | I70: 0.1633529357 | J70: 0.1866890694 | K70: 0.210025203 | L70: 0.2333613367 | M70: 0.2566974704 | N70: 0.280033604 | O70: 0.3033697377 | P70: 0.3267058714 | Q70: 0.350042005 | R70: 0.3733781387 | S70: 0.3967142724 | T70: 0.420050406 | U70: 0.4433865397 | V70: 0.4667226734 | W70: =IF(B70=" "," ",MIXSORT!BU68) -> 0.0002333613367
A71: 66 | B71: =IF(+MIXSORT!BQ69=""," ",+MIXSORT!BQ69) -> GRITS-QUICK, ENRICHED | C71: 0.1796945193 | D71: 0.3593890386 | E71: 0.539083558 | F71: 0.7187780773 | G71: 0.8984725966 | H71: 1.078167116 | I71: 1.257861635 | J71: 1.437556155 | K71: 1.617250674 | L71: 1.796945193 | M71: 1.976639712 | N71: 2.156334232 | O71: 2.336028751 | P71: 2.51572327 | Q71: 2.69541779 | R71: 2.875112309 | S71: 3.054806828 | T71: 3.234501348 | U71: 3.414195867 | V71: 3.593890386 | W71: =IF(B71=" "," ",MIXSORT!BU69) -> 0.001796945193
A72: 67 | B72: =IF(+MIXSORT!BQ70=""," ",+MIXSORT!BQ70) -> LETTUCE-ICEBERG, 1.0" | C72: 0.6513931672 | D72: 1.302786334 | E72: 1.954179502 | F72: 2.605572669 | G72: 3.256965836 | H72: 3.908359003 | I72: 4.55975217 | J72: 5.211145337 | K72: 5.862538505 | L72: 6.513931672 | M72: 7.165324839 | N72: 7.816718006 | O72: 8.468111173 | P72: 9.119504341 | Q72: 9.770897508 | R72: 10.42229067 | S72: 11.07368384 | T72: 11.72507701 | U72: 12.37647018 | V72: 13.02786334 | W72: =IF(B72=" "," ",MIXSORT!BU70) -> 0.006513931672
A73: 68 | B73: =IF(+MIXSORT!BQ71=""," ",+MIXSORT!BQ71) -> BACON-THICK SLICED, FULLY COOKED, REFRIGERATED | C73: 0 | D73: 0 | E73: 0 | F73: 0 | G73: 0 | H73: 0 | I73: 0 | J73: 0 | K73: 0 | L73: 0 | M73: 0 | N73: 0 | O73: 0 | P73: 0 | Q73: 0 | R73: 0 | S73: 0 | T73: 0 | U73: 0 | V73: 0 | W73: =IF(B73=" "," ",MIXSORT!BU71) -> 0
A74: 69 | B74: =IF(+MIXSORT!BQ72=""," ",+MIXSORT!BQ72) -> BEVERAGE SYRUP-MANGO FLAVORED, MONIN | C74: 0.01422045645 | D74: 0.02844091291 | E74: 0.04266136936 | F74: 0.05688182582 | G74: 0.07110228227 | H74: 0.08532273873 | I74: 0.09954319518 | J74: 0.1137636516 | K74: 0.1279841081 | L74: 0.1422045645 | M74: 0.156425021 | N74: 0.1706454775 | O74: 0.1848659339 | P74: 0.1990863904 | Q74: 0.2133068468 | R74: 0.2275273033 | S74: 0.2417477597 | T74: 0.2559682162 | U74: 0.2701886726 | V74: 0.2844091291 | W74: =IF(B74=" "," ",MIXSORT!BU72) -> 0.0001422045645
A75: 70 | B75: =IF(+MIXSORT!BQ73=""," ",+MIXSORT!BQ73) -> CHEESE-SLICES, MOZZARELLA, PROCESSED | C75: 0 | D75: 0 | E75: 0 | F75: 0 | G75: 0 | H75: 0 | I75: 0 | J75: 0 | K75: 0 | L75: 0 | M75: 0 | N75: 0 | O75: 0 | P75: 0 | Q75: 0 | R75: 0 | S75: 0 | T75: 0 | U75: 0 | V75: 0 | W75: =IF(B75=" "," ",MIXSORT!BU73) -> 0
A76: 71 | B76: =IF(+MIXSORT!BQ74=""," ",+MIXSORT!BQ74) -> CINNAMON-ROLL (2.8 OZ), FROZEN, OTIS SPUNKMEYER | C76: 0 | D76: 0 | E76: 0 | F76: 0 | G76: 0 | H76: 0 | I76: 0 | J76: 0 | K76: 0 | L76: 0 | M76: 0 | N76: 0 | O76: 0 | P76: 0 | Q76: 0 | R76: =IF($B76=" "," ",+$W76*R$5) -> 0 | S76: 0 | T76: 0 | U76: 0 | V76: 0 | W76: =IF(B76=" "," ",MIXSORT!BU74) -> 0
A77: 72 | B77: =IF(+MIXSORT!BQ75=""," ",+MIXSORT!BQ75) -> PEPPERS-JALAPENO, SLICED, MR. CHIPS | C77: 0 | D77: 0 | E77: 0 | F77: 0 | G77: 0 | H77: 0 | I77: 0 | J77: 0 | K77: 0 | L77: 0 | M77: 0 | N77: 0 | O77: 0 | P77: 0 | Q77: 0 | R77: 0 | S77: 0 | T77: 0 | U77: 0 | V77: 0 | W77: =IF(B77=" "," ",MIXSORT!BU75) -> 0
A78: 73 | B78: =IF(+MIXSORT!BQ76=""," ",+MIXSORT!BQ76) -> PIE-REESES, SLICE | C78: 0.280033604 | D78: 0.5600672081 | E78: 0.8401008121 | F78: 1.120134416 | G78: 1.40016802 | H78: 1.680201624 | I78: 1.960235228 | J78: 2.240268832 | K78: 2.520302436 | L78: 2.80033604 | M78: 3.080369644 | N78: 3.360403248 | O78: 3.640436852 | P78: 3.920470456 | Q78: 4.20050406 | R78: 4.480537665 | S78: =IF($B78=" "," ",+$W78*S$5) -> 4.760571269 | T78: 5.040604873 | U78: 5.320638477 | V78: 5.600672081 | W78: =IF(B78=" "," ",MIXSORT!BU76) -> 0.00280033604
A79: 74 | B79: =IF(+MIXSORT!BQ77=""," ",+MIXSORT!BQ77) -> SHAKE SYRUP-RED VELVET, BK | C79: 0 | D79: 0 | E79: 0 | F79: 0 | G79: 0 | H79: 0 | I79: 0 | J79: 0 | K79: 0 | L79: 0 | M79: 0 | N79: 0 | O79: 0 | P79: 0 | Q79: 0 | R79: 0 | S79: 0 | T79: 0 | U79: 0 | V79: 0 | W79: =IF(B79=" "," ",MIXSORT!BU77) -> 0
A80: 75 | B80: =IF(+MIXSORT!BQ78=""," ",+MIXSORT!BQ78) -> SYRUP-MILK CHOCOLATE FLAVORED (PACK 4/64 OZ), LYONS | C80: 0.000420050406 | D80: 0.0008401008121 | E80: 0.001260151218 | F80: 0.001680201624 | G80: 0.00210025203 | H80: 0.002520302436 | I80: 0.002940352842 | J80: 0.003360403248 | K80: 0.003780453654 | L80: 0.00420050406 | M80: 0.004620554467 | N80: 0.005040604873 | O80: 0.005460655279 | P80: 0.005880705685 | Q80: 0.006300756091 | R80: 0.006720806497 | S80: 0.007140856903 | T80: 0.007560907309 | U80: 0.007980957715 | V80: 0.008401008121 | W80: =IF(B80=" "," ",MIXSORT!BU78) -> 4.20050406e-06
A81: 76 | B81: =IF(+MIXSORT!BQ79=""," ",+MIXSORT!BQ79) -> TOMATOES-WHOLE, FRESH, RED LEVEL 5 (6X6) BK | C81: 0 | D81: 0 | E81: 0 | F81: 0 | G81: 0 | H81: 0 | I81: 0 | J81: 0 | K81: 0 | L81: 0 | M81: 0 | N81: 0 | O81: 0 | P81: 0 | Q81: 0 | R81: 0 | S81: 0 | T81: 0 | U81: 0 | V81: 0 | W81: =IF(B81=" "," ",MIXSORT!BU79) -> 0
A82: 77 | B82: =IF(+MIXSORT!BQ80=""," ",+MIXSORT!BQ80) -> APPLE SAUCE-UNSWEETENED, MOTTS NATURAL | C82: 0.280033604 | D82: 0.5600672081 | E82: 0.8401008121 | F82: 1.120134416 | G82: 1.40016802 | H82: 1.680201624 | I82: 1.960235228 | J82: 2.240268832 | K82: 2.520302436 | L82: 2.80033604 | M82: 3.080369644 | N82: 3.360403248 | O82: 3.640436852 | P82: 3.920470456 | Q82: 4.20050406 | R82: 4.480537665 | S82: 4.760571269 | T82: 5.040604873 | U82: 5.320638477 | V82: 5.600672081 | W82: =IF(B82=" "," ",MIXSORT!BU80) -> 0.00280033604
A83: 78 | B83: =IF(+MIXSORT!BQ81=""," ",+MIXSORT!BQ81) -> JUICE-ORANGE, FROM CONCENTRATE, REFRIGERATED (10 OZ) MINUTE MAID | C83: 0 | D83: 0 | E83: 0 | F83: 0 | G83: 0 | H83: 0 | I83: 0 | J83: 0 | K83: 0 | L83: 0 | M83: 0 | N83: 0 | O83: 0 | P83: 0 | Q83: 0 | R83: 0 | S83: 0 | T83: 0 | U83: 0 | V83: 0 | W83: =IF(B83=" "," ",MIXSORT!BU81) -> 0
A84: 79 | B84: =IF(+MIXSORT!BQ82=""," ",+MIXSORT!BQ82) -> SAUCE-SRIRACHA, BK | C84: 0.01953125 | D84: 0.0390625 | E84: 0.05859375 | F84: 0.078125 | G84: 0.09765625 | H84: 0.1171875 | I84: 0.13671875 | J84: 0.15625 | K84: 0.17578125 | L84: 0.1953125 | M84: 0.21484375 | N84: 0.234375 | O84: 0.25390625 | P84: 0.2734375 | Q84: 0.29296875 | R84: 0.3125 | S84: 0.33203125 | T84: 0.3515625 | U84: 0.37109375 | V84: 0.390625 | W84: =IF(B84=" "," ",MIXSORT!BU82) -> 0.0001953125
A85: 80 | B85: =IF(+MIXSORT!BQ83=""," ",+MIXSORT!BQ83) -> SHAKE SYRUP-PUMPKIN SPICE, BK | C85: 0 | D85: 0 | E85: 0 | F85: 0 | G85: 0 | H85: 0 | I85: 0 | J85: 0 | K85: 0 | L85: 0 | M85: 0 | N85: 0 | O85: 0 | P85: 0 | Q85: 0 | R85: 0 | S85: 0 | T85: 0 | U85: 0 | V85: 0 | W85: =IF(B85=" "," ",MIXSORT!BU83) -> 0
A86: 81 | B86: =IF(+MIXSORT!BQ84=""," ",+MIXSORT!BQ84) -> APPLE SAUCE-UNSWEETENED, MOTTS FRUITSATIONS | C86: 0.280033604 | D86: 0.5600672081 | E86: 0.8401008121 | F86: 1.120134416 | G86: 1.40016802 | H86: 1.680201624 | I86: 1.960235228 | J86: 2.240268832 | K86: 2.520302436 | L86: 2.80033604 | M86: 3.080369644 | N86: 3.360403248 | O86: 3.640436852 | P86: 3.920470456 | Q86: 4.20050406 | R86: 4.480537665 | S86: 4.760571269 | T86: 5.040604873 | U86: 5.320638477 | V86: 5.600672081 | W86: =IF(B86=" "," ",MIXSORT!BU84) -> 0.00280033604
A87: 82 | B87: =IF(+MIXSORT!BQ85=""," ",+MIXSORT!BQ85) -> BACON-THICK SLICED, RAW, REFRIGERATED , BK | C87: 2.433025296 | D87: 4.866050593 | E87: 7.299075889 | F87: 9.732101185 | G87: 12.16512648 | H87: 14.59815178 | I87: 17.03117707 | J87: 19.46420237 | K87: 21.89722767 | L87: 24.33025296 | M87: 26.76327826 | N87: 29.19630356 | O87: 31.62932885 | P87: 34.06235415 | Q87: 36.49537945 | R87: 38.92840474 | S87: 41.36143004 | T87: 43.79445533 | U87: 46.22748063 | V87: 48.66050593 | W87: =IF(B87=" "," ",MIXSORT!BU85) -> 0.02433025296
A88: 83 | B88: =IF(+MIXSORT!BQ86=""," ",+MIXSORT!BQ86) -> CHEESE- CHEDDAR, SHREDDED, NATURAL, PASTEURIZED | C88: 0.26953125 | D88: 0.5390625 | E88: 0.80859375 | F88: 1.078125 | G88: 1.34765625 | H88: 1.6171875 | I88: 1.88671875 | J88: 2.15625 | K88: 2.42578125 | L88: 2.6953125 | M88: 2.96484375 | N88: 3.234375 | O88: 3.50390625 | P88: 3.7734375 | Q88: 4.04296875 | R88: 4.3125 | S88: 4.58203125 | T88: 4.8515625 | U88: 5.12109375 | V88: 5.390625 | W88: =IF(B88=" "," ",MIXSORT!BU86) -> 0.0026953125
A89: 84 | B89: =IF(+MIXSORT!BQ87=""," ",+MIXSORT!BQ87) -> CREAMER-HALF & HALF, UHT, SHELF STABLE, PORTION | C89: 0 | D89: 0 | E89: 0 | F89: 0 | G89: 0 | H89: 0 | I89: 0 | J89: 0 | K89: 0 | L89: 0 | M89: 0 | N89: 0 | O89: 0 | P89: 0 | Q89: 0 | R89: 0 | S89: 0 | T89: 0 | U89: 0 | V89: 0 | W89: =IF(B89=" "," ",MIXSORT!BU87) -> 0
A90: 85 | B90: =IF(+MIXSORT!BQ88=""," ",+MIXSORT!BQ88) -> DRESSING-GOLDEN ITALIAN, PACKET (1.5 OZ), KEN'S | C90: 0 | D90: 0 | E90: 0 | F90: 0 | G90: 0 | H90: 0 | I90: 0 | J90: 0 | K90: 0 | L90: 0 | M90: 0 | N90: 0 | O90: 0 | P90: 0 | Q90: 0 | R90: 0 | S90: 0 | T90: 0 | U90: 0 | V90: 0 | W90: =IF(B90=" "," ",MIXSORT!BU88) -> 0
A91: 86 | B91: =IF(+MIXSORT!BQ89=""," ",+MIXSORT!BQ89) -> HAM-SLICED, REFRIGERATED, BLACK FOREST, BK | C91: 15.13027853 | D91: 30.26055705 | E91: 45.39083558 | F91: 60.52111411 | G91: 75.65139263 | H91: 90.78167116 | I91: 105.9119497 | J91: 121.0422282 | K91: 136.1725067 | L91: 151.3027853 | M91: 166.4330638 | N91: 181.5633423 | O91: 196.6936208 | P91: 211.8238994 | Q91: 226.9541779 | R91: 242.0844564 | S91: 257.214735 | T91: 272.3450135 | U91: 287.475292 | V91: 302.6055705 | W91: =IF(B91=" "," ",MIXSORT!BU89) -> 0.1513027853
A92: 87 | B92: =IF(+MIXSORT!BQ90=""," ",+MIXSORT!BQ90) -> MAYONNAISE-CLASSIC, BULK (2015), BK | C92: 0 | D92: 0 | E92: 0 | F92: 0 | G92: 0 | H92: 0 | I92: 0 | J92: 0 | K92: 0 | L92: 0 | M92: 0 | N92: 0 | O92: 0 | P92: 0 | Q92: =IF($B92=" "," ",+$W92*Q$5) -> 0 | R92: 0 | S92: 0 | T92: 0 | U92: 0 | V92: 0 | W92: =IF(B92=" "," ",MIXSORT!BU90) -> 0
A93: 88 | B93: =IF(+MIXSORT!BQ91=""," ",+MIXSORT!BQ91) -> OATMEAL-MAPLE BROWN SUGAR, PREPACKAGED (43 G), QUAKER | C93: 0.1773301177 | D93: 0.3546602355 | E93: 0.5319903532 | F93: 0.709320471 | G93: 0.8866505887 | H93: 1.063980706 | I93: 1.241310824 | J93: 1.418640942 | K93: 1.59597106 | L93: 1.773301177 | M93: 1.950631295 | N93: 2.127961413 | O93: 2.305291531 | P93: 2.482621648 | Q93: 2.659951766 | R93: 2.837281884 | S93: 3.014612002 | T93: 3.191942119 | U93: 3.369272237 | V93: 3.546602355 | W93: =IF(B93=" "," ",MIXSORT!BU91) -> 0.001773301177
A94: 89 | B94: =IF(+MIXSORT!BQ92=""," ",+MIXSORT!BQ92) -> ONIONS-SPANISH, WHOLE | C94: 0.047265625 | D94: 0.09453125 | E94: 0.141796875 | F94: 0.1890625 | G94: 0.236328125 | H94: 0.28359375 | I94: 0.330859375 | J94: 0.378125 | K94: 0.425390625 | L94: 0.47265625 | M94: 0.519921875 | N94: 0.5671875 | O94: 0.614453125 | P94: 0.66171875 | Q94: 0.708984375 | R94: 0.75625 | S94: 0.803515625 | T94: 0.85078125 | U94: 0.898046875 | V94: 0.9453125 | W94: =IF(B94=" "," ",MIXSORT!BU92) -> 0.00047265625
A95: 90 | B95: =IF(+MIXSORT!BQ93=""," ",+MIXSORT!BQ93) -> PANCAKES-FROZEN (1.6 OZ) | C95: 0 | D95: 0 | E95: 0 | F95: 0 | G95: 0 | H95: 0 | I95: 0 | J95: 0 | K95: 0 | L95: 0 | M95: 0 | N95: 0 | O95: 0 | P95: 0 | Q95: 0 | R95: 0 | S95: 0 | T95: 0 | U95: 0 | V95: 0 | W95: =IF(B95=" "," ",MIXSORT!BU93) -> 0
A96: 91 | B96: =IF(+MIXSORT!BQ94=""," ",+MIXSORT!BQ94) -> PEPPERS-JALAPENO, SLICED | C96: 1.314583333 | D96: 2.629166667 | E96: 3.94375 | F96: 5.258333333 | G96: 6.572916667 | H96: 7.8875 | I96: 9.202083333 | J96: 10.51666667 | K96: 11.83125 | L96: 13.14583333 | M96: 14.46041667 | N96: 15.775 | O96: 17.08958333 | P96: 18.40416667 | Q96: 19.71875 | R96: 21.03333333 | S96: =IF($B96=" "," ",+$W96*S$5) -> 22.34791667 | T96: 23.6625 | U96: 24.97708333 | V96: 26.29166667 | W96: =IF(B96=" "," ",MIXSORT!BU94) -> 0.01314583333
A97: 92 | B97: =IF(+MIXSORT!BQ95=""," ",+MIXSORT!BQ95) -> PIE-SNICKERS®, SLICE | C97: 0 | D97: 0 | E97: 0 | F97: 0 | G97: 0 | H97: 0 | I97: 0 | J97: 0 | K97: 0 | L97: 0 | M97: 0 | N97: 0 | O97: 0 | P97: 0 | Q97: 0 | R97: 0 | S97: 0 | T97: 0 | U97: 0 | V97: 0 | W97: =IF(B97=" "," ",MIXSORT!BU95) -> 0
A98: 93 | B98: =IF(+MIXSORT!BQ96=""," ",+MIXSORT!BQ96) -> RELISH-PREMIUM SWEET | C98: 0 | D98: 0 | E98: 0 | F98: 0 | G98: 0 | H98: 0 | I98: 0 | J98: 0 | K98: 0 | L98: 0 | M98: 0 | N98: 0 | O98: 0 | P98: 0 | Q98: 0 | R98: 0 | S98: 0 | T98: 0 | U98: 0 | V98: 0 | W98: =IF(B98=" "," ",MIXSORT!BU96) -> 0
A99: 94 | B99: =IF(+MIXSORT!BQ97=""," ",+MIXSORT!BQ97) -> SAUCE-BUTTERY, AMBIENT, BK | C99: 0.001302083333 | D99: 0.002604166667 | E99: 0.00390625 | F99: 0.005208333333 | G99: 0.006510416667 | H99: 0.0078125 | I99: 0.009114583333 | J99: 0.01041666667 | K99: 0.01171875 | L99: 0.01302083333 | M99: 0.01432291667 | N99: 0.015625 | O99: 0.01692708333 | P99: 0.01822916667 | Q99: 0.01953125 | R99: 0.02083333333 | S99: 0.02213541667 | T99: 0.0234375 | U99: 0.02473958333 | V99: 0.02604166667 | W99: =IF(B99=" "," ",MIXSORT!BU97) -> 1.302083333e-05
A100: 95 | B100: =IF(+MIXSORT!BQ98=""," ",+MIXSORT!BQ98) -> SAUCE-CHILI, WITH BEEF | C100: 0 | D100: 0 | E100: 0 | F100: 0 | G100: 0 | H100: 0 | I100: 0 | J100: 0 | K100: 0 | L100: 0 | M100: 0 | N100: 0 | O100: 0 | P100: 0 | Q100: 0 | R100: 0 | S100: 0 | T100: 0 | U100: 0 | V100: 0 | W100: =IF(B100=" "," ",MIXSORT!BU98) -> 0
A101: 96 | B101: =IF(+MIXSORT!BQ99=""," ",+MIXSORT!BQ99) -> SHAKE SYRUP-DR. PEPPER | C101: 0 | D101: 0 | E101: 0 | F101: 0 | G101: 0 | H101: 0 | I101: 0 | J101: 0 | K101: 0 | L101: 0 | M101: 0 | N101: 0 | O101: 0 | P101: 0 | Q101: 0 | R101: 0 | S101: 0 | T101: 0 | U101: 0 | V101: 0 | W101: =IF(B101=" "," ",MIXSORT!BU99) -> 0
A102: 97 | B102: =IF(+MIXSORT!BQ100=""," ",+MIXSORT!BQ100) -> RELISH- CLASSIC SWEET, BK | C102: 0.0625 | D102: 0.125 | E102: 0.1875 | F102: 0.25 | G102: 0.3125 | H102: 0.375 | I102: 0.4375 | J102: 0.5 | K102: 0.5625 | L102: 0.625 | M102: 0.6875 | N102: 0.75 | O102: 0.8125 | P102: 0.875 | Q102: 0.9375 | R102: 1 | S102: 1.0625 | T102: 1.125 | U102: 1.1875 | V102: 1.25 | W102: =IF(B102=" "," ",MIXSORT!BU100) -> 0.000625
A103: 98 | B103: =IF(+MIXSORT!BQ101=""," ",+MIXSORT!BQ101) -> SAUCE-CHEESE, ORIGINAL, VELVEETA | C103: 0 | D103: 0 | E103: 0 | F103: 0 | G103: 0 | H103: 0 | I103: 0 | J103: 0 | K103: 0 | L103: 0 | M103: 0 | N103: 0 | O103: 0 | P103: 0 | Q103: 0 | R103: 0 | S103: 0 | T103: 0 | U103: 0 | V103: 0 | W103: =IF(B103=" "," ",MIXSORT!BU101) -> 0
A104: 99 | B104: =IF(+MIXSORT!BQ102=""," ",+MIXSORT!BQ102) -> TOMATOES-WHOLE, FRESH, RED LEVEL 5 (6X6), BK | C104: 0.5413983011 | D104: 1.082796602 | E104: 1.624194903 | F104: 2.165593205 | G104: 2.706991506 | H104: 3.248389807 | I104: 3.789788108 | J104: 4.331186409 | K104: 4.87258471 | L104: 5.413983011 | M104: 5.955381312 | N104: 6.496779614 | O104: 7.038177915 | P104: 7.579576216 | Q104: 8.120974517 | R104: 8.662372818 | S104: 9.203771119 | T104: 9.74516942 | U104: 10.28656772 | V104: 10.82796602 | W104: =IF(B104=" "," ",MIXSORT!BU102) -> 0.005413983011
A105: 100 | B105: =IF(+MIXSORT!BQ103=""," ",+MIXSORT!BQ103) -> PANCAKES-FROZEN (1.6 OZ), BK | C105: 32.88409704 | D105: 65.76819407 | E105: 98.65229111 | F105: 131.5363881 | G105: 164.4204852 | H105: 197.3045822 | I105: 230.1886792 | J105: 263.0727763 | K105: 295.9568733 | L105: 328.8409704 | M105: 361.7250674 | N105: 394.6091644 | O105: 427.4932615 | P105: 460.3773585 | Q105: 493.2614555 | R105: 526.1455526 | S105: 559.0296496 | T105: 591.9137466 | U105: 624.7978437 | V105: 657.6819407 | W105: =IF(B105=" "," ",MIXSORT!BU103) -> 0.3288409704
A106: 101 | B106: =IF(+MIXSORT!BQ104=""," ",+MIXSORT!BQ104) -> CINNAMON-ROLL (2.8 OZ), FROZEN, OTIS SPUNKMEYER BRANDED, BK | C106: 0.002333613367 | D106: 0.004667226734 | E106: 0.007000840101 | F106: 0.009334453468 | G106: 0.01166806683 | H106: 0.0140016802 | I106: 0.01633529357 | J106: 0.01866890694 | K106: 0.0210025203 | L106: 0.02333613367 | M106: 0.02566974704 | N106: 0.0280033604 | O106: 0.03033697377 | P106: 0.03267058714 | Q106: 0.0350042005 | R106: 0.03733781387 | S106: 0.03967142724 | T106: 0.0420050406 | U106: 0.04433865397 | V106: 0.04667226734 | W106: =IF(B106=" "," ",MIXSORT!BU104) -> 2.333613367e-05
A107: 102 | B107: =IF(+MIXSORT!BQ105=""," ",+MIXSORT!BQ105) -> BACON-THICK SLICED, FULLY COOKED, REFRIGERATED, BK | C107: 0.0009334453468 | D107: 0.001866890694 | E107: 0.00280033604 | F107: 0.003733781387 | G107: 0.004667226734 | H107: 0.005600672081 | I107: 0.006534117427 | J107: 0.007467562774 | K107: 0.008401008121 | L107: 0.009334453468 | M107: 0.01026789881 | N107: 0.01120134416 | O107: 0.01213478951 | P107: 0.01306823485 | Q107: 0.0140016802 | R107: 0.01493512555 | S107: 0.0158685709 | T107: 0.01680201624 | U107: 0.01773546159 | V107: 0.01866890694 | W107: =IF(B107=" "," ",MIXSORT!BU105) -> 9.334453468e-06
A108: 103 | B108: =IF(+MIXSORT!BQ106=""," ",+MIXSORT!BQ106) -> PIE-SNICKERS¨, SLICE, BK BRANDED, SCHWANS | C108: =IF($B108=" "," ",+$W108*C$5) -> 0 | D108: 0 | E108: 0 | F108: 0 | G108: 0 | H108: 0 | I108: 0 | J108: 0 | K108: 0 | L108: 0 | M108: 0 | N108: 0 | O108: 0 | P108: 0 | Q108: 0 | R108: 0 | S108: 0 | T108: 0 | U108: 0 | V108: 0 | W108: =IF(B108=" "," ",MIXSORT!BU106) -> 0
A109: 104 | B109: =IF(+MIXSORT!BQ107=""," ",+MIXSORT!BQ107) -> PIE-HERSHEY'S SUNDAE, SLICE, BK BRANDED, SCHWANS | C109: 2.80033604 | D109: 5.600672081 | E109: 8.401008121 | F109: 11.20134416 | G109: 14.0016802 | H109: 16.80201624 | I109: 19.60235228 | J109: 22.40268832 | K109: 25.20302436 | L109: 28.0033604 | M109: 30.80369644 | N109: 33.60403248 | O109: 36.40436852 | P109: 39.20470456 | Q109: 42.0050406 | R109: 44.80537665 | S109: 47.60571269 | T109: 50.40604873 | U109: 53.20638477 | V109: 56.00672081 | W109: =IF(B109=" "," ",MIXSORT!BU107) -> 0.0280033604
A110: 105 | B110: =IF(+MIXSORT!BQ108=""," ",+MIXSORT!BQ108) -> TOPPING-OREO¨ CRUMBLES, SMALL (1 LB) | C110: 0 | D110: 0 | E110: 0 | F110: 0 | G110: 0 | H110: 0 | I110: 0 | J110: 0 | K110: 0 | L110: 0 | M110: 0 | N110: 0 | O110: 0 | P110: 0 | Q110: 0 | R110: 0 | S110: 0 | T110: 0 | U110: 0 | V110: 0 | W110: =IF(B110=" "," ",MIXSORT!BU108) -> 0
A111: 106 | B111: =IF(+MIXSORT!BQ109=""," ",+MIXSORT!BQ109) -> MUSTARD-YELLOW, BAG IN BOX (3 GALLON VOL-PAK) , BK/HEINZ | C111: 0.3732147858 | D111: 0.7464295715 | E111: 1.119644357 | F111: 1.492859143 | G111: 1.866073929 | H111: 2.239288715 | I111: 2.6125035 | J111: 2.985718286 | K111: 3.358933072 | L111: 3.732147858 | M111: 4.105362644 | N111: 4.478577429 | O111: 4.851792215 | P111: 5.225007001 | Q111: 5.598221787 | R111: 5.971436572 | S111: 6.344651358 | T111: 6.717866144 | U111: 7.09108093 | V111: 7.464295715 | W111: =IF(B111=" "," ",MIXSORT!BU109) -> 0.003732147858
A112: 107 | B112: =IF(+MIXSORT!BQ110=""," ",+MIXSORT!BQ110) -> RICE-CALROSE, MEDIUM GRAIN | C112: 2.69541779 | D112: 5.39083558 | E112: 8.086253369 | F112: 10.78167116 | G112: 13.47708895 | H112: 16.17250674 | I112: 18.86792453 | J112: 21.56334232 | K112: 24.25876011 | L112: 26.9541779 | M112: 29.64959569 | N112: 32.34501348 | O112: 35.04043127 | P112: 37.73584906 | Q112: 40.43126685 | R112: 43.12668464 | S112: =IF($B112=" "," ",+$W112*S$5) -> 45.82210243 | T112: 48.51752022 | U112: 51.21293801 | V112: 53.9083558 | W112: =IF(B112=" "," ",MIXSORT!BU110) -> 0.0269541779
A113: 108 | B113: =IF(+MIXSORT!BQ111=""," ",+MIXSORT!BQ111) -> SAUCE-SPICY SPREAD, BK | C113: 0.3234388127 | D113: 0.6468776253 | E113: 0.970316438 | F113: 1.293755251 | G113: 1.617194063 | H113: 1.940632876 | I113: 2.264071689 | J113: 2.587510501 | K113: 2.910949314 | L113: 3.234388127 | M113: 3.557826939 | N113: 3.881265752 | O113: 4.204704565 | P113: 4.528143377 | Q113: 4.85158219 | R113: 5.175021003 | S113: 5.498459815 | T113: 5.821898628 | U113: 6.14533744 | V113: 6.468776253 | W113: =IF(B113=" "," ",MIXSORT!BU111) -> 0.003234388127
A114: 109 | B114: =IF(+MIXSORT!BQ112=""," ",+MIXSORT!BQ112) -> SAUCE-STACKER, BK | C114: 0.140016802 | D114: 0.280033604 | E114: 0.420050406 | F114: 0.5600672081 | G114: 0.7000840101 | H114: 0.8401008121 | I114: 0.9801176141 | J114: 1.120134416 | K114: 1.260151218 | L114: 1.40016802 | M114: 1.540184822 | N114: 1.680201624 | O114: 1.820218426 | P114: 1.960235228 | Q114: 2.10025203 | R114: 2.240268832 | S114: 2.380285634 | T114: 2.520302436 | U114: 2.660319238 | V114: 2.80033604 | W114: =IF(B114=" "," ",MIXSORT!BU112) -> 0.00140016802
A115: 110 | B115: =IF(+MIXSORT!BQ113=""," ",+MIXSORT!BQ113) -> PIE-NEW YORK STYLE CHEESECAKE, BK BRANDED, RICH PRODUCTS | C115: 0 | D115: 0 | E115: 0 | F115: 0 | G115: 0 | H115: 0 | I115: 0 | J115: 0 | K115: 0 | L115: 0 | M115: 0 | N115: 0 | O115: 0 | P115: 0 | Q115: 0 | R115: 0 | S115: 0 | T115: 0 | U115: 0 | V115: 0 | W115: =IF(B115=" "," ",MIXSORT!BU113) -> 0
A116: 111 | B116: =IF(+MIXSORT!BQ114=""," ",+MIXSORT!BQ114) -> PIE-OREO® CHEESECAKE, BK BRANDED, RICH PRODUCTS | C116: 0.0280033604 | D116: 0.05600672081 | E116: 0.08401008121 | F116: 0.1120134416 | G116: 0.140016802 | H116: 0.1680201624 | I116: 0.1960235228 | J116: 0.2240268832 | K116: 0.2520302436 | L116: 0.280033604 | M116: 0.3080369644 | N116: 0.3360403248 | O116: 0.3640436852 | P116: 0.3920470456 | Q116: 0.420050406 | R116: 0.4480537665 | S116: 0.4760571269 | T116: 0.5040604873 | U116: 0.5320638477 | V116: 0.5600672081 | W116: =IF(B116=" "," ",MIXSORT!BU114) -> 0.000280033604
A117: 112 | B117: =IF(+MIXSORT!BQ115=""," ",+MIXSORT!BQ115) -> PIE-SNICKERS®, SLICE, BK BRANDED, SCHWANS | C117: 0 | D117: 0 | E117: 0 | F117: 0 | G117: 0 | H117: 0 | I117: 0 | J117: 0 | K117: 0 | L117: 0 | M117: 0 | N117: 0 | O117: 0 | P117: 0 | Q117: 0 | R117: 0 | S117: 0 | T117: 0 | U117: 0 | V117: 0 | W117: =IF(B117=" "," ",MIXSORT!BU115) -> 0
A118: 113 | B118: =IF(+MIXSORT!BQ116=""," ",+MIXSORT!BQ116) -> SAUCE-CHEESE, FIESTA PEPPER BLEND, GEHL FOODS | C118: 1.863354037 | D118: 3.726708075 | E118: 5.590062112 | F118: 7.453416149 | G118: 9.316770186 | H118: 11.18012422 | I118: 13.04347826 | J118: 14.9068323 | K118: 16.77018634 | L118: 18.63354037 | M118: 20.49689441 | N118: 22.36024845 | O118: 24.22360248 | P118: 26.08695652 | Q118: 27.95031056 | R118: 29.8136646 | S118: 31.67701863 | T118: 33.54037267 | U118: 35.40372671 | V118: 37.26708075 | W118: =IF(B118=" "," ",MIXSORT!BU116) -> 0.01863354037
A119: 114 | B119: =IF(+MIXSORT!BQ117=""," ",+MIXSORT!BQ117) -> SAUCE-SPICY SPREAD, BK | C119: 0.3234388127 | D119: 0.6468776253 | E119: 0.970316438 | F119: 1.293755251 | G119: 1.617194063 | H119: 1.940632876 | I119: 2.264071689 | J119: 2.587510501 | K119: 2.910949314 | L119: 3.234388127 | M119: 3.557826939 | N119: 3.881265752 | O119: 4.204704565 | P119: 4.528143377 | Q119: 4.85158219 | R119: 5.175021003 | S119: 5.498459815 | T119: 5.821898628 | U119: 6.14533744 | V119: 6.468776253 | W119: =IF(B119=" "," ",MIXSORT!BU117) -> 0.003234388127
A120: 115 | B120: =IF(+MIXSORT!BQ118=""," ",+MIXSORT!BQ118) -> SAUCE-STACKER, BK | C120: 0.003043843522 | D120: 0.006087687044 | E120: 0.009131530566 | F120: 0.01217537409 | G120: 0.01521921761 | H120: 0.01826306113 | I120: 0.02130690465 | J120: 0.02435074818 | K120: 0.0273945917 | L120: 0.03043843522 | M120: 0.03348227874 | N120: 0.03652612227 | O120: 0.03956996579 | P120: 0.04261380931 | Q120: 0.04565765283 | R120: 0.04870149635 | S120: 0.05174533988 | T120: 0.0547891834 | U120: 0.05783302692 | V120: 0.06087687044 | W120: =IF(B120=" "," ",MIXSORT!BU118) -> 3.043843522e-05
A121: 116 | B121: =IF(+MIXSORT!BQ119=""," ",+MIXSORT!BQ119) -> TOMATOES-WHOLE, FRESH, RED LEVEL 5 (6X7), BK | C121: 6.095398114 | D121: 12.19079623 | E121: 18.28619434 | F121: 24.38159246 | G121: 30.47699057 | H121: 36.57238869 | I121: 42.6677868 | J121: 48.76318492 | K121: 54.85858303 | L121: 60.95398114 | M121: 67.04937926 | N121: 73.14477737 | O121: 79.24017549 | P121: 85.3355736 | Q121: 91.43097172 | R121: 97.52636983 | S121: 103.6217679 | T121: 109.7171661 | U121: 115.8125642 | V121: 121.9079623 | W121: =IF(B121=" "," ",MIXSORT!BU119) -> 0.06095398114
A122: 117 | B122: =IF(+MIXSORT!BQ120=""," ",+MIXSORT!BQ120) ->  | W122: =IF(B122=" "," ",MIXSORT!BU120) -> 
A123: 118 | B123: =IF(+MIXSORT!BQ121=""," ",+MIXSORT!BQ121) ->  | R123: =IF($B123=" "," ",+$W123*R$5) ->  | W123: =IF(B123=" "," ",MIXSORT!BU121) -> 
A124: 119 | B124: =IF(+MIXSORT!BQ122=""," ",+MIXSORT!BQ122) ->  | C124: =IF($B124=" "," ",+$W124*C$5) ->  | W124: =IF(B124=" "," ",MIXSORT!BU122) -> 
A125: 120 | B125: =IF(+MIXSORT!BQ123=""," ",+MIXSORT!BQ123) ->  | W125: =IF(B125=" "," ",MIXSORT!BU123) -> 
B126: =+datecoder -> 2013-01-10Thu | W126: .
C136: 9a | D136: =+C137 -> 11a | E136: =CONCATENATE(C136,"-",D136) -> 9a-11a | G136: =SUM(SALES!B209:B212) -> 162
C137: 11a | D137: =+C138 -> 3p | E137: 11a-3p | G137: =SUM(SALES!B213:B218) -> 1033
C138: 3p | D138: =+C139 -> 5p | E138: 3p-5p | G138: =SUM(SALES!B219:B224) -> 948
C139: 5p | D139: =+C140 -> 8p | E139: 5p-8p | G139: =SUM(SALES!B225:B230) -> 941
C140: 8p | D140: =+C141 -> 12a | E140: 8p-12a | G140: =SUM(SALES!B231:B238) -> 225
C141: 12a | D141: 6a | E141: 12a-6a | G141: =SUM(SALES!B201:B202) -> 0

Sheet THAWChartPlanner
D1: =IF(BandBversionYes="Y",btext," ") -> 
D2: HIDE ROW | I2: =+netsales -> 3571
B3: =+MAXTHAW -> 21 | D3: =VLOOKUP(Lang!A17,LOCATION,WORLD+1,FALSE) -> Thaw Chart | J3: =+Completion -> 2016-12-14T08:46:22.460 | L3: =+CODE -> THU | N3: =+BKnum -> 54321
D4: =version -> v2016.12b | G4: HIDE COLUMN | I4: HIDE COLUMN | J4: =VLOOKUP(118,LOCATION,WORLD+1,FALSE) -> Date Charts Completed | L4: =VLOOKUP(62,LOCATION,WORLD+1,FALSE) -> Day of the Week | N4: =VLOOKUP(63,LOCATION,WORLD+1,FALSE) -> BK Number
B5: HIDE | D5: HIDE ROW | I5: HIDE ROW | N5: =IF(DAY+4>=7,(DAY+5)-7,DAY+5) -> 5
D6: =VLOOKUP(Lang!A168,LOCATION,WORLD+1,FALSE) -> Items | I6: =VLOOKUP(Lang!A169,LOCATION,WORLD+1,FALSE) -> S.F. | J6: # | L6: On Hand | N6: Difference
B7: 1 | D7: =IF($B7>$B$3," ",VLOOKUP(B7,MIXSORT!$BA$4:$BE$1198,3,FALSE)) -> PIE-OREO® CHEESECAKE, BK BRANDED, RICH PRODUCTS | G7: =IF($B7>$B$3," ",VLOOKUP($B7,MIXSORT!$BA$4:$BE$1198,5,FALSE)) -> 1 | H7: =IF(B7>$B$3," ",IF(G7=1,VLOOKUP(Lang!$A$172,LOCATION,WORLD+1,FALSE),VLOOKUP(Lang!$A$173,LOCATION,WORLD+1,FALSE))) -> Each | I7: =IF(B7>$B$3," ",IF(VLOOKUP(B7,thawblock,6,FALSE)=""," ",IF(VLOOKUP(B7,thawblock,6,FALSE)=0," ",IF(G7=0,0,(VLOOKUP(B7,thawblock,6,FALSE)/G7/VLOOKUP(B7,thawblock,8,FALSE)*(1+thawbuffer)))))) -> 0.000350042005 | J7: =IF(I7=" "," ",IF($I$2>=1,ROUNDUP(I7*VLOOKUP(B7,thawblock,8,FALSE),0)," ")) -> 2 | K7: - | M7: =
B8: 2 | D8: =IF($B8>$B$3," ",VLOOKUP(B8,MIXSORT!$BA$4:$BE$1198,3,FALSE)) -> PIE-HERSHEY'S SUNDAE, SLICE, BK BRANDED, SCHWANS | G8: =IF($B8>$B$3," ",VLOOKUP($B8,MIXSORT!$BA$4:$BE$1198,5,FALSE)) -> 1 | H8: =IF(B8>$B$3," ",IF(G8=1,VLOOKUP(Lang!$A$172,LOCATION,WORLD+1,FALSE),VLOOKUP(Lang!$A$173,LOCATION,WORLD+1,FALSE))) -> Each | I8: 0.0350042005 | J8: 125 | K8: - | M8: =
B9: 3 | D9: =IF($B9>$B$3," ",VLOOKUP(B9,MIXSORT!$BA$4:$BE$1198,3,FALSE)) -> BACON-THICK SLICED, FULLY COOKED, REFRIGERATED, BK | G9: =IF($B9>$B$3," ",VLOOKUP($B9,MIXSORT!$BA$4:$BE$1198,5,FALSE)) -> 30 | H9: =IF(B9>$B$3," ",IF(G9=1,VLOOKUP(Lang!$A$172,LOCATION,WORLD+1,FALSE),VLOOKUP(Lang!$A$173,LOCATION,WORLD+1,FALSE))) -> Package | I9: 1.166806683e-05 | J9: 1 | K9: - | M9: =
B10: 4 | D10: =IF($B10>$B$3," ",VLOOKUP(B10,MIXSORT!$BA$4:$BE$1198,3,FALSE)) -> CINNAMON-ROLL (2.8 OZ), FROZEN, OTIS SPUNKMEYER BRANDED, BK | G10: =IF($B10>$B$3," ",VLOOKUP($B10,MIXSORT!$BA$4:$BE$1198,5,FALSE)) -> 12 | H10: =IF(B10>$B$3," ",IF(G10=1,VLOOKUP(Lang!$A$172,LOCATION,WORLD+1,FALSE),VLOOKUP(Lang!$A$173,LOCATION,WORLD+1,FALSE))) -> Package | I10: 2.917016709e-05 | J10: 1 | K10: - | M10: =
B11: 5 | D11: =IF($B11>$B$3," ",VLOOKUP(B11,MIXSORT!$BA$4:$BE$1198,3,FALSE)) -> PIE-REESES, SLICE | G11: =IF($B11>$B$3," ",VLOOKUP($B11,MIXSORT!$BA$4:$BE$1198,5,FALSE)) -> 1 | H11: =IF(B11>$B$3," ",IF(G11=1,VLOOKUP(Lang!$A$172,LOCATION,WORLD+1,FALSE),VLOOKUP(Lang!$A$173,LOCATION,WORLD+1,FALSE))) -> Each | I11: 0.00350042005 | J11: 13 | K11: - | M11: =
B12: 6 | D12: =IF($B12>$B$3," ",VLOOKUP(B12,MIXSORT!$BA$4:$BE$1198,3,FALSE)) -> BEVERAGE SYRUP-MANGO FLAVORED, MONIN | G12: =IF($B12>$B$3," ",VLOOKUP($B12,MIXSORT!$BA$4:$BE$1198,5,FALSE)) -> 64 | H12: =IF(B12>$B$3," ",IF(G12=1,VLOOKUP(Lang!$A$172,LOCATION,WORLD+1,FALSE),VLOOKUP(Lang!$A$173,LOCATION,WORLD+1,FALSE))) -> Package | I12: 0.0001777557057 | J12: 1 | K12: - | M12: =
B13: 7 | D13: =IF($B13>$B$3," ",VLOOKUP(B13,MIXSORT!$BA$4:$BE$1198,3,FALSE)) -> PIE-DUTCH APPLE, SLICE, ECLIPSE, BK | G13: =IF($B13>$B$3," ",VLOOKUP($B13,MIXSORT!$BA$4:$BE$1198,5,FALSE)) -> 1 | H13: =IF(B13>$B$3," ",IF(G13=1,VLOOKUP(Lang!$A$172,LOCATION,WORLD+1,FALSE),VLOOKUP(Lang!$A$173,LOCATION,WORLD+1,FALSE))) -> Each | I13: 0.0350042005 | J13: 125 | K13: - | M13: =
B14: 8 | D14: =IF($B14>$B$3," ",VLOOKUP(B14,MIXSORT!$BA$4:$BE$1198,3,FALSE)) -> SMOOTHIE MIX-STRAWBERRY BANANA ARTIFICIALLY FLAVORED, CONCENTRATED, FROZEN, ALL | G14: =IF($B14>$B$3," ",VLOOKUP($B14,MIXSORT!$BA$4:$BE$1198,5,FALSE)) -> 64 | H14: =IF(B14>$B$3," ",IF(G14=1,VLOOKUP(Lang!$A$172,LOCATION,WORLD+1,FALSE),VLOOKUP(Lang!$A$173,LOCATION,WORLD+1,FALSE))) -> Package | I14: 0.0005524100392 | J14: 2 | K14: - | M14: =
B15: 9 | D15: =IF($B15>$B$3," ",VLOOKUP(B15,MIXSORT!$BA$4:$BE$1198,3,FALSE)) -> SMOOTHIE MIX-LEMONADE, MINUTE MAID | G15: =IF($B15>$B$3," ",VLOOKUP($B15,MIXSORT!$BA$4:$BE$1198,5,FALSE)) -> 64 | H15: =IF(B15>$B$3," ",IF(G15=1,VLOOKUP(Lang!$A$172,LOCATION,WORLD+1,FALSE),VLOOKUP(Lang!$A$173,LOCATION,WORLD+1,FALSE))) -> Package | I15: 0.00283203125 | J15: 10 | K15: - | M15: =
B16: 10 | D16: =IF($B16>$B$3," ",VLOOKUP(B16,MIXSORT!$BA$4:$BE$1198,3,FALSE)) -> CREAM CHEESE-FROSTING, CINNABON ZT | G16: =IF($B16>$B$3," ",VLOOKUP($B16,MIXSORT!$BA$4:$BE$1198,5,FALSE)) -> 600 | H16: =IF(B16>$B$3," ",IF(G16=1,VLOOKUP(Lang!$A$172,LOCATION,WORLD+1,FALSE),VLOOKUP(Lang!$A$173,LOCATION,WORLD+1,FALSE))) -> Package | I16: 5.834033417e-05 | J16: 1 | K16: - | M16: =
B17: 11 | D17: =IF($B17>$B$3," ",VLOOKUP(B17,MIXSORT!$BA$4:$BE$1198,3,FALSE)) -> FRAPPE-MIX, CARAMEL, FROZEN BLENDED BASE, BK | G17: =IF($B17>$B$3," ",VLOOKUP($B17,MIXSORT!$BA$4:$BE$1198,5,FALSE)) -> 64 | H17: =IF(B17>$B$3," ",IF(G17=1,VLOOKUP(Lang!$A$172,LOCATION,WORLD+1,FALSE),VLOOKUP(Lang!$A$173,LOCATION,WORLD+1,FALSE))) -> Package | I17: 0.003910625525 | J17: 14 | K17: - | M17: =
B18: 12 | D18: =IF($B18>$B$3," ",VLOOKUP(B18,MIXSORT!$BA$4:$BE$1198,3,FALSE)) -> TOPPING-STRAWBERRY, FROZEN (32 OZ) | G18: =IF($B18>$B$3," ",VLOOKUP($B18,MIXSORT!$BA$4:$BE$1198,5,FALSE)) -> 32 | H18: =IF(B18>$B$3," ",IF(G18=1,VLOOKUP(Lang!$A$172,LOCATION,WORLD+1,FALSE),VLOOKUP(Lang!$A$173,LOCATION,WORLD+1,FALSE))) -> Package | I18: 1.599121094e-05 | J18: 1 | K18: - | M18: =
B19: 13 | D19: =IF($B19>$B$3," ",VLOOKUP(B19,MIXSORT!$BA$4:$BE$1198,3,FALSE)) -> SMOOTHIE MIX-STRAWBERRY BANANA ARTIFICIALLY FLAVORED, CONCENTRATED, FROZEN, BK, | G19: =IF($B19>$B$3," ",VLOOKUP($B19,MIXSORT!$BA$4:$BE$1198,5,FALSE)) -> 64 | H19: =IF(B19>$B$3," ",IF(G19=1,VLOOKUP(Lang!$A$172,LOCATION,WORLD+1,FALSE),VLOOKUP(Lang!$A$173,LOCATION,WORLD+1,FALSE))) -> Package | I19: 3.295898438e-05 | J19: 1 | K19: - | M19: =
B20: 14 | D20: =IF($B20>$B$3," ",VLOOKUP(B20,MIXSORT!$BA$4:$BE$1198,3,FALSE)) -> GRAVY-SAUSAGE, ZERO TRANS FAT | G20: =IF($B20>$B$3," ",VLOOKUP($B20,MIXSORT!$BA$4:$BE$1198,5,FALSE)) -> 10 | H20: =IF(B20>$B$3," ",IF(G20=1,VLOOKUP(Lang!$A$172,LOCATION,WORLD+1,FALSE),VLOOKUP(Lang!$A$173,LOCATION,WORLD+1,FALSE))) -> Package | I20: 0.215296496 | J20: 80 | K20: - | M20: =
B21: 15 | D21: =IF($B21>$B$3," ",VLOOKUP(B21,MIXSORT!$BA$4:$BE$1198,3,FALSE)) -> CROISSANT-SANDWICH (2 OZ), FROZEN, BK | G21: =IF($B21>$B$3," ",VLOOKUP($B21,MIXSORT!$BA$4:$BE$1198,5,FALSE)) -> 25 | H21: =IF(B21>$B$3," ",IF(G21=1,VLOOKUP(Lang!$A$172,LOCATION,WORLD+1,FALSE),VLOOKUP(Lang!$A$173,LOCATION,WORLD+1,FALSE))) -> Package | I21: 0.118328841 | J21: 44 | K21: - | M21: =
B22: 16 | D22: =IF($B22>$B$3," ",VLOOKUP(B22,MIXSORT!$BA$4:$BE$1198,3,FALSE)) -> TORTILLA-7.5" FLOUR, BK | G22: =IF($B22>$B$3," ",VLOOKUP($B22,MIXSORT!$BA$4:$BE$1198,5,FALSE)) -> 12 | H22: =IF(B22>$B$3," ",IF(G22=1,VLOOKUP(Lang!$A$172,LOCATION,WORLD+1,FALSE),VLOOKUP(Lang!$A$173,LOCATION,WORLD+1,FALSE))) -> Package | I22: 0.006767478764 | J22: 25 | K22: - | M22: =
B23: 17 | D23: =IF($B23>$B$3," ",VLOOKUP(B23,MIXSORT!$BA$4:$BE$1198,3,FALSE)) -> TORTILLA-12" FLOUR, BK | G23: =IF($B23>$B$3," ",VLOOKUP($B23,MIXSORT!$BA$4:$BE$1198,5,FALSE)) -> 12 | H23: =IF(B23>$B$3," ",IF(G23=1,VLOOKUP(Lang!$A$172,LOCATION,WORLD+1,FALSE),VLOOKUP(Lang!$A$173,LOCATION,WORLD+1,FALSE))) -> Package | I23: 0.06233153639 | J23: 24 | K23: - | M23: =
B24: 18 | D24: =IF($B24>$B$3," ",VLOOKUP(B24,MIXSORT!$BA$4:$BE$1198,3,FALSE)) -> BUN-4" BRIOCHE STYLE, FROZEN | G24: =IF($B24>$B$3," ",VLOOKUP($B24,MIXSORT!$BA$4:$BE$1198,5,FALSE)) -> 30 | H24: =IF(B24>$B$3," ",IF(G24=1,VLOOKUP(Lang!$A$172,LOCATION,WORLD+1,FALSE),VLOOKUP(Lang!$A$173,LOCATION,WORLD+1,FALSE))) -> Package | I24: 0.0014453125 | J24: 5 | K24: - | M24: =
B25: 19 | D25: =IF($B25>$B$3," ",VLOOKUP(B25,MIXSORT!$BA$4:$BE$1198,3,FALSE)) -> BUN-ARTISAN STYLE, FROZEN | G25: =IF($B25>$B$3," ",VLOOKUP($B25,MIXSORT!$BA$4:$BE$1198,5,FALSE)) -> 12 | H25: =IF(B25>$B$3," ",IF(G25=1,VLOOKUP(Lang!$A$172,LOCATION,WORLD+1,FALSE),VLOOKUP(Lang!$A$173,LOCATION,WORLD+1,FALSE))) -> Package | I25: 0.003255208333 | J25: 11 | K25: - | M25: =
B26: 20 | D26: =IF($B26>$B$3," ",VLOOKUP(B26,MIXSORT!$BA$4:$BE$1198,3,FALSE)) -> CHICKEN-BREAST, WHOLE MUSCLE FILET (4.0 OZ), TENDERGRILL, BK | G26: =IF($B26>$B$3," ",VLOOKUP($B26,MIXSORT!$BA$4:$BE$1198,5,FALSE)) -> 8 | H26: =IF(B26>$B$3," ",IF(G26=1,VLOOKUP(Lang!$A$172,LOCATION,WORLD+1,FALSE),VLOOKUP(Lang!$A$173,LOCATION,WORLD+1,FALSE))) -> Package | I26: 0.005419921875 | J26: 18 | K26: - | M26: =
B27: 21 | D27: =IF($B27>$B$3," ",VLOOKUP(B27,MIXSORT!$BA$4:$BE$1198,3,FALSE)) -> BEEF-HOT DOG, SLICED, 8/1 (6 INCH) | G27: =IF($B27>$B$3," ",VLOOKUP($B27,MIXSORT!$BA$4:$BE$1198,5,FALSE)) -> 24 | H27: =IF(B27>$B$3," ",IF(G27=1,VLOOKUP(Lang!$A$172,LOCATION,WORLD+1,FALSE),VLOOKUP(Lang!$A$173,LOCATION,WORLD+1,FALSE))) -> Package | I27: 0.003271484375 | J27: 11 | K27: - | M27: =
B28: 22 | D28: =IF($B28>$B$3," ",VLOOKUP(B28,MIXSORT!$BA$4:$BE$1198,3,FALSE)) ->  | G28: =IF($B28>$B$3," ",VLOOKUP($B28,MIXSORT!$BA$4:$BE$1198,5,FALSE)) ->  | H28: =IF(B28>$B$3," ",IF(G28=1,VLOOKUP(Lang!$A$172,LOCATION,WORLD+1,FALSE),VLOOKUP(Lang!$A$173,LOCATION,WORLD+1,FALSE))) ->  | K28: - | M28: =
B29: 23 | D29: =IF($B29>$B$3," ",VLOOKUP(B29,MIXSORT!$BA$4:$BE$1198,3,FALSE)) ->  | G29: =IF($B29>$B$3," ",VLOOKUP($B29,MIXSORT!$BA$4:$BE$1198,5,FALSE)) ->  | H29: =IF(B29>$B$3," ",IF(G29=1,VLOOKUP(Lang!$A$172,LOCATION,WORLD+1,FALSE),VLOOKUP(Lang!$A$173,LOCATION,WORLD+1,FALSE))) ->  | K29: - | M29: =
B30: 24 | D30: =IF($B30>$B$3," ",VLOOKUP(B30,MIXSORT!$BA$4:$BE$1198,3,FALSE)) ->  | G30: =IF($B30>$B$3," ",VLOOKUP($B30,MIXSORT!$BA$4:$BE$1198,5,FALSE)) ->  | H30: =IF(B30>$B$3," ",IF(G30=1,VLOOKUP(Lang!$A$172,LOCATION,WORLD+1,FALSE),VLOOKUP(Lang!$A$173,LOCATION,WORLD+1,FALSE))) ->  | K30: - | M30: =
B31: 25 | D31: =IF($B31>$B$3," ",VLOOKUP(B31,MIXSORT!$BA$4:$BE$1198,3,FALSE)) ->  | G31: =IF($B31>$B$3," ",VLOOKUP($B31,MIXSORT!$BA$4:$BE$1198,5,FALSE)) ->  | H31: =IF(B31>$B$3," ",IF(G31=1,VLOOKUP(Lang!$A$172,LOCATION,WORLD+1,FALSE),VLOOKUP(Lang!$A$173,LOCATION,WORLD+1,FALSE))) ->  | K31: - | M31: =
B32: 26 | D32: =IF($B32>$B$3," ",VLOOKUP(B32,MIXSORT!$BA$4:$BE$1198,3,FALSE)) ->  | G32: =IF($B32>$B$3," ",VLOOKUP($B32,MIXSORT!$BA$4:$BE$1198,5,FALSE)) ->  | H32: =IF(B32>$B$3," ",IF(G32=1,VLOOKUP(Lang!$A$172,LOCATION,WORLD+1,FALSE),VLOOKUP(Lang!$A$173,LOCATION,WORLD+1,FALSE))) ->  | I32: =IF(B32>$B$3," ",IF(VLOOKUP(B32,thawblock,6,FALSE)=""," ",IF(VLOOKUP(B32,thawblock,6,FALSE)=0," ",IF(G32=0,0,(VLOOKUP(B32,thawblock,6,FALSE)/G32/VLOOKUP(B32,thawblock,8,FALSE)*(1+thawbuffer)))))) ->  | J32: =IF(I32=" "," ",IF($I$2>=1,ROUNDUP(I32*VLOOKUP(B32,thawblock,8,FALSE),0)," ")) ->  | K32: - | M32: =
B33: 27 | D33: =IF($B33>$B$3," ",VLOOKUP(B33,MIXSORT!$BA$4:$BE$1198,3,FALSE)) ->  | G33: =IF($B33>$B$3," ",VLOOKUP($B33,MIXSORT!$BA$4:$BE$1198,5,FALSE)) ->  | H33: =IF(B33>$B$3," ",IF(G33=1,VLOOKUP(Lang!$A$172,LOCATION,WORLD+1,FALSE),VLOOKUP(Lang!$A$173,LOCATION,WORLD+1,FALSE))) ->  | K33: - | M33: =
B34: 28 | D34: =IF($B34>$B$3," ",VLOOKUP(B34,MIXSORT!$BA$4:$BE$1198,3,FALSE)) ->  | G34: =IF($B34>$B$3," ",VLOOKUP($B34,MIXSORT!$BA$4:$BE$1198,5,FALSE)) ->  | H34: =IF(B34>$B$3," ",IF(G34=1,VLOOKUP(Lang!$A$172,LOCATION,WORLD+1,FALSE),VLOOKUP(Lang!$A$173,LOCATION,WORLD+1,FALSE))) ->  | K34: - | M34: =
B35: 29 | D35: =IF($B35>$B$3," ",VLOOKUP(B35,MIXSORT!$BA$4:$BE$1198,3,FALSE)) ->  | G35: =IF($B35>$B$3," ",VLOOKUP($B35,MIXSORT!$BA$4:$BE$1198,5,FALSE)) ->  | H35: =IF(B35>$B$3," ",IF(G35=1,VLOOKUP(Lang!$A$172,LOCATION,WORLD+1,FALSE),VLOOKUP(Lang!$A$173,LOCATION,WORLD+1,FALSE))) ->  | K35: - | M35: =
B36: 30 | D36: =IF($B36>$B$3," ",VLOOKUP(B36,MIXSORT!$BA$4:$BE$1198,3,FALSE)) ->  | G36: =IF($B36>$B$3," ",VLOOKUP($B36,MIXSORT!$BA$4:$BE$1198,5,FALSE)) ->  | H36: =IF(B36>$B$3," ",IF(G36=1,VLOOKUP(Lang!$A$172,LOCATION,WORLD+1,FALSE),VLOOKUP(Lang!$A$173,LOCATION,WORLD+1,FALSE))) ->  | K36: - | M36: =
B37: 31 | D37: =IF($B37>$B$3," ",VLOOKUP(B37,MIXSORT!$BA$4:$BE$1198,3,FALSE)) ->  | G37: =IF($B37>$B$3," ",VLOOKUP($B37,MIXSORT!$BA$4:$BE$1198,5,FALSE)) ->  | H37: =IF(B37>$B$3," ",IF(G37=1,VLOOKUP(Lang!$A$172,LOCATION,WORLD+1,FALSE),VLOOKUP(Lang!$A$173,LOCATION,WORLD+1,FALSE))) ->  | K37: - | M37: =
B38: 32 | D38: =IF($B38>$B$3," ",VLOOKUP(B38,MIXSORT!$BA$4:$BE$1198,3,FALSE)) ->  | G38: =IF($B38>$B$3," ",VLOOKUP($B38,MIXSORT!$BA$4:$BE$1198,5,FALSE)) ->  | H38: =IF(B38>$B$3," ",IF(G38=1,VLOOKUP(Lang!$A$172,LOCATION,WORLD+1,FALSE),VLOOKUP(Lang!$A$173,LOCATION,WORLD+1,FALSE))) ->  | K38: - | M38: =
B39: 33 | D39: =IF($B39>$B$3," ",VLOOKUP(B39,MIXSORT!$BA$4:$BE$1198,3,FALSE)) ->  | G39: =IF($B39>$B$3," ",VLOOKUP($B39,MIXSORT!$BA$4:$BE$1198,5,FALSE)) ->  | H39: =IF(B39>$B$3," ",IF(G39=1,VLOOKUP(Lang!$A$172,LOCATION,WORLD+1,FALSE),VLOOKUP(Lang!$A$173,LOCATION,WORLD+1,FALSE))) ->  | K39: - | M39: =
B40: 34 | D40: =IF($B40>$B$3," ",VLOOKUP(B40,MIXSORT!$BA$4:$BE$1198,3,FALSE)) ->  | G40: =IF($B40>$B$3," ",VLOOKUP($B40,MIXSORT!$BA$4:$BE$1198,5,FALSE)) ->  | H40: =IF(B40>$B$3," ",IF(G40=1,VLOOKUP(Lang!$A$172,LOCATION,WORLD+1,FALSE),VLOOKUP(Lang!$A$173,LOCATION,WORLD+1,FALSE))) ->  | K40: - | M40: =
B41: 35 | D41: =IF($B41>$B$3," ",VLOOKUP(B41,MIXSORT!$BA$4:$BE$1198,3,FALSE)) ->  | G41: =IF($B41>$B$3," ",VLOOKUP($B41,MIXSORT!$BA$4:$BE$1198,5,FALSE)) ->  | H41: =IF(B41>$B$3," ",IF(G41=1,VLOOKUP(Lang!$A$172,LOCATION,WORLD+1,FALSE),VLOOKUP(Lang!$A$173,LOCATION,WORLD+1,FALSE))) ->  | K41: - | M41: =
B42: 36 | D42: =IF($B42>$B$3," ",VLOOKUP(B42,MIXSORT!$BA$4:$BE$1198,3,FALSE)) ->  | G42: =IF($B42>$B$3," ",VLOOKUP($B42,MIXSORT!$BA$4:$BE$1198,5,FALSE)) ->  | H42: =IF(B42>$B$3," ",IF(G42=1,VLOOKUP(Lang!$A$172,LOCATION,WORLD+1,FALSE),VLOOKUP(Lang!$A$173,LOCATION,WORLD+1,FALSE))) ->  | K42: - | M42: =
B43: 37 | D43: =IF($B43>$B$3," ",VLOOKUP(B43,MIXSORT!$BA$4:$BE$1198,3,FALSE)) ->  | G43: =IF($B43>$B$3," ",VLOOKUP($B43,MIXSORT!$BA$4:$BE$1198,5,FALSE)) ->  | H43: =IF(B43>$B$3," ",IF(G43=1,VLOOKUP(Lang!$A$172,LOCATION,WORLD+1,FALSE),VLOOKUP(Lang!$A$173,LOCATION,WORLD+1,FALSE))) ->  | K43: - | M43: =
B44: 38 | D44: =IF($B44>$B$3," ",VLOOKUP(B44,MIXSORT!$BA$4:$BE$1198,3,FALSE)) ->  | G44: =IF($B44>$B$3," ",VLOOKUP($B44,MIXSORT!$BA$4:$BE$1198,5,FALSE)) ->  | H44: =IF(B44>$B$3," ",IF(G44=1,VLOOKUP(Lang!$A$172,LOCATION,WORLD+1,FALSE),VLOOKUP(Lang!$A$173,LOCATION,WORLD+1,FALSE))) ->  | I44: =IF(B44>$B$3," ",IF(VLOOKUP(B44,thawblock,6,FALSE)=""," ",IF(VLOOKUP(B44,thawblock,6,FALSE)=0," ",IF(G44=0,0,(VLOOKUP(B44,thawblock,6,FALSE)/G44/VLOOKUP(B44,thawblock,8,FALSE)*(1+thawbuffer)))))) ->  | J44: =IF(I44=" "," ",IF($I$2>=1,ROUNDUP(I44*VLOOKUP(B44,thawblock,8,FALSE),0)," ")) ->  | K44: - | M44: =
B45: 39 | D45: =IF($B45>$B$3," ",VLOOKUP(B45,MIXSORT!$BA$4:$BE$1198,3,FALSE)) ->  | G45: =IF($B45>$B$3," ",VLOOKUP($B45,MIXSORT!$BA$4:$BE$1198,5,FALSE)) ->  | H45: =IF(B45>$B$3," ",IF(G45=1,VLOOKUP(Lang!$A$172,LOCATION,WORLD+1,FALSE),VLOOKUP(Lang!$A$173,LOCATION,WORLD+1,FALSE))) ->  | K45: - | M45: =
B46: 40 | D46: =IF($B46>$B$3," ",VLOOKUP(B46,MIXSORT!$BA$4:$BE$1198,3,FALSE)) ->  | G46: =IF($B46>$B$3," ",VLOOKUP($B46,MIXSORT!$BA$4:$BE$1198,5,FALSE)) ->  | H46: =IF(B46>$B$3," ",IF(G46=1,VLOOKUP(Lang!$A$172,LOCATION,WORLD+1,FALSE),VLOOKUP(Lang!$A$173,LOCATION,WORLD+1,FALSE))) ->  | K46: - | M46: =
B47: 41 | D47: =IF($B47>$B$3," ",VLOOKUP(B47,MIXSORT!$BA$4:$BE$1198,3,FALSE)) ->  | G47: =IF($B47>$B$3," ",VLOOKUP($B47,MIXSORT!$BA$4:$BE$1198,5,FALSE)) ->  | H47: =IF(B47>$B$3," ",IF(G47=1,VLOOKUP(Lang!$A$172,LOCATION,WORLD+1,FALSE),VLOOKUP(Lang!$A$173,LOCATION,WORLD+1,FALSE))) ->  | K47: - | M47: =
B48: 42 | D48: =IF($B48>$B$3," ",VLOOKUP(B48,MIXSORT!$BA$4:$BE$1198,3,FALSE)) ->  | G48: =IF($B48>$B$3," ",VLOOKUP($B48,MIXSORT!$BA$4:$BE$1198,5,FALSE)) ->  | H48: =IF(B48>$B$3," ",IF(G48=1,VLOOKUP(Lang!$A$172,LOCATION,WORLD+1,FALSE),VLOOKUP(Lang!$A$173,LOCATION,WORLD+1,FALSE))) ->  | K48: - | M48: =
B49: 43 | D49: =IF($B49>$B$3," ",VLOOKUP(B49,MIXSORT!$BA$4:$BE$1198,3,FALSE)) ->  | G49: =IF($B49>$B$3," ",VLOOKUP($B49,MIXSORT!$BA$4:$BE$1198,5,FALSE)) ->  | H49: =IF(B49>$B$3," ",IF(G49=1,VLOOKUP(Lang!$A$172,LOCATION,WORLD+1,FALSE),VLOOKUP(Lang!$A$173,LOCATION,WORLD+1,FALSE))) ->  | K49: - | M49: =
B50: 44 | D50: =IF($B50>$B$3," ",VLOOKUP(B50,MIXSORT!$BA$4:$BE$1198,3,FALSE)) ->  | G50: =IF($B50>$B$3," ",VLOOKUP($B50,MIXSORT!$BA$4:$BE$1198,5,FALSE)) ->  | H50: =IF(B50>$B$3," ",IF(G50=1,VLOOKUP(Lang!$A$172,LOCATION,WORLD+1,FALSE),VLOOKUP(Lang!$A$173,LOCATION,WORLD+1,FALSE))) ->  | K50: - | M50: =
B51: 45 | D51: =IF($B51>$B$3," ",VLOOKUP(B51,MIXSORT!$BA$4:$BE$1198,3,FALSE)) ->  | G51: =IF($B51>$B$3," ",VLOOKUP($B51,MIXSORT!$BA$4:$BE$1198,5,FALSE)) ->  | H51: =IF(B51>$B$3," ",IF(G51=1,VLOOKUP(Lang!$A$172,LOCATION,WORLD+1,FALSE),VLOOKUP(Lang!$A$173,LOCATION,WORLD+1,FALSE))) ->  | K51: - | M51: =
B52: 46 | D52: =IF($B52>$B$3," ",VLOOKUP(B52,MIXSORT!$BA$4:$BE$1198,3,FALSE)) ->  | G52: =IF($B52>$B$3," ",VLOOKUP($B52,MIXSORT!$BA$4:$BE$1198,5,FALSE)) ->  | H52: =IF(B52>$B$3," ",IF(G52=1,VLOOKUP(Lang!$A$172,LOCATION,WORLD+1,FALSE),VLOOKUP(Lang!$A$173,LOCATION,WORLD+1,FALSE))) ->  | I52: =IF(B52>$B$3," ",IF(VLOOKUP(B52,thawblock,6,FALSE)=""," ",IF(VLOOKUP(B52,thawblock,6,FALSE)=0," ",IF(G52=0,0,(VLOOKUP(B52,thawblock,6,FALSE)/G52/VLOOKUP(B52,thawblock,8,FALSE)*(1+thawbuffer)))))) ->  | J52: =IF(I52=" "," ",IF($I$2>=1,ROUNDUP(I52*VLOOKUP(B52,thawblock,8,FALSE),0)," ")) ->  | K52: - | M52: =
B53: 47 | D53: =IF($B53>$B$3," ",VLOOKUP(B53,MIXSORT!$BA$4:$BE$1198,3,FALSE)) ->  | G53: =IF($B53>$B$3," ",VLOOKUP($B53,MIXSORT!$BA$4:$BE$1198,5,FALSE)) ->  | H53: =IF(B53>$B$3," ",IF(G53=1,VLOOKUP(Lang!$A$172,LOCATION,WORLD+1,FALSE),VLOOKUP(Lang!$A$173,LOCATION,WORLD+1,FALSE))) ->  | K53: - | M53: =
B54: 48 | D54: =IF($B54>$B$3," ",VLOOKUP(B54,MIXSORT!$BA$4:$BE$1198,3,FALSE)) ->  | G54: =IF($B54>$B$3," ",VLOOKUP($B54,MIXSORT!$BA$4:$BE$1198,5,FALSE)) ->  | H54: =IF(B54>$B$3," ",IF(G54=1,VLOOKUP(Lang!$A$172,LOCATION,WORLD+1,FALSE),VLOOKUP(Lang!$A$173,LOCATION,WORLD+1,FALSE))) ->  | I54: =IF(B54>$B$3," ",IF(VLOOKUP(B54,thawblock,6,FALSE)=""," ",IF(VLOOKUP(B54,thawblock,6,FALSE)=0," ",IF(G54=0,0,(VLOOKUP(B54,thawblock,6,FALSE)/G54/VLOOKUP(B54,thawblock,8,FALSE)*(1+thawbuffer)))))) ->  | J54: =IF(I54=" "," ",IF($I$2>=1,ROUNDUP(I54*VLOOKUP(B54,thawblock,8,FALSE),0)," ")) ->  | K54: - | M54: =
B55: 49 | D55: =IF($B55>$B$3," ",VLOOKUP(B55,MIXSORT!$BA$4:$BE$1198,3,FALSE)) ->  | G55: =IF($B55>$B$3," ",VLOOKUP($B55,MIXSORT!$BA$4:$BE$1198,5,FALSE)) ->  | H55: =IF(B55>$B$3," ",IF(G55=1,VLOOKUP(Lang!$A$172,LOCATION,WORLD+1,FALSE),VLOOKUP(Lang!$A$173,LOCATION,WORLD+1,FALSE))) ->  | K55: - | M55: =
B56: 50 | D56: =IF($B56>$B$3," ",VLOOKUP(B56,MIXSORT!$BA$4:$BE$1198,3,FALSE)) ->  | G56: =IF($B56>$B$3," ",VLOOKUP($B56,MIXSORT!$BA$4:$BE$1198,5,FALSE)) ->  | H56: =IF(B56>$B$3," ",IF(G56=1,VLOOKUP(Lang!$A$172,LOCATION,WORLD+1,FALSE),VLOOKUP(Lang!$A$173,LOCATION,WORLD+1,FALSE))) ->  | I56: =IF(B56>$B$3," ",IF(VLOOKUP(B56,thawblock,6,FALSE)=""," ",IF(VLOOKUP(B56,thawblock,6,FALSE)=0," ",IF(G56=0,0,(VLOOKUP(B56,thawblock,6,FALSE)/G56/VLOOKUP(B56,thawblock,8,FALSE)*(1+thawbuffer)))))) ->  | J56: =IF(I56=" "," ",IF($I$2>=1,ROUNDUP(I56*VLOOKUP(B56,thawblock,8,FALSE),0)," ")) ->  | K56: - | M56: =
D57: =+datecoder -> 2013-01-10Thu | J57: .

Sheet PLUDATA
A1: data loaded here | K1: filename: | O1: =IF(COUNT(A4:F4)=0,"Yes","No") -> No | P1: <=Commas in Unicode | Z1: =+PLUcode -> 1
A2: v5.4 | X2: SELECTED SET | Z2: Individual PLUs | AB2: Sum PLUs | AD2: Product Names
A3: 18925 | L3: ITEMs | M3: Qty | O3: =IF(CSV="No","","Length") ->  | P3: =IF(CSV="No","","1st") ->  | Q3: =IF(CSV="No","","2nd") ->  | R3: =IF(CSV="No","","3rd") ->  | S3: =IF(CSV="No","","4th") ->  | U3: =IF(CSV="No","","PLU or ProductName") ->  | V3: =IF(CSV="No","","Qty") ->  | X3: ITEMs | Y3: Qty | Z3: ITEMs | AA3: Qty | AB3: ITEMs | AC3: Qty | AD3: ITEMs | AE3: Qty
A4: 2013-01-10 | B4: 5006 | C4: 8 | D4: 0 | E4: Fry in Box | L4: =IF(CSV="Yes",$U4,IF($B4>0,$B4,IF($E4="","",$E4))) -> 5006 | M4: =IF(CSV="Yes",ROUNDUP($V4,0),IF($C4<>"",ROUNDUP($C4,0),"")) -> 8 | O4: =IF(CSV="No","",IF(LEN(A4)=0,"",LEN(A4))) ->  | P4: =IF($O4="","",IF(CSV="No","",FIND(",",A4,1))) ->  | Q4: =IF($O4="","",IF(CSV="No","",FIND(",",$A4,P4+1))) ->  | T4: =IF(O4="","",IF(Q4-P4<>1,TRIM(MID($A4,P4+1,Q4-P4-1)),TRIM(RIGHT($A4,O4-S4)))) ->  | U4: =SUBSTITUTE(T4,CHAR(34),"") ->  | V4: =IF($O4="",0,MID(A4,Q4+1,R4-Q4-1)) -> 0 | X4: =IF(ISNcode=1,Z4,IF(ISNcode=2,AB4,AD4)) -> 9999999 | Y4: =IF(ISNcode=1,AA4,IF(ISNcode=2,AC4,AE4)) -> 8 | Z4: =IF(CSV="Yes",$U4,IF($B4>0,IF(ISNA(VLOOKUP($B4,INDIRECT(VLOOKUP(POS_VENDOR, POS_LIST, 2, FALSE)), 2, FALSE)), 9999999, VLOOKUP($B4,INDIRECT(VLOOKUP(POS_VENDOR, POS_LIST, 2, FALSE)), 2, FALSE)),IF($E4="","",$E4))) -> 9999999 | AA4: =IF(CSV="Yes",ROUNDUP($V4,0),IF($C4<>"",ROUNDUP($C4,0),"")) -> 8 | AB4: =IF(CSV="Yes",$U4,IF($B4>0,$B4,IF($E4="","",$E4))) -> 5006 | AC4: =IF(CSV="Yes",ROUNDUP(SUMIF($L$4:$L$2500,"="&AB4,$V$4:$V$2500),0),SUMIF($B$4:$B$2500,"="&AB4,$C$4:$C$2500)) -> 8 | AD4: =IF(CSV="Yes",$U4,IF($E4="","",$E4)) -> Fry in Box | AE4: =IF(CSV="Yes",ROUNDUP(SUMIF($L$4:$L$2500,"="&AD4,$V$4:$V$2500),0),SUMIF($E$4:$E$2502,"="&AD4,$M$4:$M$2502)) -> 8
A5: 2013-01-10 | B5: 10000 | C5: 1 | D5: 0.69 | E5: SIDE OF EGG | L5: =IF(CSV="Yes",$U5,IF($B5>0,$B5,IF($E5="","",$E5))) -> 10000 | M5: =IF(CSV="Yes",ROUNDUP($V5,0),IF($C5<>"",ROUNDUP($C5,0),"")) -> 1 | O5: =IF(CSV="No","",IF(LEN(A5)=0,"",LEN(A5))) ->  | P5: =IF($O5="","",IF(CSV="No","",FIND(",",A5,1))) ->  | T5: =IF(O5="","",IF(Q5-P5<>1,TRIM(MID($A5,P5+1,Q5-P5-1)),TRIM(RIGHT($A5,O5-S5)))) ->  | U5: =SUBSTITUTE(T5,CHAR(34),"") ->  | V5: =IF($O5="",0,MID(A5,Q5+1,R5-Q5-1)) -> 0 | X5: 9999999 | Y5: 1 | Z5: =IF(CSV="Yes",$U5,IF($B5>0,IF(ISNA(VLOOKUP($B5,INDIRECT(VLOOKUP(POS_VENDOR, POS_LIST, 2, FALSE)), 2, FALSE)), 9999999, VLOOKUP($B5,INDIRECT(VLOOKUP(POS_VENDOR, POS_LIST, 2, FALSE)), 2, FALSE)),IF($E5="","",$E5))) -> 9999999 | AA5: =IF(CSV="Yes",ROUNDUP($V5,0),IF($C5<>"",ROUNDUP($C5,0),"")) -> 1 | AB5: =IF(CSV="Yes",$U5,IF($B5>0,$B5,IF($E5="","",$E5))) -> 10000 | AC5: 1 | AD5: =IF(CSV="Yes",$U5,IF($E5="","",$E5)) -> SIDE OF EGG | AE5: 1
A6: 2013-01-10 | B6: 10008 | C6: 1 | D6: 0.8 | E6: SIDE OF SSG | L6: =IF(CSV="Yes",$U6,IF($B6>0,$B6,IF($E6="","",$E6))) -> 10008 | M6: =IF(CSV="Yes",ROUNDUP($V6,0),IF($C6<>"",ROUNDUP($C6,0),"")) -> 1 | O6: =IF(CSV="No","",IF(LEN(A6)=0,"",LEN(A6))) ->  | P6: =IF($O6="","",IF(CSV="No","",FIND(",",A6,1))) ->  | Q6: =IF($O6="","",IF(CSV="No","",FIND(",",$A6,P6+1))) ->  | T6: =IF(O6="","",IF(Q6-P6<>1,TRIM(MID($A6,P6+1,Q6-P6-1)),TRIM(RIGHT($A6,O6-S6)))) ->  | V6: =IF($O6="",0,MID(A6,Q6+1,R6-Q6-1)) -> 0 | X6: 538 | Y6: 1 | Z6: =IF(CSV="Yes",$U6,IF($B6>0,IF(ISNA(VLOOKUP($B6,INDIRECT(VLOOKUP(POS_VENDOR, POS_LIST, 2, FALSE)), 2, FALSE)), 9999999, VLOOKUP($B6,INDIRECT(VLOOKUP(POS_VENDOR, POS_LIST, 2, FALSE)), 2, FALSE)),IF($E6="","",$E6))) -> 538 | AA6: =IF(CSV="Yes",ROUNDUP($V6,0),IF($C6<>"",ROUNDUP($C6,0),"")) -> 1 | AB6: =IF(CSV="Yes",$U6,IF($B6>0,$B6,IF($E6="","",$E6))) -> 10008 | AC6: 1 | AD6: =IF(CSV="Yes",$U6,IF($E6="","",$E6)) -> SIDE OF SSG | AE6: 1
A7: 2013-01-10 | B7: 10108 | C7: 2 | D7: 1.89 | E7: CROIS SSG | L7: 10108 | M7: 2 | V7: 0 | X7: 209 | Y7: 2 | Z7: 209 | AA7: 2 | AB7: 10108 | AC7: 2 | AD7: CROIS SSG | AE7: 2
A8: 2013-01-10 | B8: 10110 | C8: 1 | D8: 1.89 | E8: CROIS HAM | L8: 10110 | M8: 1 | V8: 0 | X8: 115 | Y8: 1 | Z8: 115 | AA8: 1 | AB8: 10110 | AC8: 1 | AD8: CROIS HAM | AE8: 1
A9: 2013-01-10 | B9: 10208 | C9: 2 | D9: 2.49 | E9: CROIS S/EGG | L9: 10208 | M9: 2 | V9: 0 | X9: 236 | Y9: 2 | Z9: 236 | AA9: 2 | AB9: 10208 | AC9: 2 | AD9: CROIS S/EGG | AE9: 2
A10: 2013-01-10 | B10: 10209 | C10: 3 | D10: 2.49 | E10: CROIS B/EGG | L10: 10209 | M10: 3 | V10: 0 | X10: 60 | Y10: 3 | Z10: 60 | AA10: 3 | AB10: 10209 | AC10: 3 | AD10: CROIS B/EGG | AE10: 3
A11: 2013-01-10 | B11: 10250 | C11: 11 | D11: 1.99 | E11: CHICKEN BISCUIT | L11: 10250 | M11: 11 | V11: 0 | X11: 1950 | Y11: 11 | Z11: 1950 | AA11: 11 | AB11: 10250 | AC11: 11 | AD11: CHICKEN BISCUIT | AE11: 11
A12: 2013-01-10 | B12: 10308 | C12: 1 | D12: 1.99 | E12: CROIS S/CHZ | L12: 10308 | M12: 1 | V12: 0 | X12: 235 | Y12: 1 | Z12: 235 | AA12: 1 | AB12: 10308 | AC12: 1 | AD12: CROIS S/CHZ | AE12: 1
A13: 2013-01-10 | B13: 10310 | C13: 3 | D13: 1.99 | E13: CROIS H/CHZ | L13: 10310 | M13: 3 | V13: 0 | X13: 135 | Y13: 3 | Z13: 135 | AA13: 3 | AB13: 10310 | AC13: 3 | AD13: CROIS H/CHZ | AE13: 3
A14: 2013-01-10 | B14: 10400 | C14: 2 | D14: 1.89 | E14: CROIS EGG/CHEESE | L14: 10400 | M14: 2 | V14: 0 | X14: 111 | Y14: 2 | Z14: 111 | AA14: 2 | AB14: 10400 | AC14: 2 | AD14: CROIS EGG/CHEESE | AE14: 2
A15: 2013-01-10 | B15: 10408 | C15: 26 | D15: 2.59 | E15: CROIS S/E/C | L15: 10408 | M15: 26 | V15: 0 | X15: 410 | Y15: 26 | Z15: 410 | AA15: 26 | AB15: 10408 | AC15: 26 | AD15: CROIS S/E/C | AE15: 26
A16: 2013-01-10 | B16: 10409 | C16: 21 | D16: 2.59 | E16: CROIS B/E/C | L16: 10409 | M16: 21 | V16: 0 | X16: 329 | Y16: 21 | Z16: 329 | AA16: 21 | AB16: 10409 | AC16: 21 | AD16: CROIS B/E/C | AE16: 21
A17: 2013-01-10 | B17: 10410 | C17: 9 | D17: 2.59 | E17: CROIS H/E/C | L17: 10410 | M17: 9 | V17: 0 | X17: 364 | Y17: 9 | Z17: 364 | AA17: 9 | AB17: 10410 | AC17: 9 | AD17: CROIS H/E/C | AE17: 9
A18: 2013-01-10 | B18: 10500 | C18: 5 | D18: 1 | E18: BISCUIT PLAIN | L18: 10500 | M18: 5 | V18: 0 | X18: 470 | Y18: 5 | Z18: 470 | AA18: 5 | AB18: 10500 | AC18: 5 | AD18: BISCUIT PLAIN | AE18: 5
A19: 2013-01-10 | B19: 10508 | C19: 13 | D19: 1 | E19: BISC SSG | L19: 10508 | M19: 13 | V19: 0 | X19: 475 | Y19: 13 | Z19: 475 | AA19: 13 | AB19: 10508 | AC19: 13 | AD19: BISC SSG | AE19: 13
A20: 2013-01-10 | B20: 10510 | C20: 1 | D20: 1.6 | E20: BISC HAM | L20: 10510 | M20: 1 | V20: 0 | X20: 275 | Y20: 1 | Z20: 275 | AA20: 1 | AB20: 10510 | AC20: 1 | AD20: BISC HAM | AE20: 1
A21: 2013-01-10 | B21: 10600 | C21: 1 | D21: 1.69 | E21: BISC EGG | L21: 10600 | M21: 1 | V21: 0 | X21: 480 | Y21: 1 | Z21: 480 | AA21: 1 | AB21: 10600 | AC21: 1 | AD21: BISC EGG | AE21: 1
A22: 2013-01-10 | B22: 10608 | C22: 4 | D22: 1.69 | E22: BISC S/EGG | L22: 10608 | M22: 4 | V22: 0 | X22: 474 | Y22: 4 | Z22: 474 | AA22: 4 | AB22: 10608 | AC22: 4 | AD22: BISC S/EGG | AE22: 4
A23: 2013-01-10 | B23: 10708 | C23: 3 | D23: 1.2 | E23: BISC S/CHZ | L23: 10708 | M23: 3 | V23: 0 | X23: 378 | Y23: 3 | Z23: 378 | AA23: 3 | AB23: 10708 | AC23: 3 | AD23: BISC S/CHZ | AE23: 3
A24: 2013-01-10 | B24: 10800 | C24: 1 | D24: 1.89 | E24: BISC E/C | L24: 10800 | M24: 1 | Q24: =IF($O24="","",IF(CSV="No","",FIND(",",$A24,P24+1))) ->  | V24: 0 | X24: 428 | Y24: 1 | Z24: 428 | AA24: 1 | AB24: 10800 | AC24: 1 | AD24: BISC E/C | AE24: 1
A25: 2013-01-10 | B25: 10808 | C25: 3 | D25: 2.49 | E25: BISC S/E/C | L25: 10808 | M25: 3 | V25: 0 | X25: 434 | Y25: 3 | Z25: 434 | AA25: 3 | AB25: 10808 | AC25: 3 | AD25: BISC S/E/C | AE25: 3
A26: 2013-01-10 | B26: 10809 | C26: 4 | D26: 2.49 | E26: BISC B/E/C | L26: 10809 | M26: 4 | V26: 0 | X26: 376 | Y26: 4 | Z26: 376 | AA26: 4 | AB26: 10809 | AC26: 4 | AD26: BISC B/E/C | AE26: 4
A27: 2013-01-10 | B27: 11060 | C27: 3 | D27: 1 | E27: 3PC FRNCH TST | L27: 11060 | M27: 3 | V27: 0 | X27: 3707 | Y27: 3 | Z27: 3707 | AA27: 3 | AB27: 11060 | AC27: 3 | AD27: 3PC FRNCH TST | AE27: 3
A28: 2013-01-10 | B28: 11111 | C28: 1 | D28: 1.99 | E28: Maple Br.Sug.Oatmeal | L28: 11111 | M28: 1 | V28: 0 | X28: 9999999 | Y28: 1 | Z28: 9999999 | AA28: 1 | AB28: 11111 | AC28: 1 | AD28: Maple Br.Sug.Oatmeal | AE28: 1
A29: 2013-01-10 | B29: 11600 | C29: 22 | D29: 1 | E29: SM HASH BROWNS | L29: 11600 | M29: 22 | V29: 0 | X29: 461 | Y29: 22 | Z29: 461 | AA29: 22 | AB29: 11600 | AC29: 22 | AD29: SM HASH BROWNS | AE29: 22
A30: 2013-01-10 | B30: 11601 | C30: 3 | D30: 1.59 | E30: MD HASHBROWN | L30: 11601 | M30: 3 | V30: 0 | X30: 3405 | Y30: 3 | Z30: 3405 | AA30: 3 | AB30: 11601 | AC30: 3 | AD30: MD HASHBROWN | AE30: 3
A31: 2013-01-10 | B31: 11701 | C31: 9 | D31: 1.79 | E31: (1) MINIBON ROLL | L31: 11701 | M31: 9 | V31: 0 | X31: 9999999 | Y31: 9 | Z31: 9999999 | AA31: 9 | AB31: 11701 | AC31: 9 | AD31: (1) MINIBON ROLL | AE31: 9
A32: 2013-01-10 | B32: 11702 | C32: 9 | D32: 3.49 | E32: 2- MINIBON ROLLS | L32: 11702 | M32: 9 | V32: 0 | X32: 9999999 | Y32: 9 | Z32: 9999999 | AA32: 9 | AB32: 11702 | AC32: 9 | AD32: 2- MINIBON ROLLS | AE32: 9
A33: 2013-01-10 | B33: 11704 | C33: 1 | D33: 5.99 | E33: (4) MINIBON ROLLS | L33: 11704 | M33: 1 | V33: 0 | X33: 9999999 | Y33: 1 | Z33: 9999999 | AA33: 1 | AB33: 11704 | AC33: 1 | AD33: (4) MINIBON ROLLS | AE33: 1
A34: 2013-01-10 | B34: 12400 | C34: 3 | D34: 3.39 | E34: DBL SEC BAC CROIS | L34: 12400 | M34: 3 | V34: 0 | X34: 2756 | Y34: 3 | Z34: 2756 | AA34: 3 | AB34: 12400 | AC34: 3 | AD34: DBL SEC BAC CROIS | AE34: 3
A35: 2013-01-10 | B35: 13500 | C35: 43 | D35: 1 | E35: 4PC Nuggets | L35: 13500 | M35: 43 | V35: 0 | X35: 212 | Y35: 43 | Z35: 212 | AA35: 43 | AB35: 13500 | AC35: 43 | AD35: 4PC Nuggets | AE35: 43
A36: 2013-01-10 | B36: 13600 | C36: 5 | D36: 3.99 | E36: 6PC Nuggets | L36: 13600 | M36: 5 | V36: 0 | X36: 270 | Y36: 5 | Z36: 270 | AA36: =IF(CSV="Yes",ROUNDUP($V36,0),IF($C36<>"",ROUNDUP($C36,0),"")) -> 5 | AB36: =IF(CSV="Yes",$U36,IF($B36>0,$B36,IF($E36="","",$E36))) -> 13600 | AC36: 5 | AD36: 6PC Nuggets | AE36: 5
A37: 2013-01-10 | B37: 14000 | C37: 1 | D37: 2.49 | E37: S'WESTRN BURRITO | L37: 14000 | M37: 1 | V37: 0 | X37: 7414 | Y37: 1 | Z37: 7414 | AA37: 1 | AB37: 14000 | AC37: 1 | AD37: S'WESTRN BURRITO | AE37: 1
A38: 2013-01-10 | B38: 14010 | C38: 5 | D38: 1 | E38: SA.&EG.BURRITO | L38: 14010 | M38: 5 | V38: 0 | X38: 7414 | Y38: 5 | Z38: 7414 | AA38: 5 | AB38: 14010 | AC38: 5 | AD38: SA.&EG.BURRITO | AE38: 5
A39: 2013-01-10 | B39: 15010 | C39: 2 | D39: 1.99 | E39: MUFFIN S/E/C | L39: 15010 | M39: 2 | V39: 0 | X39: 7414 | Y39: 2 | Z39: 7414 | AA39: 2 | AB39: 15010 | AC39: 2 | AD39: MUFFIN S/E/C | AE39: 2
A40: 2013-01-10 | B40: 15012 | C40: 2 | D40: 1 | E40: MUFFIN SAUS.CH | L40: 15012 | M40: 2 | V40: 0 | X40: 9999999 | Y40: 2 | Z40: 9999999 | AA40: 2 | AB40: 15012 | AC40: 2 | AD40: MUFFIN SAUS.CH | AE40: 2
A41: 2013-01-10 | B41: 16020 | C41: 1 | D41: 4.39 | E41: SA.ULTIMATE | L41: 16020 | M41: 1 | V41: 0 | X41: 9999999 | Y41: 1 | Z41: 9999999 | AA41: 1 | AB41: 16020 | AC41: 1 | AD41: SA.ULTIMATE | AE41: 1
A42: 2013-01-10 | B42: 19300 | C42: 25 | D42: 1.3 | E42: KID'S TOY- BOY | L42: 19300 | M42: 25 | V42: 0 | X42: 440 | Y42: 25 | Z42: 440 | AA42: 25 | AB42: 19300 | AC42: 25 | AD42: KID'S TOY- BOY | AE42: 25
A43: 2013-01-10 | B43: 19340 | C43: 25 | D43: 0.25 | E43: Carton Kids Crown | L43: 19340 | M43: 25 | V43: 0 | X43: 9999999 | Y43: 25 | Z43: 9999999 | AA43: 25 | AB43: 19340 | AC43: 25 | AD43: Carton Kids Crown | AE43: 25
A44: 2013-01-10 | B44: 20100 | C44: 158 | D44: 3.29 | E44: WHOPPER | L44: 20100 | M44: 158 | Q44: =IF($O44="","",IF(CSV="No","",FIND(",",$A44,P44+1))) ->  | V44: 0 | X44: 10 | Y44: 158 | Z44: 10 | AA44: 158 | AB44: 20100 | AC44: 158 | AD44: WHOPPER | AE44: 158
A45: 2013-01-10 | B45: 20150 | C45: 9 | D45: 4.19 | E45: DBL WHOPPER | L45: 20150 | M45: 9 | V45: 0 | X45: 15 | Y45: 9 | Z45: 15 | AA45: 9 | AB45: 20150 | AC45: 9 | AD45: DBL WHOPPER | AE45: 9
A46: 2013-01-10 | B46: 20200 | C46: 82 | D46: 3.69 | E46: WHOPPER CHS | L46: 20200 | M46: 82 | V46: 0 | X46: 12 | Y46: 82 | Z46: 12 | AA46: 82 | AB46: 20200 | AC46: 82 | AD46: WHOPPER CHS | AE46: 82
A47: 2013-01-10 | B47: 20202 | C47: 29 | D47: 4.59 | E47: DBL WHOP CHS | L47: 20202 | M47: 29 | V47: 0 | X47: 17 | Y47: 29 | Z47: 17 | AA47: 29 | AB47: 20202 | AC47: 29 | AD47: DBL WHOP CHS | AE47: 29
A48: 2013-01-10 | B48: 20300 | C48: 109 | D48: 1.59 | E48: WHOPPER JR | L48: 20300 | M48: 109 | V48: 0 | X48: 298 | Y48: 109 | Z48: 298 | AA48: 109 | AB48: 20300 | AC48: 109 | AD48: WHOPPER JR | AE48: 109
A49: 2013-01-10 | B49: 20400 | C49: 29 | D49: 1.79 | E49: WHOP JR CHS | L49: 20400 | M49: 29 | V49: 0 | X49: 299 | Y49: 29 | Z49: 299 | AA49: 29 | AB49: 20400 | AC49: 29 | AD49: WHOP JR CHS | AE49: 29
A50: 2013-01-10 | B50: 20500 | C50: 7 | D50: 1 | E50: BURGER | L50: 20500 | M50: 7 | V50: 0 | X50: 178 | Y50: 7 | Z50: 178 | AA50: 7 | AB50: 20500 | AC50: 7 | AD50: BURGER | AE50: 7
A51: 2013-01-10 | B51: 20600 | C51: 31 | D51: 1.2 | E51: CHS BURGER | L51: 20600 | M51: 31 | V51: 0 | X51: 189 | Y51: 31 | Z51: 189 | AA51: 31 | AB51: 20600 | AC51: 31 | AD51: CHS BURGER | AE51: 31
A52: 2013-01-10 | B52: 20602 | C52: 37 | D52: 1.49 | E52: DBL CHS BURGER | L52: 20602 | M52: 37 | V52: 0 | X52: 127 | Y52: 37 | Z52: 127 | AA52: 37 | AB52: 20602 | AC52: 37 | AD52: DBL CHS BURGER | AE52: 37
A53: 2013-01-10 | B53: 20610 | C53: 46 | D53: 1 | E53: BK Bacon Burger | L53: 20610 | M53: 46 | V53: 0 | X53: 9999999 | Y53: 46 | Z53: 9999999 | AA53: 46 | AB53: 20610 | AC53: 46 | AD53: BK Bacon Burger | AE53: 46
A54: 2013-01-10 | B54: 20700 | C54: 5 | D54: 2.99 | E54: BK VEGGIE | L54: 20700 | M54: 5 | V54: 0 | X54: 2932 | Y54: 5 | Z54: 2932 | AA54: 5 | AB54: 20700 | AC54: 5 | AD54: BK VEGGIE | AE54: 5
A55: 2013-01-10 | B55: 20760 | C55: 1 | D55: 1.79 | E55: BAC CHS BURGER | L55: 20760 | M55: 1 | V55: 0 | X55: 187 | Y55: 1 | Z55: 187 | AA55: 1 | AB55: 20760 | AC55: 1 | AD55: BAC CHS BURGER | AE55: 1
A56: 2013-01-10 | B56: 21299 | C56: 8 | D56: 1.29 | E56: STACKER Single | L56: 21299 | M56: 8 | V56: 0 | X56: 9999999 | Y56: 8 | Z56: 9999999 | AA56: 8 | AB56: 21299 | AC56: 8 | AD56: STACKER Single | AE56: 8
A57: 2013-01-10 | B57: 21300 | C57: 24 | D57: 2.29 | E57: STACKER DBL | L57: 21300 | M57: 24 | V57: 0 | X57: 6382 | Y57: 24 | Z57: 6382 | AA57: 24 | AB57: 21300 | AC57: 24 | AD57: STACKER DBL | AE57: 24
A58: 2013-01-10 | B58: 21302 | C58: 1 | D58: 4.29 | E58: STACKER QUAD | L58: 21302 | M58: 1 | V58: 0 | X58: 6386 | Y58: 1 | Z58: 6386 | AA58: 1 | AB58: 21302 | AC58: 1 | AD58: STACKER QUAD | AE58: 1
A59: 2013-01-10 | B59: 23110 | C59: 6 | D59: 4.49 | E59: Avoc.WHOPPER | L59: 23110 | M59: 6 | V59: 0 | X59: 9999999 | Y59: 6 | Z59: 9999999 | AA59: 6 | AB59: 23110 | AC59: 6 | AD59: Avoc.WHOPPER | AE59: 6
A60: 2013-01-10 | B60: 30100 | C60: 84 | D60: 3.59 | E60: CHICKEN SAND | L60: 30100 | M60: 84 | V60: 0 | X60: 220 | Y60: 84 | Z60: 220 | AA60: 84 | AB60: 30100 | AC60: 84 | AD60: CHICKEN SAND | AE60: 84
A61: 2013-01-10 | B61: 30200 | C61: 10 | D61: 4.29 | E61: ITAL CHK | L61: 30200 | M61: 10 | V61: 0 | X61: 204 | Y61: 10 | Z61: 204 | AA61: 10 | AB61: 30200 | AC61: 10 | AD61: ITAL CHK | AE61: 10
A62: 2013-01-10 | B62: 30300 | C62: 6 | D62: 3.99 | E62: TDR CRP CHICK | L62: 30300 | M62: 6 | V62: 0 | X62: 1872 | Y62: 6 | Z62: 1872 | AA62: 6 | AB62: 30300 | AC62: 6 | AD62: TDR CRP CHICK | AE62: 6
A63: 2013-01-10 | B63: 30400 | C63: 4 | D63: 3.39 | E63: FISH SANDWICH | L63: 30400 | M63: 4 | V63: 0 | X63: 2986 | Y63: 4 | Z63: 2986 | AA63: 4 | AB63: 30400 | AC63: 4 | AD63: FISH SANDWICH | AE63: 4
A64: 2013-01-10 | B64: 30500 | C64: 8 | D64: 3.99 | E64: TENDER GRILL | L64: 30500 | M64: 8 | Q64: =IF($O64="","",IF(CSV="No","",FIND(",",$A64,P64+1))) ->  | V64: 0 | X64: 5968 | Y64: 8 | Z64: 5968 | AA64: 8 | AB64: 30500 | AC64: 8 | AD64: TENDER GRILL | AE64: 8
A65: 2013-01-10 | B65: 30511 | C65: 1 | D65: 1.99 | E65: TND GRL PATTY | L65: 30511 | M65: 1 | V65: 0 | X65: 3117 | Y65: 1 | Z65: 3117 | AA65: 1 | AB65: 30511 | AC65: 1 | AD65: TND GRL PATTY | AE65: 1
A66: 2013-01-10 | B66: 30700 | C66: 7 | D66: 4.29 | E66: PHILLY CHICKEN | L66: 30700 | M66: 7 | V66: 0 | X66: 105 | Y66: 7 | Z66: 105 | AA66: 7 | AB66: 30700 | AC66: 7 | AD66: PHILLY CHICKEN | AE66: 7
A67: 2013-01-10 | B67: 33100 | C67: 7 | D67: 1 | E67: SPICY CHIC'N CRISP | L67: 33100 | M67: 7 | V67: 0 | X67: 7336 | Y67: 7 | Z67: 7336 | AA67: 7 | AB67: 33100 | AC67: 7 | AD67: SPICY CHIC'N CRISP | AE67: 7
A68: 2013-01-10 | B68: 33200 | C68: 16 | D68: 1 | E68: CHIK'N CRISP | L68: =IF(CSV="Yes",$U68,IF($B68>0,$B68,IF($E68="","",$E68))) -> 33200 | M68: =IF(CSV="Yes",ROUNDUP($V68,0),IF($C68<>"",ROUNDUP($C68,0),"")) -> 16 | O68: =IF(CSV="No","",IF(LEN(A68)=0,"",LEN(A68))) ->  | P68: =IF($O68="","",IF(CSV="No","",FIND(",",A68,1))) ->  | V68: 0 | X68: =IF(ISNcode=1,Z68,IF(ISNcode=2,AB68,AD68)) -> 7414 | Y68: =IF(ISNcode=1,AA68,IF(ISNcode=2,AC68,AE68)) -> 16 | Z68: =IF(CSV="Yes",$U68,IF($B68>0,IF(ISNA(VLOOKUP($B68,INDIRECT(VLOOKUP(POS_VENDOR, POS_LIST, 2, FALSE)), 2, FALSE)), 9999999, VLOOKUP($B68,INDIRECT(VLOOKUP(POS_VENDOR, POS_LIST, 2, FALSE)), 2, FALSE)),IF($E68="","",$E68))) -> 7414 | AA68: =IF(CSV="Yes",ROUNDUP($V68,0),IF($C68<>"",ROUNDUP($C68,0),"")) -> 16 | AB68: =IF(CSV="Yes",$U68,IF($B68>0,$B68,IF($E68="","",$E68))) -> 33200 | AC68: =IF(CSV="Yes",ROUNDUP(SUMIF($L$4:$L$2500,"="&AB68,$V$4:$V$2500),0),SUMIF($B$4:$B$2500,"="&AB68,$C$4:$C$2500)) -> 16 | AD68: =IF(CSV="Yes",$U68,IF($E68="","",$E68)) -> CHIK'N CRISP | AE68: =IF(CSV="Yes",ROUNDUP(SUMIF($L$4:$L$2500,"="&AD68,$V$4:$V$2500),0),SUMIF($E$4:$E$2502,"="&AD68,$M$4:$M$2502)) -> 16
A69: 2013-01-10 | B69: 33560 | C69: 1 | D69: 3.49 | E69: T-C Ap&C WRAP | L69: 33560 | M69: 1 | T69: =IF(O69="","",IF(Q69-P69<>1,TRIM(MID($A69,P69+1,Q69-P69-1)),TRIM(RIGHT($A69,O69-S69)))) ->  | U69: =SUBSTITUTE(T69,CHAR(34),"") ->  | V69: =IF($O69="",0,MID(A69,Q69+1,R69-Q69-1)) -> 0 | X69: 9999999 | Y69: 1 | Z69: 9999999 | AA69: 1 | AB69: 33560 | AC69: 1 | AD69: T-C Ap&C WRAP | AE69: 1
A70: 2013-01-10 | B70: 40100 | C70: 11 | D70: 0 | E70: bbq sauce | L70: 40100 | M70: 11 | V70: 0 | X70: 9999999 | Y70: 11 | Z70: 9999999 | AA70: 11 | AB70: 40100 | AC70: 11 | AD70: bbq sauce | AE70: 15
A71: 2013-01-10 | B71: 40200 | C71: 6 | D71: 0 | E71: honey mustard | L71: 40200 | M71: 6 | V71: 0 | X71: 9999999 | Y71: 6 | Z71: 9999999 | AA71: 6 | AB71: 40200 | AC71: 6 | AD71: honey mustard | AE71: 10
A72: 2013-01-10 | B72: 40300 | C72: 2 | D72: 0 | E72: sweet & sour | L72: 40300 | M72: 2 | V72: 0 | X72: 9999999 | Y72: 2 | Z72: 9999999 | AA72: 2 | AB72: 40300 | AC72: 2 | AD72: sweet & sour | AE72: 6
A73: 2013-01-10 | B73: 40400 | C73: 2 | D73: 0 | E73: buffalo sauce | L73: 40400 | M73: 2 | V73: 0 | X73: 9999999 | Y73: 2 | Z73: 9999999 | AA73: 2 | AB73: 40400 | AC73: 2 | AD73: buffalo sauce | AE73: 2
A74: 2013-01-10 | B74: 40600 | C74: 1 | D74: 0 | E74: ranch sauce | L74: 40600 | M74: 1 | V74: 0 | X74: 9999999 | Y74: 1 | Z74: 9999999 | AA74: 1 | AB74: 40600 | AC74: 1 | AD74: ranch sauce | AE74: 9
A75: 2013-01-10 | B75: 50000 | C75: 36 | D75: 1.19 | E75: VAL FRY | L75: 50000 | M75: 36 | V75: 0 | X75: 300 | Y75: 36 | Z75: 300 | AA75: 36 | AB75: 50000 | AC75: 36 | AD75: VAL FRY | AE75: 36
A76: 2013-01-10 | B76: 50001 | C76: 331 | D76: 1.49 | E76: SM FRY | L76: 50001 | M76: 331 | V76: 0 | X76: 302 | Y76: 331 | Z76: 302 | AA76: 331 | AB76: 50001 | AC76: 331 | AD76: SM FRY | AE76: 331
A77: 2013-01-10 | B77: 50002 | C77: 41 | D77: 1.69 | E77: MD FRY | L77: 50002 | M77: 41 | V77: 0 | X77: 1553 | Y77: 41 | Z77: 1553 | AA77: 41 | AB77: 50002 | AC77: 41 | AD77: MD FRY | AE77: 41
A78: 2013-01-10 | B78: 50003 | C78: 44 | D78: 1.99 | E78: LG FRY | L78: 50003 | M78: 44 | V78: 0 | X78: 1555 | Y78: 44 | Z78: 1555 | AA78: 44 | AB78: 50003 | AC78: 44 | AD78: LG FRY | AE78: 44
A79: 2013-01-10 | B79: 50030 | C79: 1 | D79: 1.89 | E79: S.Swt.Pot Curley Fry | L79: 50030 | M79: 1 | V79: 0 | X79: 9999999 | Y79: 1 | Z79: 9999999 | AA79: 1 | AB79: 50030 | AC79: 1 | AD79: S.Swt.Pot Curley Fry | AE79: 1
A80: 2013-01-10 | B80: 50100 | C80: 10 | D80: 1.19 | E80: VAL O-RING | L80: 50100 | M80: 10 | V80: 0 | X80: 1792 | Y80: 10 | Z80: 1792 | AA80: 10 | AB80: 50100 | AC80: 10 | AD80: VAL O-RING | AE80: 10
A81: 2013-01-10 | B81: 50101 | C81: 35 | D81: 1.59 | E81: SM O-RING | L81: 50101 | M81: 35 | V81: 0 | X81: 96 | Y81: 35 | Z81: 96 | AA81: 35 | AB81: 50101 | AC81: 35 | AD81: SM O-RING | AE81: 35
A82: 2013-01-10 | B82: 50102 | C82: 2 | D82: 1.79 | E82: MD O-RING | L82: 50102 | M82: 2 | V82: 0 | X82: 446 | Y82: 2 | Z82: 446 | AA82: 2 | AB82: 50102 | AC82: 2 | AD82: MD O-RING | AE82: 2
A83: 2013-01-10 | B83: 50103 | C83: 15 | D83: 1.99 | E83: LG O-RING | L83: 50103 | M83: 15 | V83: 0 | X83: 97 | Y83: 15 | Z83: 97 | AA83: 15 | AB83: 50103 | AC83: 15 | AD83: LG O-RING | AE83: 15
A84: 2013-01-10 | B84: 50201 | C84: 18 | D84: 2.79 | E84: 10 PC NUGGETS | L84: 50201 | M84: 18 | Q84: =IF($O84="","",IF(CSV="No","",FIND(",",$A84,P84+1))) ->  | V84: 0 | X84: 582 | Y84: 18 | Z84: 582 | AA84: 18 | AB84: 50201 | AC84: 18 | AD84: 10 PC NUGGETS | AE84: 18
A85: 2013-01-10 | B85: 50205 | C85: 9 | D85: 4.29 | E85: 20 PC NUGGETS | L85: 50205 | M85: 9 | V85: 0 | X85: 9999999 | Y85: 9 | Z85: 9999999 | AA85: 9 | AB85: 50205 | AC85: 9 | AD85: 20 PC NUGGETS | AE85: 9
A86: 2013-01-10 | B86: 50213 | C86: 1 | D86: 1.69 | E86: 2 Pc. Chk STRIPS | L86: 50213 | M86: 1 | V86: 0 | X86: 9999999 | Y86: 1 | Z86: 9999999 | AA86: 1 | AB86: 50213 | AC86: 1 | AD86: 2 Pc. Chk STRIPS | AE86: 1
A87: 2013-01-10 | B87: 50215 | C87: 2 | D87: 2.99 | E87: 3-PC.CHICKEN STRIPS | L87: 50215 | M87: 2 | V87: 0 | X87: 9999999 | Y87: 2 | Z87: 9999999 | AA87: 2 | AB87: 50215 | AC87: 2 | AD87: 3-PC.CHICKEN STRIPS | AE87: 2
A88: 2013-01-10 | B88: 50217 | C88: 3 | D88: 2.99 | E88: 3pc.CK-S MEAL | L88: 50217 | M88: 3 | V88: 0 | X88: 9999999 | Y88: 3 | Z88: 9999999 | AA88: 3 | AB88: 50217 | AC88: 3 | AD88: 3pc.CK-S MEAL | AE88: 3
A89: 2013-01-10 | B89: 50220 | C89: 2 | D89: 4.49 | E89: 5-pc.CHICKEN STRIPS | L89: 50220 | M89: 2 | V89: 0 | X89: 6068 | Y89: 2 | Z89: 6068 | AA89: 2 | AB89: 50220 | AC89: 2 | AD89: 5-pc.CHICKEN STRIPS | AE89: 2
A90: 2013-01-10 | B90: 50222 | C90: 5 | D90: 4.49 | E90: 5pc.CK S MEAL | L90: 50222 | M90: 5 | V90: 0 | X90: 9999999 | Y90: 5 | Z90: 9999999 | AA90: 5 | AB90: 50222 | AC90: 5 | AD90: 5pc.CK S MEAL | AE90: 5
A91: 2013-01-10 | B91: 50300 | C91: 15 | D91: 1.99 | E91: 8 CHS TOTS | L91: 50300 | M91: 15 | V91: 0 | X91: 3613 | Y91: 15 | Z91: 3613 | AA91: 15 | AB91: 50300 | AC91: 15 | AD91: 8 CHS TOTS | AE91: 15
A92: 2013-01-10 | B92: 50301 | C92: 6 | D92: 2.39 | E92: 10 CHS TOTS | L92: 50301 | M92: 6 | V92: 0 | X92: 3614 | Y92: 6 | Z92: 3614 | AA92: 6 | AB92: 50301 | AC92: 6 | AD92: 10 CHS TOTS | AE92: 6
A93: 2013-01-10 | B93: 50302 | C93: 7 | D93: 2.69 | E93: 12 CHS TOTS | L93: 50302 | M93: 7 | V93: 0 | X93: 3615 | Y93: 7 | Z93: 3615 | AA93: 7 | AB93: 50302 | AC93: 7 | AD93: 12 CHS TOTS | AE93: 7
A94: 2013-01-10 | B94: 51100 | C94: 1 | D94: 1.79 | E94: HONEY MUST.WRAP | L94: 51100 | M94: 1 | V94: 0 | X94: 1871 | Y94: 1 | Z94: 1871 | AA94: 1 | AB94: 51100 | AC94: 1 | AD94: HONEY MUST.WRAP | AE94: 1
A95: 2013-01-10 | B95: 51105 | C95: 2 | D95: 1.79 | E95: RANCH WRAP | L95: 51105 | M95: 2 | V95: 0 | X95: 9999999 | Y95: 2 | Z95: 9999999 | AA95: 2 | AB95: 51105 | AC95: 2 | AD95: RANCH WRAP | AE95: 2
A96: 2013-01-10 | B96: 51110 | C96: 2 | D96: 1.79 | E96: Grilled H-Must. WRAP | L96: 51110 | M96: 2 | V96: 0 | X96: 9999999 | Y96: 2 | Z96: 9999999 | AA96: 2 | AB96: 51110 | AC96: 2 | AD96: Grilled H-Must. WRAP | AE96: 2
A97: 2013-01-10 | B97: 51115 | C97: 4 | D97: 1.79 | E97: Grilled Ranch Wrap | L97: 51115 | M97: 4 | V97: 0 | X97: 9999999 | Y97: 4 | Z97: 9999999 | AA97: 4 | AB97: 51115 | AC97: 4 | AD97: Grilled Ranch Wrap | AE97: 4
A98: 2013-01-10 | B98: 51200 | C98: 3 | D98: 1.59 | E98: APPLE SLICES | L98: 51200 | M98: 3 | V98: 0 | X98: 4126 | Y98: 3 | Z98: 4126 | AA98: 3 | AB98: 51200 | AC98: 3 | AD98: APPLE SLICES | AE98: 3
A99: 2013-01-10 | B99: 60103 | C99: 2 | D99: 1.49 | E99: SIDE GARDEN SALAD | L99: 60103 | M99: 2 | V99: 0 | X99: 9999999 | Y99: 2 | Z99: 9999999 | AA99: 2 | AB99: 60103 | AC99: 2 | AD99: SIDE GARDEN SALAD | AE99: 2
A100: 2013-01-10 | B100: 60105 | C100: 2 | D100: 1.49 | E100: SIDE CAESAR SALAD | L100: 60105 | M100: 2 | V100: 0 | X100: 9999999 | Y100: 2 | Z100: 9999999 | AA100: 2 | AB100: 60105 | AC100: 2 | AD100: SIDE CAESAR SALAD | AE100: 2
A101: 2013-01-10 | B101: 60206 | C101: 1 | D101: 5.59 | E101: CRSPY BLT SALAD | L101: 60206 | M101: 1 | V101: 0 | X101: 6530 | Y101: 1 | Z101: 6530 | AA101: 1 | AB101: 60206 | AC101: 1 | AD101: CRSPY BLT SALAD | AE101: 1
A102: 2013-01-10 | B102: 60210 | C102: 1 | D102: 5.59 | E102: GRIL Ap&C SALAD | L102: 60210 | M102: 1 | V102: 0 | X102: 7131 | Y102: 1 | Z102: 7131 | AA102: 1 | AB102: 60210 | AC102: 1 | AD102: GRIL Ap&C SALAD | AE102: 1
A103: 2013-01-10 | B103: 60800 | C103: 7 | D103: 1.49 | E103: HERSHEY PIE | L103: 60800 | M103: 7 | V103: 0 | X103: 647 | Y103: 7 | Z103: 647 | AA103: 7 | AB103: 60800 | AC103: 7 | AD103: HERSHEY PIE | AE103: 7
A104: 2013-01-10 | B104: 70000 | C104: 1 | D104: 0 | E104: ***SAME CAR*** | L104: 70000 | M104: 1 | Q104: =IF($O104="","",IF(CSV="No","",FIND(",",$A104,P104+1))) ->  | V104: 0 | X104: 9999999 | Y104: 1 | Z104: 9999999 | AA104: 1 | AB104: 70000 | AC104: 1 | AD104: ***SAME CAR*** | AE104: 13
A105: 2013-01-10 | B105: 80099 | C105: 10 | D105: 0.99 | E105: KD COKE | L105: 80099 | M105: 10 | V105: 0 | X105: 777 | Y105: 10 | Z105: 777 | AA105: 10 | AB105: 80099 | AC105: 10 | AD105: KD COKE | AE105: 10
A106: 2013-01-10 | B106: 80100 | C106: 10 | D106: 1 | E106: VAL COKE | L106: 80100 | M106: 10 | V106: 0 | X106: 778 | Y106: 10 | Z106: 778 | AA106: 10 | AB106: 80100 | AC106: 10 | AD106: VAL COKE | AE106: 10
A107: 2013-01-10 | B107: 80101 | C107: 244 | D107: 1.39 | E107: SM COKE | L107: 80101 | M107: 244 | V107: 0 | X107: 779 | Y107: 244 | Z107: 779 | AA107: 244 | AB107: 80101 | AC107: 244 | AD107: SM COKE | AE107: 244
A108: 2013-01-10 | B108: 80102 | C108: 35 | D108: 1.69 | E108: MD COKE | L108: 80102 | M108: 35 | V108: 0 | X108: 780 | Y108: 35 | Z108: 780 | AA108: 35 | AB108: 80102 | AC108: 35 | AD108: MD COKE | AE108: 35
A109: 2013-01-10 | B109: 80103 | C109: 27 | D109: 1.89 | E109: LG COKE | L109: 80103 | M109: 27 | V109: 0 | X109: 1561 | Y109: 27 | Z109: 1561 | AA109: 27 | AB109: 80103 | AC109: 27 | AD109: LG COKE | AE109: 27
A110: 2013-01-10 | B110: 80105 | C110: 9 | D110: 0.5 | E110: SR COKE | L110: 80105 | M110: 9 | V110: 0 | X110: 763 | Y110: 9 | Z110: 763 | AA110: 9 | AB110: 80105 | AC110: 9 | AD110: SR COKE | AE110: 9
A111: 2013-01-10 | B111: 80199 | C111: 1 | D111: 0.99 | E111: KD DIET | L111: 80199 | M111: 1 | V111: 0 | X111: 777 | Y111: 1 | Z111: 777 | AA111: 1 | AB111: 80199 | AC111: 1 | AD111: KD DIET | AE111: 1
A112: 2013-01-10 | B112: 80200 | C112: 2 | D112: 1 | E112: VAL DIET | L112: 80200 | M112: 2 | V112: 0 | X112: 778 | Y112: 2 | Z112: 778 | AA112: 2 | AB112: 80200 | AC112: 2 | AD112: VAL DIET | AE112: 2
A113: 2013-01-10 | B113: 80201 | C113: 16 | D113: 1.39 | E113: SM DIET | L113: 80201 | M113: 16 | V113: 0 | X113: 779 | Y113: 16 | Z113: 779 | AA113: 16 | AB113: 80201 | AC113: 16 | AD113: SM DIET | AE113: 16
A114: 2013-01-10 | B114: 80202 | C114: 9 | D114: 1.69 | E114: MD DIET | L114: 80202 | M114: 9 | V114: 0 | X114: 780 | Y114: 9 | Z114: 780 | AA114: 9 | AB114: 80202 | AC114: 9 | AD114: MD DIET | AE114: 9
A115: 2013-01-10 | B115: 80203 | C115: 6 | D115: 1.89 | E115: LG DIET | L115: 80203 | M115: 6 | V115: 0 | X115: 1561 | Y115: 6 | Z115: 1561 | AA115: 6 | AB115: 80203 | AC115: 6 | AD115: LG DIET | AE115: 6
A116: 2013-01-10 | B116: 80399 | C116: 2 | D116: 0.99 | E116: KD SPRITE | L116: 80399 | M116: 2 | V116: 0 | X116: 777 | Y116: 2 | Z116: 777 | AA116: 2 | AB116: 80399 | AC116: 2 | AD116: KD SPRITE | AE116: 2
A117: 2013-01-10 | B117: 80401 | C117: 7 | D117: 1.39 | E117: SM SPRITE | L117: 80401 | M117: 7 | V117: 0 | X117: 779 | Y117: 7 | Z117: 779 | AA117: 7 | AB117: 80401 | AC117: 7 | AD117: SM SPRITE | AE117: 7
A118: 2013-01-10 | B118: 80402 | C118: 2 | D118: 1.69 | E118: MD SPRITE | L118: 80402 | M118: 2 | V118: 0 | X118: 780 | Y118: 2 | Z118: 780 | AA118: 2 | AB118: 80402 | AC118: 2 | AD118: MD SPRITE | AE118: 2
A119: 2013-01-10 | B119: 80502 | C119: 2 | D119: 1 | E119: MD ICE TEA | L119: 80502 | M119: 2 | V119: 0 | X119: 780 | Y119: 2 | Z119: 780 | AA119: 2 | AB119: 80502 | AC119: 2 | AD119: MD ICE TEA | AE119: 2
A120: 2013-01-10 | B120: 80503 | C120: 1 | D120: 1.29 | E120: LG ICE TEA | L120: 80503 | M120: 1 | V120: 0 | X120: 1561 | Y120: 1 | Z120: 1561 | AA120: 1 | AB120: 80503 | AC120: 1 | AD120: LG ICE TEA | AE120: 1
A121: 2013-01-10 | B121: 80599 | C121: 1 | D121: 0.99 | E121: KD SWT TEA | L121: 80599 | M121: 1 | V121: 0 | X121: 777 | Y121: 1 | Z121: 777 | AA121: 1 | AB121: 80599 | AC121: 1 | AD121: KD SWT TEA | AE121: 1
A122: 2013-01-10 | B122: 80602 | C122: 6 | D122: 1 | E122: MD SWT TEA | L122: 80602 | M122: 6 | V122: 0 | X122: 6310 | Y122: 6 | Z122: 6310 | AA122: 6 | AB122: 80602 | AC122: 6 | AD122: MD SWT TEA | AE122: 6
A123: 2013-01-10 | B123: 80603 | C123: 8 | D123: 1.29 | E123: LG SWT TEA | L123: 80603 | M123: 8 | V123: 0 | X123: 1561 | Y123: 8 | Z123: 1561 | AA123: 8 | AB123: 80603 | AC123: 8 | AD123: LG SWT TEA | AE123: 8
A124: 2013-01-10 | B124: 80700 | C124: 2 | D124: 1 | E124: VAL DR. PEPR | L124: 80700 | M124: 2 | Q124: =IF($O124="","",IF(CSV="No","",FIND(",",$A124,P124+1))) ->  | V124: 0 | X124: 778 | Y124: 2 | Z124: 778 | AA124: 2 | AB124: 80700 | AC124: 2 | AD124: VAL DR. PEPR | AE124: 2
A125: 2013-01-10 | B125: 80701 | C125: 17 | D125: 1.39 | E125: SM DR. PEPR | L125: 80701 | M125: 17 | V125: 0 | X125: 779 | Y125: 17 | Z125: 779 | AA125: 17 | AB125: 80701 | AC125: 17 | AD125: SM DR. PEPR | AE125: 17
A126: 2013-01-10 | B126: 80702 | C126: 6 | D126: 1.69 | E126: MD DR. PEPR | L126: 80702 | M126: 6 | V126: 0 | X126: 780 | Y126: 6 | Z126: 780 | AA126: 6 | AB126: 80702 | AC126: 6 | AD126: MD DR. PEPR | AE126: 6
A127: 2013-01-10 | B127: 80703 | C127: 9 | D127: 1.89 | E127: LG DR. PEPR | L127: 80703 | M127: 9 | V127: 0 | X127: 1561 | Y127: 9 | Z127: 1561 | AA127: 9 | AB127: 80703 | AC127: 9 | AD127: LG DR. PEPR | AE127: 9
A128: 2013-01-10 | B128: 80801 | C128: 5 | D128: 1.39 | E128: SM MEL.YELLOW | L128: 80801 | M128: 5 | V128: 0 | X128: 779 | Y128: 5 | Z128: 779 | AA128: 5 | AB128: 80801 | AC128: 5 | AD128: SM MEL.YELLOW | AE128: 5
A129: 2013-01-10 | B129: 80802 | C129: 1 | D129: 1.69 | E129: MD MEL.YELLOW | L129: 80802 | M129: 1 | V129: 0 | X129: 780 | Y129: 1 | Z129: 780 | AA129: 1 | AB129: 80802 | AC129: 1 | AD129: MD MEL.YELLOW | AE129: 1
A130: 2013-01-10 | B130: 80803 | C130: 1 | D130: 1.89 | E130: LG MELLOW YELLOW | L130: 80803 | M130: 1 | V130: 0 | X130: 1561 | Y130: 1 | Z130: 1561 | AA130: 1 | AB130: 80803 | AC130: 1 | AD130: LG MELLOW YELLOW | AE130: 1
A131: 2013-01-10 | B131: 81100 | C131: 3 | D131: 1.19 | E131: SM ICEE COKE | L131: 81100 | M131: 3 | V131: 0 | X131: 7167 | Y131: 3 | Z131: 7167 | AA131: 3 | AB131: 81100 | AC131: 3 | AD131: SM ICEE COKE | AE131: 3
A132: 2013-01-10 | B132: 81102 | C132: 1 | D132: 1.59 | E132: LG ICEE COKE | L132: =IF(CSV="Yes",$U132,IF($B132>0,$B132,IF($E132="","",$E132))) -> 81102 | M132: =IF(CSV="Yes",ROUNDUP($V132,0),IF($C132<>"",ROUNDUP($C132,0),"")) -> 1 | O132: =IF(CSV="No","",IF(LEN(A132)=0,"",LEN(A132))) ->  | P132: =IF($O132="","",IF(CSV="No","",FIND(",",A132,1))) ->  | V132: 0 | X132: =IF(ISNcode=1,Z132,IF(ISNcode=2,AB132,AD132)) -> 2306 | Y132: =IF(ISNcode=1,AA132,IF(ISNcode=2,AC132,AE132)) -> 1 | Z132: =IF(CSV="Yes",$U132,IF($B132>0,IF(ISNA(VLOOKUP($B132,INDIRECT(VLOOKUP(POS_VENDOR, POS_LIST, 2, FALSE)), 2, FALSE)), 9999999, VLOOKUP($B132,INDIRECT(VLOOKUP(POS_VENDOR, POS_LIST, 2, FALSE)), 2, FALSE)),IF($E132="","",$E132))) -> 2306 | AA132: =IF(CSV="Yes",ROUNDUP($V132,0),IF($C132<>"",ROUNDUP($C132,0),"")) -> 1 | AB132: =IF(CSV="Yes",$U132,IF($B132>0,$B132,IF($E132="","",$E132))) -> 81102 | AC132: =IF(CSV="Yes",ROUNDUP(SUMIF($L$4:$L$2500,"="&AB132,$V$4:$V$2500),0),SUMIF($B$4:$B$2500,"="&AB132,$C$4:$C$2500)) -> 1 | AD132: =IF(CSV="Yes",$U132,IF($E132="","",$E132)) -> LG ICEE COKE | AE132: =IF(CSV="Yes",ROUNDUP(SUMIF($L$4:$L$2500,"="&AD132,$V$4:$V$2500),0),SUMIF($E$4:$E$2502,"="&AD132,$M$4:$M$2502)) -> 1
A133: 2013-01-10 | B133: 81200 | C133: 2 | D133: 1.19 | E133: SM ICEE CHRY | L133: 81200 | M133: 2 | T133: =IF(O133="","",IF(Q133-P133<>1,TRIM(MID($A133,P133+1,Q133-P133-1)),TRIM(RIGHT($A133,O133-S133)))) ->  | U133: =SUBSTITUTE(T133,CHAR(34),"") ->  | V133: =IF($O133="",0,MID(A133,Q133+1,R133-Q133-1)) -> 0 | X133: 7166 | Y133: 2 | Z133: 7166 | AA133: 2 | AB133: 81200 | AC133: 2 | AD133: SM ICEE CHRY | AE133: 2
A134: 2013-01-10 | B134: 81201 | C134: 1 | D134: 1.39 | E134: MD ICEE CHRY | L134: 81201 | M134: 1 | V134: 0 | X134: 7166 | Y134: 1 | Z134: 7166 | AA134: 1 | AB134: 81201 | AC134: 1 | AD134: MD ICEE CHRY | AE134: 1
A135: 2013-01-10 | B135: 81300 | C135: 1 | D135: 0 | E135: VAL WATER | L135: 81300 | M135: 1 | V135: 0 | X135: 925 | Y135: 1 | Z135: 925 | AA135: 1 | AB135: 81300 | AC135: 1 | AD135: VAL WATER | AE135: 1
A136: 2013-01-10 | B136: 81301 | C136: 9 | D136: 0.1 | E136: SM WATER | L136: 81301 | M136: 9 | V136: 0 | X136: 1075 | Y136: 9 | Z136: 1075 | AA136: 9 | AB136: 81301 | AC136: 9 | AD136: SM WATER | AE136: 9
A137: 2013-01-10 | B137: 81303 | C137: 2 | D137: 0.3 | E137: LG WATER | L137: 81303 | M137: 2 | V137: 0 | X137: 4354 | Y137: 2 | Z137: 4354 | AA137: 2 | AB137: 81303 | AC137: 2 | AD137: LG WATER | AE137: 2
A138: 2013-01-10 | B138: 81350 | C138: 4 | D138: 1.39 | E138: BOTTLE WATER | L138: 81350 | M138: 4 | V138: 0 | X138: 2086 | Y138: 4 | Z138: 2086 | AA138: 4 | AB138: 81350 | AC138: 4 | AD138: BOTTLE WATER | AE138: 4
A139: 2013-01-10 | B139: 81375 | C139: 3 | D139: 0.1 | E139: CUP OF ICE | L139: 81375 | M139: 3 | V139: 0 | X139: 1075 | Y139: 3 | Z139: 1075 | AA139: 3 | AB139: 81375 | AC139: 3 | AD139: CUP OF ICE | AE139: 3
A140: 2013-01-10 | B140: 81500 | C140: 6 | D140: 1 | E140: SM COFFEE | L140: 81500 | M140: 6 | V140: 0 | X140: 5764 | Y140: 6 | Z140: 5764 | AA140: 6 | AB140: 81500 | AC140: 6 | AD140: SM COFFEE | AE140: 6
A141: 2013-01-10 | B141: 81501 | C141: 3 | D141: 1.19 | E141: MD COFFEE | L141: 81501 | M141: 3 | V141: 0 | X141: 5720 | Y141: 3 | Z141: 5720 | AA141: 3 | AB141: 81501 | AC141: 3 | AD141: MD COFFEE | AE141: 3
A142: 2013-01-10 | B142: 81502 | C142: 6 | D142: 1.39 | E142: LG COFFEE | L142: 81502 | M142: 6 | V142: 0 | X142: 5766 | Y142: 6 | Z142: 5766 | AA142: 6 | AB142: 81502 | AC142: 6 | AD142: LG COFFEE | AE142: 6
A143: 2013-01-10 | B143: 81505 | C143: 7 | D143: 0.5 | E143: SR COFFEE | L143: 81505 | M143: 7 | V143: 0 | X143: 5772 | Y143: 7 | Z143: 5772 | AA143: 7 | AB143: 81505 | AC143: 7 | AD143: SR COFFEE | AE143: 7
A144: 2013-01-10 | B144: 81600 | C144: 1 | D144: 1 | E144: SM DECAF | L144: 81600 | M144: 1 | Q144: =IF($O144="","",IF(CSV="No","",FIND(",",$A144,P144+1))) ->  | V144: 0 | X144: 5775 | Y144: 1 | Z144: 5775 | AA144: 1 | AB144: 81600 | AC144: 1 | AD144: SM DECAF | AE144: 1
A145: 2013-01-10 | B145: 81700 | C145: 5 | D145: 1.39 | E145: ORANGE JUICE | L145: 81700 | M145: 5 | V145: 0 | X145: 1835 | Y145: 5 | Z145: 1835 | AA145: 5 | AB145: 81700 | AC145: 5 | AD145: ORANGE JUICE | AE145: 5
A146: 2013-01-10 | B146: 81750 | C146: 1 | D146: 1.19 | E146: APPLE JUICE | L146: 81750 | M146: 1 | V146: 0 | X146: 453 | Y146: 1 | Z146: 453 | AA146: 1 | AB146: 81750 | AC146: 1 | AD146: APPLE JUICE | AE146: 1
A147: 2013-01-10 | B147: 81900 | C147: 5 | D147: 1.29 | E147: MILK | L147: 81900 | M147: 5 | V147: 0 | X147: 3659 | Y147: 5 | Z147: 3659 | AA147: 5 | AB147: 81900 | AC147: 5 | AD147: MILK | AE147: 5
A148: 2013-01-10 | B148: 81950 | C148: 4 | D148: 1.2 | E148: CHOCOLATE MILK | L148: 81950 | M148: 4 | V148: 0 | X148: 3658 | Y148: 4 | Z148: 3658 | AA148: 4 | AB148: 81950 | AC148: 4 | AD148: CHOCOLATE MILK | AE148: 4
A149: 2013-01-10 | B149: 82021 | C149: 1 | D149: 1.99 | E149: MD.CARM.ICE COFFEE | L149: 82021 | M149: 1 | V149: 0 | X149: 9999999 | Y149: 1 | Z149: 9999999 | AA149: 1 | AB149: 82021 | AC149: 1 | AD149: MD.CARM.ICE COFFEE | AE149: 1
A150: 2013-01-10 | B150: 82031 | C150: 1 | D150: 1.99 | E150: MD.VAN.ICE COFFEE | L150: 82031 | M150: 1 | V150: 0 | X150: 9999999 | Y150: 1 | Z150: 9999999 | AA150: 1 | AB150: 82031 | AC150: 1 | AD150: MD.VAN.ICE COFFEE | AE150: 1
A151: 2013-01-10 | B151: 82032 | C151: 3 | D151: 2.39 | E151: LG.VAN.ICE COFFEE | L151: 82032 | M151: 3 | V151: 0 | X151: 9999999 | Y151: 3 | Z151: 9999999 | AA151: 3 | AB151: 82032 | AC151: 3 | AD151: LG.VAN.ICE COFFEE | AE151: 3
A152: 2013-01-10 | B152: 82201 | C152: 1 | D152: 1.39 | E152: SM HOT CHOC | L152: 82201 | M152: 1 | V152: 0 | X152: 7575 | Y152: 1 | Z152: 7575 | AA152: 1 | AB152: 82201 | AC152: 1 | AD152: SM HOT CHOC | AE152: 1
A153: 2013-01-10 | B153: 82999 | C153: 1 | D153: 2 | E153: KD CHOC SHK | L153: 82999 | M153: 1 | V153: 0 | X153: 6925 | Y153: 1 | Z153: 6925 | AA153: 1 | AB153: 82999 | AC153: 1 | AD153: KD CHOC SHK | AE153: 1
A154: 2013-01-10 | B154: 83000 | C154: 3 | D154: 2.29 | E154: SM. CHOCO SHK | L154: 83000 | M154: 3 | V154: 0 | X154: 7141 | Y154: 3 | Z154: 7141 | AA154: 3 | AB154: 83000 | AC154: 3 | AD154: SM. CHOCO SHK | AE154: 3
A155: 2013-01-10 | B155: 83001 | C155: 2 | D155: 2.79 | E155: MD. CHOCO SHK | L155: 83001 | M155: 2 | V155: 0 | X155: 6835 | Y155: 2 | Z155: 6835 | AA155: 2 | AB155: 83001 | AC155: 2 | AD155: MD. CHOCO SHK | AE155: 2
A156: 2013-01-10 | B156: 83002 | C156: 1 | D156: 3.29 | E156: LG. CHOCO SHK | L156: 83002 | M156: 1 | V156: 0 | X156: 6931 | Y156: 1 | Z156: 6931 | AA156: 1 | AB156: 83002 | AC156: 1 | AD156: LG. CHOCO SHK | AE156: 1
A157: 2013-01-10 | B157: 83013 | C157: 3 | D157: 0 | E157: NO WHIPPED TOP | L157: 83013 | M157: 3 | V157: 0 | X157: 9999999 | Y157: 3 | Z157: 9999999 | AA157: 3 | AB157: 83013 | AC157: 3 | AD157: NO WHIPPED TOP | AE157: 3
A158: 2013-01-10 | B158: 83100 | C158: 1 | D158: 2.29 | E158: SM. VAN SHK | L158: 83100 | M158: 1 | V158: 0 | X158: 7143 | Y158: 1 | Z158: 7143 | AA158: 1 | AB158: 83100 | AC158: 1 | AD158: SM. VAN SHK | AE158: 1
A159: 2013-01-10 | B159: 83101 | C159: 2 | D159: 2.79 | E159: MD. VAN SHK | L159: 83101 | M159: 2 | V159: 0 | X159: 6837 | Y159: 2 | Z159: 6837 | AA159: 2 | AB159: 83101 | AC159: 2 | AD159: MD. VAN SHK | AE159: 2
A160: 2013-01-10 | B160: 83102 | C160: 1 | D160: 3.29 | E160: LG VAN SHK | L160: 83102 | M160: 1 | V160: 0 | X160: 6935 | Y160: 1 | Z160: 6935 | AA160: 1 | AB160: 83102 | AC160: 1 | AD160: LG VAN SHK | AE160: 1
A161: 2013-01-10 | B161: 83200 | C161: 3 | D161: 2.29 | E161: SM. STRAW SHK | L161: 83200 | M161: 3 | V161: 0 | X161: 7142 | Y161: 3 | Z161: 7142 | AA161: 3 | AB161: 83200 | AC161: 3 | AD161: SM. STRAW SHK | AE161: 3
A162: 2013-01-10 | B162: 83202 | C162: 2 | D162: 3.29 | E162: LG STRAW SHK | L162: 83202 | M162: 2 | V162: 0 | X162: 6929 | Y162: 2 | Z162: 6929 | AA162: 2 | AB162: 83202 | AC162: 2 | AD162: LG STRAW SHK | AE162: 2
A163: 2013-01-10 | B163: 84000 | C163: 5 | D163: 1 | E163: CONE | L163: 84000 | M163: 5 | V163: 0 | X163: 7414 | Y163: 5 | Z163: 7414 | AA163: 5 | AB163: 84000 | AC163: 5 | AD163: CONE | AE163: 5
A164: 2013-01-10 | B164: 84101 | C164: 2 | D164: 1.39 | E164: SUNDAE CARMEL | L164: 84101 | M164: 2 | Q164: =IF($O164="","",IF(CSV="No","",FIND(",",$A164,P164+1))) ->  | V164: 0 | X164: 7414 | Y164: 2 | Z164: 7414 | AA164: 2 | AB164: 84101 | AC164: 2 | AD164: SUNDAE CARMEL | AE164: 2
A165: 2013-01-10 | B165: 84102 | C165: 2 | D165: 1.39 | E165: SUNDAE FUDGE CHOC. | L165: 84102 | M165: 2 | V165: 0 | X165: 9999999 | Y165: 2 | Z165: 9999999 | AA165: 2 | AB165: 84102 | AC165: 2 | AD165: SUNDAE FUDGE CHOC. | AE165: 2
A166: 2013-01-10 | B166: 84103 | C166: 2 | D166: 0.39 | E166: EXTRA FUDGE CHOC. | L166: 84103 | M166: 2 | V166: 0 | X166: 9999999 | Y166: 2 | Z166: 9999999 | AA166: 2 | AB166: 84103 | AC166: 2 | AD166: EXTRA FUDGE CHOC. | AE166: 2
A167: 2013-01-10 | B167: 84104 | C167: 4 | D167: 0.39 | E167: EXTRA CARMEL | L167: 84104 | M167: 4 | V167: 0 | X167: 9999999 | Y167: 4 | Z167: 9999999 | AA167: 4 | AB167: 84104 | AC167: 4 | AD167: EXTRA CARMEL | AE167: 4
A168: 2013-01-10 | B168: 84105 | C168: 3 | D168: 1.39 | E168: Strawberry Sundae | L168: 84105 | M168: 3 | V168: 0 | X168: 9999999 | Y168: 3 | Z168: 9999999 | AA168: 3 | AB168: 84105 | AC168: 3 | AD168: Strawberry Sundae | AE168: 3
A169: 2013-01-10 | B169: 84154 | C169: 1 | D169: 2.69 | E169: Db.Choc.Brown Sundae | L169: 84154 | M169: 1 | V169: 0 | X169: 9999999 | Y169: 1 | Z169: 9999999 | AA169: 1 | AB169: 84154 | AC169: 1 | AD169: Db.Choc.Brown Sundae | AE169: 1
A170: 2013-01-10 | B170: 84250 | C170: 15 | D170: 1.69 | E170: M.Fudge Bites | L170: 84250 | M170: 15 | V170: 0 | X170: 9999999 | Y170: 15 | Z170: 9999999 | AA170: 15 | AB170: 84250 | AC170: 15 | AD170: M.Fudge Bites | AE170: 15
A171: 2013-01-10 | B171: 84260 | C171: 6 | D171: 2.29 | E171: M.Fudge Sundae | L171: 84260 | M171: 6 | V171: 0 | X171: 9999999 | Y171: 6 | Z171: 9999999 | AA171: 6 | AB171: 84260 | AC171: 6 | AD171: M.Fudge Sundae | AE171: 6
A172: 2013-01-10 | B172: 85000 | C172: 2 | D172: 2.29 | E172: SM Strw.Bana Smoth | L172: 85000 | M172: 2 | V172: 0 | X172: 3349 | Y172: 2 | Z172: 3349 | AA172: 2 | AB172: 85000 | AC172: 2 | AD172: SM Strw.Bana Smoth | AE172: 2
A173: 2013-01-10 | B173: 85002 | C173: 1 | D173: 3.29 | E173: LG Strw.Bana Smooth | L173: 85002 | M173: 1 | V173: 0 | X173: 3349 | Y173: 1 | Z173: 3349 | AA173: 1 | AB173: 85002 | AC173: 1 | AD173: LG Strw.Bana Smooth | AE173: 1
A174: 2013-01-10 | B174: 85100 | C174: 1 | D174: 2.29 | E174: SM Trop.Mango Smooth | L174: 85100 | M174: 1 | V174: 0 | X174: 4345 | Y174: 1 | Z174: 4345 | AA174: 1 | AB174: 85100 | AC174: 1 | AD174: SM Trop.Mango Smooth | AE174: 1
A175: 2013-01-10 | B175: 85101 | C175: 1 | D175: 2.79 | E175: MD Trop.Mango Smooth | L175: 85101 | M175: 1 | V175: 0 | X175: 9999999 | Y175: 1 | Z175: 9999999 | AA175: 1 | AB175: 85101 | AC175: 1 | AD175: MD Trop.Mango Smooth | AE175: 1
A176: 2013-01-10 | B176: 85102 | C176: 1 | D176: 3.29 | E176: LG Trop.Mango Smooth | L176: 85102 | M176: 1 | V176: 0 | X176: 9999999 | Y176: 1 | Z176: 9999999 | AA176: 1 | AB176: 85102 | AC176: 1 | AD176: LG Trop.Mango Smooth | AE176: 1
A177: 2013-01-10 | B177: 85200 | C177: 2 | D177: 2.29 | E177: Sm.Rasp.Smoothie | L177: 85200 | M177: 2 | V177: 0 | X177: 7414 | Y177: 2 | Z177: 7414 | AA177: 2 | AB177: 85200 | AC177: 2 | AD177: Sm.Rasp.Smoothie | AE177: 2
A178: 2013-01-10 | B178: 86000 | C178: 5 | D178: 2.29 | E178: SM Carmel Frappe' | L178: 86000 | M178: 5 | V178: 0 | X178: 6276 | Y178: 5 | Z178: 6276 | AA178: 5 | AB178: 86000 | AC178: 5 | AD178: SM Carmel Frappe' | AE178: 5
A179: 2013-01-10 | B179: 86001 | C179: 3 | D179: 2.79 | E179: MD Carmel Frappe' | L179: 86001 | M179: 3 | V179: 0 | X179: 6280 | Y179: 3 | Z179: 6280 | AA179: 3 | AB179: 86001 | AC179: 3 | AD179: MD Carmel Frappe' | AE179: 3
A180: 2013-01-10 | B180: 86100 | C180: 8 | D180: 2.29 | E180: SM Mocha Frappe' | L180: 86100 | M180: 8 | V180: 0 | X180: 6276 | Y180: 8 | Z180: 6276 | AA180: 8 | AB180: 86100 | AC180: 8 | AD180: SM Mocha Frappe' | AE180: 8
A181: 2013-01-10 | B181: 86101 | C181: 1 | D181: 2.79 | E181: MD Mocha Frappe' | L181: 86101 | M181: 1 | V181: 0 | X181: 6280 | Y181: 1 | Z181: 6280 | AA181: 1 | AB181: 86101 | AC181: 1 | AD181: MD Mocha Frappe' | AE181: 1
A182: 2013-01-10 | B182: 86102 | C182: 2 | D182: 3.29 | E182: LG Mocha Frappe' | L182: 86102 | M182: 2 | V182: 0 | X182: 6283 | Y182: 2 | Z182: 6283 | AA182: 2 | AB182: 86102 | AC182: 2 | AD182: LG Mocha Frappe' | AE182: 2
A183: 2013-01-10 | B183: 205201 | C183: 3 | D183: 0 | E183: Ranch Dressing | L183: 205201 | M183: 3 | V183: 0 | X183: 9999999 | Y183: 3 | Z183: 9999999 | AA183: 3 | AB183: 205201 | AC183: 3 | AD183: Ranch Dressing | AE183: 3
A184: 2013-01-10 | B184: 205204 | C184: 2 | D184: 0 | E184: Citrus Caesar Dress | L184: 205204 | M184: 2 | Q184: =IF($O184="","",IF(CSV="No","",FIND(",",$A184,P184+1))) ->  | V184: 0 | X184: 9999999 | Y184: 2 | Z184: 9999999 | AA184: 2 | AB184: 205204 | AC184: 2 | AD184: Citrus Caesar Dress | AE184: 2
A185: 2013-01-10 | B185: 205207 | C185: 1 | D185: 0 | E185: Avocado Ranch Dress | L185: 205207 | M185: 1 | V185: 0 | X185: 9999999 | Y185: 1 | Z185: 9999999 | AA185: 1 | AB185: 205207 | AC185: 1 | AD185: Avocado Ranch Dress | AE185: 1
A186: 2013-01-10 | B186: 802110 | C186: 22 | D186: 0 | E186: cream | L186: 802110 | M186: 22 | V186: 0 | X186: 9999999 | Y186: 22 | Z186: 9999999 | AA186: 22 | AB186: 802110 | AC186: 22 | AD186: cream | AE186: 61
A187: 2013-01-10 | B187: 802120 | C187: 3 | D187: 0 | E187: sugar | L187: 802120 | M187: 3 | V187: 0 | X187: 9999999 | Y187: 3 | Z187: 9999999 | AA187: 3 | AB187: 802120 | AC187: 3 | AD187: sugar | AE187: 38
A188: 2013-01-10 | B188: 802200 | C188: 1 | D188: 0 | E188: Add Fruit Blend | L188: 802200 | M188: 1 | V188: 0 | X188: 9999999 | Y188: 1 | Z188: 9999999 | AA188: 1 | AB188: 802200 | AC188: 1 | AD188: Add Fruit Blend | AE188: 1
A189: 2013-01-10 | B189: 8906000 | C189: 4 | D189: 0 | E189: well done | L189: 8906000 | M189: 4 | V189: 0 | X189: 7722 | Y189: 4 | Z189: 7722 | AA189: 4 | AB189: 8906000 | AC189: 4 | AD189: well done | AE189: 4
A190: 2013-01-10 | B190: 8907000 | C190: 1 | D190: 0 | E190: cut 1/2 | L190: 8907000 | M190: 1 | V190: 0 | X190: 7722 | Y190: 1 | Z190: 7722 | AA190: 1 | AB190: 8907000 | AC190: 1 | AD190: cut 1/2 | AE190: 1
A191: 2013-01-10 | B191: 8908000 | C191: 1 | D191: 0 | E191: low carb | L191: 8908000 | M191: 1 | V191: 0 | X191: 7722 | Y191: 1 | Z191: 7722 | AA191: 1 | AB191: 8908000 | AC191: 1 | AD191: low carb | AE191: 1
A192: 2013-01-10 | B192: 8909000 | C192: 1 | D192: 0 | E192: no meat | L192: 8909000 | M192: 1 | V192: 0 | X192: 7722 | Y192: 1 | Z192: 7722 | AA192: 1 | AB192: 8909000 | AC192: 1 | AD192: no meat | AE192: 1
A193: 2013-01-10 | B193: 9000000 | C193: 38 | D193: 0 | E193: plain | L193: 9000000 | M193: 38 | V193: 0 | X193: 7719 | Y193: 38 | Z193: 7719 | AA193: 38 | AB193: 9000000 | AC193: 38 | AD193: plain | AE193: 38
A194: 2013-01-10 | B194: 9003100 | C194: 30 | D194: 0 | E194: no ketchup | L194: 9003100 | M194: 30 | V194: 0 | X194: 7905002 | Y194: 30 | Z194: 7905002 | AA194: 30 | AB194: 9003100 | AC194: 30 | AD194: no ketchup | AE194: 30
A195: 2013-01-10 | B195: 9003200 | C195: 1 | D195: 0 | E195: extra ketchup | L195: 9003200 | M195: 1 | V195: 0 | X195: 7905003 | Y195: 1 | Z195: 7905003 | AA195: 1 | AB195: 9003200 | AC195: 1 | AD195: extra ketchup | AE195: 1
A196: 2013-01-10 | B196: 9003400 | C196: 3 | D196: 0 | E196: add ketchup | L196: =IF(CSV="Yes",$U196,IF($B196>0,$B196,IF($E196="","",$E196))) -> 9003400 | M196: =IF(CSV="Yes",ROUNDUP($V196,0),IF($C196<>"",ROUNDUP($C196,0),"")) -> 3 | O196: =IF(CSV="No","",IF(LEN(A196)=0,"",LEN(A196))) ->  | P196: =IF($O196="","",IF(CSV="No","",FIND(",",A196,1))) ->  | V196: 0 | X196: =IF(ISNcode=1,Z196,IF(ISNcode=2,AB196,AD196)) -> 7905001 | Y196: =IF(ISNcode=1,AA196,IF(ISNcode=2,AC196,AE196)) -> 3 | Z196: =IF(CSV="Yes",$U196,IF($B196>0,IF(ISNA(VLOOKUP($B196,INDIRECT(VLOOKUP(POS_VENDOR, POS_LIST, 2, FALSE)), 2, FALSE)), 9999999, VLOOKUP($B196,INDIRECT(VLOOKUP(POS_VENDOR, POS_LIST, 2, FALSE)), 2, FALSE)),IF($E196="","",$E196))) -> 7905001 | AA196: =IF(CSV="Yes",ROUNDUP($V196,0),IF($C196<>"",ROUNDUP($C196,0),"")) -> 3 | AB196: =IF(CSV="Yes",$U196,IF($B196>0,$B196,IF($E196="","",$E196))) -> 9003400 | AC196: =IF(CSV="Yes",ROUNDUP(SUMIF($L$4:$L$2500,"="&AB196,$V$4:$V$2500),0),SUMIF($B$4:$B$2500,"="&AB196,$C$4:$C$2500)) -> 3 | AD196: =IF(CSV="Yes",$U196,IF($E196="","",$E196)) -> add ketchup | AE196: =IF(CSV="Yes",ROUNDUP(SUMIF($L$4:$L$2500,"="&AD196,$V$4:$V$2500),0),SUMIF($E$4:$E$2502,"="&AD196,$M$4:$M$2502)) -> 3
A197: 2013-01-10 | B197: 9003500 | C197: 17 | D197: 0 | E197: only ketchup | L197: 9003500 | M197: 17 | T197: =IF(O197="","",IF(Q197-P197<>1,TRIM(MID($A197,P197+1,Q197-P197-1)),TRIM(RIGHT($A197,O197-S197)))) ->  | U197: =SUBSTITUTE(T197,CHAR(34),"") ->  | V197: =IF($O197="",0,MID(A197,Q197+1,R197-Q197-1)) -> 0 | X197: 7905005 | Y197: 17 | Z197: 7905005 | AA197: 17 | AB197: 9003500 | AC197: 17 | AD197: only ketchup | AE197: 17
A198: 2013-01-10 | B198: 9004100 | C198: 25 | D198: 0 | E198: no pickle | L198: 9004100 | M198: 25 | V198: 0 | X198: 7917002 | Y198: 25 | Z198: 7917002 | AA198: 25 | AB198: 9004100 | AC198: 25 | AD198: no pickle | AE198: 25
A199: 2013-01-10 | B199: 9004200 | C199: 10 | D199: 0 | E199: extra pickle | L199: 9004200 | M199: 10 | V199: 0 | X199: 7917003 | Y199: 10 | Z199: 7917003 | AA199: 10 | AB199: 9004200 | AC199: 10 | AD199: extra pickle | AE199: 10
A200: 2013-01-10 | B200: 9004400 | C200: 6 | D200: 0 | E200: add pickle | L200: 9004400 | M200: 6 | V200: 0 | X200: 7917001 | Y200: 6 | Z200: 7917001 | AA200: 6 | AB200: 9004400 | AC200: 6 | AD200: add pickle | AE200: 6
... 707 more rows

Sheet SALESDATA
A1: =VLOOKUP(52,LOCATION,WORLD+1,FALSE) -> Time Frame | B1: =VLOOKUP(56,LOCATION,WORLD+1,FALSE) -> 1/2 Hour Sales | N1: =+C1 -> 00:00:00
A2: v5.4 | N2: lookup range
A3: 18925 | N3: time | O3: sales
A4: 2013-01-10 | B4: 2013-01-10 | C4: 0 | D4: 0 | E4: 0 | F4: 0 | G4: 0 | H4: 0 | M4: =VALUE(+B4) -> 41284 | N4: =VLOOKUP(R4,SALESTCODE,5,FALSE) -> T1 | O4: =IF(C4="","",INT(C4+0.5)) -> 0 | P4: =HOUR(M4) -> 0 | Q4: =MINUTE(M4) -> 0 | R4: =IF(AND(P4=0,Q4=0),2400,IF(Q4=0,P4*100,P4*100+30)) -> 2400
A5: 2013-01-10 | B5: 2013-01-10T00:30:00 | C5: 0 | D5: 0 | E5: 0 | F5: 0 | G5: 0 | H5: 0 | M5: 41284.02083 | N5: T2 | O5: =IF(C5="","",INT(C5+0.5)) -> 0 | P5: 0 | Q5: 30 | R5: =IF(AND(P5=0,Q5=0),2400,IF(Q5=0,P5*100,P5*100+30)) -> 30
A6: 2013-01-10 | B6: 2013-01-10T01:00:00 | C6: 0 | D6: 0 | E6: 0 | F6: 0 | G6: 0 | H6: 0 | M6: 41284.04167 | N6: T3 | O6: 0 | P6: 1 | Q6: 0 | R6: 100
A7: 2013-01-10 | B7: 2013-01-10T01:30:00 | C7: 0 | D7: 0 | E7: 0 | F7: 0 | G7: 0 | H7: 0 | M7: 41284.0625 | N7: T4 | O7: 0 | P7: 1 | Q7: 30 | R7: 130
A8: 2013-01-10 | B8: 2013-01-10T02:00:00 | C8: 0 | D8: 0 | E8: 0 | F8: 0 | G8: 0 | H8: 0 | M8: 41284.08333 | N8: T5 | O8: 0 | P8: 2 | Q8: 0 | R8: 200
A9: 2013-01-10 | B9: 2013-01-10T02:30:00 | C9: 0 | D9: 0 | E9: 0 | F9: 0 | G9: 0 | H9: 0 | M9: 41284.10417 | N9: T6 | O9: 0 | P9: 2 | Q9: 30 | R9: 230
A10: 2013-01-10 | B10: 2013-01-10T03:00:00 | C10: 0 | D10: 0 | E10: 0 | F10: 0 | G10: 0 | H10: 0 | M10: 41284.125 | N10: T7 | O10: 0 | P10: 3 | Q10: 0 | R10: 300
A11: 2013-01-10 | B11: 2013-01-10T03:30:00 | C11: 0 | D11: 0 | E11: 0 | F11: 0 | G11: 0 | H11: 0 | M11: 41284.14583 | N11: T8 | O11: 0 | P11: 3 | Q11: 30 | R11: 330
A12: 2013-01-10 | B12: 2013-01-10T04:00:00 | C12: 0 | D12: 0 | E12: 0 | F12: 0 | G12: 0 | H12: 0 | M12: =VALUE(+B12) -> 41284.16667 | N12: T10 | O12: 0 | P12: =HOUR(M12) -> 4 | Q12: =MINUTE(M12) -> 0 | R12: 400
A13: 2013-01-10 | B13: 2013-01-10T04:30:00 | C13: 0 | D13: 0 | E13: 0 | F13: 0 | G13: 0 | H13: 0 | M13: =VALUE(+B13) -> 41284.1875 | N13: T11 | O13: 0 | P13: =HOUR(M13) -> 4 | Q13: =MINUTE(M13) -> 30 | R13: 430
A14: 2013-01-10 | B14: 2013-01-10T05:00:00 | C14: 0 | D14: 0 | E14: 0 | F14: 0 | G14: 0 | H14: 0 | M14: 41284.20833 | N14: T12 | O14: 0 | P14: =HOUR(M14) -> 5 | Q14: =MINUTE(M14) -> 0 | R14: 500
A15: 2013-01-10 | B15: 2013-01-10T05:30:00 | C15: 0 | D15: 0 | E15: 0 | F15: 0 | G15: 0 | H15: 0 | M15: 41284.22917 | N15: T13 | O15: 0 | P15: =HOUR(M15) -> 5 | Q15: =MINUTE(M15) -> 30 | R15: 530
A16: 2013-01-10 | B16: 2013-01-10T06:00:00 | C16: 22.74 | D16: 6 | E16: 2.2 | F16: 2 | G16: 20.54 | H16: 4 | M16: 41284.25 | N16: T14 | O16: 23 | P16: 6 | Q16: 0 | R16: 600
A17: 2013-01-10 | B17: 2013-01-10T06:30:00 | C17: 38.66 | D17: 7 | E17: 0 | F17: 0 | G17: 26.11 | H17: 6 | M17: 41284.27083 | N17: T15 | O17: 39 | P17: 6 | Q17: 30 | R17: 630
A18: 2013-01-10 | B18: 2013-01-10T07:00:00 | C18: 58.13 | D18: 11 | E18: 3 | F18: 1 | G18: 55.13 | H18: 10 | M18: 41284.29167 | N18: T16 | O18: 58 | P18: 7 | Q18: 0 | R18: 700
A19: 2013-01-10 | B19: 2013-01-10T07:30:00 | C19: 41.61 | D19: 13 | E19: 4 | F19: 1 | G19: 34.61 | H19: 11 | M19: 41284.3125 | N19: T17 | O19: 42 | P19: 7 | Q19: 30 | R19: 730
A20: 2013-01-10 | B20: 2013-01-10T08:00:00 | C20: 67.32 | D20: 17 | E20: 4.48 | F20: 1 | G20: 53.67 | H20: 13 | M20: 41284.33333 | N20: T18 | O20: 67 | P20: 8 | Q20: 0 | R20: 800
A21: 2013-01-10 | B21: 2013-01-10T08:30:00 | C21: 33 | D21: 9 | E21: 4.39 | F21: 1 | G21: 17.74 | H21: 6 | M21: 41284.35417 | N21: T19 | O21: 33 | P21: 8 | Q21: 30 | R21: 830
A22: 2013-01-10 | B22: 2013-01-10T09:00:00 | C22: 47.51 | D22: 10 | E22: 2.29 | F22: 1 | G22: 31.87 | H22: 7 | M22: 41284.375 | N22: T20 | O22: 48 | P22: 9 | Q22: 0 | R22: 900
A23: 2013-01-10 | B23: 2013-01-10T09:30:00 | C23: 32.69 | D23: 10 | E23: 12.05 | F23: 3 | G23: 19.64 | H23: 6 | M23: 41284.39583 | N23: T21 | O23: 33 | P23: 9 | Q23: 30 | R23: 930
A24: 2013-01-10 | B24: 2013-01-10T10:00:00 | C24: 27.84 | D24: 6 | E24: 9.87 | F24: 2 | G24: 15.28 | H24: 3 | M24: 41284.41667 | N24: T22 | O24: 28 | P24: 10 | Q24: 0 | R24: 1000
A25: 2013-01-10 | B25: 2013-01-10T10:30:00 | C25: 52.57 | D25: 10 | E25: 11.48 | F25: 3 | G25: 24.63 | H25: 5 | M25: 41284.4375 | N25: T23 | O25: 53 | P25: 10 | Q25: 30 | R25: 1030
A26: 2013-01-10 | B26: 2013-01-10T11:00:00 | C26: 193.14 | D26: 33 | E26: 73.07 | F26: 11 | G26: 101.24 | H26: 18 | M26: 41284.45833 | N26: T24 | O26: 193 | P26: 11 | Q26: 0 | R26: 1100
A27: 2013-01-10 | B27: 2013-01-10T11:30:00 | C27: 164.63 | D27: 31 | E27: 98.7 | F27: 17 | G27: 43.48 | H27: 10 | M27: 41284.47917 | N27: T25 | O27: 165 | P27: 11 | Q27: 30 | R27: 1130
A28: 2013-01-10 | B28: 2013-01-10T12:00:00 | C28: 248.71 | D28: 36 | E28: 136.59 | F28: 18 | G28: 90.57 | H28: 15 | M28: 41284.5 | N28: T26 | O28: 249 | P28: 12 | Q28: 0 | R28: 1200
A29: 2013-01-10 | B29: 2013-01-10T12:30:00 | C29: 145.24 | D29: 20 | E29: 68.92 | F29: 9 | G29: 76.32 | H29: 11 | M29: 41284.52083 | N29: T27 | O29: 145 | P29: 12 | Q29: 30 | R29: 1230
A30: 2013-01-10 | B30: 2013-01-10T13:00:00 | C30: 121.9 | D30: 22 | E30: 42.3 | F30: 5 | G30: 57.84 | H30: 12 | M30: 41284.54167 | N30: T28 | O30: 122 | P30: 13 | Q30: 0 | R30: 1300
A31: 2013-01-10 | B31: 2013-01-10T13:30:00 | C31: 158.97 | D31: 29 | E31: 77.55 | F31: 12 | G31: 80.42 | H31: 16 | M31: 41284.5625 | N31: T29 | O31: 159 | P31: 13 | Q31: 30 | R31: 1330
A32: 2013-01-10 | B32: 2013-01-10T14:00:00 | C32: 177.94 | D32: 28 | E32: 94.29 | F32: 13 | G32: 68.38 | H32: 12 | M32: 41284.58333 | N32: T30 | O32: 178 | P32: 14 | Q32: 0 | R32: 1400
A33: 2013-01-10 | B33: 2013-01-10T14:30:00 | C33: 106.81 | D33: 15 | E33: 48.67 | F33: 6 | G33: 58.14 | H33: 9 | M33: 41284.60417 | N33: T31 | O33: 107 | P33: 14 | Q33: 30 | R33: 1430
A34: 2013-01-10 | B34: 2013-01-10T15:00:00 | C34: 194.16 | D34: 23 | E34: 46.64 | F34: 6 | G34: 147.52 | H34: 17 | M34: 41284.625 | N34: T32 | O34: 194 | P34: 15 | Q34: 0 | R34: 1500
A35: 2013-01-10 | B35: 2013-01-10T15:30:00 | C35: 145.1 | D35: 19 | E35: 82.16 | F35: 9 | G35: 57.45 | H35: 9 | M35: 41284.64583 | N35: T33 | O35: 145 | P35: 15 | Q35: 30 | R35: 1530
A36: 2013-01-10 | B36: 2013-01-10T16:00:00 | C36: 148.06 | D36: 21 | E36: 50.32 | F36: 6 | G36: 52.69 | H36: 10 | M36: 41284.66667 | N36: T34 | O36: 148 | P36: 16 | Q36: 0 | R36: 1600
A37: 2013-01-10 | B37: 2013-01-10T16:30:00 | C37: 175.8 | D37: 23 | E37: 57.06 | F37: 6 | G37: 115.45 | H37: 16 | M37: 41284.6875 | N37: T35 | O37: 176 | P37: 16 | Q37: 30 | R37: 1630
A38: 2013-01-10 | B38: 2013-01-10T17:00:00 | C38: 238.2 | D38: 35 | E38: 58.83 | F38: 9 | G38: 132.58 | H38: 20 | M38: 41284.70833 | N38: T36 | O38: 238 | P38: 17 | Q38: 0 | R38: 1700
A39: 2013-01-10 | B39: 2013-01-10T17:30:00 | C39: 215.39 | D39: 29 | E39: 118.84 | F39: 16 | G39: 57.25 | H39: 9 | M39: 41284.72917 | N39: T37 | O39: 215 | P39: 17 | Q39: 30 | R39: 1730
A40: 2013-01-10 | B40: 2013-01-10T18:00:00 | C40: 133.19 | D40: 20 | E40: 40.78 | F40: 5 | G40: 86.33 | H40: 14 | M40: 41284.75 | N40: T38 | O40: 133 | P40: 18 | Q40: 0 | R40: 1800
A41: 2013-01-10 | B41: 2013-01-10T18:30:00 | C41: 109.2 | D41: 15 | E41: 19.05 | F41: 3 | G41: 61.64 | H41: 9 | M41: 41284.77083 | N41: T39 | O41: 109 | P41: 18 | Q41: 30 | R41: 1830
A42: 2013-01-10 | B42: 2013-01-10T19:00:00 | C42: 129.51 | D42: 13 | E42: 14.77 | F42: 1 | G42: 69.25 | H42: 9 | M42: 41284.79167 | N42: T40 | O42: 130 | P42: 19 | Q42: 0 | R42: 1900
A43: 2013-01-10 | B43: 2013-01-10T19:30:00 | C43: 116.34 | D43: 13 | E43: 25.53 | F43: 2 | G43: 87.12 | H43: 10 | M43: 41284.8125 | N43: T41 | O43: 116 | P43: 19 | Q43: 30 | R43: 1930
A44: 2013-01-10 | B44: 2013-01-10T20:00:00 | C44: 72.8 | D44: 11 | E44: 20.27 | F44: 3 | G44: 43.74 | H44: 7 | M44: 41284.83333 | N44: T42 | O44: 73 | P44: 20 | Q44: 0 | R44: 2000
A45: 2013-01-10 | B45: 2013-01-10T20:30:00 | C45: 62.78 | D45: 8 | E45: 31.05 | F45: 2 | G45: 29.94 | H45: 5 | M45: 41284.85417 | N45: T43 | O45: 63 | P45: 20 | Q45: 30 | R45: 2030
A46: 2013-01-10 | B46: 2013-01-10T21:00:00 | C46: 46.03 | D46: 6 | E46: 23.5 | F46: 2 | G46: 22.53 | H46: 4 | M46: 41284.875 | N46: T44 | O46: 46 | P46: 21 | Q46: 0 | R46: 2100
A47: 2013-01-10 | B47: 2013-01-10T21:30:00 | C47: 32.29 | D47: 5 | E47: 0 | F47: 0 | G47: 29.61 | H47: 4 | M47: 41284.89583 | N47: T45 | O47: 32 | P47: 21 | Q47: 30 | R47: 2130
A48: 2013-01-10 | B48: 2013-01-10T22:00:00 | C48: 0 | D48: 1 | E48: 0 | F48: 0 | G48: 0 | H48: 1 | M48: 41284.91667 | N48: T46 | O48: 0 | P48: 22 | Q48: 0 | R48: 2200
A49: 2013-01-10 | B49: 2013-01-10T22:30:00 | C49: 10.62 | D49: 2 | E49: 0 | F49: 0 | G49: 10.62 | H49: 2 | M49: 41284.9375 | N49: T47 | O49: 11 | P49: 22 | Q49: 30 | R49: 2230
A50: 2013-01-10 | B50: 2013-01-10T23:00:00 | C50: 0 | D50: 0 | E50: 0 | F50: 0 | G50: 0 | H50: 0 | M50: 41284.95833 | N50: T48 | O50: 0 | P50: 23 | Q50: 0 | R50: 2300
A51: 2013-01-10 | B51: 2013-01-10T23:30:00 | C51: 0 | D51: 0 | E51: 0 | F51: 0 | G51: 0 | H51: 0 | M51: 41284.97917 | N51: T49 | O51: 0 | P51: 23 | Q51: 30 | R51: 2330
O69: =IF(C69="","",INT(C69+0.5)) -> 
O133: =IF(C133="","",INT(C133+0.5)) -> 

Sheet BKPN
A1: BKPN | B1: Description | D1: MICROS | E1: BKPN | F1: Description | H1: SICOM | I1: BKPN | J1: Description | L1: PAR | M1: BKPN | N1: Description | P1: NCR_Radiant | Q1: BKPN | R1: Description | U1: COMMODITY NO | V1: COMMODITY NAME
A2: 6482 | B2: Apple Juice Dispensed Lrg | D2: 1000 | E2: 10 | F2: Whopper | H2: 1 | I2: 7722 | J2: LANE 1 | L2: 1 | M2: 113 | N2: RODEO CHZ BGR | P2: 100 | Q2: 7638 | R2: ************************* | U2: 150055.R00.V00 | V2: COOKIE DOUGH-OATMEAL RAISIN, OTIS SPUNKMEYER
A3: 6481 | B3: Apple Juice Dispensed Med | D3: 1001 | E3: 7592 | F3: CM Whopper | H3: 2 | I3: 7722 | J3: LANE 2 | L3: 10 | M3: 470 | N3: BISCUIT | P3: 101 | Q3: 7638 | R3: WHOPPERS | U3: 150086.R00.V00 | V3: PIE-DUTCH APPLE, SLICE, ECLIPSE, BK
A4: 7150 | B4: Apple Juice Dispensed Sml | D4: 1002 | E4: 15 | F4: Dbl Whopper | H4: 4 | I4: 883398900004 | J4: $2 JR & VLFRY | L4: 73 | M4: 3658 | N4: VALU CHOCOLATE | P4: 102 | Q4: 7638 | R4: ************************* | U4: 150089.R00.V00 | V4: FRENCH TOAST-STICKS
A5: 2738 | B5: Apple Sauce | D5: 1003 | E5: 7592 | F5: CM Dbl Whop | H5: 11 | I5: 883398900011 | J5: 2 BKFST BURR CM | L5: 78 | M5: 205 | N5: AMER CHK SAND | P5: 110 | Q5: 10 | R5: WHOPPER | U5: 150092.R00.V00 | V5: COOKIE DOUGH-CHOCOLATE CHIP, FROZEN, OTIS SPUNKMEYER
A6: 104658 | B6: Bacon King | D6: 1004 | E6: 3181 | F6: Tpl Whopper | H6: 28 | I6: 883398900028 | J6: $8.49 WHOP ML FOR 2 | L6: 83 | M6: 7414 | N6: VALU STRAWBERRY | P6: 112 | Q6: 8269 | R6: MEX DBL WHOPPER | U6: 150138.R00.V00 | V6: CHEESE-SWISS, PASTEURIZED PROCESS
A7: 919 | B7: Bag of Ice | D7: 1005 | E7: 7592 | F7: CM Tpl Whop | H7: 35 | I7: 883398900035 | J7: BOGO ICEE | L7: 88 | M7: 7414 | N7: VALU VANILLA | P7: 113 | Q7: 104248 | R7: JAL BCN CHS WHOPPER | U7: 150183.R00.V00 | V7: HAM-COUNTRY, SLICED
A8: 477 | B8: Bagel Bac | D8: 1050 | E8: 12 | F8: Whopper/C | H8: 42 | I8: 883398900042 | J8: 2.49 WHOPPER | L8: 89 | M8: 7414 | N8: KG CHOC SHAKE | P8: 114 | Q8: 103013 | R8: WHOPPER 4CHEESE | U8: 150202.R00.V00 | V8: CONE-ICE CREAM, CAKE, JOY KIDS CONE® SAMPLER
A9: 382 | B9: Bagel Bac Chs | D9: 1051 | E9: 7592 | F9: CM Whopper/C | H9: 59 | I9: 883398900059 | J9: FREE SM ICEE W/OCS | L9: 120 | M9: 204 | N9: ITALN CHK SAND | P9: 115 | Q9: 12 | R9: WHOPPER CHS | U9: 150204.R02.V00 | V9: SHAKE SYRUP-STRAWBERRY, PUMPABLE, BK
A10: 383 | B10: Bagel Bac Egg | D10: 1052 | E10: 17 | F10: Dbl Whopper/C | H10: 101 | I10: 7710 | J10: Crew Meal 101 | L10: 121 | M10: 105 | N10: CHK CLUB SAND | P10: 116 | Q10: 8249 | R10: BBQ BAC WHOP | U10: 150215.R00.V00 | V10: LID-HOT CUP, GENERIC WHITE RECLOSABLE (12/16/20 OZ)
A11: 439 | B11: Bagel Bac Egg Chs | D11: 1053 | E11: 7592 | F11: CM D Whop/C | H11: 102 | I11: 7710 | J11: Crew Meal 102 | L11: 155 | M11: 7414 | N11: KG STRAW SHAKE | P11: 117 | Q11: 79 | R11: BCN CHS WHOPPER | U11: 150231.R00.V00 | V11: CHEESE-MONTEREY JACK WITH JALAPENO PEPPERS, PROCESSED, PASTEURIZED
A12: 380 | B12: Bagel Chs | D12: 1054 | E12: 3182 | F12: Tpl Whopper/C | H12: 103 | I12: 7710 | J12: Crew Meal 103 | L12: 157 | M12: 7414 | N12: KG VAN SHAKE | P12: 118 | Q12: 7284 | R12: TX BBQ WHOPPER | U12: 150240.R00.V00 | V12: PORK-PORTUGUESE SAUSAGE, FULLY COOKED, REDONDO
A13: 441 | B13: Bagel Cream Chs | D13: 1055 | E13: 7592 | F13: CM Tpl Whop/C | H13: 104 | I13: 7710 | J13: Crew Meal 104 | L13: 222 | M13: 778 | N13: VALUE SIZE SODA | P13: 119 | Q13: 7274 | R13: CAROLINA WHOPPER | U13: 150279.R00.V00 | V13: SHAKE SYRUP-CHOCOLATE, PUMPABLE, BK
A14: 381 | B14: Bagel Egg | D14: 1056 | E14: 330 | F14: Whop no Meat/C | H14: 105 | I14: 7710 | J14: Crew Meal 105 | L14: 223 | M14: 5772 | N14: SENIOR COFFEE | P14: 120 | Q14: 15 | R14: DBL WHOPPER | U14: 150295.R00.V00 | V14: BEVERAGE SYRUP-FROZEN CARBONATED, WILD CHERRY, FANTA (2.5 GAL)
A15: 440 | B15: Bagel Egg Chs | D15: 1100 | E15: 548 | F15: Whopper/B | H15: 106 | I15: 7710 | J15: Crew Meal 106 | L15: 224 | M15: 5781 | N15: SENIOR DECAF | P15: 121 | Q15: 548 | R15: BACON WHOPPER | U15: 150297.R00.V00 | V15: BEVERAGE SYRUP-FROZEN CARBONATED, BLUE RASPBERRY, FANTA (2.5 GAL)
A16: 476 | B16: Bagel Ham | D16: 1101 | E16: 7592 | F16: CM Whopper/B | H16: 107 | I16: 7710 | J16: Crew Meal 107 | L16: 225 | M16: 7414 | N16: SENIOR TURBO | P16: 122 | Q16: 8250 | R16: DBL BBQ BAC WHP | U16: 150314.R00.V00 | V16: SAUCE-MARINARA (BULK)
A17: 386 | B17: Bagel Ham Chs | D17: 1150 | E17: 79 | F17: Whopper/B/C | H17: 108 | I17: 7710 | J17: Crew Meal 108 | L17: 226 | M17: 763 | N17: SENIOR SODA | P17: 123 | Q17: 7286 | R17: TX BBQ DBL WHP | U17: 150323.R00.V00 | V17: GRAVY-SAUSAGE, ZERO TRANS FAT
A18: 387 | B18: Bagel Ham Egg | D18: 1151 | E18: 7592 | F18: CM Whopper/B/C | H18: 109 | I18: 7710 | J18: Crew Meal 109 | L18: 233 | M18: 7414 | N18: 12-PC CHKFRY | P18: 124 | Q18: 7276 | R18: CAR BBQ DBL WHP | U18: 150547.R00.V00 | V18: RICE-CALROSE, MEDIUM GRAIN
A19: 437 | B19: Bagel Ham Egg Chs | D19: 1162 | E19: 4711 | F19: Dbl Whop/B/C | H19: 110 | I19: 7710 | J19: Crew Meal 110 | L19: 234 | M19: 7414 | N19: CRSP CHK GARDEN | P19: 125 | Q19: 17 | R19: DBL WHOPPER CHS | U19: 150570.R01.V00 | V19: SAUCE-DIPPING, RANCH, BK
A20: 478 | B20: Bagel Saus | D20: 1163 | E20: 7592 | F20: CM Dbl Whop/B/C | H20: 111 | I20: 7710 | J20: Crew Meal 111 | L20: 235 | M20: 6531 | N20: CRSP CHK CAESAR | P20: 126 | Q20: 4711 | R20: DBL BCN CHS WHOPPER | U20: 150593.R00.V00 | V20: SPAM
A21: 384 | B21: Bagel Saus Chs | D21: 1164 | E21: 4713 | F21: Dbl Whop/B | H21: 112 | I21: 7710 | J21: Crew Meal 112 | L21: 236 | M21: 6530 | N21: GRLL CHK CAESAR | P21: 127 | Q21: 3553 | R21: TX DBL WHOPPER | U21: 150632.R00.V00 | V21: BAG-PLASTIC, FOR ICE (10 LB)
A22: 385 | B22: Bagel Saus Egg | D22: 1165 | E22: 7592 | F22: CM Dbl Whop/B | H22: 113 | I22: 7710 | J22: Crew Meal 113 | L22: 237 | M22: 7414 | N22: GRLL CHK GARDEN | P22: 128 | Q22: 3552 | R22: TEXAS WHOPPER | U22: 150641.R00.V00 | V22: SUGAR-WHITE, BULK
A23: 438 | B23: Bagel Saus Egg Chs | D23: 1166 | E23: 4745 | F23: Tpl Whop/B | H23: 114 | I23: 7710 | J23: Crew Meal 114 | L23: 1001 | M23: 10 | N23: WHOPPER | P23: 129 | Q23: 3554 | R23: TPL TX WHOPPER | U23: 150740.R00.V00 | V23: SHAKE SYRUP-CHOCOLATE
A24: 8243 | B24: Beer Coors | D24: 1167 | E24: 7592 | F24: CM Tpl Whop/B | H24: 115 | I24: 7710 | J24: Crew Meal 115 | L24: 1002 | M24: 12 | N24: WHOPPER W/CHZ | P24: 130 | Q24: 298 | R24: WHOPPER JR | U24: 150833.R00.V00 | V24: LETTUCE-ROMAINE, CUT, 1.5"
A25: 6332 | B25: Beer Coors Lite | D25: 1171 | E25: 4747 | F25: Tpl Whop/B/C | H25: 116 | I25: 7710 | J25: Crew Meal 116 | L25: 1003 | M25: 15 | N25: DOUBLE WHOPPER | P25: 131 | Q25: 8026 | R25: AVOCADO WHOP JR | U25: 150996.R00.V01 | V25: SAUCE-DIPPING, MARINARA, BK
A26: 7346 | B26: Beer Corona | D26: 1172 | E26: 7592 | F26: CM Tpl Whop/B/C | H26: 117 | I26: 7710 | J26: Crew Meal 117 | L26: 1004 | M26: 17 | N26: DBL WHOP W/CHZ | P26: 132 | Q26: 7425 | R26: TX BBQ WHOP JR | U26: 151042.R01.V00 | V26: STRAW-WRAPPED, GIANT, RED
A27: 7344 | B27: Beer Heineken | D27: 1400 | E27: 3552 | F27: TX Whop | H27: 118 | I27: 7710 | J27: Crew Meal 118 | L27: 1005 | M27: 298 | N27: WHOPPER JUNIOR | P27: 133 | Q27: 7673 | R27: WISCONSIN WHP JR | U27: 151204.R00.V00 | V27: VEGETABLE PATTY-GARDEN (3.5 OZ)
A28: 5673 | B28: Beer Miller Lite | D28: 1401 | E28: 7592 | F28: CM TX Whop | H28: 119 | I28: 7710 | J28: Crew Meal 119 | L28: 1006 | M28: 299 | N28: WHOPPER JR CHZ | P28: 134 | Q28: 7423 | R28: CAROLINA WHOP JR | U28: 151226.R00.V00 | V28: SAUSAGE-PATTY, BREAKFAST (1.8 OZ) MILDLY SPICED, BK
A29: 8228 | B29: Beer Modelo | D29: 1402 | E29: 3553 | F29: Dbl TX Whop | H29: 120 | I29: 7710 | J29: Crew Meal 120 | L29: 1007 | M29: 178 | N29: HAMBURGER | P29: 135 | Q29: 299 | R29: WHOPPER JR CHS | U29: 151251.R02.V00 | V29: SAUCE-TARTAR, BULK, BK
A30: 2986 | B30: Big Fish Sand | D30: 1403 | E30: 7592 | F30: CM Dbl TX Whop | H30: 121 | I30: 7710 | J30: Crew Meal 121 | L30: 1008 | M30: 189 | N30: CHEESE BURGER | P30: 136 | Q30: 101368 | R30: WHOPPER JR BAC CHS | U30: 151260.R00.V00 | V30: SAUCE-TARTAR
A31: 470 | B31: Biscuit | D31: 1404 | E31: 3554 | F31: Tpl TX Whop | H31: 122 | I31: 7710 | J31: Crew Meal 122 | L31: 1011 | M31: 102012 | N31: YUMBO HAM & CHZ | P31: 137 | Q31: 141 | R31: DBL WHOP JR | U31: 151314.R00.V00 | V31: WATER-PURIFIED WITH MINERALS ADDED, BOTTLED (16.9 FL OZ), NESTLE
A32: 416 | B32: Biscuit Bac | D32: 1405 | E32: 7592 | F32: CM Tpl TX Whop | H32: 123 | I32: 7710 | J32: Crew Meal 123 | L32: 1012 | M32: 127 | N32: DBL CHZ BURGER | P32: 138 | Q32: 143 | R32: DBL WHOP JR CHS | U32: 151410.R00.V00 | V32: PANCAKES-FROZEN (1.6 OZ)
A33: 377 | B33: Biscuit Bac Chs | D33: 1406 | E33: 20 | F33: Mustard Whopper | H33: 124 | I33: 7710 | J33: Crew Meal 124 | L33: 1025 | M33: 7414 | N33: ANGUS STKBGR | P33: 139 | Q33: 4864 | R33: ANGRY WHOPPER JR | U33: 151552.R02.V00 | V33: CHEESE-STICKS, MOZZARELLA, BREADED, BK
A34: 488 | B34: Biscuit Bac Egg | D34: 1407 | E34: 7592 | F34: CM Mustard Whop | H34: 125 | I34: 7710 | J34: Crew Meal 125 | L34: 2112 | M34: 300 | N34: VALUE FRY | P34: 140 | Q34: 226 | R34: WHOPPER NO MEAT | U34: 151555.R00.V00 | V34: CHEESE-STICKS, MOZZARELLA, BREADED
A35: 376 | B35: Biscuit Bac Egg Chs | D35: 1408 | E35: 25 | F35: Dbl Mustard Whop | H35: 126 | I35: 7710 | J35: Crew Meal 126 | L35: 2113 | M35: 1792 | N35: VALUE O-RING | P35: 141 | Q35: 330 | R35: WHOP CHS NO MEAT | U35: 151584.R01.V00 | V35: LID-COLD CUP (38/40 OZ)
A36: 2790 | B36: Biscuit Bac Egg Chs Dbl | D36: 1409 | E36: 7592 | F36: CM Dbl Must Whop | H36: 127 | I36: 7710 | J36: Crew Meal 127 | L36: 3001 | M36: 220 | N36: ORIG CHKSAND | P36: 142 | Q36: 8173 | R36: MST WHOP JR | U36: 151631.R01.V00 | V36: SALT-GRANULAR, DIAMOND CRYSTAL (BULK)
A37: 2794 | B37: Biscuit Bac Ham Egg Chs Dbl | D37: 1410 | E37: 22 | F37: Must Whop/C | H37: 128 | I37: 7710 | J37: Crew Meal 128 | L37: 3002 | M37: 5968 | N37: TNDGRILL SAND | P37: 143 | Q37: 299 | R37: WHOPPER JR BAC | U37: 151666.R00.V00 | V37: SAUCE- CREAMY SPICY
A38: 2792 | B38: Biscuit Bac Saus Egg Chs Dbl | D38: 1411 | E38: 7592 | F38: CM Must Whop/C | H38: 129 | I38: 7710 | J38: Crew Meal 129 | L38: 3003 | M38: 2986 | N38: BK FISH | P38: 144 | Q38: 104254 | R38: DBL JAL BCN CHS WHOPPER | U38: 151672.R02.V00 | V38: WRAP-CHEESEBURGER/HAMBURGER (2015 DESIGN)
A39: 432 | B39: Biscuit CHam Egg Chs | D39: 1412 | E39: 27 | F39: Dbl Must Whop/C | H39: 130 | I39: 7710 | J39: Crew Meal 130 | L39: 3004 | M39: 7336 | N39: SPICY TNDCRSP | P39: 145 | Q39: 144 | R39: WHOP JR NO MEAT | U39: 151678.R01.V00 | V39: CUP-COLD DRINK, PLASTIC PP 38 OZ (2015 DESIGN)
A40: 1950 | B40: Biscuit Chicken | D40: 1413 | E40: 7592 | F40: CM Dbl M Whop/C | H40: 131 | I40: 7710 | J40: Crew Meal 131 | L40: 4001 | M40: 151 | N40: BAC DBL CHZ | P40: 146 | Q40: 4713 | R40: DBL WHOP BAC | U40: 151699.R01.V00 | V40: BAG-FRENCH FRY, SMALL (2015 DESIGN)
A41: 2812 | B41: Biscuit Chicken Bac Egg Chs Dbl | D41: 1414 | E41: 3919 | F41: Ultimate Whop | H41: 132 | I41: 7710 | J41: Crew Meal 132 | L41: 4002 | M41: 187 | N41: BACON CHZBURGER | P41: 147 | Q41: 4745 | R41: TPL WHOPPER BAC | U41: 151720.R01.V00 | V41: CARTON-CLAMSHELL, MULTIUSE (2015 DESIGN)
A42: 2856 | B42: Biscuit Chicken Chs | D42: 1415 | E42: 7592 | F42: CM Ultimate Whop | H42: 133 | I42: 7710 | J42: Crew Meal 133 | L42: 4003 | M42: 6382 | N42: BK DBL STACKER | P42: 148 | Q42: 103014 | R42: DBL WHOP 4CHESE | U42: 151744.R01.V00 | V42: LID-PAPER COLD CUP (29/30/32 OZ)
A43: 2857 | B43: Biscuit Chicken Egg | D43: 1416 | E43: 3121 | F43: Dbl Ult Whop | H43: 134 | I43: 7710 | J43: Crew Meal 134 | L43: 4004 | M43: 6384 | N43: BK TPL STACKER | P43: 149 | Q43: 103015 | R43: TPL WHOP 4CHESE | U43: 151768.R01.V00 | V43: LID-PAPER COLD CUP (12/16/20/21 OZ)
A44: 2858 | B44: Biscuit Chicken Egg Chs | D44: 1417 | E44: 7592 | F44: CM Dbl Ult Whop | H44: 135 | I44: 7710 | J44: Crew Meal 135 | L44: 4005 | M44: 6386 | N44: BK QUAD STACKER | P44: 150 | Q44: 3181 | R44: TPL WHOPPER | U44: 151789.R00.V00 | V44: BEVERAGE SYRUP-PEACH FLAVORED, MONIN
A45: 2820 | B45: Biscuit Chicken Egg Chs Dbl | D45: 1418 | E45: 3921 | F45: Tpl Ult Whop | H45: 136 | I45: 7710 | J45: Crew Meal 136 | L45: 4020 | M45: 2932 | N45: VEGGIE BURGER | P45: 151 | Q45: 104434 | R45: TPL JAL BCN CHS WHOPPER | U45: 151793.R00.V00 | V45: BAG-CHICKEN NUGGET, WHITE GR (2014)
A46: 2808 | B46: Biscuit Chicken Saus Egg Chs Dbl | D46: 1419 | E46: 7592 | F46: CM Tpl Ult Whop | H46: 137 | I46: 7710 | J46: Crew Meal 137 | L46: 4465 | M46: 922 | N46: PREM KIDS TOY | P46: 152 | Q46: 8251 | R46: TPL BBQ BAC WHOP | U46: 151802.R00.V00 | V46: BEVERAGE SYRUP-MANGO FLAVORED, MONIN
A47: 375 | B47: Biscuit Chs | D47: 1420 | E47: 3943 | F47: Indy Whopper | H47: 138 | I47: 7710 | J47: Crew Meal 138 | L47: 5014 | M47: 1872 | N47: TNDCRSP CHKN | P47: 153 | Q47: 7288 | R47: TPL TX BBQ WHOP | U47: 151806.R00.V00 | V47: BEVERAGE SYRUP-RASPBERRY FLAVORED, MONIN
A48: 473 | B48: Biscuit Country Ham | D48: 1421 | E48: 7592 | F48: CM Indy Whop | H48: 139 | I48: 7710 | J48: Crew Meal 139 | L48: 5021 | M48: 1517 | N48: CHK TENDER SAND | P48: 154 | Q48: 7278 | R48: TPL CAR WHOPPER | U48: 151993.R05.V00 | V48: BASE & LID-PLATTER, BREAKFAST, PP
A49: 2802 | B49: Biscuit Country Ham Bac Egg Chs Dbl | D49: 1422 | E49: 3945 | F49: Dbl Indy Whop | H49: 140 | I49: 7710 | J49: Crew Meal 140 | L49: 5022 | M49: 7414 | N49: BCR TNDCRSP | P49: 155 | Q49: 3182 | R49: TPL WHOPPER CHS | U49: 151996.R00.V00 | V49: SAUCE-CHEESY, CHEDDAR FLAVORED
A50: 472 | B50: Biscuit Country Ham Egg | D50: 1423 | E50: 7592 | F50: CM Dbl Indy Whop | H50: 141 | I50: 7710 | J50: Crew Meal 141 | L50: 10012 | M50: 416 | N50: BISCUIT BACON | P50: 156 | Q50: 4747 | R50: TPL BCN CHS WHOPPER | U50: 151997.R00.V00 | V50: WHIPPED TOPPING-CREAM, LIGHT, SWEETENED, ULTRA-PASTEURIZED, REFRIGERATED, CANIST
A51: 2804 | B51: Biscuit Country Ham Egg Chs Dbl | D51: 1424 | E51: 3947 | F51: Tpl Indy Whop | H51: 142 | I51: 7710 | J51: Crew Meal 142 | L51: 10027 | M51: 488 | N51: B/E BISCUIT | P51: 157 | Q51: 103967 | R51: MS SWISS BAC WHOPPER | U51: 152098.R01.V00 | V51: SMOOTHIE MIX-STRAWBERRY BANANA ARTIFICIALLY FLAVORED, CONCENTRATED, FROZEN, ALL
A52: 480 | B52: Biscuit Egg | D52: 1425 | E52: 7592 | F52: CM Tpl Indy Whop | H52: 143 | I52: 7710 | J52: Crew Meal 143 | L52: 10033 | M52: 7150 | N52: VM APPLE JUICE | P52: 158 | Q52: 7634 | R52: BLK & BLEU WHOP | U52: 152099.R00.V00 | V52: LID-PLASTIC, CLEAR, PETE (8 OZ) SUNDAE DOME
A53: 428 | B53: Biscuit Egg Chs | D53: 1426 | E53: 7414 | F53: Whip Whp | H53: 144 | I53: 7710 | J53: Crew Meal 144 | L53: 10034 | M53: 2086 | N53: VM BTLED WATER | P53: 159 | Q53: 7636 | R53: PEPPER BAC WHOP | U53: 152100.R01.V00 | V53: SMOOTHIE MIX-TROPICAL MANGO ARTIFICIAL FLAVORED, FROZEN CONCENTRATED, ALL IN ONE
A54: 275 | B54: Biscuit Ham | D54: 1428 | E54: 7414 | F54: Dbl Whip Whp | H54: 145 | I54: 7710 | J54: Crew Meal 145 | L54: 10035 | M54: 3658 | N54: VM CHOC MILK | P54: 160 | Q54: 8263 | R54: MS BAC DBL WHOP | U54: 152103.R00.V00 | V54: CUP-PLASTIC, CLEAR, PETE (8 OZ) SUNDAE
A55: 278 | B55: Biscuit Ham Chs | D55: 1429 | E55: 7592 | F55: CM Dbl Whip Whp | H55: 146 | I55: 7710 | J55: Crew Meal 146 | L55: 10036 | M55: 777 | N55: KID SODA | P55: 161 | Q55: 8047 | R55: CHP WHOPPER | U55: 152161.R01.V00 | V55: BREAD-3.25" ROUND, SLICED, BK
A56: 379 | B56: Biscuit Ham Chs | D56: 1450 | E56: 4161 | F56: Angry Whop | H56: 147 | I56: 7710 | J56: Crew Meal 147 | L56: 10037 | M56: 1561 | N56: VM LARGE SODA | P56: 162 | Q56: 8049 | R56: CHP DBL WHOPPER | U56: 152204.R00.V00 | V56: BEVERAGE SYRUP-FROZEN CARBONATED, COCA COLA CLASSIC (2.5 GAL)
A57: 316 | B57: Biscuit Ham Egg | D57: 1451 | E57: 7592 | F57: CM Ang Whop | H57: 148 | I57: 7710 | J57: Crew Meal 148 | L57: 10038 | M57: 5766 | N57: VM LARGE COFFEE | P57: 163 | Q57: 8051 | R57: CHP TPL WHOPPER | U57: 152249.R00.V00 | V57: BAG-COOKIE, WHITE GR (2012 DESIGN)
A58: 318 | B58: Biscuit Ham Egg Chs | D58: 1452 | E58: 4163 | F58: Dbl Ang Whop | H58: 149 | I58: 7710 | J58: Crew Meal 149 | L58: 10039 | M58: 5777 | N58: VM LARGE DECAF | P58: 164 | Q58: 8053 | R58: CHP WHOPPER JR | U58: 152314.R00.V00 | V58: JAM-STRAWBERRY, PACKET
A59: 2796 | B59: Biscuit Ham Egg Chs Dbl | D59: 1453 | E59: 7592 | F59: CM Dbl Ang Whop | H59: 150 | I59: 7710 | J59: Crew Meal 150 | L59: 10040 | M59: 780 | N59: VM MEDIUM SODA | P59: 165 | Q59: 20 | R59: MST WHOP | U59: 152318.R00.V00 | V59: GRITS-QUICK, ENRICHED
A60: 2798 | B60: Biscuit Ham Saus Egg Chs Dbl | D60: 1454 | E60: 4165 | F60: Tpl Ang Whop | H60: 151 | I60: 7710 | J60: Crew Meal 151 | L60: 10056 | M60: 275 | N60: BISCUIT HAM | P60: 167 | Q60: 22 | R60: MST WHOP CH | U60: 152323.R00.V00 | V60: CARTON-FRIED FOODS
A61: 475 | B61: Biscuit Saus | D61: 1455 | E61: 7592 | F61: CM Tpl Ang Whop | H61: 152 | I61: 7710 | J61: Crew Meal 152 | L61: 10077 | M61: 278 | N61: H/C BISCUIT | P61: 168 | Q61: 25 | R61: DBL MST WHOP | U61: 152365.R00.V00 | V61: CUP-COLD DRINK, PLASTIC, PP (40 OZ) HOLIDAY 2013
A62: 378 | B62: Biscuit Saus Chs | D62: 1456 | E62: 4765 | F62: Cali Whopper | H62: 153 | I62: 7710 | J62: Crew Meal 153 | L62: 10122 | M62: 382 | N62: B/C BAGEL | P62: 169 | Q62: 27 | R62: DBL MST WHOP CH | U62: 152368.R00.V00 | V62: CUP-COLD DRINK, PAPER (30 OZ) HOLIDAY 2013
A63: 474 | B63: Biscuit Saus Egg | D63: 1457 | E63: 7592 | F63: CM Cali Whopper | H63: 154 | I63: 7710 | J63: Crew Meal 154 | L63: 10156 | M63: 316 | N63: H/E BISCUIT | P63: 171 | Q63: 7034 | R63: CHEFS CHOICE | U63: 152371.R00.V00 | V63: CUP-COLD DRINK, PAPER (20 OZ) HOLIDAY 2013
A64: 434 | B64: Biscuit Saus Egg Chs | D64: 1458 | E64: 4767 | F64: Dbl Cali Whopper | H64: 155 | I64: 7710 | J64: Crew Meal 155 | L64: 10158 | M64: 7414 | N64: VM LARGE TURBO | P64: 172 | Q64: 5349 | R64: PEPPBCNWHOP | U64: 152429.R00.V00 | V64: PEPPERS-JALAPENO, WHOLE
A65: 2800 | B65: Biscuit Saus Egg Chs Dbl | D65: 1459 | E65: 7592 | F65: CM Dbl Cali Whop | H65: 156 | I65: 7710 | J65: Crew Meal 156 | L65: 10159 | M65: 5722 | N65: VM LG ICED COFF | P65: 173 | Q65: 5642 | R65: DBLPEPPBCNWHOP | U65: 152500.R00.V00 | V65: WRAP-SPECIALTY (2013 DESIGN)
A66: 402 | B66: Biscuits and Gravy 1 Pc | D66: 1460 | E66: 4769 | F66: TplCali Whopper | H66: 157 | I66: 7710 | J66: Crew Meal 157 | L66: 10167 | M66: 7414 | N66: STKHOUSE BURGER | P66: 174 | Q66: 5644 | R66: TPLPEPPBCNWHOP | U66: 152613.R00.V00 | V66: LID-PLASTIC, CLEAR, PETE (SMALL SALAD)
A67: 404 | B67: Biscuits and Gravy 2 Pc | D67: 1461 | E67: 7592 | F67: CM Tpl Cali Whop | H67: 158 | I67: 7710 | J67: Crew Meal 158 | L67: 10168 | M67: 7414 | N67: LD STKHOUSE BRG | P67: 175 | Q67: 103553 | R67: SPICY WHOP | U67: 152621.R00.V00 | V67: LID-PLASTIC, CLEAR, PETE (LARGE SALAD)
A68: 2086 | B68: Bottled Water | D68: 1462 | E68: 7284 | F68: TX BBQ Whop | H68: 159 | I68: 7710 | J68: Crew Meal 159 | L68: 10171 | M68: 7414 | N68: B/C WRAP | P68: 176 | Q68: 103554 | R68: SPY DBL WHOP | U68: 152624.R00.V00 | V68: BOWL-PLASTIC, BLACK, PETE (SMALL SALAD)
A69: 104015 | B69: Breakfast Sand Bac | D69: 1463 | E69: 7592 | F69: CM TX BBQ Whop | H69: 160 | I69: 7710 | J69: Crew Meal 160 | L69: 10172 | M69: 7414 | N69: B/E WRAP | P69: 177 | Q69: 103555 | R69: SPY TPL WHOP | U69: 152635.R00.V00 | V69: BOWL-PLASTIC, BLACK, PETE (LARGE SALAD)
A70: 104016 | B70: Breakfast Sand Bac Chs | D70: 1464 | E70: 7286 | F70: Dbl TX BBQ Whop | H70: 161 | I70: 7710 | J70: Crew Meal 161 | L70: 10176 | M70: 378 | N70: S/C BISCUIT | P70: 178 | Q70: 4765 | R70: CALIFORNIA WHOP | U70: 152703.R00.V00 | V70: ONIONS-CHIPOTLE, CRISPY
A71: 104017 | B71: Breakfast Sand Bac Egg | D71: 1465 | E71: 7592 | F71: CM Dbl TXBBQWhop | H71: 162 | I71: 7710 | J71: Crew Meal 162 | L71: 10207 | M71: 7414 | N71: B/E/C WRAP | P71: 179 | Q71: 4767 | R71: CALI DBL WHOPPER | U71: 152716.R00.V00 | V71: CARTON-FRIED FOODS (BK DELIVERY)
A72: 104018 | B72: Breakfast Sand Bac Egg Chs | D72: 1466 | E72: 7288 | F72: Tpl TX BBQ Whop | H72: 163 | I72: 7710 | J72: Crew Meal 163 | L72: 10209 | M72: 383 | N72: B/E BAGEL | P72: 180 | Q72: 8264 | R72: MS BAC TPL WHOP | U72: 152718.R00.V00 | V72: CHEESE-PARMESAN, PROCESS, PASTEURIZED
A73: 104019 | B73: Breakfast Sand Chs | D73: 1467 | E73: 7592 | F73: CM Tpl TXBBQWhop | H73: 164 | I73: 7710 | J73: Crew Meal 164 | L73: 10210 | M73: 477 | N73: BAGEL BACON | P73: 181 | Q73: 4715 | R73: DOUBLE BOURBON WHOPPER | U73: 152720.R00.V00 | V73: SYRUP-MILK CHOCOLATE FLAVORED (PACK 4/64 OZ), LYONS
A74: 104020 | B74: Breakfast Sand Egg | D74: 1468 | E74: 7274 | F74: CAR Whopper | H74: 165 | I74: 7710 | J74: Crew Meal 165 | L74: 10211 | M74: 7414 | N74: INDY DBL WHOP | P74: 182 | Q74: 4725 | R74: TRIPLE BOURBON WHOPPER | U74: 152786.R00.V00 | V74: SAUCE-BBQ, HOT & SPICY, SWEET BABY RAY'S
A75: 103960 | B75: Breakfast Sand Egg Chs | D75: 1469 | E75: 7592 | F75: CM CAR Whopper | H75: 166 | I75: 7710 | J75: Crew Meal 166 | L75: 10213 | M75: 2948 | N75: $5 GIFT CARD | P75: 183 | Q75: 4769 | R75: TPL CALI WHOPPER | U75: 152795.R00.V00 | V75: TOPPING-CHOCOLATE FUDGE, LYONS
A76: 104021 | B76: Breakfast Sand Ham | D76: 1470 | E76: 7276 | F76: Dbl CAR Whopper | H76: 167 | I76: 7710 | J76: Crew Meal 167 | L76: 10214 | M76: 2948 | N76: $10 GIFT CARD | P76: 184 | Q76: 7414 | R76: CALIFORNIA WHOPPER JR | U76: 152801.R00.V00 | V76: WRAP-HALF, LARGE (2012 DESIGN)
A77: 104022 | B77: Breakfast Sand Ham Chs | D77: 1471 | E77: 7592 | F77: CM Dbl CAR Whop | H77: 168 | I77: 7710 | J77: Crew Meal 168 | L77: 10230 | M77: 386 | N77: H/C BAGEL | P77: 188 | Q77: 7213 | R77: CHEF BAC BLEU | U77: 152859.R00.V00 | V77: TEA-BLACK, S&D
A78: 103961 | B78: Breakfast Sand Ham Egg Chs | D78: 1472 | E78: 7278 | F78: Tpl CAR Whopper | H78: 169 | I78: 7710 | J78: Crew Meal 169 | L78: 10231 | M78: 387 | N78: H/E BAGEL | P78: 189 | Q78: 7215 | R78: CHEF BBQ BAC | U78: 152911.R03.V00 | V78: SAUCE-STACKER, BK
A79: 104024 | B79: Breakfast Sand Saus | D79: 1473 | E79: 7592 | F79: CM Tpl CAR Whop | H79: 170 | I79: 7710 | J79: Crew Meal 170 | L79: 10232 | M79: 5720 | N79: VM MED COFFEE | P79: 191 | Q79: 8020 | R79: AVOCADO WHOP | U79: 152973.R00.V00 | V79: PEPPERS-JALAPENO, SLICED, KRUGER FOODS
A80: 104025 | B80: Breakfast Sand Saus Chs | D80: 1474 | E80: 7669 | F80: Wisc Whop | H80: 171 | I80: 7710 | J80: Crew Meal 171 | L80: 10238 | M80: 476 | N80: BAGEL HAM | P80: 192 | Q80: 8022 | R80: AVOCADO DBL WHOP | U80: 152984.R00.V00 | V80: TOPPING-OREO CRUMBLES, MEDIUM (1 LB)
A81: 104026 | B81: Breakfast Sand Saus Egg | D81: 1475 | E81: 7592 | F81: CM Wisc Whop | H81: 172 | I81: 7710 | J81: Crew Meal 172 | L81: 10239 | M81: 384 | N81: S/C BAGEL | P81: 193 | Q81: 8024 | R81: AVOCADO TPL WHOP | U81: 153052.R00.V00 | V81: LABEL-SALAD (1"X3")
A82: 104027 | B82: Breakfast Sand Saus Egg Chs | D82: 1476 | E82: 7667 | F82: Wisc DBL Whop | H82: 173 | I82: 7710 | J82: Crew Meal 173 | L82: 10240 | M82: 385 | N82: S/E BAGEL | P82: 194 | Q82: 103280 | R82: MG WHOP | U82: 153075.R00.V00 | V82: CHEESE-HABANERO PEPPERS, PROCESS, PASTEURIZED, MONTEREY JACK
A83: 104023 | B83: Breakfast Sandwich Ham Egg | D83: 1477 | E83: 7592 | F83: CM Wisc DBL Whop | H83: 174 | I83: 7710 | J83: Crew Meal 174 | L83: 10241 | M83: 478 | N83: BAGEL SAUSAGE | P83: 195 | Q83: 103274 | R83: MG DOUBLE WHOP | U83: 153090.R00.V00 | V83: SYRUP-SIMPLE SUGAR, ICED COFFEE
A84: 7225 | B84: Burrito Bac Chs Val | D84: 1478 | E84: 7671 | F84: Wisc TPL Whop | H84: 175 | I84: 7710 | J84: Crew Meal 175 | L84: 10242 | M84: 380 | N84: BAGEL CHEESE | P84: 196 | Q84: 103279 | R84: MG TRIPLE WHOP | U84: 153096.R00.V00 | V84: SYRUP-VANILLA FLAVORED (PACK 4/64 FL OZ), LYONS
A85: 7133 | B85: Burrito Bac Egg Chs Val | D85: 1479 | E85: 7592 | F85: CM Wisc TPL Whop | H85: 176 | I85: 7710 | J85: Crew Meal 176 | L85: 10243 | M85: 381 | N85: BAGEL EGG | P85: 197 | Q85: 103281 | R85: MG WHOP W/CHS | U85: 153098.R00.V00 | V85: COFFEE-DECAF, SBC, 5051, DRIP, 2.2 OZ, SEATTLE'S BEST
A86: 7223 | B86: Burrito Bac Egg Val | D86: 1480 | E86: 8020 | F86: Avocado Whopper | H86: 177 | I86: 7710 | J86: Crew Meal 177 | L86: 10244 | M86: 440 | N86: E/C BAGEL | P86: 198 | Q86: 103277 | R86: MG WHOP BAC CHS | U86: 153114.R00.V00 | V86: SAUCE-DIPPING, BARBECUE
A87: 7227 | B87: Burrito Bac Val | D87: 1481 | E87: 7592 | F87: CM Avo Whop | H87: 178 | I87: 7710 | J87: Crew Meal 178 | L87: 10245 | M87: 474 | N87: S/E BISCUIT | P87: 200 | Q87: 7638 | R87: ************************* | U87: 153117.R00.V00 | V87: SAUCE-MARINARA, ITALIAN HERB, BULK
A88: 7229 | B88: Burrito Chs Val | D88: 1482 | E88: 8022 | F88: Avocado Dbl Whop | H88: 179 | I88: 7710 | J88: Crew Meal 179 | L88: 10246 | M88: 475 | N88: BISCUIT SAUSAGE | P88: 201 | Q88: 7638 | R88: BURGERS | U88: 153137.R00.V00 | V88: CHEESE-MOZZARELLA, LOW-MOISTURE, PART-SKIM
A89: 7135 | B89: Burrito Egg Chs Val | D89: 1483 | E89: 7592 | F89: CM Avo Dbl Whop | H89: 180 | I89: 7710 | J89: Crew Meal 180 | L89: 10247 | M89: 375 | N89: BISCUIT CHEESE | P89: 202 | Q89: 7638 | R89: ************************* | U89: 153158.R00.V00 | V89: OIL-BUTTER FLAVORED, TRANS FAT FREE, WHIRL
A90: 6659 | B90: Burrito Egg Val | D90: 1484 | E90: 8024 | F90: Avocado Tpl Whop | H90: 181 | I90: 7710 | J90: Crew Meal 181 | L90: 10248 | M90: 428 | N90: E/C BISCUIT | P90: 210 | Q90: 178 | R90: BURGER | U90: 153167.R00.V00 | V90: COFFEE-REGULAR, SBC, 5051, DRIP, 2.2 OZ, SEATTLES BEST
A91: 104197 | B91: Burrito Egg-Normous Bac Bac Egg Chs | D91: 1485 | E91: 7592 | F91: CM Avo Tpl Whop | H91: 182 | I91: 7710 | J91: Crew Meal 182 | L91: 10249 | M91: 480 | N91: BISCUIT EGG | P91: 211 | Q91: 104327 | R91: XL PHILLY CB | U91: 153169.R00.V00 | V91: SMOOTHIE MIX-STRAWBERRY BANANA ARTIFICIALLY FLAVORED, CONCENTRATED, FROZEN, BK,
A92: 104198 | B92: Burrito Egg-Normous Bac Ham Egg Chs | D92: 1486 | E92: 8047 | F92: CHP Whopper | H92: 183 | I92: 7710 | J92: Crew Meal 183 | L92: 10250 | M92: 377 | N92: B/C BISCUIT | P92: 212 | Q92: 8222 | R92: XL BBQ CHS BRG | U92: 153175.R00.V00 | V92: SMOOTHIE MIX-TROPICAL MANGO ARTIFICIALLY FLAVORED, CONCENTRATED, FROZEN, BK, 64
A93: 104199 | B93: Burrito Egg-Normous Bac Saus Egg Chs | D93: 1487 | E93: 7592 | F93: CM CHP Whop | H93: 184 | I93: 7710 | J93: Crew Meal 184 | L93: 10251 | M93: 57 | N93: B/C CROISSANT | P93: 213 | Q93: 102728 | R93: XL CHEESEBURGER | U93: 153186.R01.V00 | V93: HAM-SLICED, REFRIGERATED, BLACK FOREST, BK
A94: 104200 | B94: Burrito Egg-Normous Chs | D94: 1489 | E94: 8049 | F94: CHP DBL Whopper | H94: 185 | I94: 7710 | J94: Crew Meal 185 | L94: 10252 | M94: 60 | N94: B/E CROISSANT | P94: 214 | Q94: 103965 | R94: XL Ghost Pep Bgr | U94: 153209.R02.V00 | V94: JUICE-APPLE, CONCENTRATED, FROZEN, MINUTE MAID
A95: 104202 | B95: Burrito Egg-Normous Egg | D95: 1490 | E95: 7592 | F95: CM CHP DBL Whop | H95: 186 | I95: 7710 | J95: Crew Meal 186 | L95: 10253 | M95: 67 | N95: CROIST BACON | P95: 215 | Q95: 66 | R95: DBL BURGER | U95: 153211.R00.V00 | V95: COOKIE DOUGH-BROWNIE, DOUBLE CHOCOLATE, FROZEN, OTIS SPUNKMEYER
A96: 104201 | B96: Burrito Egg-Normous Egg Chs | D96: 1491 | E96: 8051 | F96: CHP TPL Whopper | H96: 187 | I96: 7710 | J96: Crew Meal 187 | L96: 10254 | M96: 115 | N96: CROIST HAM | P96: 216 | Q96: 8309 | R96: SPICY BIG KING | U96: 153243.R00.V00 | V96: WRAP-HAMBURGER/CHEESEBURGER, BK STACKER (FALL 2012 DESIGN)
A97: 104203 | B97: Burrito Egg-Normous Ham Ham Egg Chs | D97: 1492 | E97: 7592 | F97: CM CHP TPL Whop | H97: 188 | I97: 7710 | J97: Crew Meal 188 | L97: 10255 | M97: 135 | N97: H/C CROISSANT | P97: 217 | Q97: 8306 | R97: CHEDDAR BURGER | U97: 153252.R00.V00 | V97: WRAP-TORTILLA/BURRITO (FALL 2012 DESIGN)
A98: 104204 | B98: Burrito Egg-Normous Saus Ham Egg Chs | D98: 1493 | E98: 4723 | F98: BBN Whopper | H98: 189 | I98: 7710 | J98: Crew Meal 189 | L98: 10256 | M98: 149 | N98: H/E CROISSANT | P98: 218 | Q98: 104099 | R98: XL SRIRACHA CB | U98: 153254.R01.V00 | V98: SMOOTHIE MIX-LEMONADE, MINUTE MAID
A99: 104205 | B99: Burrito Egg-Normous Saus Saus Egg Chs | D99: 1494 | E99: 7592 | F99: CM BBN Whop | H99: 190 | I99: 7710 | J99: Crew Meal 190 | L99: 10257 | M99: 209 | N99: CROIST SAUSAGE | P99: 219 | Q99: 104658 | R99: BACON KING | U99: 153255.R00.V00 | V99: WRAP-SPECIALTY (FALL 2012 DESIGN)
A100: 7233 | B100: Burrito Ham Chs Val | D100: 1495 | E100: 4715 | F100: BBN DBL Whop | H100: 191 | I100: 7710 | J100: Crew Meal 191 | L100: 10258 | M100: 235 | N100: S/C CROISSANT | P100: 220 | Q100: 189 | R100: CHS BURGER | U100: 153290.R00.V00 | V100: SAUCE-COLESLAW
A101: 7137 | B101: Burrito Ham Egg Chs Val | D101: 1496 | E101: 7592 | F101: CM BBN DBL Whop | H101: 192 | I101: 7710 | J101: Crew Meal 192 | L101: 10259 | M101: 236 | N101: S/E CROISSANT | P101: 221 | Q101: 8240 | R101: RODEO BURGER | U101: 153325.R00.V00 | V101: CHICKEN-PATTY, VALUE (2.35 OZ)
A102: 7231 | B102: Burrito Ham Egg Val | D102: 1497 | E102: 4725 | F102: BBN TPL Whop | H102: 193 | I102: 7710 | J102: Crew Meal 193 | L102: 10260 | M102: 68 | N102: CROIST CHEESE | P102: 222 | Q102: 113 | R102: RODEO CHS BURGER | U102: 153328.R02.V00 | V102: CHICKEN-PATTY, VALUE (2.35 OZ), BK
A103: 7235 | B103: Burrito Ham Val | D103: 1498 | E103: 7592 | F103: CM BBN Whop | H103: 194 | I103: 7710 | J103: Crew Meal 194 | L103: 10261 | M103: 72 | N103: CROIST EGG | P103: 223 | Q103: 6701 | R103: DLX CHS BURGER | U103: 153347.R00.V00 | V103: VEGETABLE MIX-ONIONS, RED PEPPER AND GREEN PEPPER
A104: 6662 | B104: Burrito Saus Chs Val | D104: 1499 | E104: 7636 | F104: PEP Whopper | H104: 195 | I104: 7710 | J104: Crew Meal 195 | L104: 10262 | M104: 111 | N104: E/C CROISSANT | P104: 224 | Q104: 8254 | R104: JALAPENO CHZBRG | U104: 153368.R00.V00 | V104: CARTON-FRYPOD, LARGE (FAMILY FOOD GAME) B2
A105: 7139 | B105: Burrito Saus Egg Chs Val | D105: 1500 | E105: 7592 | F105: CM PEP Whop | H105: 196 | I105: 7710 | J105: Crew Meal 196 | L105: 10263 | M105: 7414 | N105: SOURDGH CHEESE | P105: 225 | Q105: 127 | R105: DBL CHS BURGER | U105: 153378.R01.V00 | V105: FRAPPE-MIX, MOCHA, FROZEN BLENDED BASE, BK
A106: 6660 | B106: Burrito Saus Egg Val | D106: 1501 | E106: 7636 | F106: PEP DBL Whop | H106: 197 | I106: 7710 | J106: Crew Meal 197 | L106: 10264 | M106: 7414 | N106: SOURDGH EGG | P106: 226 | Q106: 956 | R106: BIG KING | U106: 153381.R01.V00 | V106: FRAPPE-MIX, CARAMEL, FROZEN BLENDED BASE, BK
A107: 6663 | B107: Burrito Saus Val | D107: 1502 | E107: 7592 | F107: CM PEP DBL Whop | H107: 198 | I107: 7710 | J107: Crew Meal 198 | L107: 10265 | M107: 7414 | N107: E/C SOURDOUGH | P107: 227 | Q107: 8252 | R107: BBQ BIG KING | U107: 153384.R00.V00 | V107: YOGURT-PLAIN, LOW FAT, BK (TEST)
A108: 189 | B108: Cheeseburger | D108: 1503 | E108: 7636 | F108: PEP TPL Whop | H108: 199 | I108: 7710 | J108: Crew Meal 199 | L108: 10266 | M108: 7414 | N108: SOURDGH BACON | P108: 228 | Q108: 8172 | R108: KING JR CHSBRGR | U108: 153386.R00.V00 | V108: BAG-CARRYOUT, WHITE (4LB) FAMILY FOOD GAME
A109: 187 | B109: Cheeseburger Bac | D109: 1504 | E109: 7592 | F109: CM PEP TPL Whop | H109: 200 | I109: 7710 | J109: Crew Meal 200 | L109: 10267 | M109: 7414 | N109: B/C SOURDOUGH | P109: 229 | Q109: 6888 | R109: MUSH SWISS BRG | U109: 153392.R00.V00 | V109: CUP-COLD DRINK, PLASTIC, CLEAR, PP (16 OZ) FAMILY FOOD GAME B2
A110: 151 | B110: Cheeseburger Bac Dbl | D110: 1505 | E110: 7632 | F110: Mush Whopper | H110: 201 | I110: 7710 | J110: Crew Meal 201 | L110: 10268 | M110: 7414 | N110: B/E SOURDOUGH | P110: 230 | Q110: 187 | R110: BAC CHS BURGER | U110: 153394.R00.V00 | V110: MANGO-PIECES, FROZEN, BK
A111: 127 | B111: Cheeseburger Dbl | D111: 1506 | E111: 7592 | F111: CM Mush Whop | H111: 202 | I111: 7710 | J111: Crew Meal 202 | L111: 10269 | M111: 7414 | N111: SOURDGH HAM | P111: 231 | Q111: 7177 | R111: BAC CHD CHSBR | U111: 153428.R01.V01 | V111: EGG MIX-LIQUID, REFRIGERATED, PASTEURIZED, BK
A112: 1572 | B112: Cheeseburger Tpl | D112: 1507 | E112: 8263 | F112: Mush DBL Whopper | H112: 203 | I112: 7710 | J112: Crew Meal 203 | L112: 10270 | M112: 7414 | N112: H/C SOURDOUGH | P112: 232 | Q112: 8087 | R112: BAC CHD STF BRG | U112: 153487.R00.V00 | V112: SAUCE-DIPPING, ZESTY ONION RING
A113: 3613 | B113: Cheesy Tots Sml | D113: 1508 | E113: 7592 | F113: CM Mush DBL Whop | H113: 204 | I113: 7710 | J113: Crew Meal 204 | L113: 10271 | M113: 7414 | N113: H/E SOURDOUGH | P113: 233 | Q113: 8143 | R113: FRY BURGER | U113: 153517.R00.V00 | V113: APPLE-SLICES, FRESH, WITH SKIN, BK
A114: 104190 | B114: Chicken Burger | D114: 1509 | E114: 8264 | F114: Mush TPL Whopper | H114: 205 | I114: 7710 | J114: Crew Meal 205 | L114: 10272 | M114: 7414 | N114: SOURDGH SAUSAGE | P114: 234 | Q114: 8301 | R114: A1 BAC CHSBRGR | U114: 153521.R01.V00 | V114: CROISSANT-SANDWICH (2 OZ), FROZEN, BK
A115: 3156 | B115: Chicken Fries 9 Pc | D115: 1510 | E115: 7592 | F115: CM Mush TPL Whop | H115: 206 | I115: 7710 | J115: Crew Meal 206 | L115: 10273 | M115: 7414 | N115: S/C SOURDOUGH | P115: 235 | Q115: 151 | R115: BACON DBL CHS | U115: 153580.R00.V00 | V115: SAUCE-TACO
A116: 104927 | B116: Chicken Fries Cheetos 9 Pc | D116: 1511 | E116: 8249 | F116: BBQ Bac Whop | H116: 207 | I116: 7710 | J116: Crew Meal 207 | L116: 10274 | M116: 7414 | N116: S/E SOURDOUGH | P116: 236 | Q116: 8261 | R116: BAC CHSBRG DELUX | U116: 153597.R00.V00 | V116: WHIPPED TOPPING-CREAM, REFRIGERATED, ON TOP
A117: 6068 | B117: Chicken Nuggets 10 Pc | D117: 1512 | E117: 7592 | F117: CM BBQ Bac Whop | H117: 208 | I117: 7710 | J117: Crew Meal 208 | L117: 10275 | M117: 7414 | N117: DANISH | P117: 237 | Q117: 8301 | R117: HP BCN CHXBRGR | U117: 153626.R00.V00 | V117: ONION RINGS-RANDOM SIZE
A118: 6187 | B118: Chicken Nuggets 20 Pc | D118: 1513 | E118: 8250 | F118: BBQ Bac DBL Whop | H118: 209 | I118: 7710 | J118: Crew Meal 209 | L118: 10276 | M118: 3613 | N118: CHSY 8PC TOT | P118: 238 | Q118: 7442 | R118: BACON BURGER | U118: 153642.R00.V00 | V118: BUN-ARTISAN STYLE, FROZEN
A119: 212 | B119: Chicken Nuggets 4 Pc | D119: 1514 | E119: 7592 | F119: CM BBQ DBL Whop | H119: 210 | I119: 7710 | J119: Crew Meal 210 | L119: 10277 | M119: 3614 | N119: LOAD 10PC TOT | P119: 239 | Q119: 7456 | R119: BACON BURGER CHS | U119: 153661.R01.V00 | V119: SOFT SERVE MIX-VANILLA, UP, REFRIGERATED, BK
A120: 270 | B120: Chicken Nuggets 6 Pc | D120: 1515 | E120: 8251 | F120: BBQ Bac TPL Whop | H120: 211 | I120: 7710 | J120: Crew Meal 211 | L120: 10278 | M120: 3615 | N120: LOAD 12PC TOT | P120: 240 | Q120: 103785 | R120: A1 MOZZ CHSBRG | U120: 153667.R00.V00 | V120: CHEESE-PARMESAN, SHAVED
A121: 1517 | B121: Chicken Nuggets Sand | D121: 1516 | E121: 7592 | F121: CM BBQ TPL Whop | H121: 212 | I121: 7710 | J121: Crew Meal 212 | L121: 10279 | M121: 5764 | N121: 12 OZ. BK JOE | P121: 242 | Q121: 8262 | R121: MS BIG KING | U121: 153703.R02.V00 | V121: ONIONS-SPANISH, FRESH, WHOLE
A122: 8245 | B122: Chicken Teriyaki Sand | D122: 1517 | E122: 103013 | F122: Whop 4Cheese | H122: 213 | I122: 7710 | J122: Crew Meal 213 | L122: 10280 | M122: 5775 | N122: 12 OZ. DECAF | P122: 243 | Q122: 102511 | R122: MUSH SW DBL BRG | U122: 153718.R01.V00 | V122: FISH-ALASKA POLLOCK, PANKO BREADED (3.1 OZ), BK
A123: 103687 | B123: Cinnamon Roll Otis Spunkmeyer 1 Pc | D123: 1518 | E123: 7592 | F123: CM Whop 4Cheese | H123: 214 | I123: 7710 | J123: Crew Meal 214 | L123: 10281 | M123: 7414 | N123: SMALL TURBO | P123: 244 | Q123: 104666 | R123: HOMESTYLE CB | U123: 153722.R00.V00 | V123: FISH-ALASKA POLLOCK, PANKO BREADED (3.1 OZ)
A124: 103688 | B124: Cinnamon Roll Otis Spunkmeyer 2 Pc | D124: 1519 | E124: 103014 | F124: DBL Whop 4Cheese | H124: 215 | I124: 7710 | J124: Crew Meal 215 | L124: 10282 | M124: 6978 | N124: CINI-MINIS 2 | P124: 245 | Q124: 104668 | R124: DBL HOMESTYLE CB | U124: 153727.R01.V00 | V124: SAUCE- SWEET TERIYAKI, SWEET BABY RAY'S
A125: 7887 | B125: Condiment Apple Slc | D125: 1520 | E125: 7592 | F125: CM DBL Whop 4Chs | H125: 216 | I125: 7710 | J125: Crew Meal 216 | L125: 10283 | M125: 7414 | N125: FR TST STX 4PC | P125: 250 | Q125: 2932 | R125: VEG BURGER | U125: 153749.R00.V00 | V125: CHEESE-CHEDDAR, SHARP, SLICED, PROCESSED, PASTEURIZED
A126: 8258 | B126: Condiment Bac And Chs | D126: 1521 | E126: 103015 | F126: TPL Whop 4Chs | H126: 217 | I126: 7710 | J126: Crew Meal 217 | L126: 10284 | M126: 499 | N126: FR TST STX 5PC | P126: 251 | Q126: 3852 | R126: VEG BURGER CHS | U126: 153778.R00.V00 | V126: PIE-REESES, SLICE
A127: 8152 | B127: Condiment Buffalo Sauce | D127: 1522 | E127: 7592 | F127: CM TPL Whop 4Chs | H127: 218 | I127: 7710 | J127: Crew Meal 218 | L127: 10285 | M127: 5724 | N127: PANCAKE | P127: 253 | Q127: 2932 | R127: BK VEG WHOP JR | U127: 153795.R01.V00 | V127: SAUCE-ANGRY, BK
A128: 103707 | B128: Condiment Bun Brioche | D128: 1523 | E128: 103553 | F128: Spicy Whopper | H128: 219 | I128: 7710 | J128: Crew Meal 219 | L128: 10286 | M128: 7414 | N128: MINI PANCAKES | P128: 259 | Q128: 1577 | R128: TPL BURGER | U128: 153808.R01.V00 | V128: POTATOES-FRIES, 3/8" STRAIGHT CUT, SKIN OFF, COATED, BK
A129: 103708 | B129: Condiment Bun Burger | D129: 1524 | E129: 7592 | F129: CM Spicy Whop | H129: 220 | I129: 7710 | J129: Crew Meal 220 | L129: 10287 | M129: 1950 | N129: CHICKEN BISCUIT | P129: 260 | Q129: 1572 | R129: TPL CHS BURGER | U129: 153811.R00.V00 | V129: CARTON-FRYPOD, LARGE (2012 DESIGN)
A130: 103709 | B130: Condiment Bun Middle | D130: 1525 | E130: 103554 | F130: Spy DBL Whopper | H130: 221 | I130: 7710 | J130: Crew Meal 221 | L130: 10288 | M130: 2856 | N130: CHI/C BISCUIT | P130: 261 | Q130: 104100 | R130: XL BUTTERY CHSBG | U130: 153814.R00.V00 | V130: CARTON-FRYPOD, MEDIUM (2012 DESIGN)
A131: 103710 | B131: Condiment Bun Spclty | D131: 1526 | E131: 7592 | F131: CM Spy DBL Whop | H131: 222 | I131: 7710 | J131: Crew Meal 222 | L131: 10289 | M131: 2857 | N131: CHI/E BISCUIT | P131: 262 | Q131: 104098 | R131: XL JALAPENO CHSBRG | U131: 153817.R00.V00 | V131: CARTON-FRYPOD, SMALL (2012 DESIGN)
A132: 103711 | B132: Condiment Bun Whopper | D132: 1527 | E132: 103555 | F132: Spy TPL Whopper | H132: 223 | I132: 7710 | J132: Crew Meal 223 | L132: 10290 | M132: 2858 | N132: CHI/E/C BISCUIT | P132: 263 | Q132: 104212 | R132: HALOWEEN WHOP | U132: 153847.R01.V00 | V132: BACON-THICK SLICED, RAW, REFRIGERATED , BK
A133: 7892 | B133: Condiment Butter Sand | D133: 1528 | E133: 7592 | F133: CM Spy TPL Whop | H133: 224 | I133: 7710 | J133: Crew Meal 224 | L133: 10291 | M133: 379 | N133: CH/C BISCUIT | P133: 264 | Q133: 104213 | R133: HALOWEEN DBL WHOP | U133: 153889.R00.V00 | V133: CUP-COLD DRINK, 16 OZ (2012 DESIGN)
A134: 7890 | B134: Condiment Carrier Bread | D134: 1529 | E134: 104212 | F134: Haloween Whopper | H134: 225 | I134: 7710 | J134: Crew Meal 225 | L134: 10292 | M134: 432 | N134: CH/E/C BISCUIT | P134: 265 | Q134: 104214 | R134: HALOWEEN TPL WHOP | U134: 153892.R00.V00 | V134: CUP AND LID-PAPER HOT (8OZ), BK/QUAKER OATMEAL (2012 DESIGN)
A135: 104529 | B135: Condiment Chili | D135: 1530 | E135: 7592 | F135: CM Halo Whopper | H135: 226 | I135: 7710 | J135: Crew Meal 226 | L135: 10293 | M135: 472 | N135: CH/E BISCUIT | P135: 267 | Q135: 104488 | R135: XL STEAKHOUSE CHS BRG | U135: 153907.R03.V00 | V135: CINNAMON-ROLL (2.8 OZ), FROZEN, OTIS SPUNKMEYER BRANDED, BK
A136: 7895 | B136: Condiment Chs Ched Slc | D136: 1531 | E136: 104213 | F136: Haloween Tpl Whp | H136: 227 | I136: 7710 | J136: Crew Meal 227 | L136: 10294 | M136: 473 | N136: BISCUIT CNTRY H | P136: 268 | Q136: 104617 | R136: WHOPPERRITO | U136: 153914.R00.V00 | V136: BAG-COOKIE (2012 DESIGN)
A137: 7896 | B137: Condiment Chs Habanero Slc | D137: 1532 | E137: 7592 | F137: CM Halo Dbl Whop | H137: 228 | I137: 7710 | J137: Crew Meal 228 | L137: 10295 | M137: 1954 | N137: CROIST CHICKEN | P137: 300 | Q137: 7638 | R137: ************************* | U137: 153917.R01.V00 | V137: PICKLES-DILL, SLICED, PAIL
A138: 8215 | B138: Condiment Chs Parm | D138: 1533 | E138: 104214 | F138: Halo Tpl Whp | H138: 229 | I138: 7710 | J138: Crew Meal 229 | L138: 10296 | M138: 2854 | N138: CHI/E/C CROISNT | P138: 301 | Q138: 7638 | R138: CHICKEN/FISH | U138: 153983.R00.V00 | V138: CUP-PLASTIC, CLEAR, PP (20 OZ), (2012 DESIGN)
A139: 7939 | B139: Condiment Chs Pepper Jack | D139: 1534 | E139: 7592 | F139: CM Halo Tpl Whop | H139: 230 | I139: 7710 | J139: Crew Meal 230 | L139: 10297 | M139: 2853 | N139: CHI/E CROISSANT | P139: 302 | Q139: 7638 | R139: ************************* | U139: 153986.R00.V00 | V139: CUP-PLASTIC, CLEAR, PP (16 OZ), (2012 DESIGN)
A140: 7897 | B140: Condiment Chs Shaved Parm | D140: 1535 | E140: 104550 | F140: Angriest Whopper | H140: 231 | I140: 7710 | J140: Crew Meal 231 | L140: 10298 | M140: 2852 | N140: CHI/C CROISSANT | P140: 306 | Q140: 104927 | R140: CHEETOS CF 9PC | U140: 153990.R01.V00 | V140: MAYONNAISE-CLASSIC, BULK
A141: 7898 | B141: Condiment Chs Three Blend | D141: 1536 | E141: 7592 | F141: CM Angriest Whp | H141: 232 | I141: 7710 | J141: Crew Meal 232 | L141: 10299 | M141: 58 | N141: CH/E/C CROISANT | P141: 307 | Q141: 104572 | R141: CK FRIES RINGS 6PC | U141: 154001.R00.V00 | V141: CUP-PLASTIC, CLEAR, PP (12 OZ), (2012 DESIGN)
A142: 7791 | B142: Condiment Cookie Ginger Spice | D142: 1537 | E142: 104549 | F142: Dbl Angriest Whp | H142: 233 | I142: 7710 | J142: Crew Meal 233 | L142: 10300 | M142: 271 | N142: CH/C CROISSANT | P142: 308 | Q142: 104189 | R142: Fish Fries | U142: 154004.R00.V00 | V142: CONE-ICE CREAM, JACKETED, BK LOGO
A143: 7790 | B143: Condiment Cookie Red White Blue | D143: 1538 | E143: 7592 | F143: CM Dbl Angriest | H143: 234 | I143: 7710 | J143: Crew Meal 234 | L143: 10301 | M143: 274 | N143: CH/E CROISSANT | P143: 309 | Q143: 104238 | R143: BUFFALO CHK 9PC | U143: 154008.R00.V00 | V143: BAG-TACO (2012 DESIGN)
A144: 7899 | B144: Condiment Cranberry Dried | D144: 1539 | E144: 104551 | F144: Tpl Angriest Whp | H144: 235 | I144: 7710 | J144: Crew Meal 235 | L144: 10302 | M144: 355 | N144: CROIST CNTRY HA | P144: 310 | Q144: 220 | R144: OCS | U144: 154011.R00.V00 | V144: TOPPING-STRAWBERRY, FROZEN (32 OZ)
A145: 7900 | B145: Condiment Croutons | D145: 1540 | E145: 7592 | F145: CM Tpl Angriest | H145: 236 | I145: 7710 | J145: Crew Meal 236 | L145: 10303 | M145: 7414 | N145: BLBRY MINI MUF | P145: 311 | Q145: 3846 | R145: OCS CHEESE | U145: 154013.R00.V00 | V145: BAG-FRENCH FRY, SMALL (2012 DESIGN)
A146: 1497 | B146: Condiment Dipping Sauce Syrup | D146: 1550 | E146: 298 | F146: Whop Jr | H146: 237 | I146: 7710 | J146: Crew Meal 237 | L146: 10304 | M146: 2927 | N146: SUPR BSEC | P146: 312 | Q146: 104190 | R146: CHICKEN BURGER | U146: 154023.R01.V00 | V146: KETCHUP-BAG IN BOX, BK/HEINZ
A147: 7437 | B147: Condiment Dressing Honey Balsamic | D147: 1551 | E147: 7592 | F147: CM Whop Jr | H147: 238 | I147: 7710 | J147: Crew Meal 238 | L147: 10305 | M147: 3085 | N147: SUPR BHEC | P147: 313 | Q147: 7460 | R147: TGRILL CHK PARM | U147: 154037.R00.V00 | V147: LID-COLD CUP, FLAT (12/16/20 OZ)
A148: 2096 | B148: Condiment Dressing Honey Mustard | D148: 1552 | E148: 5494 | F148: Whop Jr/B | H148: 239 | I148: 7710 | J148: Crew Meal 239 | L148: 10306 | M148: 3087 | N148: SUPR SHEC | P148: 314 | Q148: 8018 | R148: PHILLY CK SAND | U148: 154048.R00.V00 | V148: TOPPING-OREO® CRUMBLES, SMALL (1 LB)
A149: 1850 | B149: Condiment Dressing Ranch | D149: 1553 | E149: 7592 | F149: CM Whop Jr/B | H149: 240 | I149: 7710 | J149: Crew Meal 240 | L149: 10307 | M149: 7414 | N149: SUPR CH/B/E/CH | P149: 315 | Q149: 105 | R149: OCS CLUB | U149: 154053.R00.V00 | V149: COATING-PAN, ALL PURPOSE, GOLD-N-SWEET
A150: 8216 | B150: Condiment French Fries | D150: 1554 | E150: 101368 | F150: Whop Jr/B/C | H150: 241 | I150: 7710 | J150: Crew Meal 241 | L150: 10308 | M150: 7414 | N150: SUPR CH/S/E/CH | P150: 316 | Q150: 4384 | R150: OCS CLUB CHEESE | U150: 154060.R01.V00 | V150: BUN-SPECIALTY, FRESH, BK
A151: 7903 | B151: Condiment Frosting | D151: 1555 | E151: 7592 | F151: CM Whop Jr/B/C | H151: 242 | I151: 7710 | J151: Crew Meal 242 | L151: 10309 | M151: 7414 | N151: SUPR CH/CH/E/CH | P151: 317 | Q151: 204 | R151: ITALIAN OCS | U151: 154064.R00.V00 | V151: SUGAR
A152: 195 | B152: Condiment Jalapeno Whole | D152: 1556 | E152: 299 | F152: Whop Jr/C | H152: 243 | I152: 7710 | J152: Crew Meal 243 | L152: 10310 | M152: 3095 | N152: SUPR E/C | P152: 318 | Q152: 7414 | R152: FRENCH CHK | U152: 154099.R02.V00 | V152: BUN-3.9" SEEDED, FRESH (19.8 OZ/DOZEN), TAPERED HEEL, BK
A153: 7904 | B153: Condiment Jam Pk | D153: 1557 | E153: 7592 | F153: CM Whop Jr/C | H153: 244 | I153: 7710 | J153: Crew Meal 244 | L153: 10311 | M153: 3097 | N153: SUPR BBEC | P153: 319 | Q153: 6458 | R153: CSP CK JR | U153: 154130.R01.V00 | V153: BUN-5" SEEDED, FRESH, BK
A154: 7905 | B154: Condiment Ketchup | D154: 1632 | E154: 298 | F154: Whop Jr Cali | H154: 245 | I154: 7710 | J154: Crew Meal 245 | L154: 10312 | M154: 3099 | N154: SUPR HHEC | P154: 320 | Q154: 3574 | R154: SPICY OCS | U154: 154132.R02.V00 | V154: PANCAKES-FROZEN (1.6 OZ), BK
A155: 7907 | B155: Condiment Lettuce Salad | D155: 1633 | E155: 7592 | F155: CM Whop Jr Cali | H155: 246 | I155: 7710 | J155: Crew Meal 246 | L155: 10313 | M155: 3101 | N155: SUPR SSEC | P155: 321 | Q155: 8239 | R155: RODEO CRISPY CHICKEN | U155: 154134.R00.V00 | V155: CARTON-CLAMSHELL, TRI-FOLD
A156: 522 | B156: Condiment Lettuce Sand | D156: 1634 | E156: 4126 | F156: Wisc Whp Jr | H156: 247 | I156: 7710 | J156: Crew Meal 247 | L156: 10314 | M156: 7414 | N156: SUPR EGG | P156: 322 | Q156: 8236 | R156: CAESAR OCS | U156: 154135.R00.V00 | V156: BISCUIT DOUGH-SOUTHERN STYLE, FROZEN, (2.6 OZ) BK
A157: 4786 | B157: Condiment Make It Angry Lrg Sand | D157: 1635 | E157: 7592 | F157: CM Wisc Whp Jr | H157: 248 | I157: 7710 | J157: Crew Meal 248 | L157: 10315 | M157: 7414 | N157: SUPR 3 CH OMEL | P157: 323 | Q157: 8253 | R157: BBQ OCS | U157: 154137.R03.V00 | V157: CARTON-CLAMSHELL, DELIVERY (FRIED FOODS), BK
A158: 4787 | B158: Condiment Make It Angry Sml Sand | D158: 1636 | E158: 4864 | F158: Angry Whop Jr | H158: 249 | I158: 7710 | J158: Crew Meal 249 | L158: 10316 | M158: 7414 | N158: SUPR MUSH/SWIS | P158: 324 | Q158: 6451 | R158: CHK STRIPS 3PC | U158: 154138.R00.V00 | V158: RING-SANDWICH 4"
A159: 7909 | B159: Condiment Mayo | D159: 1637 | E159: 7592 | F159: CM Angry Whp Jr | H159: 250 | I159: 7710 | J159: Crew Meal 250 | L159: 10317 | M159: 7414 | N159: SUPR CHESY BAC | P159: 325 | Q159: 7170 | R159: CHK STRIPS 5PC | U159: 154140.R00.V00 | V159: BISCUIT DOUGH-SOUTHERN STYLE, ZERO TRANS FAT (2.6 OZ), FROZEN, BK
A160: 7910 | B160: Condiment Mustard | D160: 1638 | E160: 8026 | F160: Avocado Whop Jr | H160: 251 | I160: 7710 | J160: Crew Meal 251 | L160: 10323 | M160: 7414 | N160: KIDS BKLOVE SHK | P160: 326 | Q160: 8150 | R160: BUFFALO CHK 3PC | U160: 154155.R00.V00 | V160: SAUCE-STEAK, THICK & HEARTY, A.1.
A161: 101060 | B161: Condiment Onion | D161: 1639 | E161: 7592 | F161: CM Avo Whop Jr | H161: 252 | I161: 7710 | J161: Crew Meal 252 | L161: 10324 | M161: 7414 | N161: KIDS CHOC BANAN | P161: 327 | Q161: 8151 | R161: BUFFALO CHK 5PC | U161: 154263.R00.V00 | V161: CREAM-LIGHT, 18% FAT, UP, DAIRY FRESH
A162: 4665 | B162: Condiment Onion Angry | D162: 1640 | E162: 8053 | F162: CHP Whop Jr | H162: 253 | I162: 7710 | J162: Crew Meal 253 | L162: 10325 | M162: 7414 | N162: KIDS MOCHA CAPP | P162: 328 | Q162: 103530 | R162: Teriyaki OCS | U162: 154282.R00.V00 | V162: SAUCE-MUSHROOM, MONTEREY INTERNATIONAL
A163: 7912 | B163: Condiment Onion Crispy | D163: 1641 | E163: 7592 | F163: CM CHP Whop Jr | H163: 254 | I163: 7710 | J163: Crew Meal 254 | L163: 10326 | M163: 7414 | N163: VALU OREO VANIL | P163: 329 | Q163: 8246 | R163: CHK BIG KING | U163: 154305.R00.V00 | V163: LID-TRANSLUCENT (32 OZ) DART
A164: 103815 | B164: Condiment Onion Rings | D164: 1642 | E164: 7423 | F164: CAR Whop Jr | H164: 255 | I164: 7710 | J164: Crew Meal 255 | L164: 10327 | M164: 7414 | N164: VALU OREO STBRY | P164: 330 | Q164: 1872 | R164: TENDERCRISP | U164: 154415.R00.V00 | V164: CHEESE-BLUE, CRUMBLED (8 OZ) BUTTERMILK BLUE
A165: 7914 | B165: Condiment Onion Sand | D165: 1643 | E165: 7592 | F165: CM CAR Whop Jr | H165: 256 | I165: 7710 | J165: Crew Meal 256 | L165: 10328 | M165: 7414 | N165: VALU OREO CHOC | P165: 331 | Q165: 3850 | R165: TENDERCRISP CHS | U165: 154477.R01.V00 | V165: OATMEAL-MAPLE BROWN SUGAR, PREPACKAGED (43 G), QUAKER
A166: 7891 | B166: Condiment Pat Butter | D166: 1644 | E166: 7425 | F166: TX BBQ Whop Jr | H166: 257 | I166: 7710 | J166: Crew Meal 257 | L166: 10329 | M166: 7414 | N166: KIDS STBRY CHEZ | P166: 332 | Q166: 104093 | R166: Ghst Pepper OCS | U166: 154495.R00.V00 | V166: ROASTED GARLIC TERIYAKI SAUCE (TEST)
A167: 7916 | B167: Condiment Pepperoni Slc | D167: 1645 | E167: 7592 | F167: CM TXBBQWhop Jr | H167: 258 | I167: 7710 | J167: Crew Meal 258 | L167: 10330 | M167: 7414 | N167: KG BKLOVE SHAKE | P167: 333 | Q167: 7271 | R167: CHK STRIPS 2PC | U167: 154504.R00.V00 | V167: PORK-PEPPERONI, SLICED, DELI, PAVONE (TEST)
A168: 7917 | B168: Condiment Pickles | D168: 1750 | E168: 226 | F168: Whop No Meat | H168: 259 | I168: 7710 | J168: Crew Meal 259 | L168: 10331 | M168: 7414 | N168: KG ICE CR VANIL | P168: 334 | Q168: 8307 | R168: Ranch Crispy CK | U168: 154668.R00.V00 | V168: MILK-CHOCOLATE, LOWFAT, 1%, ULTRA PASTEURIZED (8 OZ) BK, CALIFORNIA LABEL
A169: 104521 | B169: Condiment Relish | D169: 1751 | E169: 7592 | F169: CM Whop No Meat | H169: 260 | I169: 7710 | J169: Crew Meal 260 | L169: 10332 | M169: 7414 | N169: KG ICE CR CHOC | P169: 335 | Q169: 7414 | R169: SPICY TDR CHK | U169: 154679.R00.V00 | V169: COOKIE DOUGH-GINGER SPICE, FROZEN, OTIS SPUNKMEYER
A170: 7886 | B170: Condiment Sauce BBQ | D170: 1780 | E170: 141 | F170: Dbl Whop Jr | H170: 261 | I170: 7710 | J170: Crew Meal 261 | L170: 10333 | M170: 7414 | N170: KG ICE CR STBRY | P170: 336 | Q170: 7414 | R170: SPICY TDR W/CHZ | U170: 154683.R00.V00 | V170: COOKIE DOUGH-CARNIVAL COOKIE, FROZEN, OTIS SPUNKMEYER
A171: 104101 | B171: Condiment Sauce Buttery | D171: 1781 | E171: 7592 | F171: CM Dbl Whop Jr | H171: 262 | I171: 7710 | J171: Crew Meal 262 | L171: 10334 | M171: 7414 | N171: KG STRAW CHZCAK | P171: 337 | Q171: 7481 | R171: IT BASIL TCRISP | U171: 154687.R00.V00 | V171: COOKIE DOUGH-BUTTER SUGAR COOKIE, FROZEN, OTIS SPUNKMEYER
A172: 8030 | B172: Condiment Sauce Chs | D172: 1782 | E172: 103569 | F172: Dbl Whop Jr/B | H172: 263 | I172: 7710 | J172: Crew Meal 263 | L172: 10335 | M172: 7414 | N172: KG CHOC BANANA | P172: 338 | Q172: 7483 | R172: IT BASIL TGRILL | U172: 154690.R00.V00 | V172: COOKIE DOUGH-RED, WHITE & BLUE, FROZEN, OTIS SPUNKMEYER
A173: 7922 | B173: Condiment Sauce Firecracker | D173: 1783 | E173: 7592 | F173: CM Dbl Whop Jr/B | H173: 264 | I173: 7710 | J173: Crew Meal 264 | L173: 10336 | M173: 7414 | N173: KG MOCHA CAPP | P173: 339 | Q173: 7414 | R173: BCR TENDERGRILL | U173: 154843.R00.V00 | V173: BISCUIT DOUGH-SOUTHERN STYLE, FROZEN, (2.6 OZ) BK
A174: 7924 | B174: Condiment Sauce Marinara | D174: 1785 | E174: 143 | F174: Dbl Whop Jr/C | H174: 265 | I174: 7710 | J174: Crew Meal 265 | L174: 10337 | M174: 7414 | N174: LG BKLOVE SHAKE | P174: 340 | Q174: 7414 | R174: BCR TENDERCRISP | U174: 154844.R00.V00 | V174: BASE & LID-PLATTER, BREAKFAST, PP
A175: 7926 | B175: Condiment Sauce Other | D175: 1786 | E175: 7592 | F175: CM Dbl Whop Jr/C | H175: 266 | I175: 7710 | J175: Crew Meal 266 | L175: 10338 | M175: 7414 | N175: LG ICE CR VANIL | P175: 341 | Q175: 7414 | R175: CIAB TENDERGRILL | U175: 154857.R00.V00 | V175: MILK-FAT FREE, ULTRA PASTEURIZED (7.8 OZ) BK
A176: 7928 | B176: Condiment Sauce Tartar | D176: 1790 | E176: 103566 | F176: Dbl Whop Jr/B/C | H176: 267 | I176: 7710 | J176: Crew Meal 267 | L176: 10339 | M176: 7414 | N176: LG ICE CR CHOC | P176: 342 | Q176: 7292 | R176: TX BBQ TCRISP | U176: 154943.R00.V00 | V176: GUACAMOLE-CLASSIC EXTREME (1 LB) SIMPLOT
A177: 1667 | B177: Condiment Sauce Teriyaki | D177: 1791 | E177: 7592 | F177: CM DblWhopJr/B/C | H177: 268 | I177: 7710 | J177: Crew Meal 268 | L177: 10340 | M177: 7414 | N177: LG ICE CR STBRY | P177: 343 | Q177: 7290 | R177: TX BBQ TGRILL | U177: 154960.R01.V00 | V177: SYRUP-DIPPING, BREAKFAST, BK
A178: 7918 | B178: Condiment Seasoning | D178: 2050 | E178: 178 | F178: Burger | H178: 269 | I178: 7710 | J178: Crew Meal 269 | L178: 10341 | M178: 7414 | N178: LG STRAW CHZCAK | P178: 344 | Q178: 8055 | R178: TURKEY BURGER | U178: 155012.R00.V00 | V178: CUP-HOT DRINK, FOAM, PAPER WRAPPED 20 OZ BK/SEATTLE?S BEST (2012 DESIGN SB VI)
A179: 7902 | B179: Condiment Syrup Flavor | D179: 2051 | E179: 7592 | F179: CM Burger | H179: 270 | I179: 7710 | J179: Crew Meal 270 | L179: 10342 | M179: 7414 | N179: LG CHOC BANANA | P179: 345 | Q179: 8057 | R179: CHP TENDERCRISP | U179: 155014.R00.V00 | V179: CUP-HOT DRINK, FOAM, PAPER WRAPPED 16 OZ BK/SEATTLE?S BEST (2012 DESIGN SB VI)
A180: 103282 | B180: Condiment Texas Style | D180: 2052 | E180: 66 | F180: Dbl Burger | H180: 271 | I180: 7710 | J180: Crew Meal 271 | L180: 10343 | M180: 7414 | N180: LG OREO VANILLA | P180: 346 | Q180: 8059 | R180: CHP TENDERGRILL | U180: 155016.R00.V00 | V180: CUP-HOT DRINK, FOAM, PAPER WRAPPED 12 OZ BK/SEATTLE?S BEST (2012 DESIGN SB VI)
A181: 515 | B181: Condiment Tomato | D181: 2053 | E181: 7592 | F181: CM Dbl Burger | H181: 272 | I181: 7710 | J181: Crew Meal 272 | L181: 10344 | M181: 8111 | N181: LG OREO CHOC | P181: 347 | Q181: 8061 | R181: CHP WRAP CRISP | U181: 155030.R00.V00 | V181: MARGARINE-EUROPEAN STYLE, WHIPPED, ZTF, SUNGLOW
A182: 5519 | B182: Condiment Topping Caramel | D182: 2054 | E182: 1577 | F182: Tpl Burger | H182: 273 | I182: 7710 | J182: Crew Meal 273 | L182: 10345 | M182: 7414 | N182: LG OREO STBRY | P182: 348 | Q182: 8063 | R182: CHP WRAP GRILL | U182: 155076.R00.V00 | V182: BEVERAGE-LEMONADE, MINUTE MAID, COUNTRY STYLE, (6+1) (TEST)
A183: 5518 | B183: Condiment Topping Chocolate | D183: 2055 | E183: 7592 | F183: CM Tpl Burger | H183: 274 | I183: 7710 | J183: Crew Meal 274 | L183: 10346 | M183: 7414 | N183: LG MOCHA CAPP | P183: 349 | Q183: 8239 | R183: RODEO CHICKEN JR | U183: 155085.R00.V00 | V183: SAUCE-WING, BUFFALO, KEN'S BULK
A184: 7925 | B184: Condiment Topping Mushroom | D184: 2060 | E184: 7592 | F184: CM 2 Burger | H184: 275 | I184: 7710 | J184: Crew Meal 275 | L184: 10347 | M184: 7414 | N184: MD BKLOVE SHAKE | P184: 350 | Q184: 5968 | R184: TENDERGRILL | U184: 155122.R00.V00 | V184: LETTUCE-ICEBERG, WHOLE HEAD
A185: 5515 | B185: Condiment Topping Oreo Crumbs | D185: 2061 | E185: 7592 | F185: CM 2 Burger/B | H185: 276 | I185: 7710 | J185: Crew Meal 276 | L185: 10348 | M185: 7414 | N185: MD ICE CR VANIL | P185: 351 | Q185: 5970 | R185: TENDERGRILL CHS | U185: 155189.R01.V00 | V185: LETTUCE-ICEBERG, 1.0"
A186: 7933 | B186: Condiment Topping Whip | D186: 2062 | E186: 7592 | F186: CM 2 Bac Chsbgr | H186: 277 | I186: 7710 | J186: Crew Meal 277 | L186: 10349 | M186: 7414 | N186: MD ICE CR CHOC | P186: 352 | Q186: 103529 | R186: UltimOCS | U186: 155284.R00.V00 | V186: CUP-COLD DRINK, KIDS SQUAT, IRON MAN, BK
A187: 8190 | B187: Cookies 1 Pc | D187: 2065 | E187: 7592 | F187: CM 2 Chs Burger | H187: 278 | I187: 7710 | J187: Crew Meal 278 | L187: 10350 | M187: 7414 | N187: MD ICE CR STBRY | P187: 353 | Q187: 7282 | R187: CAR BBQ TCRISP | U187: 155303.R00.V00 | V187: CHICKEN-BREAST, WHOLE MUSCLE FILET (4.0 OZ), TENDERGRILL, BK
A188: 2079 | B188: Cookies 2 Pc | D188: 2066 | E188: 178 | F188: Burger/B | H188: 279 | I188: 7710 | J188: Crew Meal 279 | L188: 10351 | M188: 7414 | N188: MD STRAW CHZCAK | P188: 354 | Q188: 7280 | R188: CAR BBQ TGRILL | U188: 155337.R02.V01 | V188: CHICKEN-PORTIONED BREAST FILLET, BREADED (4.7 OZ) TENDERCRISP, BK
A189: 8296 | B189: Cookies 4 Pc | D189: 2067 | E189: 7592 | F189: CM Burger/B | H189: 280 | I189: 7710 | J189: Crew Meal 280 | L189: 10352 | M189: 7414 | N189: MD CHOC BANANA | P189: 355 | Q189: 1517 | R189: CK TEND SAND | U189: 155371.R00.V00 | V189: LID-HOT CUP, RECLOSEABLE, BROWN (12/16/20 OZ)
A190: 8112 | B190: Cookies Chnk | D190: 2068 | E190: 5495 | F190: Dbl Burger/B | H190: 281 | I190: 7710 | J190: Crew Meal 281 | L190: 10353 | M190: 7414 | N190: RG OREO VANILLA | P190: 356 | Q190: 103249 | R190: BBQ BACON TCRISP | U190: 155407.R00.V00 | V190: CHICKEN-PATTY, BREADED (3.75 OZ) BK
A191: 6189 | B191: Cookies Condiment Chocolate Brownie | D191: 2069 | E191: 7592 | F191: CM Dbl Burger/B | H191: 282 | I191: 7710 | J191: Crew Meal 282 | L191: 10354 | M191: 8110 | N191: RG OREO CHOC | P191: 357 | Q191: 212 | R191: CK NUGGETS 4PC | U191: 155442.R01.V00 | V191: TOMATOES-WHOLE, FRESH, RED LEVEL 5 (6X7), BK
A192: 7792 | B192: Cookies Condiment Chocolate Candies | D192: 2070 | E192: 7414 | F192: Tpl Burger/B | H192: 283 | I192: 7710 | J192: Crew Meal 283 | L192: 10355 | M192: 7414 | N192: RG OREO STBRY | P192: 358 | Q192: 103022 | R192: 4CHEESE TGRILL | U192: 155446.R01.V00 | V192: APPLE SAUCE-UNSWEETENED, MOTTS FRUITSATIONS
A193: 2875 | B193: Cookies Condiment Chocolate Chip | D193: 2071 | E193: 7592 | F193: CM Tpl Burger/B | H193: 284 | I193: 7710 | J193: Crew Meal 284 | L193: 10356 | M193: 7414 | N193: MD MOCHA CAPP | P193: 359 | Q193: 103021 | R193: 4CHEESE TCRISP | U193: 155520.R01.V00 | V193: SAUCE-SWEET TERIYAKI
A194: 6457 | B194: Cookies Condiment Oatmeal Raisin | D194: 2072 | E194: 7442 | F194: BK Bacon Burger | H194: 285 | I194: 7710 | J194: Crew Meal 285 | L194: 10357 | M194: 7414 | N194: SM BKLOVE SHAKE | P194: 360 | Q194: 7414 | R194: CK NUGGETS 5 PC | U194: 155540.R00.V00 | V194: LID-COLD CUP, PP, CLEAR (12/16/21 OZ) (TEST)
A195: 7789 | B195: Cookies Condiment Sugar | D195: 2073 | E195: 7592 | F195: CM Bacon Burg | H195: 286 | I195: 7710 | J195: Crew Meal 286 | L195: 10358 | M195: 7414 | N195: SM STRAW CHZCAK | P195: 361 | Q195: 270 | R195: CK NUGGETS 6PC | U195: 155549.R00.V00 | V195: STUFFED SPUDZ® (P40)-CHEESE, CHEDDAR, TANTALIZERS®, LAMB-WESTON
A196: 6199 | B196: Cookies Mix and Match | D196: 2098 | E196: 144 | F196: Burger No Meat | H196: 287 | I196: 7710 | J196: Crew Meal 287 | L196: 10359 | M196: 7414 | N196: SM CHOC BANANA | P196: 362 | Q196: 7638 | R196: Do Not Use | U196: 155573.R01.V00 | V196: ANGRY ONIONS: BATTER-ONION PETALS (LAMB WESTON 30408)
A197: 6458 | B197: Crispy Chicken | D197: 2099 | E197: 7592 | F197: CM Burg No Meat | H197: 288 | I197: 7710 | J197: Crew Meal 288 | L197: 10360 | M197: 7414 | N197: SM OREO VAN | P197: 363 | Q197: 8259 | R197: BBQ CK STRIP 3PC | U197: 155611.R00.V00 | V197: SYRUP-CARAMEL FLAVORED (PACK 4/64 FL OZ), LYONS
A198: 8239 | B198: Crispy Chicken Rodeo | D198: 2100 | E198: 189 | F198: Chs Burger | H198: 289 | I198: 7710 | J198: Crew Meal 289 | L198: 10361 | M198: 7414 | N198: SM OREO CHOC | P198: 364 | Q198: 8260 | R198: BBQ CK STRIP 5PC | U198: 155635.R01.V00 | V198: JUICE-ORANGE, CONCENTRATED, FROZEN, MINUTE MAID
A199: 7336 | B199: Crispy Chicken Spicy | D199: 2101 | E199: 7592 | F199: CM Chs Burger | H199: 290 | I199: 7710 | J199: Crew Meal 290 | L199: 10362 | M199: 7414 | N199: SM OREO STBRY | P199: 365 | Q199: 582 | R199: CK NUGGETS 8PC | U199: 156003.R00.V00 | V199: SPOON-WRAPPED, PP, BK
A200: 48 | B200: Croissan'wich | D200: 2102 | E200: 127 | F200: Dbl Chs Burger | H200: 291 | I200: 7710 | J200: Crew Meal 291 | L200: 10363 | M200: 7414 | N200: SM MOCHA CAPP | P200: 366 | Q200: 6068 | R200: CK NUGGETS 10PC | U200: 156005.R00.V00 | V200: KNIFE-WRAPPED, PP, BK
... 7692 more rows

Sheet Sheet1
A1: BKPN | B1: BKPN Name | C1: Commodity | D1: Commodity Name | E1: Unit | F1: Ordered Amount Quantity
A2: 6482 | B2: Apple Juice Dispensed Lrg | C2: 153983.R00.V00 | D2: CUP-PLASTIC, CLEAR, PP (20 OZ), (2012 DESIGN) | E2: ea | F2: 1
A3: 6482 | B3: Apple Juice Dispensed Lrg | C3: 153209.R02.V00 | D3: JUICE-APPLE, CONCENTRATED, FROZEN, MINUTE MAID | E3: wt oz | F3: 2.86
A4: 6482 | B4: Apple Juice Dispensed Lrg | C4: 156462.R00.V00 | D4: LID-COLD CUP, DOME (12/16/20 OZ) | E4: ea | F4: 1
A5: 6482 | B5: Apple Juice Dispensed Lrg | C5: 151042.R01.V00 | D5: STRAW-WRAPPED, GIANT, RED | E5: ea | F5: 1
A6: 6481 | B6: Apple Juice Dispensed Med | C6: 153986.R00.V00 | D6: CUP-PLASTIC, CLEAR, PP (16 OZ), (2012 DESIGN) | E6: ea | F6: 1
A7: 6481 | B7: Apple Juice Dispensed Med | C7: 153209.R02.V00 | D7: JUICE-APPLE, CONCENTRATED, FROZEN, MINUTE MAID | E7: wt oz | F7: 2.29
A8: 6481 | B8: Apple Juice Dispensed Med | C8: 156462.R00.V00 | D8: LID-COLD CUP, DOME (12/16/20 OZ) | E8: ea | F8: 1
A9: 6481 | B9: Apple Juice Dispensed Med | C9: 151042.R01.V00 | D9: STRAW-WRAPPED, GIANT, RED | E9: ea | F9: 1
A10: 7150 | B10: Apple Juice Dispensed Sml | C10: 154001.R00.V00 | D10: CUP-PLASTIC, CLEAR, PP (12 OZ), (2012 DESIGN) | E10: ea | F10: 1
A11: 7150 | B11: Apple Juice Dispensed Sml | C11: 153209.R02.V00 | D11: JUICE-APPLE, CONCENTRATED, FROZEN, MINUTE MAID | E11: wt oz | F11: 1.71
A12: 7150 | B12: Apple Juice Dispensed Sml | C12: 156462.R00.V00 | D12: LID-COLD CUP, DOME (12/16/20 OZ) | E12: ea | F12: 1
A13: 7150 | B13: Apple Juice Dispensed Sml | C13: 151042.R01.V00 | D13: STRAW-WRAPPED, GIANT, RED | E13: ea | F13: 1
A14: 2738 | B14: Apple Sauce | C14: 155446.R01.V00 | D14: APPLE SAUCE-UNSWEETENED, MOTTS FRUITSATIONS | E14: ea | F14: 1
A15: 2738 | B15: Apple Sauce | C15: 155446.R01.V00 | D15: APPLE SAUCE-UNSWEETENED, MOTTS FRUITSATIONS | E15: ea | F15: 1
A16: 2738 | B16: Apple Sauce | C16: 157353.R00.V00 | D16: APPLE SAUCE-UNSWEETENED, MOTTS NATURAL | E16: ea | F16: 1
A17: 2738 | B17: Apple Sauce | C17: 156003.R00.V00 | D17: SPOON-WRAPPED, PP, BK | E17: ea | F17: 1
A18: 2738 | B18: Apple Sauce | C18: 156003.R00.V00 | D18: SPOON-WRAPPED, PP, BK | E18: ea | F18: 1
A19: 2738 | B19: Apple Sauce | C19: 156003.R00.V00 | D19: SPOON-WRAPPED, PP, BK | E19: ea | F19: 1
A20: 104658 | B20: Bacon King | C20: 153847.R01.V00 | D20: BACON-THICK SLICED, RAW, REFRIGERATED , BK | E20: slc | F20: 3
A21: 104658 | B21: Bacon King | C21: 200580.R04.V00 | D21: BEEF-PATTY, WHOPPER® (4.0 OZ) 3/32" GRIND, BK | E21: ea | F21: 2
A22: 104658 | B22: Bacon King | C22: 154130.R01.V00 | D22: BUN-5" SEEDED, FRESH, BK | E22: ea | F22: 1
A23: 104658 | B23: Bacon King | C23: 200123.R01.V00 | D23: CHEESE-AMERICAN, PROCESS, PASTEURIZED, BK | E23: slc | F23: 4
A24: 104658 | B24: Bacon King | C24: 154023.R01.V00 | D24: KETCHUP-BAG IN BOX, BK/HEINZ | E24: wt oz | F24: 0.5
A25: 104658 | B25: Bacon King | C25: 153990.R01.V00 | D25: MAYONNAISE-CLASSIC, BULK | E25: wt oz | F25: 0.75
A26: 104658 | B26: Bacon King | C26: 156403.R02.V00 | D26: WRAP- BIG KING/ULTIMATE BACON CHEESEBURGER (2015 DESIGN) | E26: ea | F26: 1
A27: 919 | B27: Bag of Ice | C27: 150632.R00.V00 | D27: BAG-PLASTIC, FOR ICE (10 LB) | E27: ea | F27: 1
A28: 477 | B28: Bagel Bac | C28: 156401.R02.V00 | D28: WRAP-BREAKFAST (2015 DESIGN) | E28: ea | F28: 1
A29: 382 | B29: Bagel Bac Chs | C29: 200123.R01.V00 | D29: CHEESE-AMERICAN, PROCESS, PASTEURIZED, BK | E29: slc | F29: 1
A30: 382 | B30: Bagel Bac Chs | C30: 156401.R02.V00 | D30: WRAP-BREAKFAST (2015 DESIGN) | E30: ea | F30: 1
A31: 383 | B31: Bagel Bac Egg | C31: 156401.R02.V00 | D31: WRAP-BREAKFAST (2015 DESIGN) | E31: ea | F31: 1
A32: 439 | B32: Bagel Bac Egg Chs | C32: 200123.R01.V00 | D32: CHEESE-AMERICAN, PROCESS, PASTEURIZED, BK | E32: slc | F32: 1
A33: 439 | B33: Bagel Bac Egg Chs | C33: 156401.R02.V00 | D33: WRAP-BREAKFAST (2015 DESIGN) | E33: ea | F33: 1
A34: 380 | B34: Bagel Chs | C34: 200123.R01.V00 | D34: CHEESE-AMERICAN, PROCESS, PASTEURIZED, BK | E34: slc | F34: 1
A35: 380 | B35: Bagel Chs | C35: 156401.R02.V00 | D35: WRAP-BREAKFAST (2015 DESIGN) | E35: ea | F35: 1
A36: 441 | B36: Bagel Cream Chs | C36: 156401.R02.V00 | D36: WRAP-BREAKFAST (2015 DESIGN) | E36: ea | F36: 1
A37: 381 | B37: Bagel Egg | C37: 156401.R02.V00 | D37: WRAP-BREAKFAST (2015 DESIGN) | E37: ea | F37: 1
A38: 440 | B38: Bagel Egg Chs | C38: 200123.R01.V00 | D38: CHEESE-AMERICAN, PROCESS, PASTEURIZED, BK | E38: slc | F38: 1
A39: 440 | B39: Bagel Egg Chs | C39: 156401.R02.V00 | D39: WRAP-BREAKFAST (2015 DESIGN) | E39: ea | F39: 1
A40: 476 | B40: Bagel Ham | C40: 156401.R02.V00 | D40: WRAP-BREAKFAST (2015 DESIGN) | E40: ea | F40: 1
A41: 386 | B41: Bagel Ham Chs | C41: 200123.R01.V00 | D41: CHEESE-AMERICAN, PROCESS, PASTEURIZED, BK | E41: slc | F41: 1
A42: 386 | B42: Bagel Ham Chs | C42: 156401.R02.V00 | D42: WRAP-BREAKFAST (2015 DESIGN) | E42: ea | F42: 1
A43: 387 | B43: Bagel Ham Egg | C43: 156401.R02.V00 | D43: WRAP-BREAKFAST (2015 DESIGN) | E43: ea | F43: 1
A44: 437 | B44: Bagel Ham Egg Chs | C44: 200123.R01.V00 | D44: CHEESE-AMERICAN, PROCESS, PASTEURIZED, BK | E44: slc | F44: 1
A45: 437 | B45: Bagel Ham Egg Chs | C45: 156401.R02.V00 | D45: WRAP-BREAKFAST (2015 DESIGN) | E45: ea | F45: 1
A46: 478 | B46: Bagel Saus | C46: 151226.R00.V00 | D46: SAUSAGE-PATTY, BREAKFAST (1.8 OZ) MILDLY SPICED, BK | E46: ea | F46: 1
A47: 478 | B47: Bagel Saus | C47: 156401.R02.V00 | D47: WRAP-BREAKFAST (2015 DESIGN) | E47: ea | F47: 1
A48: 384 | B48: Bagel Saus Chs | C48: 200123.R01.V00 | D48: CHEESE-AMERICAN, PROCESS, PASTEURIZED, BK | E48: slc | F48: 1
A49: 384 | B49: Bagel Saus Chs | C49: 151226.R00.V00 | D49: SAUSAGE-PATTY, BREAKFAST (1.8 OZ) MILDLY SPICED, BK | E49: ea | F49: 1
A50: 384 | B50: Bagel Saus Chs | C50: 156401.R02.V00 | D50: WRAP-BREAKFAST (2015 DESIGN) | E50: ea | F50: 1
A51: 385 | B51: Bagel Saus Egg | C51: 151226.R00.V00 | D51: SAUSAGE-PATTY, BREAKFAST (1.8 OZ) MILDLY SPICED, BK | E51: ea | F51: 1
A52: 385 | B52: Bagel Saus Egg | C52: 156401.R02.V00 | D52: WRAP-BREAKFAST (2015 DESIGN) | E52: ea | F52: 1
A53: 438 | B53: Bagel Saus Egg Chs | C53: 200123.R01.V00 | D53: CHEESE-AMERICAN, PROCESS, PASTEURIZED, BK | E53: slc | F53: 1
A54: 438 | B54: Bagel Saus Egg Chs | C54: 151226.R00.V00 | D54: SAUSAGE-PATTY, BREAKFAST (1.8 OZ) MILDLY SPICED, BK | E54: ea | F54: 1
A55: 438 | B55: Bagel Saus Egg Chs | C55: 156401.R02.V00 | D55: WRAP-BREAKFAST (2015 DESIGN) | E55: ea | F55: 1
A56: 8243 | B56: Beer Coors | C56: 154001.R00.V00 | D56: CUP-PLASTIC, CLEAR, PP (12 OZ), (2012 DESIGN) | E56: ea | F56: 1
A57: 6332 | B57: Beer Coors Lite | C57: 154001.R00.V00 | D57: CUP-PLASTIC, CLEAR, PP (12 OZ), (2012 DESIGN) | E57: ea | F57: 1
A58: 7346 | B58: Beer Corona | C58: 154001.R00.V00 | D58: CUP-PLASTIC, CLEAR, PP (12 OZ), (2012 DESIGN) | E58: ea | F58: 1
A59: 7344 | B59: Beer Heineken | C59: 154001.R00.V00 | D59: CUP-PLASTIC, CLEAR, PP (12 OZ), (2012 DESIGN) | E59: ea | F59: 1
A60: 5673 | B60: Beer Miller Lite | C60: 154001.R00.V00 | D60: CUP-PLASTIC, CLEAR, PP (12 OZ), (2012 DESIGN) | E60: ea | F60: 1
A61: 8228 | B61: Beer Modelo | C61: 154001.R00.V00 | D61: CUP-PLASTIC, CLEAR, PP (12 OZ), (2012 DESIGN) | E61: ea | F61: 1
A62: 2986 | B62: Big Fish Sand | C62: 156394.R01.V00 | D62: BUN-4" BRIOCHE STYLE, FROZEN | E62: ea | F62: 1
A63: 2986 | B63: Big Fish Sand | C63: 153718.R01.V00 | D63: FISH-ALASKA POLLOCK, PANKO BREADED (3.1 OZ), BK | E63: ea | F63: 1
A64: 2986 | B64: Big Fish Sand | C64: 155122.R00.V00 | D64: LETTUCE-ICEBERG, WHOLE HEAD | E64: wt oz | F64: 0.5
A65: 2986 | B65: Big Fish Sand | C65: 153917.R01.V00 | D65: PICKLES-DILL, SLICED, PAIL | E65: ea | F65: 2
A66: 2986 | B66: Big Fish Sand | C66: 151251.R02.V00 | D66: SAUCE-TARTAR, BULK, BK | E66: wt oz | F66: 1
A67: 2986 | B67: Big Fish Sand | C67: 201281.R00.V00 | D67: WRAP-SPECIALTY (2016 DESIGN-MTO) | E67: ea | F67: 1
A68: 470 | B68: Biscuit | C68: 154843.R00.V00 | D68: BISCUIT DOUGH-SOUTHERN STYLE, FROZEN, (2.6 OZ) BK | E68: ea | F68: 1
A69: 470 | B69: Biscuit | C69: 153158.R00.V00 | D69: OIL-BUTTER FLAVORED, TRANS FAT FREE, WHIRL | E69: wt oz | F69: 0.1
A70: 470 | B70: Biscuit | C70: 156401.R02.V00 | D70: WRAP-BREAKFAST (2015 DESIGN) | E70: ea | F70: 1
A71: 416 | B71: Biscuit Bac | C71: 153847.R01.V00 | D71: BACON-THICK SLICED, RAW, REFRIGERATED , BK | E71: slc | F71: 1
A72: 416 | B72: Biscuit Bac | C72: 154843.R00.V00 | D72: BISCUIT DOUGH-SOUTHERN STYLE, FROZEN, (2.6 OZ) BK | E72: ea | F72: 1
A73: 416 | B73: Biscuit Bac | C73: 153158.R00.V00 | D73: OIL-BUTTER FLAVORED, TRANS FAT FREE, WHIRL | E73: wt oz | F73: 0.1
A74: 416 | B74: Biscuit Bac | C74: 156401.R02.V00 | D74: WRAP-BREAKFAST (2015 DESIGN) | E74: ea | F74: 1
A75: 377 | B75: Biscuit Bac Chs | C75: 153847.R01.V00 | D75: BACON-THICK SLICED, RAW, REFRIGERATED , BK | E75: slc | F75: 1
A76: 377 | B76: Biscuit Bac Chs | C76: 154843.R00.V00 | D76: BISCUIT DOUGH-SOUTHERN STYLE, FROZEN, (2.6 OZ) BK | E76: ea | F76: 1
A77: 377 | B77: Biscuit Bac Chs | C77: 200123.R01.V00 | D77: CHEESE-AMERICAN, PROCESS, PASTEURIZED, BK | E77: slc | F77: 1
A78: 377 | B78: Biscuit Bac Chs | C78: 153158.R00.V00 | D78: OIL-BUTTER FLAVORED, TRANS FAT FREE, WHIRL | E78: wt oz | F78: 0.1
A79: 377 | B79: Biscuit Bac Chs | C79: 156401.R02.V00 | D79: WRAP-BREAKFAST (2015 DESIGN) | E79: ea | F79: 1
A80: 488 | B80: Biscuit Bac Egg | C80: 153847.R01.V00 | D80: BACON-THICK SLICED, RAW, REFRIGERATED , BK | E80: slc | F80: 1
A81: 488 | B81: Biscuit Bac Egg | C81: 154135.R00.V00 | D81: BISCUIT DOUGH-SOUTHERN STYLE, FROZEN, (2.6 OZ) BK | E81: ea | F81: 1
A82: 488 | B82: Biscuit Bac Egg | C82: 154053.R00.V00 | D82: COATING-PAN, ALL PURPOSE, GOLD-N-SWEET | E82: wt oz | F82: 0.01
A83: 488 | B83: Biscuit Bac Egg | C83: 153428.R01.V01 | D83: EGG MIX-LIQUID, REFRIGERATED, PASTEURIZED, BK | E83: fl oz | F83: 1.6
A84: 488 | B84: Biscuit Bac Egg | C84: 153158.R00.V00 | D84: OIL-BUTTER FLAVORED, TRANS FAT FREE, WHIRL | E84: wt oz | F84: 0.1
A85: 488 | B85: Biscuit Bac Egg | C85: 201282.R00.V00 | D85: WRAP-BREAKFAST/CRISPY CHICKEN JR. (2016 DESIGN-MTO) | E85: ea | F85: 1
A86: 376 | B86: Biscuit Bac Egg Chs | C86: 153847.R01.V00 | D86: BACON-THICK SLICED, RAW, REFRIGERATED , BK | E86: slc | F86: 1
A87: 376 | B87: Biscuit Bac Egg Chs | C87: 154135.R00.V00 | D87: BISCUIT DOUGH-SOUTHERN STYLE, FROZEN, (2.6 OZ) BK | E87: ea | F87: 1
A88: 376 | B88: Biscuit Bac Egg Chs | C88: 200123.R01.V00 | D88: CHEESE-AMERICAN, PROCESS, PASTEURIZED, BK | E88: slc | F88: 1
A89: 376 | B89: Biscuit Bac Egg Chs | C89: 154053.R00.V00 | D89: COATING-PAN, ALL PURPOSE, GOLD-N-SWEET | E89: wt oz | F89: 0.01
A90: 376 | B90: Biscuit Bac Egg Chs | C90: 153428.R01.V01 | D90: EGG MIX-LIQUID, REFRIGERATED, PASTEURIZED, BK | E90: fl oz | F90: 1.6
A91: 376 | B91: Biscuit Bac Egg Chs | C91: 153158.R00.V00 | D91: OIL-BUTTER FLAVORED, TRANS FAT FREE, WHIRL | E91: wt oz | F91: 0.1
A92: 376 | B92: Biscuit Bac Egg Chs | C92: 201282.R00.V00 | D92: WRAP-BREAKFAST/CRISPY CHICKEN JR. (2016 DESIGN-MTO) | E92: ea | F92: 1
A93: 2790 | B93: Biscuit Bac Egg Chs Dbl | C93: 153847.R01.V00 | D93: BACON-THICK SLICED, RAW, REFRIGERATED , BK | E93: slc | F93: 2
A94: 2790 | B94: Biscuit Bac Egg Chs Dbl | C94: 154135.R00.V00 | D94: BISCUIT DOUGH-SOUTHERN STYLE, FROZEN, (2.6 OZ) BK | E94: ea | F94: 1
A95: 2790 | B95: Biscuit Bac Egg Chs Dbl | C95: 200123.R01.V00 | D95: CHEESE-AMERICAN, PROCESS, PASTEURIZED, BK | E95: slc | F95: 2
A96: 2790 | B96: Biscuit Bac Egg Chs Dbl | C96: 154053.R00.V00 | D96: COATING-PAN, ALL PURPOSE, GOLD-N-SWEET | E96: wt oz | F96: 0.01
A97: 2790 | B97: Biscuit Bac Egg Chs Dbl | C97: 153428.R01.V01 | D97: EGG MIX-LIQUID, REFRIGERATED, PASTEURIZED, BK | E97: fl oz | F97: 1.6
A98: 2790 | B98: Biscuit Bac Egg Chs Dbl | C98: 153158.R00.V00 | D98: OIL-BUTTER FLAVORED, TRANS FAT FREE, WHIRL | E98: wt oz | F98: 0.1
A99: 2790 | B99: Biscuit Bac Egg Chs Dbl | C99: 201282.R00.V00 | D99: WRAP-BREAKFAST/CRISPY CHICKEN JR. (2016 DESIGN-MTO) | E99: ea | F99: 1
A100: 2794 | B100: Biscuit Bac Ham Egg Chs Dbl | C100: 153847.R01.V00 | D100: BACON-THICK SLICED, RAW, REFRIGERATED , BK | E100: slc | F100: 1
A101: 2794 | B101: Biscuit Bac Ham Egg Chs Dbl | C101: 154135.R00.V00 | D101: BISCUIT DOUGH-SOUTHERN STYLE, FROZEN, (2.6 OZ) BK | E101: ea | F101: 1
A102: 2794 | B102: Biscuit Bac Ham Egg Chs Dbl | C102: 200123.R01.V00 | D102: CHEESE-AMERICAN, PROCESS, PASTEURIZED, BK | E102: slc | F102: 2
A103: 2794 | B103: Biscuit Bac Ham Egg Chs Dbl | C103: 154053.R00.V00 | D103: COATING-PAN, ALL PURPOSE, GOLD-N-SWEET | E103: wt oz | F103: 0.01
A104: 2794 | B104: Biscuit Bac Ham Egg Chs Dbl | C104: 153428.R01.V01 | D104: EGG MIX-LIQUID, REFRIGERATED, PASTEURIZED, BK | E104: fl oz | F104: 1.6
A105: 2794 | B105: Biscuit Bac Ham Egg Chs Dbl | C105: 153186.R01.V00 | D105: HAM-SLICED, REFRIGERATED, BLACK FOREST, BK | E105: slc | F105: 2
A106: 2794 | B106: Biscuit Bac Ham Egg Chs Dbl | C106: 153158.R00.V00 | D106: OIL-BUTTER FLAVORED, TRANS FAT FREE, WHIRL | E106: wt oz | F106: 0.1
A107: 2794 | B107: Biscuit Bac Ham Egg Chs Dbl | C107: 201282.R00.V00 | D107: WRAP-BREAKFAST/CRISPY CHICKEN JR. (2016 DESIGN-MTO) | E107: ea | F107: 1
A108: 2792 | B108: Biscuit Bac Saus Egg Chs Dbl | C108: 153847.R01.V00 | D108: BACON-THICK SLICED, RAW, REFRIGERATED , BK | E108: slc | F108: 1
A109: 2792 | B109: Biscuit Bac Saus Egg Chs Dbl | C109: 154135.R00.V00 | D109: BISCUIT DOUGH-SOUTHERN STYLE, FROZEN, (2.6 OZ) BK | E109: ea | F109: 1
A110: 2792 | B110: Biscuit Bac Saus Egg Chs Dbl | C110: 200123.R01.V00 | D110: CHEESE-AMERICAN, PROCESS, PASTEURIZED, BK | E110: slc | F110: 2
A111: 2792 | B111: Biscuit Bac Saus Egg Chs Dbl | C111: 154053.R00.V00 | D111: COATING-PAN, ALL PURPOSE, GOLD-N-SWEET | E111: wt oz | F111: 0.01
A112: 2792 | B112: Biscuit Bac Saus Egg Chs Dbl | C112: 153428.R01.V01 | D112: EGG MIX-LIQUID, REFRIGERATED, PASTEURIZED, BK | E112: fl oz | F112: 1.6
A113: 2792 | B113: Biscuit Bac Saus Egg Chs Dbl | C113: 153158.R00.V00 | D113: OIL-BUTTER FLAVORED, TRANS FAT FREE, WHIRL | E113: wt oz | F113: 0.1
A114: 2792 | B114: Biscuit Bac Saus Egg Chs Dbl | C114: 151226.R00.V00 | D114: SAUSAGE-PATTY, BREAKFAST (1.8 OZ) MILDLY SPICED, BK | E114: ea | F114: 1
A115: 2792 | B115: Biscuit Bac Saus Egg Chs Dbl | C115: 201282.R00.V00 | D115: WRAP-BREAKFAST/CRISPY CHICKEN JR. (2016 DESIGN-MTO) | E115: ea | F115: 1
A116: 432 | B116: Biscuit CHam Egg Chs | C116: 154135.R00.V00 | D116: BISCUIT DOUGH-SOUTHERN STYLE, FROZEN, (2.6 OZ) BK | E116: ea | F116: 1
A117: 432 | B117: Biscuit CHam Egg Chs | C117: 200123.R01.V00 | D117: CHEESE-AMERICAN, PROCESS, PASTEURIZED, BK | E117: slc | F117: 1
A118: 432 | B118: Biscuit CHam Egg Chs | C118: 154053.R00.V00 | D118: COATING-PAN, ALL PURPOSE, GOLD-N-SWEET | E118: wt oz | F118: 0.01
A119: 432 | B119: Biscuit CHam Egg Chs | C119: 153428.R01.V01 | D119: EGG MIX-LIQUID, REFRIGERATED, PASTEURIZED, BK | E119: fl oz | F119: 1.6
A120: 432 | B120: Biscuit CHam Egg Chs | C120: 150183.R00.V00 | D120: HAM-COUNTRY, SLICED | E120: slc | F120: 1
A121: 432 | B121: Biscuit CHam Egg Chs | C121: 153158.R00.V00 | D121: OIL-BUTTER FLAVORED, TRANS FAT FREE, WHIRL | E121: wt oz | F121: 0.1
A122: 432 | B122: Biscuit CHam Egg Chs | C122: 201282.R00.V00 | D122: WRAP-BREAKFAST/CRISPY CHICKEN JR. (2016 DESIGN-MTO) | E122: ea | F122: 1
A123: 1950 | B123: Biscuit Chicken | C123: 154843.R00.V00 | D123: BISCUIT DOUGH-SOUTHERN STYLE, FROZEN, (2.6 OZ) BK | E123: ea | F123: 1
A124: 1950 | B124: Biscuit Chicken | C124: 200281.R00.V00 | D124: CHICKEN-BREAST, WHOLE MUSCLE FILLET, BREADED, SOUTHERN FRIED (2.5 OZ), BK | E124: ea | F124: 1
A125: 1950 | B125: Biscuit Chicken | C125: 153158.R00.V00 | D125: OIL-BUTTER FLAVORED, TRANS FAT FREE, WHIRL | E125: wt oz | F125: 0.1
A126: 1950 | B126: Biscuit Chicken | C126: 156401.R02.V00 | D126: WRAP-BREAKFAST (2015 DESIGN) | E126: ea | F126: 1
A127: 2812 | B127: Biscuit Chicken Bac Egg Chs Dbl | C127: 153847.R01.V00 | D127: BACON-THICK SLICED, RAW, REFRIGERATED , BK | E127: slc | F127: 1
A128: 2812 | B128: Biscuit Chicken Bac Egg Chs Dbl | C128: 154135.R00.V00 | D128: BISCUIT DOUGH-SOUTHERN STYLE, FROZEN, (2.6 OZ) BK | E128: ea | F128: 1
A129: 2812 | B129: Biscuit Chicken Bac Egg Chs Dbl | C129: 200123.R01.V00 | D129: CHEESE-AMERICAN, PROCESS, PASTEURIZED, BK | E129: slc | F129: 2
A130: 2812 | B130: Biscuit Chicken Bac Egg Chs Dbl | C130: 200281.R00.V00 | D130: CHICKEN-BREAST, WHOLE MUSCLE FILLET, BREADED, SOUTHERN FRIED (2.5 OZ), BK | E130: ea | F130: 1
A131: 2812 | B131: Biscuit Chicken Bac Egg Chs Dbl | C131: 154053.R00.V00 | D131: COATING-PAN, ALL PURPOSE, GOLD-N-SWEET | E131: wt oz | F131: 0.01
A132: 2812 | B132: Biscuit Chicken Bac Egg Chs Dbl | C132: 153428.R01.V01 | D132: EGG MIX-LIQUID, REFRIGERATED, PASTEURIZED, BK | E132: fl oz | F132: 1.6
A133: 2812 | B133: Biscuit Chicken Bac Egg Chs Dbl | C133: 201282.R00.V00 | D133: WRAP-BREAKFAST/CRISPY CHICKEN JR. (2016 DESIGN-MTO) | E133: ea | F133: 1
A134: 2856 | B134: Biscuit Chicken Chs | C134: 154843.R00.V00 | D134: BISCUIT DOUGH-SOUTHERN STYLE, FROZEN, (2.6 OZ) BK | E134: ea | F134: 1
A135: 2856 | B135: Biscuit Chicken Chs | C135: 200123.R01.V00 | D135: CHEESE-AMERICAN, PROCESS, PASTEURIZED, BK | E135: slc | F135: 1
A136: 2856 | B136: Biscuit Chicken Chs | C136: 200281.R00.V00 | D136: CHICKEN-BREAST, WHOLE MUSCLE FILLET, BREADED, SOUTHERN FRIED (2.5 OZ), BK | E136: ea | F136: 1
A137: 2856 | B137: Biscuit Chicken Chs | C137: 153158.R00.V00 | D137: OIL-BUTTER FLAVORED, TRANS FAT FREE, WHIRL | E137: wt oz | F137: 0.1
A138: 2856 | B138: Biscuit Chicken Chs | C138: 156401.R02.V00 | D138: WRAP-BREAKFAST (2015 DESIGN) | E138: ea | F138: 1
A139: 2857 | B139: Biscuit Chicken Egg | C139: 154135.R00.V00 | D139: BISCUIT DOUGH-SOUTHERN STYLE, FROZEN, (2.6 OZ) BK | E139: ea | F139: 1
A140: 2857 | B140: Biscuit Chicken Egg | C140: 200281.R00.V00 | D140: CHICKEN-BREAST, WHOLE MUSCLE FILLET, BREADED, SOUTHERN FRIED (2.5 OZ), BK | E140: ea | F140: 1
A141: 2857 | B141: Biscuit Chicken Egg | C141: 154053.R00.V00 | D141: COATING-PAN, ALL PURPOSE, GOLD-N-SWEET | E141: wt oz | F141: 0.01
A142: 2857 | B142: Biscuit Chicken Egg | C142: 153428.R01.V01 | D142: EGG MIX-LIQUID, REFRIGERATED, PASTEURIZED, BK | E142: fl oz | F142: 1.6
A143: 2857 | B143: Biscuit Chicken Egg | C143: 153158.R00.V00 | D143: OIL-BUTTER FLAVORED, TRANS FAT FREE, WHIRL | E143: wt oz | F143: 0.1
A144: 2857 | B144: Biscuit Chicken Egg | C144: 201282.R00.V00 | D144: WRAP-BREAKFAST/CRISPY CHICKEN JR. (2016 DESIGN-MTO) | E144: ea | F144: 1
A145: 2858 | B145: Biscuit Chicken Egg Chs | C145: 154135.R00.V00 | D145: BISCUIT DOUGH-SOUTHERN STYLE, FROZEN, (2.6 OZ) BK | E145: ea | F145: 1
A146: 2858 | B146: Biscuit Chicken Egg Chs | C146: 200123.R01.V00 | D146: CHEESE-AMERICAN, PROCESS, PASTEURIZED, BK | E146: slc | F146: 1
A147: 2858 | B147: Biscuit Chicken Egg Chs | C147: 200281.R00.V00 | D147: CHICKEN-BREAST, WHOLE MUSCLE FILLET, BREADED, SOUTHERN FRIED (2.5 OZ), BK | E147: ea | F147: 1
A148: 2858 | B148: Biscuit Chicken Egg Chs | C148: 154053.R00.V00 | D148: COATING-PAN, ALL PURPOSE, GOLD-N-SWEET | E148: wt oz | F148: 0.01
A149: 2858 | B149: Biscuit Chicken Egg Chs | C149: 153428.R01.V01 | D149: EGG MIX-LIQUID, REFRIGERATED, PASTEURIZED, BK | E149: fl oz | F149: 1.6
A150: 2858 | B150: Biscuit Chicken Egg Chs | C150: 153158.R00.V00 | D150: OIL-BUTTER FLAVORED, TRANS FAT FREE, WHIRL | E150: wt oz | F150: 0.1
A151: 2858 | B151: Biscuit Chicken Egg Chs | C151: 201282.R00.V00 | D151: WRAP-BREAKFAST/CRISPY CHICKEN JR. (2016 DESIGN-MTO) | E151: ea | F151: 1
A152: 2820 | B152: Biscuit Chicken Egg Chs Dbl | C152: 154135.R00.V00 | D152: BISCUIT DOUGH-SOUTHERN STYLE, FROZEN, (2.6 OZ) BK | E152: ea | F152: 1
A153: 2820 | B153: Biscuit Chicken Egg Chs Dbl | C153: 200123.R01.V00 | D153: CHEESE-AMERICAN, PROCESS, PASTEURIZED, BK | E153: slc | F153: 2
A154: 2820 | B154: Biscuit Chicken Egg Chs Dbl | C154: 200281.R00.V00 | D154: CHICKEN-BREAST, WHOLE MUSCLE FILLET, BREADED, SOUTHERN FRIED (2.5 OZ), BK | E154: ea | F154: 2
A155: 2820 | B155: Biscuit Chicken Egg Chs Dbl | C155: 154053.R00.V00 | D155: COATING-PAN, ALL PURPOSE, GOLD-N-SWEET | E155: wt oz | F155: 0.01
A156: 2820 | B156: Biscuit Chicken Egg Chs Dbl | C156: 153428.R01.V01 | D156: EGG MIX-LIQUID, REFRIGERATED, PASTEURIZED, BK | E156: fl oz | F156: 1.6
A157: 2820 | B157: Biscuit Chicken Egg Chs Dbl | C157: 201282.R00.V00 | D157: WRAP-BREAKFAST/CRISPY CHICKEN JR. (2016 DESIGN-MTO) | E157: ea | F157: 1
A158: 2808 | B158: Biscuit Chicken Saus Egg Chs Dbl | C158: 154135.R00.V00 | D158: BISCUIT DOUGH-SOUTHERN STYLE, FROZEN, (2.6 OZ) BK | E158: ea | F158: 1
A159: 2808 | B159: Biscuit Chicken Saus Egg Chs Dbl | C159: 200123.R01.V00 | D159: CHEESE-AMERICAN, PROCESS, PASTEURIZED, BK | E159: slc | F159: 2
A160: 2808 | B160: Biscuit Chicken Saus Egg Chs Dbl | C160: 200281.R00.V00 | D160: CHICKEN-BREAST, WHOLE MUSCLE FILLET, BREADED, SOUTHERN FRIED (2.5 OZ), BK | E160: ea | F160: 1
A161: 2808 | B161: Biscuit Chicken Saus Egg Chs Dbl | C161: 154053.R00.V00 | D161: COATING-PAN, ALL PURPOSE, GOLD-N-SWEET | E161: wt oz | F161: 0.01
A162: 2808 | B162: Biscuit Chicken Saus Egg Chs Dbl | C162: 153428.R01.V01 | D162: EGG MIX-LIQUID, REFRIGERATED, PASTEURIZED, BK | E162: fl oz | F162: 1.6
A163: 2808 | B163: Biscuit Chicken Saus Egg Chs Dbl | C163: 151226.R00.V00 | D163: SAUSAGE-PATTY, BREAKFAST (1.8 OZ) MILDLY SPICED, BK | E163: ea | F163: 1
A164: 2808 | B164: Biscuit Chicken Saus Egg Chs Dbl | C164: 201282.R00.V00 | D164: WRAP-BREAKFAST/CRISPY CHICKEN JR. (2016 DESIGN-MTO) | E164: ea | F164: 1
A165: 375 | B165: Biscuit Chs | C165: 154843.R00.V00 | D165: BISCUIT DOUGH-SOUTHERN STYLE, FROZEN, (2.6 OZ) BK | E165: ea | F165: 1
A166: 375 | B166: Biscuit Chs | C166: 200123.R01.V00 | D166: CHEESE-AMERICAN, PROCESS, PASTEURIZED, BK | E166: slc | F166: 1
A167: 375 | B167: Biscuit Chs | C167: 153158.R00.V00 | D167: OIL-BUTTER FLAVORED, TRANS FAT FREE, WHIRL | E167: wt oz | F167: 0.1
A168: 375 | B168: Biscuit Chs | C168: 156401.R02.V00 | D168: WRAP-BREAKFAST (2015 DESIGN) | E168: ea | F168: 1
A169: 473 | B169: Biscuit Country Ham | C169: 154843.R00.V00 | D169: BISCUIT DOUGH-SOUTHERN STYLE, FROZEN, (2.6 OZ) BK | E169: ea | F169: 1
A170: 473 | B170: Biscuit Country Ham | C170: 150183.R00.V00 | D170: HAM-COUNTRY, SLICED | E170: slc | F170: 1
A171: 473 | B171: Biscuit Country Ham | C171: 153158.R00.V00 | D171: OIL-BUTTER FLAVORED, TRANS FAT FREE, WHIRL | E171: wt oz | F171: 0.1
A172: 473 | B172: Biscuit Country Ham | C172: 156401.R02.V00 | D172: WRAP-BREAKFAST (2015 DESIGN) | E172: ea | F172: 1
A173: 2802 | B173: Biscuit Country Ham Bac Egg Chs Dbl | C173: 153847.R01.V00 | D173: BACON-THICK SLICED, RAW, REFRIGERATED , BK | E173: slc | F173: 1
A174: 2802 | B174: Biscuit Country Ham Bac Egg Chs Dbl | C174: 200123.R01.V00 | D174: CHEESE-AMERICAN, PROCESS, PASTEURIZED, BK | E174: slc | F174: 2
A175: 2802 | B175: Biscuit Country Ham Bac Egg Chs Dbl | C175: 154053.R00.V00 | D175: COATING-PAN, ALL PURPOSE, GOLD-N-SWEET | E175: wt oz | F175: 0.01
A176: 2802 | B176: Biscuit Country Ham Bac Egg Chs Dbl | C176: 153428.R01.V01 | D176: EGG MIX-LIQUID, REFRIGERATED, PASTEURIZED, BK | E176: fl oz | F176: 1.6
A177: 2802 | B177: Biscuit Country Ham Bac Egg Chs Dbl | C177: 150183.R00.V00 | D177: HAM-COUNTRY, SLICED | E177: slc | F177: 1
A178: 2802 | B178: Biscuit Country Ham Bac Egg Chs Dbl | C178: 153158.R00.V00 | D178: OIL-BUTTER FLAVORED, TRANS FAT FREE, WHIRL | E178: wt oz | F178: 0.1
A179: 2802 | B179: Biscuit Country Ham Bac Egg Chs Dbl | C179: 201282.R00.V00 | D179: WRAP-BREAKFAST/CRISPY CHICKEN JR. (2016 DESIGN-MTO) | E179: ea | F179: 1
A180: 472 | B180: Biscuit Country Ham Egg | C180: 154135.R00.V00 | D180: BISCUIT DOUGH-SOUTHERN STYLE, FROZEN, (2.6 OZ) BK | E180: ea | F180: 1
A181: 472 | B181: Biscuit Country Ham Egg | C181: 154053.R00.V00 | D181: COATING-PAN, ALL PURPOSE, GOLD-N-SWEET | E181: wt oz | F181: 0.01
A182: 472 | B182: Biscuit Country Ham Egg | C182: 153428.R01.V01 | D182: EGG MIX-LIQUID, REFRIGERATED, PASTEURIZED, BK | E182: fl oz | F182: 1.6
A183: 472 | B183: Biscuit Country Ham Egg | C183: 150183.R00.V00 | D183: HAM-COUNTRY, SLICED | E183: slc | F183: 1
A184: 472 | B184: Biscuit Country Ham Egg | C184: 153158.R00.V00 | D184: OIL-BUTTER FLAVORED, TRANS FAT FREE, WHIRL | E184: wt oz | F184: 0.1
A185: 472 | B185: Biscuit Country Ham Egg | C185: 201282.R00.V00 | D185: WRAP-BREAKFAST/CRISPY CHICKEN JR. (2016 DESIGN-MTO) | E185: ea | F185: 1
A186: 2804 | B186: Biscuit Country Ham Egg Chs Dbl | C186: 154135.R00.V00 | D186: BISCUIT DOUGH-SOUTHERN STYLE, FROZEN, (2.6 OZ) BK | E186: ea | F186: 1
A187: 2804 | B187: Biscuit Country Ham Egg Chs Dbl | C187: 200123.R01.V00 | D187: CHEESE-AMERICAN, PROCESS, PASTEURIZED, BK | E187: slc | F187: 2
A188: 2804 | B188: Biscuit Country Ham Egg Chs Dbl | C188: 154053.R00.V00 | D188: COATING-PAN, ALL PURPOSE, GOLD-N-SWEET | E188: wt oz | F188: 0.01
A189: 2804 | B189: Biscuit Country Ham Egg Chs Dbl | C189: 153428.R01.V01 | D189: EGG MIX-LIQUID, REFRIGERATED, PASTEURIZED, BK | E189: fl oz | F189: 1.6
A190: 2804 | B190: Biscuit Country Ham Egg Chs Dbl | C190: 150183.R00.V00 | D190: HAM-COUNTRY, SLICED | E190: slc | F190: 2
A191: 2804 | B191: Biscuit Country Ham Egg Chs Dbl | C191: 153158.R00.V00 | D191: OIL-BUTTER FLAVORED, TRANS FAT FREE, WHIRL | E191: wt oz | F191: 0.1
A192: 2804 | B192: Biscuit Country Ham Egg Chs Dbl | C192: 201282.R00.V00 | D192: WRAP-BREAKFAST/CRISPY CHICKEN JR. (2016 DESIGN-MTO) | E192: ea | F192: 1
A193: 480 | B193: Biscuit Egg | C193: 154135.R00.V00 | D193: BISCUIT DOUGH-SOUTHERN STYLE, FROZEN, (2.6 OZ) BK | E193: ea | F193: 1
A194: 480 | B194: Biscuit Egg | C194: 154053.R00.V00 | D194: COATING-PAN, ALL PURPOSE, GOLD-N-SWEET | E194: wt oz | F194: 0.01
A195: 480 | B195: Biscuit Egg | C195: 153428.R01.V01 | D195: EGG MIX-LIQUID, REFRIGERATED, PASTEURIZED, BK | E195: fl oz | F195: 1.6
A196: 480 | B196: Biscuit Egg | C196: 153158.R00.V00 | D196: OIL-BUTTER FLAVORED, TRANS FAT FREE, WHIRL | E196: wt oz | F196: 0.1
A197: 480 | B197: Biscuit Egg | C197: 201282.R00.V00 | D197: WRAP-BREAKFAST/CRISPY CHICKEN JR. (2016 DESIGN-MTO) | E197: ea | F197: 1
A198: 428 | B198: Biscuit Egg Chs | C198: 154135.R00.V00 | D198: BISCUIT DOUGH-SOUTHERN STYLE, FROZEN, (2.6 OZ) BK | E198: ea | F198: 1
A199: 428 | B199: Biscuit Egg Chs | C199: 200123.R01.V00 | D199: CHEESE-AMERICAN, PROCESS, PASTEURIZED, BK | E199: slc | F199: 1
A200: 428 | B200: Biscuit Egg Chs | C200: 154053.R00.V00 | D200: COATING-PAN, ALL PURPOSE, GOLD-N-SWEET | E200: wt oz | F200: 0.01
... 2846 more rows

Sheet GPMIX
A1: Y | B1: i
B2: H R | C2: =WEEKDAY(Pmixdate) -> 5 | D2: Ounces | F2: 1 | G2: =VLOOKUP(Lang!A159,LOCATION,WORLD+1,FALSE) -> SUN | H2: 4 | I2: 1 | J2: 0
B3: I O | C3: =VLOOKUP(C2,F2:G8,2,FALSE) -> THU | D3: Grams | F3: 2 | G3: =VLOOKUP(Lang!A160,LOCATION,WORLD+1,FALSE) -> MON | I3: 2 | J3: 0.1
B4: D W | C4: =CONCATENATE(TEXT(Pmixdate,"yyyy"),"-",TEXT(Pmixdate,"mm"),"-",TEXT(Pmixdate,"dd"),TEXT(Pmixdate,"ddd")) -> 2013-01-10Thu | D4: N/A | F4: 3 | G4: =VLOOKUP(Lang!A161,LOCATION,WORLD+1,FALSE) -> TUE | I4: 3 | J4: 0.2
